{"text_format":"1","workbook":"xlsx","n_sheets":2,"sheets":["EDF","Validation sheet"],"not_rendered":{"charts":0,"images":0,"macros":0,"external_links":0,"defined_names":6,"comments":0,"pivot_tables":0},"unopened":[],"bounds":{"document_bytes":16777216,"sheet_cells":100000,"rows_first":2000,"rows_last":500,"rows_between":2000,"halvings":0,"cell_chars":16384,"cell_head_chars":4096},"cells_cut":0,"cells_raw":0,"read":"whole","date_system":"1900"}

{"sheet":"EDF","index":0,"n_rows":1000,"n_cols":38,"rows_kept":1000,"cut":false,"hidden":false,"merged":[[4,7,4,9],[4,14,4,16],[4,32,4,34]]}
["Company Name","ARKAN GULF TRADING & CONTRACTING",null,"V10.3"]
["Date : ",{"$f":"NOW()","v":"2024-09-11T11:06:02.850"}]
["Time :",{"$f":"NOW()","v":45546.462532986108}]
["Batch Number : "]
["Computer Card Number ","15457600",null,null,null,null,null,"Date of Birth ",null,null,null,null,null,null,"Expiry Date ",null,null,null,null,null,null,null,null,null,null,null,null,null,null,null,null,null,"Visa Expiry Date "]
["Staff Number","First Name ","Middle Name ","Last Name ","Name on Card","Nationality","Nationality","Day","Month ","Year","Date of Birth","Country Of Birth","Type ","ID No / Passport No","Day","Month ","Year","ID Expiry Date","Prefix (delete)","Mobile No","Mobile No","Company  Address","Work City ","Home Country Address","Sector","Company Name","Employment Date","Monthly Income","Level of Education / Occupation","MOBILE ALERTS REQUEST","Visa Type","Visa Number","Day","Month ","Year","Salary Range","Place of Birth(City)","Job Title#"]
[6,"Muhammad","Ahmad","Ali",{"$f":"B7&\" \"&D7","v":"Muhammad Ali"},"PAKISTAN",{"$f":"VLOOKUP(F7,'Validation sheet'!E:F,2,FALSE)","v":"PK"},"07","12",1996,{"$f":"H7&\"-\"&I7&\"-\"&J7","v":"07-12-1996"},{"$f":"G7","v":"PK"},"QATAR ID",29658603198,"20","02",2025,{"$f":"O7&\"-\"&P7&\"-\"&Q7","v":"20-02-2025"},null,66808817,{"$f":"S7&T7","v":"66808817"},"Zone 00 Street 00 Building 00","Al Wakrah",{"$f":"L7","v":"PK"},null,{"$f":"$B$1","v":"ARKAN GULF TRADING & CONTRACTING"},{"$f":"NOW()","v":"2024-09-11T11:06:02.850"},null,"Payroll Service (Worker)","Y","Work Visa",null,null,null,null,null,"PAKISTAN","HVAC"]
[null,null,null,null,{"$f":"B8&\" \"&D8","v":" "},null,{"$f":"VLOOKUP(F8,'Validation sheet'!E:F,2,FALSE)","v":{"$error":"#N/A"}},null,null,null,{"$f":"H8&\"-\"&I8&\"-\"&J8","v":"--"},{"$f":"G8","v":{"$error":"#N/A"}},null,null,null,null,null,{"$f":"O8&\"-\"&P8&\"-\"&Q8","v":"--"},null,null,"","Zone 00 Street 00 Building 00",null,{"$error":"#N/A"},null,{"$f":"$B$1","v":"ARKAN GULF TRADING & CONTRACTING"},{"$f":"NOW()","v":"2024-09-11T11:06:02.850"},null,"Payroll Service (Worker)","Y","Work Visa"]
[null,null,null,null," ",null,{"$f":"VLOOKUP(F9,'Validation sheet'!E:F,2,FALSE)","v":{"$error":"#N/A"}},null,null,null,"--",{"$error":"#N/A"},null,null,null,null,null,"--",null,null,"","Zone 00 Street 00 Building 00",null,{"$error":"#N/A"},null,"ARKAN GULF TRADING & CONTRACTING","2024-09-11T11:06:02.850",null,"Payroll Service (Worker)","Y","Work Visa"]
[null,null,null,null," ",null,{"$f":"VLOOKUP(F10,'Validation sheet'!E:F,2,FALSE)","v":{"$error":"#N/A"}},null,null,null,"--",{"$error":"#N/A"},null,null,null,null,null,"--",null,null,"","Zone 00 Street 00 Building 00",null,{"$error":"#N/A"},null,"ARKAN GULF TRADING & CONTRACTING","2024-09-11T11:06:02.850",null,"Payroll Service (Worker)","Y","Work Visa"]
[null,null,null,null," ",null,{"$f":"VLOOKUP(F11,'Validation sheet'!E:F,2,FALSE)","v":{"$error":"#N/A"}},null,null,null,"--",{"$error":"#N/A"},null,null,null,null,null,"--",null,null,"","Zone 00 Street 00 Building 00",null,{"$error":"#N/A"},null,"ARKAN GULF TRADING & CONTRACTING","2024-09-11T11:06:02.850",null,"Payroll Service (Worker)","Y","Work Visa"]
[null,null,null,null," ",null,{"$f":"VLOOKUP(F12,'Validation sheet'!E:F,2,FALSE)","v":{"$error":"#N/A"}},null,null,null,"--",{"$error":"#N/A"},null,null,null,null,null,"--",null,null,"","Zone 00 Street 00 Building 00",null,{"$error":"#N/A"},null,"ARKAN GULF TRADING & CONTRACTING","2024-09-11T11:06:02.850",null,"Payroll Service (Worker)","Y","Work Visa"]
[null,null,null,null," ",null,{"$f":"VLOOKUP(F13,'Validation sheet'!E:F,2,FALSE)","v":{"$error":"#N/A"}},null,null,null,"--",{"$error":"#N/A"},null,null,null,null,null,"--",null,null,"","Zone 00 Street 00 Building 00",null,{"$error":"#N/A"},null,"ARKAN GULF TRADING & CONTRACTING","2024-09-11T11:06:02.850",null,"Payroll Service (Worker)","Y","Work Visa"]
[null,null,null,null," ",null,{"$f":"VLOOKUP(F14,'Validation sheet'!E:F,2,FALSE)","v":{"$error":"#N/A"}},null,null,null,"--",{"$error":"#N/A"},null,null,null,null,null,"--",null,null,"","Zone 00 Street 00 Building 00",null,{"$error":"#N/A"},null,"ARKAN GULF TRADING & CONTRACTING","2024-09-11T11:06:02.850",null,"Payroll Service (Worker)","Y","Work Visa"]
[null,null,null,null," ",null,{"$f":"VLOOKUP(F15,'Validation sheet'!E:F,2,FALSE)","v":{"$error":"#N/A"}},null,null,null,"--",{"$error":"#N/A"},null,null,null,null,null,"--",null,null,"","Zone 00 Street 00 Building 00",null,{"$error":"#N/A"},null,"ARKAN GULF TRADING & CONTRACTING","2024-09-11T11:06:02.850",null,"Payroll Service (Worker)","Y","Work Visa"]
[null,null,null,null," ",null,{"$f":"VLOOKUP(F16,'Validation sheet'!E:F,2,FALSE)","v":{"$error":"#N/A"}},null,null,null,"--",{"$error":"#N/A"},null,null,null,null,null,"--",null,null,"","Zone 00 Street 00 Building 00",null,{"$error":"#N/A"},null,"ARKAN GULF TRADING & CONTRACTING","2024-09-11T11:06:02.850",null,"Payroll Service (Worker)","Y","Work Visa"]
[null,null,null,null," ",null,{"$f":"VLOOKUP(F17,'Validation sheet'!E:F,2,FALSE)","v":{"$error":"#N/A"}},null,null,null,"--",{"$error":"#N/A"},null,null,null,null,null,"--",null,null,"","Zone 00 Street 00 Building 00",null,{"$error":"#N/A"},null,"ARKAN GULF TRADING & CONTRACTING","2024-09-11T11:06:02.850",null,"Payroll Service (Worker)","Y","Work Visa"]
[null,null,null,null," ",null,{"$f":"VLOOKUP(F18,'Validation sheet'!E:F,2,FALSE)","v":{"$error":"#N/A"}},null,null,null,"--",{"$error":"#N/A"},null,null,null,null,null,"--",null,null,"","Zone 00 Street 00 Building 00",null,{"$error":"#N/A"},null,"ARKAN GULF TRADING & CONTRACTING","2024-09-11T11:06:02.850",null,"Payroll Service (Worker)","Y","Work Visa"]
[null,null,null,null," ",null,{"$f":"VLOOKUP(F19,'Validation sheet'!E:F,2,FALSE)","v":{"$error":"#N/A"}},null,null,null,"--",{"$error":"#N/A"},null,null,null,null,null,"--",null,null,"","Zone 00 Street 00 Building 00",null,{"$error":"#N/A"},null,"ARKAN GULF TRADING & CONTRACTING","2024-09-11T11:06:02.850",null,"Payroll Service (Worker)","Y","Work Visa"]
[null,null,null,null," ",null,{"$f":"VLOOKUP(F20,'Validation sheet'!E:F,2,FALSE)","v":{"$error":"#N/A"}},null,null,null,"--",{"$error":"#N/A"},null,null,null,null,null,"--",null,null,"","Zone 00 Street 00 Building 00",null,{"$error":"#N/A"},null,"ARKAN GULF TRADING & CONTRACTING","2024-09-11T11:06:02.850",null,"Payroll Service (Worker)","Y","Work Visa"]
[null,null,null,null," ",null,{"$f":"VLOOKUP(F21,'Validation sheet'!E:F,2,FALSE)","v":{"$error":"#N/A"}},null,null,null,"--",{"$error":"#N/A"},null,null,null,null,null,"--",null,null,"","Zone 00 Street 00 Building 00",null,{"$error":"#N/A"},null,"ARKAN GULF TRADING & CONTRACTING","2024-09-11T11:06:02.850",null,"Payroll Service (Worker)","Y","Work Visa"]
[null,null,null,null," ",null,{"$f":"VLOOKUP(F22,'Validation sheet'!E:F,2,FALSE)","v":{"$error":"#N/A"}},null,null,null,"--",{"$error":"#N/A"},null,null,null,null,null,"--",null,null,"","Zone 00 Street 00 Building 00",null,{"$error":"#N/A"},null,"ARKAN GULF TRADING & CONTRACTING","2024-09-11T11:06:02.850",null,"Payroll Service (Worker)","Y","Work Visa"]
[null,null,null,null," ",null,{"$f":"VLOOKUP(F23,'Validation sheet'!E:F,2,FALSE)","v":{"$error":"#N/A"}},null,null,null,"--",{"$error":"#N/A"},null,null,null,null,null,"--",null,null,"","Zone 00 Street 00 Building 00",null,{"$error":"#N/A"},null,"ARKAN GULF TRADING & CONTRACTING","2024-09-11T11:06:02.850",null,"Payroll Service (Worker)","Y","Work Visa"]
[null,null,null,null," ",null,{"$f":"VLOOKUP(F24,'Validation sheet'!E:F,2,FALSE)","v":{"$error":"#N/A"}},null,null,null,"--",{"$error":"#N/A"},null,null,null,null,null,"--",null,null,"","Zone 00 Street 00 Building 00",null,{"$error":"#N/A"},null,"ARKAN GULF TRADING & CONTRACTING","2024-09-11T11:06:02.850",null,"Payroll Service (Worker)","Y","Work Visa"]
[null,null,null,null," ",null,{"$f":"VLOOKUP(F25,'Validation sheet'!E:F,2,FALSE)","v":{"$error":"#N/A"}},null,null,null,"--",{"$error":"#N/A"},null,null,null,null,null,"--",null,null,"","Zone 00 Street 00 Building 00",null,{"$error":"#N/A"},null,"ARKAN GULF TRADING & CONTRACTING","2024-09-11T11:06:02.850",null,"Payroll Service (Worker)","Y","Work Visa"]
[null,null,null,null," ",null,{"$f":"VLOOKUP(F26,'Validation sheet'!E:F,2,FALSE)","v":{"$error":"#N/A"}},null,null,null,"--",{"$error":"#N/A"},null,null,null,null,null,"--",null,null,"","Zone 00 Street 00 Building 00",null,{"$error":"#N/A"},null,"ARKAN GULF TRADING & CONTRACTING","2024-09-11T11:06:02.850",null,"Payroll Service (Worker)","Y","Work Visa"]
[null,null,null,null," ",null,{"$f":"VLOOKUP(F27,'Validation sheet'!E:F,2,FALSE)","v":{"$error":"#N/A"}},null,null,null,"--",{"$error":"#N/A"},null,null,null,null,null,"--",null,null,"","Zone 00 Street 00 Building 00",null,{"$error":"#N/A"},null,"ARKAN GULF TRADING & CONTRACTING","2024-09-11T11:06:02.850",null,"Payroll Service (Worker)","Y","Work Visa"]
[null,null,null,null," ",null,{"$f":"VLOOKUP(F28,'Validation sheet'!E:F,2,FALSE)","v":{"$error":"#N/A"}},null,null,null,"--",{"$error":"#N/A"},null,null,null,null,null,"--",null,null,"","Zone 00 Street 00 Building 00",null,{"$error":"#N/A"},null,"ARKAN GULF TRADING & CONTRACTING","2024-09-11T11:06:02.850",null,"Payroll Service (Worker)","Y","Work Visa"]
[null,null,null,null," ",null,{"$f":"VLOOKUP(F29,'Validation sheet'!E:F,2,FALSE)","v":{"$error":"#N/A"}},null,null,null,"--",{"$error":"#N/A"},null,null,null,null,null,"--",null,null,"","Zone 00 Street 00 Building 00",null,{"$error":"#N/A"},null,"ARKAN GULF TRADING & CONTRACTING","2024-09-11T11:06:02.850",null,"Payroll Service (Worker)","Y","Work Visa"]
[null,null,null,null," ",null,{"$f":"VLOOKUP(F30,'Validation sheet'!E:F,2,FALSE)","v":{"$error":"#N/A"}},null,null,null,"--",{"$error":"#N/A"},null,null,null,null,null,"--",null,null,"","Zone 00 Street 00 Building 00",null,{"$error":"#N/A"},null,"ARKAN GULF TRADING & CONTRACTING","2024-09-11T11:06:02.850",null,"Payroll Service (Worker)","Y","Work Visa"]
[null,null,null,null," ",null,{"$f":"VLOOKUP(F31,'Validation sheet'!E:F,2,FALSE)","v":{"$error":"#N/A"}},null,null,null,"--",{"$error":"#N/A"},null,null,null,null,null,"--",null,null,"","Zone 00 Street 00 Building 00",null,{"$error":"#N/A"},null,"ARKAN GULF TRADING & CONTRACTING","2024-09-11T11:06:02.850",null,"Payroll Service (Worker)","Y","Work Visa"]
[null,null,null,null," ",null,{"$f":"VLOOKUP(F32,'Validation sheet'!E:F,2,FALSE)","v":{"$error":"#N/A"}},null,null,null,"--",{"$error":"#N/A"},null,null,null,null,null,"--",null,null,"","Zone 00 Street 00 Building 00",null,{"$error":"#N/A"},null,"ARKAN GULF TRADING & CONTRACTING","2024-09-11T11:06:02.850",null,"Payroll Service (Worker)","Y","Work Visa"]
[null,null,null,null," ",null,{"$f":"VLOOKUP(F33,'Validation sheet'!E:F,2,FALSE)","v":{"$error":"#N/A"}},null,null,null,"--",{"$error":"#N/A"},null,null,null,null,null,"--",null,null,"","Zone 00 Street 00 Building 00",null,{"$error":"#N/A"},null,"ARKAN GULF TRADING & CONTRACTING","2024-09-11T11:06:02.850",null,"Payroll Service (Worker)","Y","Work Visa"]
[null,null,null,null," ",null,{"$f":"VLOOKUP(F34,'Validation sheet'!E:F,2,FALSE)","v":{"$error":"#N/A"}},null,null,null,"--",{"$error":"#N/A"},null,null,null,null,null,"--",null,null,"","Zone 00 Street 00 Building 00",null,{"$error":"#N/A"},null,"ARKAN GULF TRADING & CONTRACTING","2024-09-11T11:06:02.850",null,"Payroll Service (Worker)","Y","Work Visa"]
[null,null,null,null," ",null,{"$f":"VLOOKUP(F35,'Validation sheet'!E:F,2,FALSE)","v":{"$error":"#N/A"}},null,null,null,"--",{"$error":"#N/A"},null,null,null,null,null,"--",null,null,"","Zone 00 Street 00 Building 00",null,{"$error":"#N/A"},null,"ARKAN GULF TRADING & CONTRACTING","2024-09-11T11:06:02.850",null,"Payroll Service (Worker)","Y","Work Visa"]
[null,null,null,null," ",null,{"$f":"VLOOKUP(F36,'Validation sheet'!E:F,2,FALSE)","v":{"$error":"#N/A"}},null,null,null,"--",{"$error":"#N/A"},null,null,null,null,null,"--",null,null,"","Zone 00 Street 00 Building 00",null,{"$error":"#N/A"},null,"ARKAN GULF TRADING & CONTRACTING","2024-09-11T11:06:02.850",null,"Payroll Service (Worker)","Y","Work Visa"]
[null,null,null,null," ",null,{"$f":"VLOOKUP(F37,'Validation sheet'!E:F,2,FALSE)","v":{"$error":"#N/A"}},null,null,null,"--",{"$error":"#N/A"},null,null,null,null,null,"--",null,null,"","Zone 00 Street 00 Building 00",null,{"$error":"#N/A"},null,"ARKAN GULF TRADING & CONTRACTING","2024-09-11T11:06:02.850",null,"Payroll Service (Worker)","Y","Work Visa"]
[null,null,null,null," ",null,{"$f":"VLOOKUP(F38,'Validation sheet'!E:F,2,FALSE)","v":{"$error":"#N/A"}},null,null,null,"--",{"$error":"#N/A"},null,null,null,null,null,"--",null,null,"","Zone 00 Street 00 Building 00",null,{"$error":"#N/A"},null,"ARKAN GULF TRADING & CONTRACTING","2024-09-11T11:06:02.850",null,"Payroll Service (Worker)","Y","Work Visa"]
[null,null,null,null," ",null,{"$f":"VLOOKUP(F39,'Validation sheet'!E:F,2,FALSE)","v":{"$error":"#N/A"}},null,null,null,"--",{"$error":"#N/A"},null,null,null,null,null,"--",null,null,"","Zone 00 Street 00 Building 00",null,{"$error":"#N/A"},null,"ARKAN GULF TRADING & CONTRACTING","2024-09-11T11:06:02.850",null,"Payroll Service (Worker)","Y","Work Visa"]
[null,null,null,null," ",null,{"$f":"VLOOKUP(F40,'Validation sheet'!E:F,2,FALSE)","v":{"$error":"#N/A"}},null,null,null,"--",{"$error":"#N/A"},null,null,null,null,null,"--",null,null,"","Zone 00 Street 00 Building 00",null,{"$error":"#N/A"},null,"ARKAN GULF TRADING & CONTRACTING","2024-09-11T11:06:02.850",null,"Payroll Service (Worker)","Y","Work Visa"]
[null,null,null,null," ",null,{"$f":"VLOOKUP(F41,'Validation sheet'!E:F,2,FALSE)","v":{"$error":"#N/A"}},null,null,null,"--",{"$error":"#N/A"},null,null,null,null,null,"--",null,null,"","Zone 00 Street 00 Building 00",null,{"$error":"#N/A"},null,"ARKAN GULF TRADING & CONTRACTING","2024-09-11T11:06:02.850",null,"Payroll Service (Worker)","Y","Work Visa"]
[null,null,null,null," ",null,{"$f":"VLOOKUP(F42,'Validation sheet'!E:F,2,FALSE)","v":{"$error":"#N/A"}},null,null,null,"--",{"$error":"#N/A"},null,null,null,null,null,"--",null,null,"","Zone 00 Street 00 Building 00",null,{"$error":"#N/A"},null,"ARKAN GULF TRADING & CONTRACTING","2024-09-11T11:06:02.850",null,"Payroll Service (Worker)","Y","Work Visa"]
[null,null,null,null," ",null,{"$f":"VLOOKUP(F43,'Validation sheet'!E:F,2,FALSE)","v":{"$error":"#N/A"}},null,null,null,"--",{"$error":"#N/A"},null,null,null,null,null,"--",null,null,"","Zone 00 Street 00 Building 00",null,{"$error":"#N/A"},null,"ARKAN GULF TRADING & CONTRACTING","2024-09-11T11:06:02.850",null,"Payroll Service (Worker)","Y","Work Visa"]
[null,null,null,null," ",null,{"$f":"VLOOKUP(F44,'Validation sheet'!E:F,2,FALSE)","v":{"$error":"#N/A"}},null,null,null,"--",{"$error":"#N/A"},null,null,null,null,null,"--",null,null,"","Zone 00 Street 00 Building 00",null,{"$error":"#N/A"},null,"ARKAN GULF TRADING & CONTRACTING","2024-09-11T11:06:02.850",null,"Payroll Service (Worker)","Y","Work Visa"]
[null,null,null,null," ",null,{"$f":"VLOOKUP(F45,'Validation sheet'!E:F,2,FALSE)","v":{"$error":"#N/A"}},null,null,null,"--",{"$error":"#N/A"},null,null,null,null,null,"--",null,null,"","Zone 00 Street 00 Building 00",null,{"$error":"#N/A"},null,"ARKAN GULF TRADING & CONTRACTING","2024-09-11T11:06:02.850",null,"Payroll Service (Worker)","Y","Work Visa"]
[null,null,null,null," ",null,{"$f":"VLOOKUP(F46,'Validation sheet'!E:F,2,FALSE)","v":{"$error":"#N/A"}},null,null,null,"--",{"$error":"#N/A"},null,null,null,null,null,"--",null,null,"","Zone 00 Street 00 Building 00",null,{"$error":"#N/A"},null,"ARKAN GULF TRADING & CONTRACTING","2024-09-11T11:06:02.850",null,"Payroll Service (Worker)","Y","Work Visa"]
[null,null,null,null," ",null,{"$f":"VLOOKUP(F47,'Validation sheet'!E:F,2,FALSE)","v":{"$error":"#N/A"}},null,null,null,"--",{"$error":"#N/A"},null,null,null,null,null,"--",null,null,"","Zone 00 Street 00 Building 00",null,{"$error":"#N/A"},null,"ARKAN GULF TRADING & CONTRACTING","2024-09-11T11:06:02.850",null,"Payroll Service (Worker)","Y","Work Visa"]
[null,null,null,null," ",null,{"$f":"VLOOKUP(F48,'Validation sheet'!E:F,2,FALSE)","v":{"$error":"#N/A"}},null,null,null,"--",{"$error":"#N/A"},null,null,null,null,null,"--",null,null,"","Zone 00 Street 00 Building 00",null,{"$error":"#N/A"},null,"ARKAN GULF TRADING & CONTRACTING","2024-09-11T11:06:02.850",null,"Payroll Service (Worker)","Y","Work Visa"]
[null,null,null,null," ",null,{"$f":"VLOOKUP(F49,'Validation sheet'!E:F,2,FALSE)","v":{"$error":"#N/A"}},null,null,null,"--",{"$error":"#N/A"},null,null,null,null,null,"--",null,null,"","Zone 00 Street 00 Building 00",null,{"$error":"#N/A"},null,"ARKAN GULF TRADING & CONTRACTING","2024-09-11T11:06:02.850",null,"Payroll Service (Worker)","Y","Work Visa"]
[null,null,null,null," ",null,{"$f":"VLOOKUP(F50,'Validation sheet'!E:F,2,FALSE)","v":{"$error":"#N/A"}},null,null,null,"--",{"$error":"#N/A"},null,null,null,null,null,"--",null,null,"","Zone 00 Street 00 Building 00",null,{"$error":"#N/A"},null,"ARKAN GULF TRADING & CONTRACTING","2024-09-11T11:06:02.850",null,"Payroll Service (Worker)","Y","Work Visa"]
[null,null,null,null," ",null,{"$f":"VLOOKUP(F51,'Validation sheet'!E:F,2,FALSE)","v":{"$error":"#N/A"}},null,null,null,"--",{"$error":"#N/A"},null,null,null,null,null,"--",null,null,"","Zone 00 Street 00 Building 00",null,{"$error":"#N/A"},null,"ARKAN GULF TRADING & CONTRACTING","2024-09-11T11:06:02.850",null,"Payroll Service (Worker)","Y","Work Visa"]
[null,null,null,null," ",null,{"$f":"VLOOKUP(F52,'Validation sheet'!E:F,2,FALSE)","v":{"$error":"#N/A"}},null,null,null,"--",{"$error":"#N/A"},null,null,null,null,null,"--",null,null,"","Zone 00 Street 00 Building 00",null,{"$error":"#N/A"},null,"ARKAN GULF TRADING & CONTRACTING","2024-09-11T11:06:02.850",null,"Payroll Service (Worker)","Y","Work Visa"]
[null,null,null,null," ",null,{"$f":"VLOOKUP(F53,'Validation sheet'!E:F,2,FALSE)","v":{"$error":"#N/A"}},null,null,null,"--",{"$error":"#N/A"},null,null,null,null,null,"--",null,null,"","Zone 00 Street 00 Building 00",null,{"$error":"#N/A"},null,"ARKAN GULF TRADING & CONTRACTING","2024-09-11T11:06:02.850",null,"Payroll Service (Worker)","Y","Work Visa"]
[null,null,null,null," ",null,{"$f":"VLOOKUP(F54,'Validation sheet'!E:F,2,FALSE)","v":{"$error":"#N/A"}},null,null,null,"--",{"$error":"#N/A"},null,null,null,null,null,"--",null,null,"","Zone 00 Street 00 Building 00",null,{"$error":"#N/A"},null,"ARKAN GULF TRADING & CONTRACTING","2024-09-11T11:06:02.850",null,"Payroll Service (Worker)","Y","Work Visa"]
[null,null,null,null," ",null,{"$f":"VLOOKUP(F55,'Validation sheet'!E:F,2,FALSE)","v":{"$error":"#N/A"}},null,null,null,"--",{"$error":"#N/A"},null,null,null,null,null,"--",null,null,"","Zone 00 Street 00 Building 00",null,{"$error":"#N/A"},null,"ARKAN GULF TRADING & CONTRACTING","2024-09-11T11:06:02.850",null,"Payroll Service (Worker)","Y","Work Visa"]
[null,null,null,null," ",null,{"$f":"VLOOKUP(F56,'Validation sheet'!E:F,2,FALSE)","v":{"$error":"#N/A"}},null,null,null,"--",{"$error":"#N/A"},null,null,null,null,null,"--",null,null,"","Zone 00 Street 00 Building 00",null,{"$error":"#N/A"},null,"ARKAN GULF TRADING & CONTRACTING","2024-09-11T11:06:02.850",null,"Payroll Service (Worker)","Y","Work Visa"]
[null,null,null,null," ",null,{"$f":"VLOOKUP(F57,'Validation sheet'!E:F,2,FALSE)","v":{"$error":"#N/A"}},null,null,null,"--",{"$error":"#N/A"},null,null,null,null,null,"--",null,null,"","Zone 00 Street 00 Building 00",null,{"$error":"#N/A"},null,"ARKAN GULF TRADING & CONTRACTING","2024-09-11T11:06:02.850",null,"Payroll Service (Worker)","Y","Work Visa"]
[null,null,null,null," ",null,{"$f":"VLOOKUP(F58,'Validation sheet'!E:F,2,FALSE)","v":{"$error":"#N/A"}},null,null,null,"--",{"$error":"#N/A"},null,null,null,null,null,"--",null,null,"","Zone 00 Street 00 Building 00",null,{"$error":"#N/A"},null,"ARKAN GULF TRADING & CONTRACTING","2024-09-11T11:06:02.850",null,"Payroll Service (Worker)","Y","Work Visa"]
[null,null,null,null," ",null,{"$f":"VLOOKUP(F59,'Validation sheet'!E:F,2,FALSE)","v":{"$error":"#N/A"}},null,null,null,"--",{"$error":"#N/A"},null,null,null,null,null,"--",null,null,"","Zone 00 Street 00 Building 00",null,{"$error":"#N/A"},null,"ARKAN GULF TRADING & CONTRACTING","2024-09-11T11:06:02.850",null,"Payroll Service (Worker)","Y","Work Visa"]
[null,null,null,null," ",null,{"$f":"VLOOKUP(F60,'Validation sheet'!E:F,2,FALSE)","v":{"$error":"#N/A"}},null,null,null,"--",{"$error":"#N/A"},null,null,null,null,null,"--",null,null,"","Zone 00 Street 00 Building 00",null,{"$error":"#N/A"},null,"ARKAN GULF TRADING & CONTRACTING","2024-09-11T11:06:02.850",null,"Payroll Service (Worker)","Y","Work Visa"]
[null,null,null,null," ",null,{"$f":"VLOOKUP(F61,'Validation sheet'!E:F,2,FALSE)","v":{"$error":"#N/A"}},null,null,null,"--",{"$error":"#N/A"},null,null,null,null,null,"--",null,null,"","Zone 00 Street 00 Building 00",null,{"$error":"#N/A"},null,"ARKAN GULF TRADING & CONTRACTING","2024-09-11T11:06:02.850",null,"Payroll Service (Worker)","Y","Work Visa"]
[null,null,null,null," ",null,{"$f":"VLOOKUP(F62,'Validation sheet'!E:F,2,FALSE)","v":{"$error":"#N/A"}},null,null,null,"--",{"$error":"#N/A"},null,null,null,null,null,"--",null,null,"","Zone 00 Street 00 Building 00",null,{"$error":"#N/A"},null,"ARKAN GULF TRADING & CONTRACTING","2024-09-11T11:06:02.850",null,"Payroll Service (Worker)","Y","Work Visa"]
[null,null,null,null," ",null,{"$f":"VLOOKUP(F63,'Validation sheet'!E:F,2,FALSE)","v":{"$error":"#N/A"}},null,null,null,"--",{"$error":"#N/A"},null,null,null,null,null,"--",null,null,"","Zone 00 Street 00 Building 00",null,{"$error":"#N/A"},null,"ARKAN GULF TRADING & CONTRACTING","2024-09-11T11:06:02.850",null,"Payroll Service (Worker)","Y","Work Visa"]
[null,null,null,null," ",null,{"$f":"VLOOKUP(F64,'Validation sheet'!E:F,2,FALSE)","v":{"$error":"#N/A"}},null,null,null,"--",{"$error":"#N/A"},null,null,null,null,null,"--",null,null,"","Zone 00 Street 00 Building 00",null,{"$error":"#N/A"},null,"ARKAN GULF TRADING & CONTRACTING","2024-09-11T11:06:02.850",null,"Payroll Service (Worker)","Y","Work Visa"]
[null,null,null,null," ",null,{"$f":"VLOOKUP(F65,'Validation sheet'!E:F,2,FALSE)","v":{"$error":"#N/A"}},null,null,null,"--",{"$error":"#N/A"},null,null,null,null,null,"--",null,null,"","Zone 00 Street 00 Building 00",null,{"$error":"#N/A"},null,"ARKAN GULF TRADING & CONTRACTING","2024-09-11T11:06:02.850",null,"Payroll Service (Worker)","Y","Work Visa"]
[null,null,null,null," ",null,{"$f":"VLOOKUP(F66,'Validation sheet'!E:F,2,FALSE)","v":{"$error":"#N/A"}},null,null,null,"--",{"$error":"#N/A"},null,null,null,null,null,"--",null,null,"","Zone 00 Street 00 Building 00",null,{"$error":"#N/A"},null,"ARKAN GULF TRADING & CONTRACTING","2024-09-11T11:06:02.850",null,"Payroll Service (Worker)","Y","Work Visa"]
[null,null,null,null," ",null,{"$f":"VLOOKUP(F67,'Validation sheet'!E:F,2,FALSE)","v":{"$error":"#N/A"}},null,null,null,"--",{"$error":"#N/A"},null,null,null,null,null,"--",null,null,"","Zone 00 Street 00 Building 00",null,{"$error":"#N/A"},null,"ARKAN GULF TRADING & CONTRACTING","2024-09-11T11:06:02.850",null,"Payroll Service (Worker)","Y","Work Visa"]
[null,null,null,null," ",null,{"$f":"VLOOKUP(F68,'Validation sheet'!E:F,2,FALSE)","v":{"$error":"#N/A"}},null,null,null,"--",{"$error":"#N/A"},null,null,null,null,null,"--",null,null,"","Zone 00 Street 00 Building 00",null,{"$error":"#N/A"},null,"ARKAN GULF TRADING & CONTRACTING","2024-09-11T11:06:02.850",null,"Payroll Service (Worker)","Y","Work Visa"]
[null,null,null,null," ",null,{"$f":"VLOOKUP(F69,'Validation sheet'!E:F,2,FALSE)","v":{"$error":"#N/A"}},null,null,null,"--",{"$error":"#N/A"},null,null,null,null,null,"--",null,null,"","Zone 00 Street 00 Building 00",null,{"$error":"#N/A"},null,"ARKAN GULF TRADING & CONTRACTING","2024-09-11T11:06:02.850",null,"Payroll Service (Worker)","Y","Work Visa"]
[null,null,null,null," ",null,{"$f":"VLOOKUP(F70,'Validation sheet'!E:F,2,FALSE)","v":{"$error":"#N/A"}},null,null,null,"--",{"$error":"#N/A"},null,null,null,null,null,"--",null,null,"","Zone 00 Street 00 Building 00",null,{"$error":"#N/A"},null,"ARKAN GULF TRADING & CONTRACTING","2024-09-11T11:06:02.850",null,"Payroll Service (Worker)","Y","Work Visa"]
[null,null,null,null," ",null,{"$f":"VLOOKUP(F71,'Validation sheet'!E:F,2,FALSE)","v":{"$error":"#N/A"}},null,null,null,"--",{"$error":"#N/A"},null,null,null,null,null,"--",null,null,{"$f":"S71&T71","v":""},"Zone 00 Street 00 Building 00",null,{"$f":"L71","v":{"$error":"#N/A"}},null,"ARKAN GULF TRADING & CONTRACTING","2024-09-11T11:06:02.850",null,"Payroll Service (Worker)","Y","Work Visa"]
[null,null,null,null,{"$f":"B72&\" \"&D72","v":" "},null,{"$f":"VLOOKUP(F72,'Validation sheet'!E:F,2,FALSE)","v":{"$error":"#N/A"}},null,null,null,{"$f":"H72&\"-\"&I72&\"-\"&J72","v":"--"},{"$f":"G72","v":{"$error":"#N/A"}},null,null,null,null,null,{"$f":"O72&\"-\"&P72&\"-\"&Q72","v":"--"},null,null,"","Zone 00 Street 00 Building 00",null,{"$error":"#N/A"},null,{"$f":"$B$1","v":"ARKAN GULF TRADING & CONTRACTING"},{"$f":"NOW()","v":"2024-09-11T11:06:02.850"},null,"Payroll Service (Worker)","Y","Work Visa"]
[null,null,null,null," ",null,{"$f":"VLOOKUP(F73,'Validation sheet'!E:F,2,FALSE)","v":{"$error":"#N/A"}},null,null,null,"--",{"$error":"#N/A"},null,null,null,null,null,"--",null,null,"","Zone 00 Street 00 Building 00",null,{"$error":"#N/A"},null,"ARKAN GULF TRADING & CONTRACTING","2024-09-11T11:06:02.850",null,"Payroll Service (Worker)","Y","Work Visa"]
[null,null,null,null," ",null,{"$f":"VLOOKUP(F74,'Validation sheet'!E:F,2,FALSE)","v":{"$error":"#N/A"}},null,null,null,"--",{"$error":"#N/A"},null,null,null,null,null,"--",null,null,"","Zone 00 Street 00 Building 00",null,{"$error":"#N/A"},null,"ARKAN GULF TRADING & CONTRACTING","2024-09-11T11:06:02.850",null,"Payroll Service (Worker)","Y","Work Visa"]
[null,null,null,null," ",null,{"$f":"VLOOKUP(F75,'Validation sheet'!E:F,2,FALSE)","v":{"$error":"#N/A"}},null,null,null,"--",{"$error":"#N/A"},null,null,null,null,null,"--",null,null,"","Zone 00 Street 00 Building 00",null,{"$error":"#N/A"},null,"ARKAN GULF TRADING & CONTRACTING","2024-09-11T11:06:02.850",null,"Payroll Service (Worker)","Y","Work Visa"]
[null,null,null,null," ",null,{"$f":"VLOOKUP(F76,'Validation sheet'!E:F,2,FALSE)","v":{"$error":"#N/A"}},null,null,null,"--",{"$error":"#N/A"},null,null,null,null,null,"--",null,null,"","Zone 00 Street 00 Building 00",null,{"$error":"#N/A"},null,"ARKAN GULF TRADING & CONTRACTING","2024-09-11T11:06:02.850",null,"Payroll Service (Worker)","Y","Work Visa"]
[null,null,null,null," ",null,{"$f":"VLOOKUP(F77,'Validation sheet'!E:F,2,FALSE)","v":{"$error":"#N/A"}},null,null,null,"--",{"$error":"#N/A"},null,null,null,null,null,"--",null,null,"","Zone 00 Street 00 Building 00",null,{"$error":"#N/A"},null,"ARKAN GULF TRADING & CONTRACTING","2024-09-11T11:06:02.850",null,"Payroll Service (Worker)","Y","Work Visa"]
[null,null,null,null," ",null,{"$f":"VLOOKUP(F78,'Validation sheet'!E:F,2,FALSE)","v":{"$error":"#N/A"}},null,null,null,"--",{"$error":"#N/A"},null,null,null,null,null,"--",null,null,"","Zone 00 Street 00 Building 00",null,{"$error":"#N/A"},null,"ARKAN GULF TRADING & CONTRACTING","2024-09-11T11:06:02.850",null,"Payroll Service (Worker)","Y","Work Visa"]
[null,null,null,null," ",null,{"$f":"VLOOKUP(F79,'Validation sheet'!E:F,2,FALSE)","v":{"$error":"#N/A"}},null,null,null,"--",{"$error":"#N/A"},null,null,null,null,null,"--",null,null,"","Zone 00 Street 00 Building 00",null,{"$error":"#N/A"},null,"ARKAN GULF TRADING & CONTRACTING","2024-09-11T11:06:02.850",null,"Payroll Service (Worker)","Y","Work Visa"]
[null,null,null,null," ",null,{"$f":"VLOOKUP(F80,'Validation sheet'!E:F,2,FALSE)","v":{"$error":"#N/A"}},null,null,null,"--",{"$error":"#N/A"},null,null,null,null,null,"--",null,null,"","Zone 00 Street 00 Building 00",null,{"$error":"#N/A"},null,"ARKAN GULF TRADING & CONTRACTING","2024-09-11T11:06:02.850",null,"Payroll Service (Worker)","Y","Work Visa"]
[null,null,null,null," ",null,{"$f":"VLOOKUP(F81,'Validation sheet'!E:F,2,FALSE)","v":{"$error":"#N/A"}},null,null,null,"--",{"$error":"#N/A"},null,null,null,null,null,"--",null,null,"","Zone 00 Street 00 Building 00",null,{"$error":"#N/A"},null,"ARKAN GULF TRADING & CONTRACTING","2024-09-11T11:06:02.850",null,"Payroll Service (Worker)","Y","Work Visa"]
[null,null,null,null," ",null,{"$f":"VLOOKUP(F82,'Validation sheet'!E:F,2,FALSE)","v":{"$error":"#N/A"}},null,null,null,"--",{"$error":"#N/A"},null,null,null,null,null,"--",null,null,"","Zone 00 Street 00 Building 00",null,{"$error":"#N/A"},null,"ARKAN GULF TRADING & CONTRACTING","2024-09-11T11:06:02.850",null,"Payroll Service (Worker)","Y","Work Visa"]
[null,null,null,null," ",null,{"$f":"VLOOKUP(F83,'Validation sheet'!E:F,2,FALSE)","v":{"$error":"#N/A"}},null,null,null,"--",{"$error":"#N/A"},null,null,null,null,null,"--",null,null,"","Zone 00 Street 00 Building 00",null,{"$error":"#N/A"},null,"ARKAN GULF TRADING & CONTRACTING","2024-09-11T11:06:02.850",null,"Payroll Service (Worker)","Y","Work Visa"]
[null,null,null,null," ",null,{"$f":"VLOOKUP(F84,'Validation sheet'!E:F,2,FALSE)","v":{"$error":"#N/A"}},null,null,null,"--",{"$error":"#N/A"},null,null,null,null,null,"--",null,null,"","Zone 00 Street 00 Building 00",null,{"$error":"#N/A"},null,"ARKAN GULF TRADING & CONTRACTING","2024-09-11T11:06:02.850",null,"Payroll Service (Worker)","Y","Work Visa"]
[null,null,null,null," ",null,{"$f":"VLOOKUP(F85,'Validation sheet'!E:F,2,FALSE)","v":{"$error":"#N/A"}},null,null,null,"--",{"$error":"#N/A"},null,null,null,null,null,"--",null,null,"","Zone 00 Street 00 Building 00",null,{"$error":"#N/A"},null,"ARKAN GULF TRADING & CONTRACTING","2024-09-11T11:06:02.850",null,"Payroll Service (Worker)","Y","Work Visa"]
[null,null,null,null," ",null,{"$f":"VLOOKUP(F86,'Validation sheet'!E:F,2,FALSE)","v":{"$error":"#N/A"}},null,null,null,"--",{"$error":"#N/A"},null,null,null,null,null,"--",null,null,"","Zone 00 Street 00 Building 00",null,{"$error":"#N/A"},null,"ARKAN GULF TRADING & CONTRACTING","2024-09-11T11:06:02.850",null,"Payroll Service (Worker)","Y","Work Visa"]
[null,null,null,null," ",null,{"$f":"VLOOKUP(F87,'Validation sheet'!E:F,2,FALSE)","v":{"$error":"#N/A"}},null,null,null,"--",{"$error":"#N/A"},null,null,null,null,null,"--",null,null,"","Zone 00 Street 00 Building 00",null,{"$error":"#N/A"},null,"ARKAN GULF TRADING & CONTRACTING","2024-09-11T11:06:02.850",null,"Payroll Service (Worker)","Y","Work Visa"]
[null,null,null,null," ",null,{"$f":"VLOOKUP(F88,'Validation sheet'!E:F,2,FALSE)","v":{"$error":"#N/A"}},null,null,null,"--",{"$error":"#N/A"},null,null,null,null,null,"--",null,null,"","Zone 00 Street 00 Building 00",null,{"$error":"#N/A"},null,"ARKAN GULF TRADING & CONTRACTING","2024-09-11T11:06:02.850",null,"Payroll Service (Worker)","Y","Work Visa"]
[null,null,null,null," ",null,{"$f":"VLOOKUP(F89,'Validation sheet'!E:F,2,FALSE)","v":{"$error":"#N/A"}},null,null,null,"--",{"$error":"#N/A"},null,null,null,null,null,"--",null,null,"","Zone 00 Street 00 Building 00",null,{"$error":"#N/A"},null,"ARKAN GULF TRADING & CONTRACTING","2024-09-11T11:06:02.850",null,"Payroll Service (Worker)","Y","Work Visa"]
[null,null,null,null," ",null,{"$f":"VLOOKUP(F90,'Validation sheet'!E:F,2,FALSE)","v":{"$error":"#N/A"}},null,null,null,"--",{"$error":"#N/A"},null,null,null,null,null,"--",null,null,"","Zone 00 Street 00 Building 00",null,{"$error":"#N/A"},null,"ARKAN GULF TRADING & CONTRACTING","2024-09-11T11:06:02.850",null,"Payroll Service (Worker)","Y","Work Visa"]
[null,null,null,null," ",null,{"$f":"VLOOKUP(F91,'Validation sheet'!E:F,2,FALSE)","v":{"$error":"#N/A"}},null,null,null,"--",{"$error":"#N/A"},null,null,null,null,null,"--",null,null,"","Zone 00 Street 00 Building 00",null,{"$error":"#N/A"},null,"ARKAN GULF TRADING & CONTRACTING","2024-09-11T11:06:02.850",null,"Payroll Service (Worker)","Y","Work Visa"]
[null,null,null,null," ",null,{"$f":"VLOOKUP(F92,'Validation sheet'!E:F,2,FALSE)","v":{"$error":"#N/A"}},null,null,null,"--",{"$error":"#N/A"},null,null,null,null,null,"--",null,null,"","Zone 00 Street 00 Building 00",null,{"$error":"#N/A"},null,"ARKAN GULF TRADING & CONTRACTING","2024-09-11T11:06:02.850",null,"Payroll Service (Worker)","Y","Work Visa"]
[null,null,null,null," ",null,{"$f":"VLOOKUP(F93,'Validation sheet'!E:F,2,FALSE)","v":{"$error":"#N/A"}},null,null,null,"--",{"$error":"#N/A"},null,null,null,null,null,"--",null,null,"","Zone 00 Street 00 Building 00",null,{"$error":"#N/A"},null,"ARKAN GULF TRADING & CONTRACTING","2024-09-11T11:06:02.850",null,"Payroll Service (Worker)","Y","Work Visa"]
[null,null,null,null," ",null,{"$f":"VLOOKUP(F94,'Validation sheet'!E:F,2,FALSE)","v":{"$error":"#N/A"}},null,null,null,"--",{"$error":"#N/A"},null,null,null,null,null,"--",null,null,"","Zone 00 Street 00 Building 00",null,{"$error":"#N/A"},null,"ARKAN GULF TRADING & CONTRACTING","2024-09-11T11:06:02.850",null,"Payroll Service (Worker)","Y","Work Visa"]
[null,null,null,null," ",null,{"$f":"VLOOKUP(F95,'Validation sheet'!E:F,2,FALSE)","v":{"$error":"#N/A"}},null,null,null,"--",{"$error":"#N/A"},null,null,null,null,null,"--",null,null,"","Zone 00 Street 00 Building 00",null,{"$error":"#N/A"},null,"ARKAN GULF TRADING & CONTRACTING","2024-09-11T11:06:02.850",null,"Payroll Service (Worker)","Y","Work Visa"]
[null,null,null,null," ",null,{"$f":"VLOOKUP(F96,'Validation sheet'!E:F,2,FALSE)","v":{"$error":"#N/A"}},null,null,null,"--",{"$error":"#N/A"},null,null,null,null,null,"--",null,null,"","Zone 00 Street 00 Building 00",null,{"$error":"#N/A"},null,"ARKAN GULF TRADING & CONTRACTING","2024-09-11T11:06:02.850",null,"Payroll Service (Worker)","Y","Work Visa"]
[null,null,null,null," ",null,{"$f":"VLOOKUP(F97,'Validation sheet'!E:F,2,FALSE)","v":{"$error":"#N/A"}},null,null,null,"--",{"$error":"#N/A"},null,null,null,null,null,"--",null,null,"","Zone 00 Street 00 Building 00",null,{"$error":"#N/A"},null,"ARKAN GULF TRADING & CONTRACTING","2024-09-11T11:06:02.850",null,"Payroll Service (Worker)","Y","Work Visa"]
[null,null,null,null," ",null,{"$f":"VLOOKUP(F98,'Validation sheet'!E:F,2,FALSE)","v":{"$error":"#N/A"}},null,null,null,"--",{"$error":"#N/A"},null,null,null,null,null,"--",null,null,"","Zone 00 Street 00 Building 00",null,{"$error":"#N/A"},null,"ARKAN GULF TRADING & CONTRACTING","2024-09-11T11:06:02.850",null,"Payroll Service (Worker)","Y","Work Visa"]
[null,null,null,null," ",null,{"$f":"VLOOKUP(F99,'Validation sheet'!E:F,2,FALSE)","v":{"$error":"#N/A"}},null,null,null,"--",{"$error":"#N/A"},null,null,null,null,null,"--",null,null,"","Zone 00 Street 00 Building 00",null,{"$error":"#N/A"},null,"ARKAN GULF TRADING & CONTRACTING","2024-09-11T11:06:02.850",null,"Payroll Service (Worker)","Y","Work Visa"]
[null,null,null,null," ",null,{"$f":"VLOOKUP(F100,'Validation sheet'!E:F,2,FALSE)","v":{"$error":"#N/A"}},null,null,null,"--",{"$error":"#N/A"},null,null,null,null,null,"--",null,null,"","Zone 00 Street 00 Building 00",null,{"$error":"#N/A"},null,"ARKAN GULF TRADING & CONTRACTING","2024-09-11T11:06:02.850",null,"Payroll Service (Worker)","Y","Work Visa"]
[null,null,null,null," ",null,{"$f":"VLOOKUP(F101,'Validation sheet'!E:F,2,FALSE)","v":{"$error":"#N/A"}},null,null,null,"--",{"$error":"#N/A"},null,null,null,null,null,"--",null,null,"","Zone 00 Street 00 Building 00",null,{"$error":"#N/A"},null,"ARKAN GULF TRADING & CONTRACTING","2024-09-11T11:06:02.850",null,"Payroll Service (Worker)","Y","Work Visa"]
[null,null,null,null," ",null,{"$f":"VLOOKUP(F102,'Validation sheet'!E:F,2,FALSE)","v":{"$error":"#N/A"}},null,null,null,"--",{"$error":"#N/A"},null,null,null,null,null,"--",null,null,"","Zone 00 Street 00 Building 00",null,{"$error":"#N/A"},null,"ARKAN GULF TRADING & CONTRACTING","2024-09-11T11:06:02.850",null,"Payroll Service (Worker)","Y","Work Visa"]
[null,null,null,null," ",null,{"$f":"VLOOKUP(F103,'Validation sheet'!E:F,2,FALSE)","v":{"$error":"#N/A"}},null,null,null,"--",{"$error":"#N/A"},null,null,null,null,null,"--",null,null,"","Zone 00 Street 00 Building 00",null,{"$error":"#N/A"},null,"ARKAN GULF TRADING & CONTRACTING","2024-09-11T11:06:02.850",null,"Payroll Service (Worker)","Y","Work Visa"]
[null,null,null,null," ",null,{"$f":"VLOOKUP(F104,'Validation sheet'!E:F,2,FALSE)","v":{"$error":"#N/A"}},null,null,null,"--",{"$error":"#N/A"},null,null,null,null,null,"--",null,null,"","Zone 00 Street 00 Building 00",null,{"$error":"#N/A"},null,"ARKAN GULF TRADING & CONTRACTING","2024-09-11T11:06:02.850",null,"Payroll Service (Worker)","Y","Work Visa"]
[null,null,null,null," ",null,{"$f":"VLOOKUP(F105,'Validation sheet'!E:F,2,FALSE)","v":{"$error":"#N/A"}},null,null,null,"--",{"$error":"#N/A"},null,null,null,null,null,"--",null,null,"","Zone 00 Street 00 Building 00",null,{"$error":"#N/A"},null,"ARKAN GULF TRADING & CONTRACTING","2024-09-11T11:06:02.850",null,"Payroll Service (Worker)","Y","Work Visa"]
[null,null,null,null," ",null,{"$f":"VLOOKUP(F106,'Validation sheet'!E:F,2,FALSE)","v":{"$error":"#N/A"}},null,null,null,"--",{"$error":"#N/A"},null,null,null,null,null,"--",null,null,"","Zone 00 Street 00 Building 00",null,{"$error":"#N/A"},null,"ARKAN GULF TRADING & CONTRACTING","2024-09-11T11:06:02.850",null,"Payroll Service (Worker)","Y","Work Visa"]
[null,null,null,null," ",null,{"$f":"VLOOKUP(F107,'Validation sheet'!E:F,2,FALSE)","v":{"$error":"#N/A"}},null,null,null,"--",{"$error":"#N/A"},null,null,null,null,null,"--",null,null,"","Zone 00 Street 00 Building 00",null,{"$error":"#N/A"},null,"ARKAN GULF TRADING & CONTRACTING","2024-09-11T11:06:02.850",null,"Payroll Service (Worker)","Y","Work Visa"]
[null,null,null,null," ",null,{"$f":"VLOOKUP(F108,'Validation sheet'!E:F,2,FALSE)","v":{"$error":"#N/A"}},null,null,null,"--",{"$error":"#N/A"},null,null,null,null,null,"--",null,null,"","Zone 00 Street 00 Building 00",null,{"$error":"#N/A"},null,"ARKAN GULF TRADING & CONTRACTING","2024-09-11T11:06:02.850",null,"Payroll Service (Worker)","Y","Work Visa"]
[null,null,null,null," ",null,{"$f":"VLOOKUP(F109,'Validation sheet'!E:F,2,FALSE)","v":{"$error":"#N/A"}},null,null,null,"--",{"$error":"#N/A"},null,null,null,null,null,"--",null,null,"","Zone 00 Street 00 Building 00",null,{"$error":"#N/A"},null,"ARKAN GULF TRADING & CONTRACTING","2024-09-11T11:06:02.850",null,"Payroll Service (Worker)","Y","Work Visa"]
[null,null,null,null," ",null,{"$f":"VLOOKUP(F110,'Validation sheet'!E:F,2,FALSE)","v":{"$error":"#N/A"}},null,null,null,"--",{"$error":"#N/A"},null,null,null,null,null,"--",null,null,"","Zone 00 Street 00 Building 00",null,{"$error":"#N/A"},null,"ARKAN GULF TRADING & CONTRACTING","2024-09-11T11:06:02.850",null,"Payroll Service (Worker)","Y","Work Visa"]
[null,null,null,null," ",null,{"$f":"VLOOKUP(F111,'Validation sheet'!E:F,2,FALSE)","v":{"$error":"#N/A"}},null,null,null,"--",{"$error":"#N/A"},null,null,null,null,null,"--",null,null,"","Zone 00 Street 00 Building 00",null,{"$error":"#N/A"},null,"ARKAN GULF TRADING & CONTRACTING","2024-09-11T11:06:02.850",null,"Payroll Service (Worker)","Y","Work Visa"]
[null,null,null,null," ",null,{"$f":"VLOOKUP(F112,'Validation sheet'!E:F,2,FALSE)","v":{"$error":"#N/A"}},null,null,null,"--",{"$error":"#N/A"},null,null,null,null,null,"--",null,null,"","Zone 00 Street 00 Building 00",null,{"$error":"#N/A"},null,"ARKAN GULF TRADING & CONTRACTING","2024-09-11T11:06:02.850",null,"Payroll Service (Worker)","Y","Work Visa"]
[null,null,null,null," ",null,{"$f":"VLOOKUP(F113,'Validation sheet'!E:F,2,FALSE)","v":{"$error":"#N/A"}},null,null,null,"--",{"$error":"#N/A"},null,null,null,null,null,"--",null,null,"","Zone 00 Street 00 Building 00",null,{"$error":"#N/A"},null,"ARKAN GULF TRADING & CONTRACTING","2024-09-11T11:06:02.850",null,"Payroll Service (Worker)","Y","Work Visa"]
[null,null,null,null," ",null,{"$f":"VLOOKUP(F114,'Validation sheet'!E:F,2,FALSE)","v":{"$error":"#N/A"}},null,null,null,"--",{"$error":"#N/A"},null,null,null,null,null,"--",null,null,"","Zone 00 Street 00 Building 00",null,{"$error":"#N/A"},null,"ARKAN GULF TRADING & CONTRACTING","2024-09-11T11:06:02.850",null,"Payroll Service (Worker)","Y","Work Visa"]
[null,null,null,null," ",null,{"$f":"VLOOKUP(F115,'Validation sheet'!E:F,2,FALSE)","v":{"$error":"#N/A"}},null,null,null,"--",{"$error":"#N/A"},null,null,null,null,null,"--",null,null,"","Zone 00 Street 00 Building 00",null,{"$error":"#N/A"},null,"ARKAN GULF TRADING & CONTRACTING","2024-09-11T11:06:02.850",null,"Payroll Service (Worker)","Y","Work Visa"]
[null,null,null,null," ",null,{"$f":"VLOOKUP(F116,'Validation sheet'!E:F,2,FALSE)","v":{"$error":"#N/A"}},null,null,null,"--",{"$error":"#N/A"},null,null,null,null,null,"--",null,null,"","Zone 00 Street 00 Building 00",null,{"$error":"#N/A"},null,"ARKAN GULF TRADING & CONTRACTING","2024-09-11T11:06:02.850",null,"Payroll Service (Worker)","Y","Work Visa"]
[null,null,null,null," ",null,{"$f":"VLOOKUP(F117,'Validation sheet'!E:F,2,FALSE)","v":{"$error":"#N/A"}},null,null,null,"--",{"$error":"#N/A"},null,null,null,null,null,"--",null,null,"","Zone 00 Street 00 Building 00",null,{"$error":"#N/A"},null,"ARKAN GULF TRADING & CONTRACTING","2024-09-11T11:06:02.850",null,"Payroll Service (Worker)","Y","Work Visa"]
[null,null,null,null," ",null,{"$f":"VLOOKUP(F118,'Validation sheet'!E:F,2,FALSE)","v":{"$error":"#N/A"}},null,null,null,"--",{"$error":"#N/A"},null,null,null,null,null,"--",null,null,"","Zone 00 Street 00 Building 00",null,{"$error":"#N/A"},null,"ARKAN GULF TRADING & CONTRACTING","2024-09-11T11:06:02.850",null,"Payroll Service (Worker)","Y","Work Visa"]
[null,null,null,null," ",null,{"$f":"VLOOKUP(F119,'Validation sheet'!E:F,2,FALSE)","v":{"$error":"#N/A"}},null,null,null,"--",{"$error":"#N/A"},null,null,null,null,null,"--",null,null,"","Zone 00 Street 00 Building 00",null,{"$error":"#N/A"},null,"ARKAN GULF TRADING & CONTRACTING","2024-09-11T11:06:02.850",null,"Payroll Service (Worker)","Y","Work Visa"]
[null,null,null,null," ",null,{"$f":"VLOOKUP(F120,'Validation sheet'!E:F,2,FALSE)","v":{"$error":"#N/A"}},null,null,null,"--",{"$error":"#N/A"},null,null,null,null,null,"--",null,null,"","Zone 00 Street 00 Building 00",null,{"$error":"#N/A"},null,"ARKAN GULF TRADING & CONTRACTING","2024-09-11T11:06:02.850",null,"Payroll Service (Worker)","Y","Work Visa"]
[null,null,null,null," ",null,{"$f":"VLOOKUP(F121,'Validation sheet'!E:F,2,FALSE)","v":{"$error":"#N/A"}},null,null,null,"--",{"$error":"#N/A"},null,null,null,null,null,"--",null,null,"","Zone 00 Street 00 Building 00",null,{"$error":"#N/A"},null,"ARKAN GULF TRADING & CONTRACTING","2024-09-11T11:06:02.850",null,"Payroll Service (Worker)","Y","Work Visa"]
[null,null,null,null," ",null,{"$f":"VLOOKUP(F122,'Validation sheet'!E:F,2,FALSE)","v":{"$error":"#N/A"}},null,null,null,"--",{"$error":"#N/A"},null,null,null,null,null,"--",null,null,"","Zone 00 Street 00 Building 00",null,{"$error":"#N/A"},null,"ARKAN GULF TRADING & CONTRACTING","2024-09-11T11:06:02.850",null,"Payroll Service (Worker)","Y","Work Visa"]
[null,null,null,null," ",null,{"$f":"VLOOKUP(F123,'Validation sheet'!E:F,2,FALSE)","v":{"$error":"#N/A"}},null,null,null,"--",{"$error":"#N/A"},null,null,null,null,null,"--",null,null,"","Zone 00 Street 00 Building 00",null,{"$error":"#N/A"},null,"ARKAN GULF TRADING & CONTRACTING","2024-09-11T11:06:02.850",null,"Payroll Service (Worker)","Y","Work Visa"]
[null,null,null,null," ",null,{"$f":"VLOOKUP(F124,'Validation sheet'!E:F,2,FALSE)","v":{"$error":"#N/A"}},null,null,null,"--",{"$error":"#N/A"},null,null,null,null,null,"--",null,null,"","Zone 00 Street 00 Building 00",null,{"$error":"#N/A"},null,"ARKAN GULF TRADING & CONTRACTING","2024-09-11T11:06:02.850",null,"Payroll Service (Worker)","Y","Work Visa"]
[null,null,null,null," ",null,{"$f":"VLOOKUP(F125,'Validation sheet'!E:F,2,FALSE)","v":{"$error":"#N/A"}},null,null,null,"--",{"$error":"#N/A"},null,null,null,null,null,"--",null,null,"","Zone 00 Street 00 Building 00",null,{"$error":"#N/A"},null,"ARKAN GULF TRADING & CONTRACTING","2024-09-11T11:06:02.850",null,"Payroll Service (Worker)","Y","Work Visa"]
[null,null,null,null," ",null,{"$f":"VLOOKUP(F126,'Validation sheet'!E:F,2,FALSE)","v":{"$error":"#N/A"}},null,null,null,"--",{"$error":"#N/A"},null,null,null,null,null,"--",null,null,"","Zone 00 Street 00 Building 00",null,{"$error":"#N/A"},null,"ARKAN GULF TRADING & CONTRACTING","2024-09-11T11:06:02.850",null,"Payroll Service (Worker)","Y","Work Visa"]
[null,null,null,null," ",null,{"$f":"VLOOKUP(F127,'Validation sheet'!E:F,2,FALSE)","v":{"$error":"#N/A"}},null,null,null,"--",{"$error":"#N/A"},null,null,null,null,null,"--",null,null,"","Zone 00 Street 00 Building 00",null,{"$error":"#N/A"},null,"ARKAN GULF TRADING & CONTRACTING","2024-09-11T11:06:02.850",null,"Payroll Service (Worker)","Y","Work Visa"]
[null,null,null,null," ",null,{"$f":"VLOOKUP(F128,'Validation sheet'!E:F,2,FALSE)","v":{"$error":"#N/A"}},null,null,null,"--",{"$error":"#N/A"},null,null,null,null,null,"--",null,null,"","Zone 00 Street 00 Building 00",null,{"$error":"#N/A"},null,"ARKAN GULF TRADING & CONTRACTING","2024-09-11T11:06:02.850",null,"Payroll Service (Worker)","Y","Work Visa"]
[null,null,null,null," ",null,{"$f":"VLOOKUP(F129,'Validation sheet'!E:F,2,FALSE)","v":{"$error":"#N/A"}},null,null,null,"--",{"$error":"#N/A"},null,null,null,null,null,"--",null,null,"","Zone 00 Street 00 Building 00",null,{"$error":"#N/A"},null,"ARKAN GULF TRADING & CONTRACTING","2024-09-11T11:06:02.850",null,"Payroll Service (Worker)","Y","Work Visa"]
[null,null,null,null," ",null,{"$f":"VLOOKUP(F130,'Validation sheet'!E:F,2,FALSE)","v":{"$error":"#N/A"}},null,null,null,"--",{"$error":"#N/A"},null,null,null,null,null,"--",null,null,"","Zone 00 Street 00 Building 00",null,{"$error":"#N/A"},null,"ARKAN GULF TRADING & CONTRACTING","2024-09-11T11:06:02.850",null,"Payroll Service (Worker)","Y","Work Visa"]
[null,null,null,null," ",null,{"$f":"VLOOKUP(F131,'Validation sheet'!E:F,2,FALSE)","v":{"$error":"#N/A"}},null,null,null,"--",{"$error":"#N/A"},null,null,null,null,null,"--",null,null,"","Zone 00 Street 00 Building 00",null,{"$error":"#N/A"},null,"ARKAN GULF TRADING & CONTRACTING","2024-09-11T11:06:02.850",null,"Payroll Service (Worker)","Y","Work Visa"]
[null,null,null,null," ",null,{"$f":"VLOOKUP(F132,'Validation sheet'!E:F,2,FALSE)","v":{"$error":"#N/A"}},null,null,null,"--",{"$error":"#N/A"},null,null,null,null,null,"--",null,null,"","Zone 00 Street 00 Building 00",null,{"$error":"#N/A"},null,"ARKAN GULF TRADING & CONTRACTING","2024-09-11T11:06:02.850",null,"Payroll Service (Worker)","Y","Work Visa"]
[null,null,null,null," ",null,{"$f":"VLOOKUP(F133,'Validation sheet'!E:F,2,FALSE)","v":{"$error":"#N/A"}},null,null,null,"--",{"$error":"#N/A"},null,null,null,null,null,"--",null,null,"","Zone 00 Street 00 Building 00",null,{"$error":"#N/A"},null,"ARKAN GULF TRADING & CONTRACTING","2024-09-11T11:06:02.850",null,"Payroll Service (Worker)","Y","Work Visa"]
[null,null,null,null," ",null,{"$f":"VLOOKUP(F134,'Validation sheet'!E:F,2,FALSE)","v":{"$error":"#N/A"}},null,null,null,"--",{"$error":"#N/A"},null,null,null,null,null,"--",null,null,"","Zone 00 Street 00 Building 00",null,{"$error":"#N/A"},null,"ARKAN GULF TRADING & CONTRACTING","2024-09-11T11:06:02.850",null,"Payroll Service (Worker)","Y","Work Visa"]
[null,null,null,null," ",null,{"$f":"VLOOKUP(F135,'Validation sheet'!E:F,2,FALSE)","v":{"$error":"#N/A"}},null,null,null,"--",{"$error":"#N/A"},null,null,null,null,null,"--",null,null,{"$f":"S135&T135","v":""},"Zone 00 Street 00 Building 00",null,{"$f":"L135","v":{"$error":"#N/A"}},null,"ARKAN GULF TRADING & CONTRACTING","2024-09-11T11:06:02.850",null,"Payroll Service (Worker)","Y","Work Visa"]
[null,null,null,null,{"$f":"B136&\" \"&D136","v":" "},null,{"$f":"VLOOKUP(F136,'Validation sheet'!E:F,2,FALSE)","v":{"$error":"#N/A"}},null,null,null,{"$f":"H136&\"-\"&I136&\"-\"&J136","v":"--"},{"$f":"G136","v":{"$error":"#N/A"}},null,null,null,null,null,{"$f":"O136&\"-\"&P136&\"-\"&Q136","v":"--"},null,null,"","Zone 00 Street 00 Building 00",null,{"$error":"#N/A"},null,{"$f":"$B$1","v":"ARKAN GULF TRADING & CONTRACTING"},{"$f":"NOW()","v":"2024-09-11T11:06:02.850"},null,"Payroll Service (Worker)","Y","Work Visa"]
[null,null,null,null," ",null,{"$f":"VLOOKUP(F137,'Validation sheet'!E:F,2,FALSE)","v":{"$error":"#N/A"}},null,null,null,"--",{"$error":"#N/A"},null,null,null,null,null,"--",null,null,"","Zone 00 Street 00 Building 00",null,{"$error":"#N/A"},null,"ARKAN GULF TRADING & CONTRACTING","2024-09-11T11:06:02.850",null,"Payroll Service (Worker)","Y","Work Visa"]
[null,null,null,null," ",null,{"$f":"VLOOKUP(F138,'Validation sheet'!E:F,2,FALSE)","v":{"$error":"#N/A"}},null,null,null,"--",{"$error":"#N/A"},null,null,null,null,null,"--",null,null,"","Zone 00 Street 00 Building 00",null,{"$error":"#N/A"},null,"ARKAN GULF TRADING & CONTRACTING","2024-09-11T11:06:02.850",null,"Payroll Service (Worker)","Y","Work Visa"]
[null,null,null,null," ",null,{"$f":"VLOOKUP(F139,'Validation sheet'!E:F,2,FALSE)","v":{"$error":"#N/A"}},null,null,null,"--",{"$error":"#N/A"},null,null,null,null,null,"--",null,null,"","Zone 00 Street 00 Building 00",null,{"$error":"#N/A"},null,"ARKAN GULF TRADING & CONTRACTING","2024-09-11T11:06:02.850",null,"Payroll Service (Worker)","Y","Work Visa"]
[null,null,null,null," ",null,{"$f":"VLOOKUP(F140,'Validation sheet'!E:F,2,FALSE)","v":{"$error":"#N/A"}},null,null,null,"--",{"$error":"#N/A"},null,null,null,null,null,"--",null,null,"","Zone 00 Street 00 Building 00",null,{"$error":"#N/A"},null,"ARKAN GULF TRADING & CONTRACTING","2024-09-11T11:06:02.850",null,"Payroll Service (Worker)","Y","Work Visa"]
[null,null,null,null," ",null,{"$f":"VLOOKUP(F141,'Validation sheet'!E:F,2,FALSE)","v":{"$error":"#N/A"}},null,null,null,"--",{"$error":"#N/A"},null,null,null,null,null,"--",null,null,"","Zone 00 Street 00 Building 00",null,{"$error":"#N/A"},null,"ARKAN GULF TRADING & CONTRACTING","2024-09-11T11:06:02.850",null,"Payroll Service (Worker)","Y","Work Visa"]
[null,null,null,null," ",null,{"$f":"VLOOKUP(F142,'Validation sheet'!E:F,2,FALSE)","v":{"$error":"#N/A"}},null,null,null,"--",{"$error":"#N/A"},null,null,null,null,null,"--",null,null,"","Zone 00 Street 00 Building 00",null,{"$error":"#N/A"},null,"ARKAN GULF TRADING & CONTRACTING","2024-09-11T11:06:02.850",null,"Payroll Service (Worker)","Y","Work Visa"]
[null,null,null,null," ",null,{"$f":"VLOOKUP(F143,'Validation sheet'!E:F,2,FALSE)","v":{"$error":"#N/A"}},null,null,null,"--",{"$error":"#N/A"},null,null,null,null,null,"--",null,null,"","Zone 00 Street 00 Building 00",null,{"$error":"#N/A"},null,"ARKAN GULF TRADING & CONTRACTING","2024-09-11T11:06:02.850",null,"Payroll Service (Worker)","Y","Work Visa"]
[null,null,null,null," ",null,{"$f":"VLOOKUP(F144,'Validation sheet'!E:F,2,FALSE)","v":{"$error":"#N/A"}},null,null,null,"--",{"$error":"#N/A"},null,null,null,null,null,"--",null,null,"","Zone 00 Street 00 Building 00",null,{"$error":"#N/A"},null,"ARKAN GULF TRADING & CONTRACTING","2024-09-11T11:06:02.850",null,"Payroll Service (Worker)","Y","Work Visa"]
[null,null,null,null," ",null,{"$f":"VLOOKUP(F145,'Validation sheet'!E:F,2,FALSE)","v":{"$error":"#N/A"}},null,null,null,"--",{"$error":"#N/A"},null,null,null,null,null,"--",null,null,"","Zone 00 Street 00 Building 00",null,{"$error":"#N/A"},null,"ARKAN GULF TRADING & CONTRACTING","2024-09-11T11:06:02.850",null,"Payroll Service (Worker)","Y","Work Visa"]
[null,null,null,null," ",null,{"$f":"VLOOKUP(F146,'Validation sheet'!E:F,2,FALSE)","v":{"$error":"#N/A"}},null,null,null,"--",{"$error":"#N/A"},null,null,null,null,null,"--",null,null,"","Zone 00 Street 00 Building 00",null,{"$error":"#N/A"},null,"ARKAN GULF TRADING & CONTRACTING","2024-09-11T11:06:02.850",null,"Payroll Service (Worker)","Y","Work Visa"]
[null,null,null,null," ",null,{"$f":"VLOOKUP(F147,'Validation sheet'!E:F,2,FALSE)","v":{"$error":"#N/A"}},null,null,null,"--",{"$error":"#N/A"},null,null,null,null,null,"--",null,null,"","Zone 00 Street 00 Building 00",null,{"$error":"#N/A"},null,"ARKAN GULF TRADING & CONTRACTING","2024-09-11T11:06:02.850",null,"Payroll Service (Worker)","Y","Work Visa"]
[null,null,null,null," ",null,{"$f":"VLOOKUP(F148,'Validation sheet'!E:F,2,FALSE)","v":{"$error":"#N/A"}},null,null,null,"--",{"$error":"#N/A"},null,null,null,null,null,"--",null,null,"","Zone 00 Street 00 Building 00",null,{"$error":"#N/A"},null,"ARKAN GULF TRADING & CONTRACTING","2024-09-11T11:06:02.850",null,"Payroll Service (Worker)","Y","Work Visa"]
[null,null,null,null," ",null,{"$f":"VLOOKUP(F149,'Validation sheet'!E:F,2,FALSE)","v":{"$error":"#N/A"}},null,null,null,"--",{"$error":"#N/A"},null,null,null,null,null,"--",null,null,"","Zone 00 Street 00 Building 00",null,{"$error":"#N/A"},null,"ARKAN GULF TRADING & CONTRACTING","2024-09-11T11:06:02.850",null,"Payroll Service (Worker)","Y","Work Visa"]
[null,null,null,null," ",null,{"$f":"VLOOKUP(F150,'Validation sheet'!E:F,2,FALSE)","v":{"$error":"#N/A"}},null,null,null,"--",{"$error":"#N/A"},null,null,null,null,null,"--",null,null,"","Zone 00 Street 00 Building 00",null,{"$error":"#N/A"},null,"ARKAN GULF TRADING & CONTRACTING","2024-09-11T11:06:02.850",null,"Payroll Service (Worker)","Y","Work Visa"]
[null,null,null,null," ",null,{"$f":"VLOOKUP(F151,'Validation sheet'!E:F,2,FALSE)","v":{"$error":"#N/A"}},null,null,null,"--",{"$error":"#N/A"},null,null,null,null,null,"--",null,null,"","Zone 00 Street 00 Building 00",null,{"$error":"#N/A"},null,"ARKAN GULF TRADING & CONTRACTING","2024-09-11T11:06:02.850",null,"Payroll Service (Worker)","Y","Work Visa"]
[null,null,null,null," ",null,{"$f":"VLOOKUP(F152,'Validation sheet'!E:F,2,FALSE)","v":{"$error":"#N/A"}},null,null,null,"--",{"$error":"#N/A"},null,null,null,null,null,"--",null,null,"","Zone 00 Street 00 Building 00",null,{"$error":"#N/A"},null,"ARKAN GULF TRADING & CONTRACTING","2024-09-11T11:06:02.850",null,"Payroll Service (Worker)","Y","Work Visa"]
[null,null,null,null," ",null,{"$f":"VLOOKUP(F153,'Validation sheet'!E:F,2,FALSE)","v":{"$error":"#N/A"}},null,null,null,"--",{"$error":"#N/A"},null,null,null,null,null,"--",null,null,"","Zone 00 Street 00 Building 00",null,{"$error":"#N/A"},null,"ARKAN GULF TRADING & CONTRACTING","2024-09-11T11:06:02.850",null,"Payroll Service (Worker)","Y","Work Visa"]
[null,null,null,null," ",null,{"$f":"VLOOKUP(F154,'Validation sheet'!E:F,2,FALSE)","v":{"$error":"#N/A"}},null,null,null,"--",{"$error":"#N/A"},null,null,null,null,null,"--",null,null,"","Zone 00 Street 00 Building 00",null,{"$error":"#N/A"},null,"ARKAN GULF TRADING & CONTRACTING","2024-09-11T11:06:02.850",null,"Payroll Service (Worker)","Y","Work Visa"]
[null,null,null,null," ",null,{"$f":"VLOOKUP(F155,'Validation sheet'!E:F,2,FALSE)","v":{"$error":"#N/A"}},null,null,null,"--",{"$error":"#N/A"},null,null,null,null,null,"--",null,null,"","Zone 00 Street 00 Building 00",null,{"$error":"#N/A"},null,"ARKAN GULF TRADING & CONTRACTING","2024-09-11T11:06:02.850",null,"Payroll Service (Worker)","Y","Work Visa"]
[null,null,null,null," ",null,{"$f":"VLOOKUP(F156,'Validation sheet'!E:F,2,FALSE)","v":{"$error":"#N/A"}},null,null,null,"--",{"$error":"#N/A"},null,null,null,null,null,"--",null,null,"","Zone 00 Street 00 Building 00",null,{"$error":"#N/A"},null,"ARKAN GULF TRADING & CONTRACTING","2024-09-11T11:06:02.850",null,"Payroll Service (Worker)","Y","Work Visa"]
[null,null,null,null," ",null,{"$f":"VLOOKUP(F157,'Validation sheet'!E:F,2,FALSE)","v":{"$error":"#N/A"}},null,null,null,"--",{"$error":"#N/A"},null,null,null,null,null,"--",null,null,"","Zone 00 Street 00 Building 00",null,{"$error":"#N/A"},null,"ARKAN GULF TRADING & CONTRACTING","2024-09-11T11:06:02.850",null,"Payroll Service (Worker)","Y","Work Visa"]
[null,null,null,null," ",null,{"$f":"VLOOKUP(F158,'Validation sheet'!E:F,2,FALSE)","v":{"$error":"#N/A"}},null,null,null,"--",{"$error":"#N/A"},null,null,null,null,null,"--",null,null,"","Zone 00 Street 00 Building 00",null,{"$error":"#N/A"},null,"ARKAN GULF TRADING & CONTRACTING","2024-09-11T11:06:02.850",null,"Payroll Service (Worker)","Y","Work Visa"]
[null,null,null,null," ",null,{"$f":"VLOOKUP(F159,'Validation sheet'!E:F,2,FALSE)","v":{"$error":"#N/A"}},null,null,null,"--",{"$error":"#N/A"},null,null,null,null,null,"--",null,null,"","Zone 00 Street 00 Building 00",null,{"$error":"#N/A"},null,"ARKAN GULF TRADING & CONTRACTING","2024-09-11T11:06:02.850",null,"Payroll Service (Worker)","Y","Work Visa"]
[null,null,null,null," ",null,{"$f":"VLOOKUP(F160,'Validation sheet'!E:F,2,FALSE)","v":{"$error":"#N/A"}},null,null,null,"--",{"$error":"#N/A"},null,null,null,null,null,"--",null,null,"","Zone 00 Street 00 Building 00",null,{"$error":"#N/A"},null,"ARKAN GULF TRADING & CONTRACTING","2024-09-11T11:06:02.850",null,"Payroll Service (Worker)","Y","Work Visa"]
[null,null,null,null," ",null,{"$f":"VLOOKUP(F161,'Validation sheet'!E:F,2,FALSE)","v":{"$error":"#N/A"}},null,null,null,"--",{"$error":"#N/A"},null,null,null,null,null,"--",null,null,"","Zone 00 Street 00 Building 00",null,{"$error":"#N/A"},null,"ARKAN GULF TRADING & CONTRACTING","2024-09-11T11:06:02.850",null,"Payroll Service (Worker)","Y","Work Visa"]
[null,null,null,null," ",null,{"$f":"VLOOKUP(F162,'Validation sheet'!E:F,2,FALSE)","v":{"$error":"#N/A"}},null,null,null,"--",{"$error":"#N/A"},null,null,null,null,null,"--",null,null,"","Zone 00 Street 00 Building 00",null,{"$error":"#N/A"},null,"ARKAN GULF TRADING & CONTRACTING","2024-09-11T11:06:02.850",null,"Payroll Service (Worker)","Y","Work Visa"]
[null,null,null,null," ",null,{"$f":"VLOOKUP(F163,'Validation sheet'!E:F,2,FALSE)","v":{"$error":"#N/A"}},null,null,null,"--",{"$error":"#N/A"},null,null,null,null,null,"--",null,null,"","Zone 00 Street 00 Building 00",null,{"$error":"#N/A"},null,"ARKAN GULF TRADING & CONTRACTING","2024-09-11T11:06:02.850",null,"Payroll Service (Worker)","Y","Work Visa"]
[null,null,null,null," ",null,{"$f":"VLOOKUP(F164,'Validation sheet'!E:F,2,FALSE)","v":{"$error":"#N/A"}},null,null,null,"--",{"$error":"#N/A"},null,null,null,null,null,"--",null,null,"","Zone 00 Street 00 Building 00",null,{"$error":"#N/A"},null,"ARKAN GULF TRADING & CONTRACTING","2024-09-11T11:06:02.850",null,"Payroll Service (Worker)","Y","Work Visa"]
[null,null,null,null," ",null,{"$f":"VLOOKUP(F165,'Validation sheet'!E:F,2,FALSE)","v":{"$error":"#N/A"}},null,null,null,"--",{"$error":"#N/A"},null,null,null,null,null,"--",null,null,"","Zone 00 Street 00 Building 00",null,{"$error":"#N/A"},null,"ARKAN GULF TRADING & CONTRACTING","2024-09-11T11:06:02.850",null,"Payroll Service (Worker)","Y","Work Visa"]
[null,null,null,null," ",null,{"$f":"VLOOKUP(F166,'Validation sheet'!E:F,2,FALSE)","v":{"$error":"#N/A"}},null,null,null,"--",{"$error":"#N/A"},null,null,null,null,null,"--",null,null,"","Zone 00 Street 00 Building 00",null,{"$error":"#N/A"},null,"ARKAN GULF TRADING & CONTRACTING","2024-09-11T11:06:02.850",null,"Payroll Service (Worker)","Y","Work Visa"]
[null,null,null,null," ",null,{"$f":"VLOOKUP(F167,'Validation sheet'!E:F,2,FALSE)","v":{"$error":"#N/A"}},null,null,null,"--",{"$error":"#N/A"},null,null,null,null,null,"--",null,null,"","Zone 00 Street 00 Building 00",null,{"$error":"#N/A"},null,"ARKAN GULF TRADING & CONTRACTING","2024-09-11T11:06:02.850",null,"Payroll Service (Worker)","Y","Work Visa"]
[null,null,null,null," ",null,{"$f":"VLOOKUP(F168,'Validation sheet'!E:F,2,FALSE)","v":{"$error":"#N/A"}},null,null,null,"--",{"$error":"#N/A"},null,null,null,null,null,"--",null,null,"","Zone 00 Street 00 Building 00",null,{"$error":"#N/A"},null,"ARKAN GULF TRADING & CONTRACTING","2024-09-11T11:06:02.850",null,"Payroll Service (Worker)","Y","Work Visa"]
[null,null,null,null," ",null,{"$f":"VLOOKUP(F169,'Validation sheet'!E:F,2,FALSE)","v":{"$error":"#N/A"}},null,null,null,"--",{"$error":"#N/A"},null,null,null,null,null,"--",null,null,"","Zone 00 Street 00 Building 00",null,{"$error":"#N/A"},null,"ARKAN GULF TRADING & CONTRACTING","2024-09-11T11:06:02.850",null,"Payroll Service (Worker)","Y","Work Visa"]
[null,null,null,null," ",null,{"$f":"VLOOKUP(F170,'Validation sheet'!E:F,2,FALSE)","v":{"$error":"#N/A"}},null,null,null,"--",{"$error":"#N/A"},null,null,null,null,null,"--",null,null,"","Zone 00 Street 00 Building 00",null,{"$error":"#N/A"},null,"ARKAN GULF TRADING & CONTRACTING","2024-09-11T11:06:02.850",null,"Payroll Service (Worker)","Y","Work Visa"]
[null,null,null,null," ",null,{"$f":"VLOOKUP(F171,'Validation sheet'!E:F,2,FALSE)","v":{"$error":"#N/A"}},null,null,null,"--",{"$error":"#N/A"},null,null,null,null,null,"--",null,null,"","Zone 00 Street 00 Building 00",null,{"$error":"#N/A"},null,"ARKAN GULF TRADING & CONTRACTING","2024-09-11T11:06:02.850",null,"Payroll Service (Worker)","Y","Work Visa"]
[null,null,null,null," ",null,{"$f":"VLOOKUP(F172,'Validation sheet'!E:F,2,FALSE)","v":{"$error":"#N/A"}},null,null,null,"--",{"$error":"#N/A"},null,null,null,null,null,"--",null,null,"","Zone 00 Street 00 Building 00",null,{"$error":"#N/A"},null,"ARKAN GULF TRADING & CONTRACTING","2024-09-11T11:06:02.850",null,"Payroll Service (Worker)","Y","Work Visa"]
[null,null,null,null," ",null,{"$f":"VLOOKUP(F173,'Validation sheet'!E:F,2,FALSE)","v":{"$error":"#N/A"}},null,null,null,"--",{"$error":"#N/A"},null,null,null,null,null,"--",null,null,"","Zone 00 Street 00 Building 00",null,{"$error":"#N/A"},null,"ARKAN GULF TRADING & CONTRACTING","2024-09-11T11:06:02.850",null,"Payroll Service (Worker)","Y","Work Visa"]
[null,null,null,null," ",null,{"$f":"VLOOKUP(F174,'Validation sheet'!E:F,2,FALSE)","v":{"$error":"#N/A"}},null,null,null,"--",{"$error":"#N/A"},null,null,null,null,null,"--",null,null,"","Zone 00 Street 00 Building 00",null,{"$error":"#N/A"},null,"ARKAN GULF TRADING & CONTRACTING","2024-09-11T11:06:02.850",null,"Payroll Service (Worker)","Y","Work Visa"]
[null,null,null,null," ",null,{"$f":"VLOOKUP(F175,'Validation sheet'!E:F,2,FALSE)","v":{"$error":"#N/A"}},null,null,null,"--",{"$error":"#N/A"},null,null,null,null,null,"--",null,null,"","Zone 00 Street 00 Building 00",null,{"$error":"#N/A"},null,"ARKAN GULF TRADING & CONTRACTING","2024-09-11T11:06:02.850",null,"Payroll Service (Worker)","Y","Work Visa"]
[null,null,null,null," ",null,{"$f":"VLOOKUP(F176,'Validation sheet'!E:F,2,FALSE)","v":{"$error":"#N/A"}},null,null,null,"--",{"$error":"#N/A"},null,null,null,null,null,"--",null,null,"","Zone 00 Street 00 Building 00",null,{"$error":"#N/A"},null,"ARKAN GULF TRADING & CONTRACTING","2024-09-11T11:06:02.850",null,"Payroll Service (Worker)","Y","Work Visa"]
[null,null,null,null," ",null,{"$f":"VLOOKUP(F177,'Validation sheet'!E:F,2,FALSE)","v":{"$error":"#N/A"}},null,null,null,"--",{"$error":"#N/A"},null,null,null,null,null,"--",null,null,"","Zone 00 Street 00 Building 00",null,{"$error":"#N/A"},null,"ARKAN GULF TRADING & CONTRACTING","2024-09-11T11:06:02.850",null,"Payroll Service (Worker)","Y","Work Visa"]
[null,null,null,null," ",null,{"$f":"VLOOKUP(F178,'Validation sheet'!E:F,2,FALSE)","v":{"$error":"#N/A"}},null,null,null,"--",{"$error":"#N/A"},null,null,null,null,null,"--",null,null,"","Zone 00 Street 00 Building 00",null,{"$error":"#N/A"},null,"ARKAN GULF TRADING & CONTRACTING","2024-09-11T11:06:02.850",null,"Payroll Service (Worker)","Y","Work Visa"]
[null,null,null,null," ",null,{"$f":"VLOOKUP(F179,'Validation sheet'!E:F,2,FALSE)","v":{"$error":"#N/A"}},null,null,null,"--",{"$error":"#N/A"},null,null,null,null,null,"--",null,null,"","Zone 00 Street 00 Building 00",null,{"$error":"#N/A"},null,"ARKAN GULF TRADING & CONTRACTING","2024-09-11T11:06:02.850",null,"Payroll Service (Worker)","Y","Work Visa"]
[null,null,null,null," ",null,{"$f":"VLOOKUP(F180,'Validation sheet'!E:F,2,FALSE)","v":{"$error":"#N/A"}},null,null,null,"--",{"$error":"#N/A"},null,null,null,null,null,"--",null,null,"","Zone 00 Street 00 Building 00",null,{"$error":"#N/A"},null,"ARKAN GULF TRADING & CONTRACTING","2024-09-11T11:06:02.850",null,"Payroll Service (Worker)","Y","Work Visa"]
[null,null,null,null," ",null,{"$f":"VLOOKUP(F181,'Validation sheet'!E:F,2,FALSE)","v":{"$error":"#N/A"}},null,null,null,"--",{"$error":"#N/A"},null,null,null,null,null,"--",null,null,"","Zone 00 Street 00 Building 00",null,{"$error":"#N/A"},null,"ARKAN GULF TRADING & CONTRACTING","2024-09-11T11:06:02.850",null,"Payroll Service (Worker)","Y","Work Visa"]
[null,null,null,null," ",null,{"$f":"VLOOKUP(F182,'Validation sheet'!E:F,2,FALSE)","v":{"$error":"#N/A"}},null,null,null,"--",{"$error":"#N/A"},null,null,null,null,null,"--",null,null,"","Zone 00 Street 00 Building 00",null,{"$error":"#N/A"},null,"ARKAN GULF TRADING & CONTRACTING","2024-09-11T11:06:02.850",null,"Payroll Service (Worker)","Y","Work Visa"]
[null,null,null,null," ",null,{"$f":"VLOOKUP(F183,'Validation sheet'!E:F,2,FALSE)","v":{"$error":"#N/A"}},null,null,null,"--",{"$error":"#N/A"},null,null,null,null,null,"--",null,null,"","Zone 00 Street 00 Building 00",null,{"$error":"#N/A"},null,"ARKAN GULF TRADING & CONTRACTING","2024-09-11T11:06:02.850",null,"Payroll Service (Worker)","Y","Work Visa"]
[null,null,null,null," ",null,{"$f":"VLOOKUP(F184,'Validation sheet'!E:F,2,FALSE)","v":{"$error":"#N/A"}},null,null,null,"--",{"$error":"#N/A"},null,null,null,null,null,"--",null,null,"","Zone 00 Street 00 Building 00",null,{"$error":"#N/A"},null,"ARKAN GULF TRADING & CONTRACTING","2024-09-11T11:06:02.850",null,"Payroll Service (Worker)","Y","Work Visa"]
[null,null,null,null," ",null,{"$f":"VLOOKUP(F185,'Validation sheet'!E:F,2,FALSE)","v":{"$error":"#N/A"}},null,null,null,"--",{"$error":"#N/A"},null,null,null,null,null,"--",null,null,"","Zone 00 Street 00 Building 00",null,{"$error":"#N/A"},null,"ARKAN GULF TRADING & CONTRACTING","2024-09-11T11:06:02.850",null,"Payroll Service (Worker)","Y","Work Visa"]
[null,null,null,null," ",null,{"$f":"VLOOKUP(F186,'Validation sheet'!E:F,2,FALSE)","v":{"$error":"#N/A"}},null,null,null,"--",{"$error":"#N/A"},null,null,null,null,null,"--",null,null,"","Zone 00 Street 00 Building 00",null,{"$error":"#N/A"},null,"ARKAN GULF TRADING & CONTRACTING","2024-09-11T11:06:02.850",null,"Payroll Service (Worker)","Y","Work Visa"]
[null,null,null,null," ",null,{"$f":"VLOOKUP(F187,'Validation sheet'!E:F,2,FALSE)","v":{"$error":"#N/A"}},null,null,null,"--",{"$error":"#N/A"},null,null,null,null,null,"--",null,null,"","Zone 00 Street 00 Building 00",null,{"$error":"#N/A"},null,"ARKAN GULF TRADING & CONTRACTING","2024-09-11T11:06:02.850",null,"Payroll Service (Worker)","Y","Work Visa"]
[null,null,null,null," ",null,{"$f":"VLOOKUP(F188,'Validation sheet'!E:F,2,FALSE)","v":{"$error":"#N/A"}},null,null,null,"--",{"$error":"#N/A"},null,null,null,null,null,"--",null,null,"","Zone 00 Street 00 Building 00",null,{"$error":"#N/A"},null,"ARKAN GULF TRADING & CONTRACTING","2024-09-11T11:06:02.850",null,"Payroll Service (Worker)","Y","Work Visa"]
[null,null,null,null," ",null,{"$f":"VLOOKUP(F189,'Validation sheet'!E:F,2,FALSE)","v":{"$error":"#N/A"}},null,null,null,"--",{"$error":"#N/A"},null,null,null,null,null,"--",null,null,"","Zone 00 Street 00 Building 00",null,{"$error":"#N/A"},null,"ARKAN GULF TRADING & CONTRACTING","2024-09-11T11:06:02.850",null,"Payroll Service (Worker)","Y","Work Visa"]
[null,null,null,null," ",null,{"$f":"VLOOKUP(F190,'Validation sheet'!E:F,2,FALSE)","v":{"$error":"#N/A"}},null,null,null,"--",{"$error":"#N/A"},null,null,null,null,null,"--",null,null,"","Zone 00 Street 00 Building 00",null,{"$error":"#N/A"},null,"ARKAN GULF TRADING & CONTRACTING","2024-09-11T11:06:02.850",null,"Payroll Service (Worker)","Y","Work Visa"]
[null,null,null,null," ",null,{"$f":"VLOOKUP(F191,'Validation sheet'!E:F,2,FALSE)","v":{"$error":"#N/A"}},null,null,null,"--",{"$error":"#N/A"},null,null,null,null,null,"--",null,null,"","Zone 00 Street 00 Building 00",null,{"$error":"#N/A"},null,"ARKAN GULF TRADING & CONTRACTING","2024-09-11T11:06:02.850",null,"Payroll Service (Worker)","Y","Work Visa"]
[null,null,null,null," ",null,{"$f":"VLOOKUP(F192,'Validation sheet'!E:F,2,FALSE)","v":{"$error":"#N/A"}},null,null,null,"--",{"$error":"#N/A"},null,null,null,null,null,"--",null,null,"","Zone 00 Street 00 Building 00",null,{"$error":"#N/A"},null,"ARKAN GULF TRADING & CONTRACTING","2024-09-11T11:06:02.850",null,"Payroll Service (Worker)","Y","Work Visa"]
[null,null,null,null," ",null,{"$f":"VLOOKUP(F193,'Validation sheet'!E:F,2,FALSE)","v":{"$error":"#N/A"}},null,null,null,"--",{"$error":"#N/A"},null,null,null,null,null,"--",null,null,"","Zone 00 Street 00 Building 00",null,{"$error":"#N/A"},null,"ARKAN GULF TRADING & CONTRACTING","2024-09-11T11:06:02.850",null,"Payroll Service (Worker)","Y","Work Visa"]
[null,null,null,null," ",null,{"$f":"VLOOKUP(F194,'Validation sheet'!E:F,2,FALSE)","v":{"$error":"#N/A"}},null,null,null,"--",{"$error":"#N/A"},null,null,null,null,null,"--",null,null,"","Zone 00 Street 00 Building 00",null,{"$error":"#N/A"},null,"ARKAN GULF TRADING & CONTRACTING","2024-09-11T11:06:02.850",null,"Payroll Service (Worker)","Y","Work Visa"]
[null,null,null,null," ",null,{"$f":"VLOOKUP(F195,'Validation sheet'!E:F,2,FALSE)","v":{"$error":"#N/A"}},null,null,null,"--",{"$error":"#N/A"},null,null,null,null,null,"--",null,null,"","Zone 00 Street 00 Building 00",null,{"$error":"#N/A"},null,"ARKAN GULF TRADING & CONTRACTING","2024-09-11T11:06:02.850",null,"Payroll Service (Worker)","Y","Work Visa"]
[null,null,null,null," ",null,{"$f":"VLOOKUP(F196,'Validation sheet'!E:F,2,FALSE)","v":{"$error":"#N/A"}},null,null,null,"--",{"$error":"#N/A"},null,null,null,null,null,"--",null,null,"","Zone 00 Street 00 Building 00",null,{"$error":"#N/A"},null,"ARKAN GULF TRADING & CONTRACTING","2024-09-11T11:06:02.850",null,"Payroll Service (Worker)","Y","Work Visa"]
[null,null,null,null," ",null,{"$f":"VLOOKUP(F197,'Validation sheet'!E:F,2,FALSE)","v":{"$error":"#N/A"}},null,null,null,"--",{"$error":"#N/A"},null,null,null,null,null,"--",null,null,"","Zone 00 Street 00 Building 00",null,{"$error":"#N/A"},null,"ARKAN GULF TRADING & CONTRACTING","2024-09-11T11:06:02.850",null,"Payroll Service (Worker)","Y","Work Visa"]
[null,null,null,null," ",null,{"$f":"VLOOKUP(F198,'Validation sheet'!E:F,2,FALSE)","v":{"$error":"#N/A"}},null,null,null,"--",{"$error":"#N/A"},null,null,null,null,null,"--",null,null,"","Zone 00 Street 00 Building 00",null,{"$error":"#N/A"},null,"ARKAN GULF TRADING & CONTRACTING","2024-09-11T11:06:02.850",null,"Payroll Service (Worker)","Y","Work Visa"]
[null,null,null,null," ",null,{"$f":"VLOOKUP(F199,'Validation sheet'!E:F,2,FALSE)","v":{"$error":"#N/A"}},null,null,null,"--",{"$error":"#N/A"},null,null,null,null,null,"--",null,null,{"$f":"S199&T199","v":""},"Zone 00 Street 00 Building 00",null,{"$f":"L199","v":{"$error":"#N/A"}},null,"ARKAN GULF TRADING & CONTRACTING","2024-09-11T11:06:02.850",null,"Payroll Service (Worker)","Y","Work Visa"]
[null,null,null,null,{"$f":"B200&\" \"&D200","v":" "},null,{"$f":"VLOOKUP(F200,'Validation sheet'!E:F,2,FALSE)","v":{"$error":"#N/A"}},null,null,null,{"$f":"H200&\"-\"&I200&\"-\"&J200","v":"--"},{"$f":"G200","v":{"$error":"#N/A"}},null,null,null,null,null,{"$f":"O200&\"-\"&P200&\"-\"&Q200","v":"--"},null,null,"","Zone 00 Street 00 Building 00",null,{"$error":"#N/A"},null,{"$f":"$B$1","v":"ARKAN GULF TRADING & CONTRACTING"},{"$f":"NOW()","v":"2024-09-11T11:06:02.850"},null,"Payroll Service (Worker)","Y","Work Visa"]
[null,null,null,null," ",null,{"$f":"VLOOKUP(F201,'Validation sheet'!E:F,2,FALSE)","v":{"$error":"#N/A"}},null,null,null,"--",{"$error":"#N/A"},null,null,null,null,null,"--",null,null,"","Zone 00 Street 00 Building 00",null,{"$error":"#N/A"},null,"ARKAN GULF TRADING & CONTRACTING","2024-09-11T11:06:02.850",null,"Payroll Service (Worker)","Y","Work Visa"]
[null,null,null,null," ",null,{"$f":"VLOOKUP(F202,'Validation sheet'!E:F,2,FALSE)","v":{"$error":"#N/A"}},null,null,null,"--",{"$error":"#N/A"},null,null,null,null,null,"--",null,null,"","Zone 00 Street 00 Building 00",null,{"$error":"#N/A"},null,"ARKAN GULF TRADING & CONTRACTING","2024-09-11T11:06:02.850",null,"Payroll Service (Worker)","Y","Work Visa"]
[null,null,null,null," ",null,{"$f":"VLOOKUP(F203,'Validation sheet'!E:F,2,FALSE)","v":{"$error":"#N/A"}},null,null,null,"--",{"$error":"#N/A"},null,null,null,null,null,"--",null,null,"","Zone 00 Street 00 Building 00",null,{"$error":"#N/A"},null,"ARKAN GULF TRADING & CONTRACTING","2024-09-11T11:06:02.850",null,"Payroll Service (Worker)","Y","Work Visa"]
[null,null,null,null," ",null,{"$f":"VLOOKUP(F204,'Validation sheet'!E:F,2,FALSE)","v":{"$error":"#N/A"}},null,null,null,"--",{"$error":"#N/A"},null,null,null,null,null,"--",null,null,"","Zone 00 Street 00 Building 00",null,{"$error":"#N/A"},null,"ARKAN GULF TRADING & CONTRACTING","2024-09-11T11:06:02.850",null,"Payroll Service (Worker)","Y","Work Visa"]
[null,null,null,null," ",null,{"$f":"VLOOKUP(F205,'Validation sheet'!E:F,2,FALSE)","v":{"$error":"#N/A"}},null,null,null,"--",{"$error":"#N/A"},null,null,null,null,null,"--",null,null,"","Zone 00 Street 00 Building 00",null,{"$error":"#N/A"},null,"ARKAN GULF TRADING & CONTRACTING","2024-09-11T11:06:02.850",null,"Payroll Service (Worker)","Y","Work Visa"]
[null,null,null,null," ",null,{"$f":"VLOOKUP(F206,'Validation sheet'!E:F,2,FALSE)","v":{"$error":"#N/A"}},null,null,null,"--",{"$error":"#N/A"},null,null,null,null,null,"--",null,null,"","Zone 00 Street 00 Building 00",null,{"$error":"#N/A"},null,"ARKAN GULF TRADING & CONTRACTING","2024-09-11T11:06:02.850",null,"Payroll Service (Worker)","Y","Work Visa"]
[null,null,null,null," ",null,{"$f":"VLOOKUP(F207,'Validation sheet'!E:F,2,FALSE)","v":{"$error":"#N/A"}},null,null,null,"--",{"$error":"#N/A"},null,null,null,null,null,"--",null,null,"","Zone 00 Street 00 Building 00",null,{"$error":"#N/A"},null,"ARKAN GULF TRADING & CONTRACTING","2024-09-11T11:06:02.850",null,"Payroll Service (Worker)","Y","Work Visa"]
[null,null,null,null," ",null,{"$f":"VLOOKUP(F208,'Validation sheet'!E:F,2,FALSE)","v":{"$error":"#N/A"}},null,null,null,"--",{"$error":"#N/A"},null,null,null,null,null,"--",null,null,"","Zone 00 Street 00 Building 00",null,{"$error":"#N/A"},null,"ARKAN GULF TRADING & CONTRACTING","2024-09-11T11:06:02.850",null,"Payroll Service (Worker)","Y","Work Visa"]
[null,null,null,null," ",null,{"$f":"VLOOKUP(F209,'Validation sheet'!E:F,2,FALSE)","v":{"$error":"#N/A"}},null,null,null,"--",{"$error":"#N/A"},null,null,null,null,null,"--",null,null,"","Zone 00 Street 00 Building 00",null,{"$error":"#N/A"},null,"ARKAN GULF TRADING & CONTRACTING","2024-09-11T11:06:02.850",null,"Payroll Service (Worker)","Y","Work Visa"]
[null,null,null,null," ",null,{"$f":"VLOOKUP(F210,'Validation sheet'!E:F,2,FALSE)","v":{"$error":"#N/A"}},null,null,null,"--",{"$error":"#N/A"},null,null,null,null,null,"--",null,null,"","Zone 00 Street 00 Building 00",null,{"$error":"#N/A"},null,"ARKAN GULF TRADING & CONTRACTING","2024-09-11T11:06:02.850",null,"Payroll Service (Worker)","Y","Work Visa"]
[null,null,null,null," ",null,{"$f":"VLOOKUP(F211,'Validation sheet'!E:F,2,FALSE)","v":{"$error":"#N/A"}},null,null,null,"--",{"$error":"#N/A"},null,null,null,null,null,"--",null,null,"","Zone 00 Street 00 Building 00",null,{"$error":"#N/A"},null,"ARKAN GULF TRADING & CONTRACTING","2024-09-11T11:06:02.850",null,"Payroll Service (Worker)","Y","Work Visa"]
[null,null,null,null," ",null,{"$f":"VLOOKUP(F212,'Validation sheet'!E:F,2,FALSE)","v":{"$error":"#N/A"}},null,null,null,"--",{"$error":"#N/A"},null,null,null,null,null,"--",null,null,"","Zone 00 Street 00 Building 00",null,{"$error":"#N/A"},null,"ARKAN GULF TRADING & CONTRACTING","2024-09-11T11:06:02.850",null,"Payroll Service (Worker)","Y","Work Visa"]
[null,null,null,null," ",null,{"$f":"VLOOKUP(F213,'Validation sheet'!E:F,2,FALSE)","v":{"$error":"#N/A"}},null,null,null,"--",{"$error":"#N/A"},null,null,null,null,null,"--",null,null,"","Zone 00 Street 00 Building 00",null,{"$error":"#N/A"},null,"ARKAN GULF TRADING & CONTRACTING","2024-09-11T11:06:02.850",null,"Payroll Service (Worker)","Y","Work Visa"]
[null,null,null,null," ",null,{"$f":"VLOOKUP(F214,'Validation sheet'!E:F,2,FALSE)","v":{"$error":"#N/A"}},null,null,null,"--",{"$error":"#N/A"},null,null,null,null,null,"--",null,null,"","Zone 00 Street 00 Building 00",null,{"$error":"#N/A"},null,"ARKAN GULF TRADING & CONTRACTING","2024-09-11T11:06:02.850",null,"Payroll Service (Worker)","Y","Work Visa"]
[null,null,null,null," ",null,{"$f":"VLOOKUP(F215,'Validation sheet'!E:F,2,FALSE)","v":{"$error":"#N/A"}},null,null,null,"--",{"$error":"#N/A"},null,null,null,null,null,"--",null,null,"","Zone 00 Street 00 Building 00",null,{"$error":"#N/A"},null,"ARKAN GULF TRADING & CONTRACTING","2024-09-11T11:06:02.850",null,"Payroll Service (Worker)","Y","Work Visa"]
[null,null,null,null," ",null,{"$f":"VLOOKUP(F216,'Validation sheet'!E:F,2,FALSE)","v":{"$error":"#N/A"}},null,null,null,"--",{"$error":"#N/A"},null,null,null,null,null,"--",null,null,"","Zone 00 Street 00 Building 00",null,{"$error":"#N/A"},null,"ARKAN GULF TRADING & CONTRACTING","2024-09-11T11:06:02.850",null,"Payroll Service (Worker)","Y","Work Visa"]
[null,null,null,null," ",null,{"$f":"VLOOKUP(F217,'Validation sheet'!E:F,2,FALSE)","v":{"$error":"#N/A"}},null,null,null,"--",{"$error":"#N/A"},null,null,null,null,null,"--",null,null,"","Zone 00 Street 00 Building 00",null,{"$error":"#N/A"},null,"ARKAN GULF TRADING & CONTRACTING","2024-09-11T11:06:02.850",null,"Payroll Service (Worker)","Y","Work Visa"]
[null,null,null,null," ",null,{"$f":"VLOOKUP(F218,'Validation sheet'!E:F,2,FALSE)","v":{"$error":"#N/A"}},null,null,null,"--",{"$error":"#N/A"},null,null,null,null,null,"--",null,null,"","Zone 00 Street 00 Building 00",null,{"$error":"#N/A"},null,"ARKAN GULF TRADING & CONTRACTING","2024-09-11T11:06:02.850",null,"Payroll Service (Worker)","Y","Work Visa"]
[null,null,null,null," ",null,{"$f":"VLOOKUP(F219,'Validation sheet'!E:F,2,FALSE)","v":{"$error":"#N/A"}},null,null,null,"--",{"$error":"#N/A"},null,null,null,null,null,"--",null,null,"","Zone 00 Street 00 Building 00",null,{"$error":"#N/A"},null,"ARKAN GULF TRADING & CONTRACTING","2024-09-11T11:06:02.850",null,"Payroll Service (Worker)","Y","Work Visa"]
[null,null,null,null," ",null,{"$f":"VLOOKUP(F220,'Validation sheet'!E:F,2,FALSE)","v":{"$error":"#N/A"}},null,null,null,"--",{"$error":"#N/A"},null,null,null,null,null,"--",null,null,"","Zone 00 Street 00 Building 00",null,{"$error":"#N/A"},null,"ARKAN GULF TRADING & CONTRACTING","2024-09-11T11:06:02.850",null,"Payroll Service (Worker)","Y","Work Visa"]
[null,null,null,null," ",null,{"$f":"VLOOKUP(F221,'Validation sheet'!E:F,2,FALSE)","v":{"$error":"#N/A"}},null,null,null,"--",{"$error":"#N/A"},null,null,null,null,null,"--",null,null,"","Zone 00 Street 00 Building 00",null,{"$error":"#N/A"},null,"ARKAN GULF TRADING & CONTRACTING","2024-09-11T11:06:02.850",null,"Payroll Service (Worker)","Y","Work Visa"]
[null,null,null,null," ",null,{"$f":"VLOOKUP(F222,'Validation sheet'!E:F,2,FALSE)","v":{"$error":"#N/A"}},null,null,null,"--",{"$error":"#N/A"},null,null,null,null,null,"--",null,null,"","Zone 00 Street 00 Building 00",null,{"$error":"#N/A"},null,"ARKAN GULF TRADING & CONTRACTING","2024-09-11T11:06:02.850",null,"Payroll Service (Worker)","Y","Work Visa"]
[null,null,null,null," ",null,{"$f":"VLOOKUP(F223,'Validation sheet'!E:F,2,FALSE)","v":{"$error":"#N/A"}},null,null,null,"--",{"$error":"#N/A"},null,null,null,null,null,"--",null,null,"","Zone 00 Street 00 Building 00",null,{"$error":"#N/A"},null,"ARKAN GULF TRADING & CONTRACTING","2024-09-11T11:06:02.850",null,"Payroll Service (Worker)","Y","Work Visa"]
[null,null,null,null," ",null,{"$f":"VLOOKUP(F224,'Validation sheet'!E:F,2,FALSE)","v":{"$error":"#N/A"}},null,null,null,"--",{"$error":"#N/A"},null,null,null,null,null,"--",null,null,"","Zone 00 Street 00 Building 00",null,{"$error":"#N/A"},null,"ARKAN GULF TRADING & CONTRACTING","2024-09-11T11:06:02.850",null,"Payroll Service (Worker)","Y","Work Visa"]
[null,null,null,null," ",null,{"$f":"VLOOKUP(F225,'Validation sheet'!E:F,2,FALSE)","v":{"$error":"#N/A"}},null,null,null,"--",{"$error":"#N/A"},null,null,null,null,null,"--",null,null,"","Zone 00 Street 00 Building 00",null,{"$error":"#N/A"},null,"ARKAN GULF TRADING & CONTRACTING","2024-09-11T11:06:02.850",null,"Payroll Service (Worker)","Y","Work Visa"]
[null,null,null,null," ",null,{"$f":"VLOOKUP(F226,'Validation sheet'!E:F,2,FALSE)","v":{"$error":"#N/A"}},null,null,null,"--",{"$error":"#N/A"},null,null,null,null,null,"--",null,null,"","Zone 00 Street 00 Building 00",null,{"$error":"#N/A"},null,"ARKAN GULF TRADING & CONTRACTING","2024-09-11T11:06:02.850",null,"Payroll Service (Worker)","Y","Work Visa"]
[null,null,null,null," ",null,{"$f":"VLOOKUP(F227,'Validation sheet'!E:F,2,FALSE)","v":{"$error":"#N/A"}},null,null,null,"--",{"$error":"#N/A"},null,null,null,null,null,"--",null,null,"","Zone 00 Street 00 Building 00",null,{"$error":"#N/A"},null,"ARKAN GULF TRADING & CONTRACTING","2024-09-11T11:06:02.850",null,"Payroll Service (Worker)","Y","Work Visa"]
[null,null,null,null," ",null,{"$f":"VLOOKUP(F228,'Validation sheet'!E:F,2,FALSE)","v":{"$error":"#N/A"}},null,null,null,"--",{"$error":"#N/A"},null,null,null,null,null,"--",null,null,"","Zone 00 Street 00 Building 00",null,{"$error":"#N/A"},null,"ARKAN GULF TRADING & CONTRACTING","2024-09-11T11:06:02.850",null,"Payroll Service (Worker)","Y","Work Visa"]
[null,null,null,null," ",null,{"$f":"VLOOKUP(F229,'Validation sheet'!E:F,2,FALSE)","v":{"$error":"#N/A"}},null,null,null,"--",{"$error":"#N/A"},null,null,null,null,null,"--",null,null,"","Zone 00 Street 00 Building 00",null,{"$error":"#N/A"},null,"ARKAN GULF TRADING & CONTRACTING","2024-09-11T11:06:02.850",null,"Payroll Service (Worker)","Y","Work Visa"]
[null,null,null,null," ",null,{"$f":"VLOOKUP(F230,'Validation sheet'!E:F,2,FALSE)","v":{"$error":"#N/A"}},null,null,null,"--",{"$error":"#N/A"},null,null,null,null,null,"--",null,null,"","Zone 00 Street 00 Building 00",null,{"$error":"#N/A"},null,"ARKAN GULF TRADING & CONTRACTING","2024-09-11T11:06:02.850",null,"Payroll Service (Worker)","Y","Work Visa"]
[null,null,null,null," ",null,{"$f":"VLOOKUP(F231,'Validation sheet'!E:F,2,FALSE)","v":{"$error":"#N/A"}},null,null,null,"--",{"$error":"#N/A"},null,null,null,null,null,"--",null,null,"","Zone 00 Street 00 Building 00",null,{"$error":"#N/A"},null,"ARKAN GULF TRADING & CONTRACTING","2024-09-11T11:06:02.850",null,"Payroll Service (Worker)","Y","Work Visa"]
[null,null,null,null," ",null,{"$f":"VLOOKUP(F232,'Validation sheet'!E:F,2,FALSE)","v":{"$error":"#N/A"}},null,null,null,"--",{"$error":"#N/A"},null,null,null,null,null,"--",null,null,"","Zone 00 Street 00 Building 00",null,{"$error":"#N/A"},null,"ARKAN GULF TRADING & CONTRACTING","2024-09-11T11:06:02.850",null,"Payroll Service (Worker)","Y","Work Visa"]
[null,null,null,null," ",null,{"$f":"VLOOKUP(F233,'Validation sheet'!E:F,2,FALSE)","v":{"$error":"#N/A"}},null,null,null,"--",{"$error":"#N/A"},null,null,null,null,null,"--",null,null,"","Zone 00 Street 00 Building 00",null,{"$error":"#N/A"},null,"ARKAN GULF TRADING & CONTRACTING","2024-09-11T11:06:02.850",null,"Payroll Service (Worker)","Y","Work Visa"]
[null,null,null,null," ",null,{"$f":"VLOOKUP(F234,'Validation sheet'!E:F,2,FALSE)","v":{"$error":"#N/A"}},null,null,null,"--",{"$error":"#N/A"},null,null,null,null,null,"--",null,null,"","Zone 00 Street 00 Building 00",null,{"$error":"#N/A"},null,"ARKAN GULF TRADING & CONTRACTING","2024-09-11T11:06:02.850",null,"Payroll Service (Worker)","Y","Work Visa"]
[null,null,null,null," ",null,{"$f":"VLOOKUP(F235,'Validation sheet'!E:F,2,FALSE)","v":{"$error":"#N/A"}},null,null,null,"--",{"$error":"#N/A"},null,null,null,null,null,"--",null,null,"","Zone 00 Street 00 Building 00",null,{"$error":"#N/A"},null,"ARKAN GULF TRADING & CONTRACTING","2024-09-11T11:06:02.850",null,"Payroll Service (Worker)","Y","Work Visa"]
[null,null,null,null," ",null,{"$f":"VLOOKUP(F236,'Validation sheet'!E:F,2,FALSE)","v":{"$error":"#N/A"}},null,null,null,"--",{"$error":"#N/A"},null,null,null,null,null,"--",null,null,"","Zone 00 Street 00 Building 00",null,{"$error":"#N/A"},null,"ARKAN GULF TRADING & CONTRACTING","2024-09-11T11:06:02.850",null,"Payroll Service (Worker)","Y","Work Visa"]
[null,null,null,null," ",null,{"$f":"VLOOKUP(F237,'Validation sheet'!E:F,2,FALSE)","v":{"$error":"#N/A"}},null,null,null,"--",{"$error":"#N/A"},null,null,null,null,null,"--",null,null,"","Zone 00 Street 00 Building 00",null,{"$error":"#N/A"},null,"ARKAN GULF TRADING & CONTRACTING","2024-09-11T11:06:02.850",null,"Payroll Service (Worker)","Y","Work Visa"]
[null,null,null,null," ",null,{"$f":"VLOOKUP(F238,'Validation sheet'!E:F,2,FALSE)","v":{"$error":"#N/A"}},null,null,null,"--",{"$error":"#N/A"},null,null,null,null,null,"--",null,null,"","Zone 00 Street 00 Building 00",null,{"$error":"#N/A"},null,"ARKAN GULF TRADING & CONTRACTING","2024-09-11T11:06:02.850",null,"Payroll Service (Worker)","Y","Work Visa"]
[null,null,null,null," ",null,{"$f":"VLOOKUP(F239,'Validation sheet'!E:F,2,FALSE)","v":{"$error":"#N/A"}},null,null,null,"--",{"$error":"#N/A"},null,null,null,null,null,"--",null,null,"","Zone 00 Street 00 Building 00",null,{"$error":"#N/A"},null,"ARKAN GULF TRADING & CONTRACTING","2024-09-11T11:06:02.850",null,"Payroll Service (Worker)","Y","Work Visa"]
[null,null,null,null," ",null,{"$f":"VLOOKUP(F240,'Validation sheet'!E:F,2,FALSE)","v":{"$error":"#N/A"}},null,null,null,"--",{"$error":"#N/A"},null,null,null,null,null,"--",null,null,"","Zone 00 Street 00 Building 00",null,{"$error":"#N/A"},null,"ARKAN GULF TRADING & CONTRACTING","2024-09-11T11:06:02.850",null,"Payroll Service (Worker)","Y","Work Visa"]
[null,null,null,null," ",null,{"$f":"VLOOKUP(F241,'Validation sheet'!E:F,2,FALSE)","v":{"$error":"#N/A"}},null,null,null,"--",{"$error":"#N/A"},null,null,null,null,null,"--",null,null,"","Zone 00 Street 00 Building 00",null,{"$error":"#N/A"},null,"ARKAN GULF TRADING & CONTRACTING","2024-09-11T11:06:02.850",null,"Payroll Service (Worker)","Y","Work Visa"]
[null,null,null,null," ",null,{"$f":"VLOOKUP(F242,'Validation sheet'!E:F,2,FALSE)","v":{"$error":"#N/A"}},null,null,null,"--",{"$error":"#N/A"},null,null,null,null,null,"--",null,null,"","Zone 00 Street 00 Building 00",null,{"$error":"#N/A"},null,"ARKAN GULF TRADING & CONTRACTING","2024-09-11T11:06:02.850",null,"Payroll Service (Worker)","Y","Work Visa"]
[null,null,null,null," ",null,{"$f":"VLOOKUP(F243,'Validation sheet'!E:F,2,FALSE)","v":{"$error":"#N/A"}},null,null,null,"--",{"$error":"#N/A"},null,null,null,null,null,"--",null,null,"","Zone 00 Street 00 Building 00",null,{"$error":"#N/A"},null,"ARKAN GULF TRADING & CONTRACTING","2024-09-11T11:06:02.850",null,"Payroll Service (Worker)","Y","Work Visa"]
[null,null,null,null," ",null,{"$f":"VLOOKUP(F244,'Validation sheet'!E:F,2,FALSE)","v":{"$error":"#N/A"}},null,null,null,"--",{"$error":"#N/A"},null,null,null,null,null,"--",null,null,"","Zone 00 Street 00 Building 00",null,{"$error":"#N/A"},null,"ARKAN GULF TRADING & CONTRACTING","2024-09-11T11:06:02.850",null,"Payroll Service (Worker)","Y","Work Visa"]
[null,null,null,null," ",null,{"$f":"VLOOKUP(F245,'Validation sheet'!E:F,2,FALSE)","v":{"$error":"#N/A"}},null,null,null,"--",{"$error":"#N/A"},null,null,null,null,null,"--",null,null,"","Zone 00 Street 00 Building 00",null,{"$error":"#N/A"},null,"ARKAN GULF TRADING & CONTRACTING","2024-09-11T11:06:02.850",null,"Payroll Service (Worker)","Y","Work Visa"]
[null,null,null,null," ",null,{"$f":"VLOOKUP(F246,'Validation sheet'!E:F,2,FALSE)","v":{"$error":"#N/A"}},null,null,null,"--",{"$error":"#N/A"},null,null,null,null,null,"--",null,null,"","Zone 00 Street 00 Building 00",null,{"$error":"#N/A"},null,"ARKAN GULF TRADING & CONTRACTING","2024-09-11T11:06:02.850",null,"Payroll Service (Worker)","Y","Work Visa"]
[null,null,null,null," ",null,{"$f":"VLOOKUP(F247,'Validation sheet'!E:F,2,FALSE)","v":{"$error":"#N/A"}},null,null,null,"--",{"$error":"#N/A"},null,null,null,null,null,"--",null,null,"","Zone 00 Street 00 Building 00",null,{"$error":"#N/A"},null,"ARKAN GULF TRADING & CONTRACTING","2024-09-11T11:06:02.850",null,"Payroll Service (Worker)","Y","Work Visa"]
[null,null,null,null," ",null,{"$f":"VLOOKUP(F248,'Validation sheet'!E:F,2,FALSE)","v":{"$error":"#N/A"}},null,null,null,"--",{"$error":"#N/A"},null,null,null,null,null,"--",null,null,"","Zone 00 Street 00 Building 00",null,{"$error":"#N/A"},null,"ARKAN GULF TRADING & CONTRACTING","2024-09-11T11:06:02.850",null,"Payroll Service (Worker)","Y","Work Visa"]
[null,null,null,null," ",null,{"$f":"VLOOKUP(F249,'Validation sheet'!E:F,2,FALSE)","v":{"$error":"#N/A"}},null,null,null,"--",{"$error":"#N/A"},null,null,null,null,null,"--",null,null,"","Zone 00 Street 00 Building 00",null,{"$error":"#N/A"},null,"ARKAN GULF TRADING & CONTRACTING","2024-09-11T11:06:02.850",null,"Payroll Service (Worker)","Y","Work Visa"]
[null,null,null,null," ",null,{"$f":"VLOOKUP(F250,'Validation sheet'!E:F,2,FALSE)","v":{"$error":"#N/A"}},null,null,null,"--",{"$error":"#N/A"},null,null,null,null,null,"--",null,null,"","Zone 00 Street 00 Building 00",null,{"$error":"#N/A"},null,"ARKAN GULF TRADING & CONTRACTING","2024-09-11T11:06:02.850",null,"Payroll Service (Worker)","Y","Work Visa"]
[null,null,null,null," ",null,{"$f":"VLOOKUP(F251,'Validation sheet'!E:F,2,FALSE)","v":{"$error":"#N/A"}},null,null,null,"--",{"$error":"#N/A"},null,null,null,null,null,"--",null,null,"","Zone 00 Street 00 Building 00",null,{"$error":"#N/A"},null,"ARKAN GULF TRADING & CONTRACTING","2024-09-11T11:06:02.850",null,"Payroll Service (Worker)","Y","Work Visa"]
[null,null,null,null," ",null,{"$f":"VLOOKUP(F252,'Validation sheet'!E:F,2,FALSE)","v":{"$error":"#N/A"}},null,null,null,"--",{"$error":"#N/A"},null,null,null,null,null,"--",null,null,"","Zone 00 Street 00 Building 00",null,{"$error":"#N/A"},null,"ARKAN GULF TRADING & CONTRACTING","2024-09-11T11:06:02.850",null,"Payroll Service (Worker)","Y","Work Visa"]
[null,null,null,null," ",null,{"$f":"VLOOKUP(F253,'Validation sheet'!E:F,2,FALSE)","v":{"$error":"#N/A"}},null,null,null,"--",{"$error":"#N/A"},null,null,null,null,null,"--",null,null,"","Zone 00 Street 00 Building 00",null,{"$error":"#N/A"},null,"ARKAN GULF TRADING & CONTRACTING","2024-09-11T11:06:02.850",null,"Payroll Service (Worker)","Y","Work Visa"]
[null,null,null,null," ",null,{"$f":"VLOOKUP(F254,'Validation sheet'!E:F,2,FALSE)","v":{"$error":"#N/A"}},null,null,null,"--",{"$error":"#N/A"},null,null,null,null,null,"--",null,null,"","Zone 00 Street 00 Building 00",null,{"$error":"#N/A"},null,"ARKAN GULF TRADING & CONTRACTING","2024-09-11T11:06:02.850",null,"Payroll Service (Worker)","Y","Work Visa"]
[null,null,null,null," ",null,{"$f":"VLOOKUP(F255,'Validation sheet'!E:F,2,FALSE)","v":{"$error":"#N/A"}},null,null,null,"--",{"$error":"#N/A"},null,null,null,null,null,"--",null,null,"","Zone 00 Street 00 Building 00",null,{"$error":"#N/A"},null,"ARKAN GULF TRADING & CONTRACTING","2024-09-11T11:06:02.850",null,"Payroll Service (Worker)","Y","Work Visa"]
[null,null,null,null," ",null,{"$f":"VLOOKUP(F256,'Validation sheet'!E:F,2,FALSE)","v":{"$error":"#N/A"}},null,null,null,"--",{"$error":"#N/A"},null,null,null,null,null,"--",null,null,"","Zone 00 Street 00 Building 00",null,{"$error":"#N/A"},null,"ARKAN GULF TRADING & CONTRACTING","2024-09-11T11:06:02.850",null,"Payroll Service (Worker)","Y","Work Visa"]
[null,null,null,null," ",null,{"$f":"VLOOKUP(F257,'Validation sheet'!E:F,2,FALSE)","v":{"$error":"#N/A"}},null,null,null,"--",{"$error":"#N/A"},null,null,null,null,null,"--",null,null,"","Zone 00 Street 00 Building 00",null,{"$error":"#N/A"},null,"ARKAN GULF TRADING & CONTRACTING","2024-09-11T11:06:02.850",null,"Payroll Service (Worker)","Y","Work Visa"]
[null,null,null,null," ",null,{"$f":"VLOOKUP(F258,'Validation sheet'!E:F,2,FALSE)","v":{"$error":"#N/A"}},null,null,null,"--",{"$error":"#N/A"},null,null,null,null,null,"--",null,null,"","Zone 00 Street 00 Building 00",null,{"$error":"#N/A"},null,"ARKAN GULF TRADING & CONTRACTING","2024-09-11T11:06:02.850",null,"Payroll Service (Worker)","Y","Work Visa"]
[null,null,null,null," ",null,{"$f":"VLOOKUP(F259,'Validation sheet'!E:F,2,FALSE)","v":{"$error":"#N/A"}},null,null,null,"--",{"$error":"#N/A"},null,null,null,null,null,"--",null,null,"","Zone 00 Street 00 Building 00",null,{"$error":"#N/A"},null,"ARKAN GULF TRADING & CONTRACTING","2024-09-11T11:06:02.850",null,"Payroll Service (Worker)","Y","Work Visa"]
[null,null,null,null," ",null,{"$f":"VLOOKUP(F260,'Validation sheet'!E:F,2,FALSE)","v":{"$error":"#N/A"}},null,null,null,"--",{"$error":"#N/A"},null,null,null,null,null,"--",null,null,"","Zone 00 Street 00 Building 00",null,{"$error":"#N/A"},null,"ARKAN GULF TRADING & CONTRACTING","2024-09-11T11:06:02.850",null,"Payroll Service (Worker)","Y","Work Visa"]
[null,null,null,null," ",null,{"$f":"VLOOKUP(F261,'Validation sheet'!E:F,2,FALSE)","v":{"$error":"#N/A"}},null,null,null,"--",{"$error":"#N/A"},null,null,null,null,null,"--",null,null,"","Zone 00 Street 00 Building 00",null,{"$error":"#N/A"},null,"ARKAN GULF TRADING & CONTRACTING","2024-09-11T11:06:02.850",null,"Payroll Service (Worker)","Y","Work Visa"]
[null,null,null,null," ",null,{"$f":"VLOOKUP(F262,'Validation sheet'!E:F,2,FALSE)","v":{"$error":"#N/A"}},null,null,null,"--",{"$error":"#N/A"},null,null,null,null,null,"--",null,null,"","Zone 00 Street 00 Building 00",null,{"$error":"#N/A"},null,"ARKAN GULF TRADING & CONTRACTING","2024-09-11T11:06:02.850",null,"Payroll Service (Worker)","Y","Work Visa"]
[null,null,null,null," ",null,{"$f":"VLOOKUP(F263,'Validation sheet'!E:F,2,FALSE)","v":{"$error":"#N/A"}},null,null,null,"--",{"$error":"#N/A"},null,null,null,null,null,"--",null,null,{"$f":"S263&T263","v":""},"Zone 00 Street 00 Building 00",null,{"$f":"L263","v":{"$error":"#N/A"}},null,"ARKAN GULF TRADING & CONTRACTING","2024-09-11T11:06:02.850",null,"Payroll Service (Worker)","Y","Work Visa"]
[null,null,null,null,{"$f":"B264&\" \"&D264","v":" "},null,{"$f":"VLOOKUP(F264,'Validation sheet'!E:F,2,FALSE)","v":{"$error":"#N/A"}},null,null,null,{"$f":"H264&\"-\"&I264&\"-\"&J264","v":"--"},{"$f":"G264","v":{"$error":"#N/A"}},null,null,null,null,null,{"$f":"O264&\"-\"&P264&\"-\"&Q264","v":"--"},null,null,"","Zone 00 Street 00 Building 00",null,{"$error":"#N/A"},null,{"$f":"$B$1","v":"ARKAN GULF TRADING & CONTRACTING"},{"$f":"NOW()","v":"2024-09-11T11:06:02.850"},null,"Payroll Service (Worker)","Y","Work Visa"]
[null,null,null,null," ",null,{"$f":"VLOOKUP(F265,'Validation sheet'!E:F,2,FALSE)","v":{"$error":"#N/A"}},null,null,null,"--",{"$error":"#N/A"},null,null,null,null,null,"--",null,null,"","Zone 00 Street 00 Building 00",null,{"$error":"#N/A"},null,"ARKAN GULF TRADING & CONTRACTING","2024-09-11T11:06:02.850",null,"Payroll Service (Worker)","Y","Work Visa"]
[null,null,null,null," ",null,{"$f":"VLOOKUP(F266,'Validation sheet'!E:F,2,FALSE)","v":{"$error":"#N/A"}},null,null,null,"--",{"$error":"#N/A"},null,null,null,null,null,"--",null,null,"","Zone 00 Street 00 Building 00",null,{"$error":"#N/A"},null,"ARKAN GULF TRADING & CONTRACTING","2024-09-11T11:06:02.850",null,"Payroll Service (Worker)","Y","Work Visa"]
[null,null,null,null," ",null,{"$f":"VLOOKUP(F267,'Validation sheet'!E:F,2,FALSE)","v":{"$error":"#N/A"}},null,null,null,"--",{"$error":"#N/A"},null,null,null,null,null,"--",null,null,"","Zone 00 Street 00 Building 00",null,{"$error":"#N/A"},null,"ARKAN GULF TRADING & CONTRACTING","2024-09-11T11:06:02.850",null,"Payroll Service (Worker)","Y","Work Visa"]
[null,null,null,null," ",null,{"$f":"VLOOKUP(F268,'Validation sheet'!E:F,2,FALSE)","v":{"$error":"#N/A"}},null,null,null,"--",{"$error":"#N/A"},null,null,null,null,null,"--",null,null,"","Zone 00 Street 00 Building 00",null,{"$error":"#N/A"},null,"ARKAN GULF TRADING & CONTRACTING","2024-09-11T11:06:02.850",null,"Payroll Service (Worker)","Y","Work Visa"]
[null,null,null,null," ",null,{"$f":"VLOOKUP(F269,'Validation sheet'!E:F,2,FALSE)","v":{"$error":"#N/A"}},null,null,null,"--",{"$error":"#N/A"},null,null,null,null,null,"--",null,null,"","Zone 00 Street 00 Building 00",null,{"$error":"#N/A"},null,"ARKAN GULF TRADING & CONTRACTING","2024-09-11T11:06:02.850",null,"Payroll Service (Worker)","Y","Work Visa"]
[null,null,null,null," ",null,{"$f":"VLOOKUP(F270,'Validation sheet'!E:F,2,FALSE)","v":{"$error":"#N/A"}},null,null,null,"--",{"$error":"#N/A"},null,null,null,null,null,"--",null,null,"","Zone 00 Street 00 Building 00",null,{"$error":"#N/A"},null,"ARKAN GULF TRADING & CONTRACTING","2024-09-11T11:06:02.850",null,"Payroll Service (Worker)","Y","Work Visa"]
[null,null,null,null," ",null,{"$f":"VLOOKUP(F271,'Validation sheet'!E:F,2,FALSE)","v":{"$error":"#N/A"}},null,null,null,"--",{"$error":"#N/A"},null,null,null,null,null,"--",null,null,"","Zone 00 Street 00 Building 00",null,{"$error":"#N/A"},null,"ARKAN GULF TRADING & CONTRACTING","2024-09-11T11:06:02.850",null,"Payroll Service (Worker)","Y","Work Visa"]
[null,null,null,null," ",null,{"$f":"VLOOKUP(F272,'Validation sheet'!E:F,2,FALSE)","v":{"$error":"#N/A"}},null,null,null,"--",{"$error":"#N/A"},null,null,null,null,null,"--",null,null,"","Zone 00 Street 00 Building 00",null,{"$error":"#N/A"},null,"ARKAN GULF TRADING & CONTRACTING","2024-09-11T11:06:02.850",null,"Payroll Service (Worker)","Y","Work Visa"]
[null,null,null,null," ",null,{"$f":"VLOOKUP(F273,'Validation sheet'!E:F,2,FALSE)","v":{"$error":"#N/A"}},null,null,null,"--",{"$error":"#N/A"},null,null,null,null,null,"--",null,null,"","Zone 00 Street 00 Building 00",null,{"$error":"#N/A"},null,"ARKAN GULF TRADING & CONTRACTING","2024-09-11T11:06:02.850",null,"Payroll Service (Worker)","Y","Work Visa"]
[null,null,null,null," ",null,{"$f":"VLOOKUP(F274,'Validation sheet'!E:F,2,FALSE)","v":{"$error":"#N/A"}},null,null,null,"--",{"$error":"#N/A"},null,null,null,null,null,"--",null,null,"","Zone 00 Street 00 Building 00",null,{"$error":"#N/A"},null,"ARKAN GULF TRADING & CONTRACTING","2024-09-11T11:06:02.850",null,"Payroll Service (Worker)","Y","Work Visa"]
[null,null,null,null," ",null,{"$f":"VLOOKUP(F275,'Validation sheet'!E:F,2,FALSE)","v":{"$error":"#N/A"}},null,null,null,"--",{"$error":"#N/A"},null,null,null,null,null,"--",null,null,"","Zone 00 Street 00 Building 00",null,{"$error":"#N/A"},null,"ARKAN GULF TRADING & CONTRACTING","2024-09-11T11:06:02.850",null,"Payroll Service (Worker)","Y","Work Visa"]
[null,null,null,null," ",null,{"$f":"VLOOKUP(F276,'Validation sheet'!E:F,2,FALSE)","v":{"$error":"#N/A"}},null,null,null,"--",{"$error":"#N/A"},null,null,null,null,null,"--",null,null,"","Zone 00 Street 00 Building 00",null,{"$error":"#N/A"},null,"ARKAN GULF TRADING & CONTRACTING","2024-09-11T11:06:02.850",null,"Payroll Service (Worker)","Y","Work Visa"]
[null,null,null,null," ",null,{"$f":"VLOOKUP(F277,'Validation sheet'!E:F,2,FALSE)","v":{"$error":"#N/A"}},null,null,null,"--",{"$error":"#N/A"},null,null,null,null,null,"--",null,null,"","Zone 00 Street 00 Building 00",null,{"$error":"#N/A"},null,"ARKAN GULF TRADING & CONTRACTING","2024-09-11T11:06:02.850",null,"Payroll Service (Worker)","Y","Work Visa"]
[null,null,null,null," ",null,{"$f":"VLOOKUP(F278,'Validation sheet'!E:F,2,FALSE)","v":{"$error":"#N/A"}},null,null,null,"--",{"$error":"#N/A"},null,null,null,null,null,"--",null,null,"","Zone 00 Street 00 Building 00",null,{"$error":"#N/A"},null,"ARKAN GULF TRADING & CONTRACTING","2024-09-11T11:06:02.850",null,"Payroll Service (Worker)","Y","Work Visa"]
[null,null,null,null," ",null,{"$f":"VLOOKUP(F279,'Validation sheet'!E:F,2,FALSE)","v":{"$error":"#N/A"}},null,null,null,"--",{"$error":"#N/A"},null,null,null,null,null,"--",null,null,"","Zone 00 Street 00 Building 00",null,{"$error":"#N/A"},null,"ARKAN GULF TRADING & CONTRACTING","2024-09-11T11:06:02.850",null,"Payroll Service (Worker)","Y","Work Visa"]
[null,null,null,null," ",null,{"$f":"VLOOKUP(F280,'Validation sheet'!E:F,2,FALSE)","v":{"$error":"#N/A"}},null,null,null,"--",{"$error":"#N/A"},null,null,null,null,null,"--",null,null,"","Zone 00 Street 00 Building 00",null,{"$error":"#N/A"},null,"ARKAN GULF TRADING & CONTRACTING","2024-09-11T11:06:02.850",null,"Payroll Service (Worker)","Y","Work Visa"]
[null,null,null,null," ",null,{"$f":"VLOOKUP(F281,'Validation sheet'!E:F,2,FALSE)","v":{"$error":"#N/A"}},null,null,null,"--",{"$error":"#N/A"},null,null,null,null,null,"--",null,null,"","Zone 00 Street 00 Building 00",null,{"$error":"#N/A"},null,"ARKAN GULF TRADING & CONTRACTING","2024-09-11T11:06:02.850",null,"Payroll Service (Worker)","Y","Work Visa"]
[null,null,null,null," ",null,{"$f":"VLOOKUP(F282,'Validation sheet'!E:F,2,FALSE)","v":{"$error":"#N/A"}},null,null,null,"--",{"$error":"#N/A"},null,null,null,null,null,"--",null,null,"","Zone 00 Street 00 Building 00",null,{"$error":"#N/A"},null,"ARKAN GULF TRADING & CONTRACTING","2024-09-11T11:06:02.850",null,"Payroll Service (Worker)","Y","Work Visa"]
[null,null,null,null," ",null,{"$f":"VLOOKUP(F283,'Validation sheet'!E:F,2,FALSE)","v":{"$error":"#N/A"}},null,null,null,"--",{"$error":"#N/A"},null,null,null,null,null,"--",null,null,"","Zone 00 Street 00 Building 00",null,{"$error":"#N/A"},null,"ARKAN GULF TRADING & CONTRACTING","2024-09-11T11:06:02.850",null,"Payroll Service (Worker)","Y","Work Visa"]
[null,null,null,null," ",null,{"$f":"VLOOKUP(F284,'Validation sheet'!E:F,2,FALSE)","v":{"$error":"#N/A"}},null,null,null,"--",{"$error":"#N/A"},null,null,null,null,null,"--",null,null,"","Zone 00 Street 00 Building 00",null,{"$error":"#N/A"},null,"ARKAN GULF TRADING & CONTRACTING","2024-09-11T11:06:02.850",null,"Payroll Service (Worker)","Y","Work Visa"]
[null,null,null,null," ",null,{"$f":"VLOOKUP(F285,'Validation sheet'!E:F,2,FALSE)","v":{"$error":"#N/A"}},null,null,null,"--",{"$error":"#N/A"},null,null,null,null,null,"--",null,null,"","Zone 00 Street 00 Building 00",null,{"$error":"#N/A"},null,"ARKAN GULF TRADING & CONTRACTING","2024-09-11T11:06:02.850",null,"Payroll Service (Worker)","Y","Work Visa"]
[null,null,null,null," ",null,{"$f":"VLOOKUP(F286,'Validation sheet'!E:F,2,FALSE)","v":{"$error":"#N/A"}},null,null,null,"--",{"$error":"#N/A"},null,null,null,null,null,"--",null,null,"","Zone 00 Street 00 Building 00",null,{"$error":"#N/A"},null,"ARKAN GULF TRADING & CONTRACTING","2024-09-11T11:06:02.850",null,"Payroll Service (Worker)","Y","Work Visa"]
[null,null,null,null," ",null,{"$f":"VLOOKUP(F287,'Validation sheet'!E:F,2,FALSE)","v":{"$error":"#N/A"}},null,null,null,"--",{"$error":"#N/A"},null,null,null,null,null,"--",null,null,"","Zone 00 Street 00 Building 00",null,{"$error":"#N/A"},null,"ARKAN GULF TRADING & CONTRACTING","2024-09-11T11:06:02.850",null,"Payroll Service (Worker)","Y","Work Visa"]
[null,null,null,null," ",null,{"$f":"VLOOKUP(F288,'Validation sheet'!E:F,2,FALSE)","v":{"$error":"#N/A"}},null,null,null,"--",{"$error":"#N/A"},null,null,null,null,null,"--",null,null,"","Zone 00 Street 00 Building 00",null,{"$error":"#N/A"},null,"ARKAN GULF TRADING & CONTRACTING","2024-09-11T11:06:02.850",null,"Payroll Service (Worker)","Y","Work Visa"]
[null,null,null,null," ",null,{"$f":"VLOOKUP(F289,'Validation sheet'!E:F,2,FALSE)","v":{"$error":"#N/A"}},null,null,null,"--",{"$error":"#N/A"},null,null,null,null,null,"--",null,null,"","Zone 00 Street 00 Building 00",null,{"$error":"#N/A"},null,"ARKAN GULF TRADING & CONTRACTING","2024-09-11T11:06:02.850",null,"Payroll Service (Worker)","Y","Work Visa"]
[null,null,null,null," ",null,{"$f":"VLOOKUP(F290,'Validation sheet'!E:F,2,FALSE)","v":{"$error":"#N/A"}},null,null,null,"--",{"$error":"#N/A"},null,null,null,null,null,"--",null,null,"","Zone 00 Street 00 Building 00",null,{"$error":"#N/A"},null,"ARKAN GULF TRADING & CONTRACTING","2024-09-11T11:06:02.850",null,"Payroll Service (Worker)","Y","Work Visa"]
[null,null,null,null," ",null,{"$f":"VLOOKUP(F291,'Validation sheet'!E:F,2,FALSE)","v":{"$error":"#N/A"}},null,null,null,"--",{"$error":"#N/A"},null,null,null,null,null,"--",null,null,"","Zone 00 Street 00 Building 00",null,{"$error":"#N/A"},null,"ARKAN GULF TRADING & CONTRACTING","2024-09-11T11:06:02.850",null,"Payroll Service (Worker)","Y","Work Visa"]
[null,null,null,null," ",null,{"$f":"VLOOKUP(F292,'Validation sheet'!E:F,2,FALSE)","v":{"$error":"#N/A"}},null,null,null,"--",{"$error":"#N/A"},null,null,null,null,null,"--",null,null,"","Zone 00 Street 00 Building 00",null,{"$error":"#N/A"},null,"ARKAN GULF TRADING & CONTRACTING","2024-09-11T11:06:02.850",null,"Payroll Service (Worker)","Y","Work Visa"]
[null,null,null,null," ",null,{"$f":"VLOOKUP(F293,'Validation sheet'!E:F,2,FALSE)","v":{"$error":"#N/A"}},null,null,null,"--",{"$error":"#N/A"},null,null,null,null,null,"--",null,null,"","Zone 00 Street 00 Building 00",null,{"$error":"#N/A"},null,"ARKAN GULF TRADING & CONTRACTING","2024-09-11T11:06:02.850",null,"Payroll Service (Worker)","Y","Work Visa"]
[null,null,null,null," ",null,{"$f":"VLOOKUP(F294,'Validation sheet'!E:F,2,FALSE)","v":{"$error":"#N/A"}},null,null,null,"--",{"$error":"#N/A"},null,null,null,null,null,"--",null,null,"","Zone 00 Street 00 Building 00",null,{"$error":"#N/A"},null,"ARKAN GULF TRADING & CONTRACTING","2024-09-11T11:06:02.850",null,"Payroll Service (Worker)","Y","Work Visa"]
[null,null,null,null," ",null,{"$f":"VLOOKUP(F295,'Validation sheet'!E:F,2,FALSE)","v":{"$error":"#N/A"}},null,null,null,"--",{"$error":"#N/A"},null,null,null,null,null,"--",null,null,"","Zone 00 Street 00 Building 00",null,{"$error":"#N/A"},null,"ARKAN GULF TRADING & CONTRACTING","2024-09-11T11:06:02.850",null,"Payroll Service (Worker)","Y","Work Visa"]
[null,null,null,null," ",null,{"$f":"VLOOKUP(F296,'Validation sheet'!E:F,2,FALSE)","v":{"$error":"#N/A"}},null,null,null,"--",{"$error":"#N/A"},null,null,null,null,null,"--",null,null,"","Zone 00 Street 00 Building 00",null,{"$error":"#N/A"},null,"ARKAN GULF TRADING & CONTRACTING","2024-09-11T11:06:02.850",null,"Payroll Service (Worker)","Y","Work Visa"]
[null,null,null,null," ",null,{"$f":"VLOOKUP(F297,'Validation sheet'!E:F,2,FALSE)","v":{"$error":"#N/A"}},null,null,null,"--",{"$error":"#N/A"},null,null,null,null,null,"--",null,null,"","Zone 00 Street 00 Building 00",null,{"$error":"#N/A"},null,"ARKAN GULF TRADING & CONTRACTING","2024-09-11T11:06:02.850",null,"Payroll Service (Worker)","Y","Work Visa"]
[null,null,null,null," ",null,{"$f":"VLOOKUP(F298,'Validation sheet'!E:F,2,FALSE)","v":{"$error":"#N/A"}},null,null,null,"--",{"$error":"#N/A"},null,null,null,null,null,"--",null,null,"","Zone 00 Street 00 Building 00",null,{"$error":"#N/A"},null,"ARKAN GULF TRADING & CONTRACTING","2024-09-11T11:06:02.850",null,"Payroll Service (Worker)","Y","Work Visa"]
[null,null,null,null," ",null,{"$f":"VLOOKUP(F299,'Validation sheet'!E:F,2,FALSE)","v":{"$error":"#N/A"}},null,null,null,"--",{"$error":"#N/A"},null,null,null,null,null,"--",null,null,"","Zone 00 Street 00 Building 00",null,{"$error":"#N/A"},null,"ARKAN GULF TRADING & CONTRACTING","2024-09-11T11:06:02.850",null,"Payroll Service (Worker)","Y","Work Visa"]
[null,null,null,null," ",null,{"$f":"VLOOKUP(F300,'Validation sheet'!E:F,2,FALSE)","v":{"$error":"#N/A"}},null,null,null,"--",{"$error":"#N/A"},null,null,null,null,null,"--",null,null,"","Zone 00 Street 00 Building 00",null,{"$error":"#N/A"},null,"ARKAN GULF TRADING & CONTRACTING","2024-09-11T11:06:02.850",null,"Payroll Service (Worker)","Y","Work Visa"]
[null,null,null,null," ",null,{"$f":"VLOOKUP(F301,'Validation sheet'!E:F,2,FALSE)","v":{"$error":"#N/A"}},null,null,null,"--",{"$error":"#N/A"},null,null,null,null,null,"--",null,null,"","Zone 00 Street 00 Building 00",null,{"$error":"#N/A"},null,"ARKAN GULF TRADING & CONTRACTING","2024-09-11T11:06:02.850",null,"Payroll Service (Worker)","Y","Work Visa"]
[null,null,null,null," ",null,{"$f":"VLOOKUP(F302,'Validation sheet'!E:F,2,FALSE)","v":{"$error":"#N/A"}},null,null,null,"--",{"$error":"#N/A"},null,null,null,null,null,"--",null,null,"","Zone 00 Street 00 Building 00",null,{"$error":"#N/A"},null,"ARKAN GULF TRADING & CONTRACTING","2024-09-11T11:06:02.850",null,"Payroll Service (Worker)","Y","Work Visa"]
[null,null,null,null," ",null,{"$f":"VLOOKUP(F303,'Validation sheet'!E:F,2,FALSE)","v":{"$error":"#N/A"}},null,null,null,"--",{"$error":"#N/A"},null,null,null,null,null,"--",null,null,"","Zone 00 Street 00 Building 00",null,{"$error":"#N/A"},null,"ARKAN GULF TRADING & CONTRACTING","2024-09-11T11:06:02.850",null,"Payroll Service (Worker)","Y","Work Visa"]
[null,null,null,null," ",null,{"$f":"VLOOKUP(F304,'Validation sheet'!E:F,2,FALSE)","v":{"$error":"#N/A"}},null,null,null,"--",{"$error":"#N/A"},null,null,null,null,null,"--",null,null,"","Zone 00 Street 00 Building 00",null,{"$error":"#N/A"},null,"ARKAN GULF TRADING & CONTRACTING","2024-09-11T11:06:02.850",null,"Payroll Service (Worker)","Y","Work Visa"]
[null,null,null,null," ",null,{"$f":"VLOOKUP(F305,'Validation sheet'!E:F,2,FALSE)","v":{"$error":"#N/A"}},null,null,null,"--",{"$error":"#N/A"},null,null,null,null,null,"--",null,null,"","Zone 00 Street 00 Building 00",null,{"$error":"#N/A"},null,"ARKAN GULF TRADING & CONTRACTING","2024-09-11T11:06:02.850",null,"Payroll Service (Worker)","Y","Work Visa"]
[null,null,null,null," ",null,{"$f":"VLOOKUP(F306,'Validation sheet'!E:F,2,FALSE)","v":{"$error":"#N/A"}},null,null,null,"--",{"$error":"#N/A"},null,null,null,null,null,"--",null,null,"","Zone 00 Street 00 Building 00",null,{"$error":"#N/A"},null,"ARKAN GULF TRADING & CONTRACTING","2024-09-11T11:06:02.850",null,"Payroll Service (Worker)","Y","Work Visa"]
[null,null,null,null," ",null,{"$f":"VLOOKUP(F307,'Validation sheet'!E:F,2,FALSE)","v":{"$error":"#N/A"}},null,null,null,"--",{"$error":"#N/A"},null,null,null,null,null,"--",null,null,"","Zone 00 Street 00 Building 00",null,{"$error":"#N/A"},null,"ARKAN GULF TRADING & CONTRACTING","2024-09-11T11:06:02.850",null,"Payroll Service (Worker)","Y","Work Visa"]
[null,null,null,null," ",null,{"$f":"VLOOKUP(F308,'Validation sheet'!E:F,2,FALSE)","v":{"$error":"#N/A"}},null,null,null,"--",{"$error":"#N/A"},null,null,null,null,null,"--",null,null,"","Zone 00 Street 00 Building 00",null,{"$error":"#N/A"},null,"ARKAN GULF TRADING & CONTRACTING","2024-09-11T11:06:02.850",null,"Payroll Service (Worker)","Y","Work Visa"]
[null,null,null,null," ",null,{"$f":"VLOOKUP(F309,'Validation sheet'!E:F,2,FALSE)","v":{"$error":"#N/A"}},null,null,null,"--",{"$error":"#N/A"},null,null,null,null,null,"--",null,null,"","Zone 00 Street 00 Building 00",null,{"$error":"#N/A"},null,"ARKAN GULF TRADING & CONTRACTING","2024-09-11T11:06:02.850",null,"Payroll Service (Worker)","Y","Work Visa"]
[null,null,null,null," ",null,{"$f":"VLOOKUP(F310,'Validation sheet'!E:F,2,FALSE)","v":{"$error":"#N/A"}},null,null,null,"--",{"$error":"#N/A"},null,null,null,null,null,"--",null,null,"","Zone 00 Street 00 Building 00",null,{"$error":"#N/A"},null,"ARKAN GULF TRADING & CONTRACTING","2024-09-11T11:06:02.850",null,"Payroll Service (Worker)","Y","Work Visa"]
[null,null,null,null," ",null,{"$f":"VLOOKUP(F311,'Validation sheet'!E:F,2,FALSE)","v":{"$error":"#N/A"}},null,null,null,"--",{"$error":"#N/A"},null,null,null,null,null,"--",null,null,"","Zone 00 Street 00 Building 00",null,{"$error":"#N/A"},null,"ARKAN GULF TRADING & CONTRACTING","2024-09-11T11:06:02.850",null,"Payroll Service (Worker)","Y","Work Visa"]
[null,null,null,null," ",null,{"$f":"VLOOKUP(F312,'Validation sheet'!E:F,2,FALSE)","v":{"$error":"#N/A"}},null,null,null,"--",{"$error":"#N/A"},null,null,null,null,null,"--",null,null,"","Zone 00 Street 00 Building 00",null,{"$error":"#N/A"},null,"ARKAN GULF TRADING & CONTRACTING","2024-09-11T11:06:02.850",null,"Payroll Service (Worker)","Y","Work Visa"]
[null,null,null,null," ",null,{"$f":"VLOOKUP(F313,'Validation sheet'!E:F,2,FALSE)","v":{"$error":"#N/A"}},null,null,null,"--",{"$error":"#N/A"},null,null,null,null,null,"--",null,null,"","Zone 00 Street 00 Building 00",null,{"$error":"#N/A"},null,"ARKAN GULF TRADING & CONTRACTING","2024-09-11T11:06:02.850",null,"Payroll Service (Worker)","Y","Work Visa"]
[null,null,null,null," ",null,{"$f":"VLOOKUP(F314,'Validation sheet'!E:F,2,FALSE)","v":{"$error":"#N/A"}},null,null,null,"--",{"$error":"#N/A"},null,null,null,null,null,"--",null,null,"","Zone 00 Street 00 Building 00",null,{"$error":"#N/A"},null,"ARKAN GULF TRADING & CONTRACTING","2024-09-11T11:06:02.850",null,"Payroll Service (Worker)","Y","Work Visa"]
[null,null,null,null," ",null,{"$f":"VLOOKUP(F315,'Validation sheet'!E:F,2,FALSE)","v":{"$error":"#N/A"}},null,null,null,"--",{"$error":"#N/A"},null,null,null,null,null,"--",null,null,"","Zone 00 Street 00 Building 00",null,{"$error":"#N/A"},null,"ARKAN GULF TRADING & CONTRACTING","2024-09-11T11:06:02.850",null,"Payroll Service (Worker)","Y","Work Visa"]
[null,null,null,null," ",null,{"$f":"VLOOKUP(F316,'Validation sheet'!E:F,2,FALSE)","v":{"$error":"#N/A"}},null,null,null,"--",{"$error":"#N/A"},null,null,null,null,null,"--",null,null,"","Zone 00 Street 00 Building 00",null,{"$error":"#N/A"},null,"ARKAN GULF TRADING & CONTRACTING","2024-09-11T11:06:02.850",null,"Payroll Service (Worker)","Y","Work Visa"]
[null,null,null,null," ",null,{"$f":"VLOOKUP(F317,'Validation sheet'!E:F,2,FALSE)","v":{"$error":"#N/A"}},null,null,null,"--",{"$error":"#N/A"},null,null,null,null,null,"--",null,null,"","Zone 00 Street 00 Building 00",null,{"$error":"#N/A"},null,"ARKAN GULF TRADING & CONTRACTING","2024-09-11T11:06:02.850",null,"Payroll Service (Worker)","Y","Work Visa"]
[null,null,null,null," ",null,{"$f":"VLOOKUP(F318,'Validation sheet'!E:F,2,FALSE)","v":{"$error":"#N/A"}},null,null,null,"--",{"$error":"#N/A"},null,null,null,null,null,"--",null,null,"","Zone 00 Street 00 Building 00",null,{"$error":"#N/A"},null,"ARKAN GULF TRADING & CONTRACTING","2024-09-11T11:06:02.850",null,"Payroll Service (Worker)","Y","Work Visa"]
[null,null,null,null," ",null,{"$f":"VLOOKUP(F319,'Validation sheet'!E:F,2,FALSE)","v":{"$error":"#N/A"}},null,null,null,"--",{"$error":"#N/A"},null,null,null,null,null,"--",null,null,"","Zone 00 Street 00 Building 00",null,{"$error":"#N/A"},null,"ARKAN GULF TRADING & CONTRACTING","2024-09-11T11:06:02.850",null,"Payroll Service (Worker)","Y","Work Visa"]
[null,null,null,null," ",null,{"$f":"VLOOKUP(F320,'Validation sheet'!E:F,2,FALSE)","v":{"$error":"#N/A"}},null,null,null,"--",{"$error":"#N/A"},null,null,null,null,null,"--",null,null,"","Zone 00 Street 00 Building 00",null,{"$error":"#N/A"},null,"ARKAN GULF TRADING & CONTRACTING","2024-09-11T11:06:02.850",null,"Payroll Service (Worker)","Y","Work Visa"]
[null,null,null,null," ",null,{"$f":"VLOOKUP(F321,'Validation sheet'!E:F,2,FALSE)","v":{"$error":"#N/A"}},null,null,null,"--",{"$error":"#N/A"},null,null,null,null,null,"--",null,null,"","Zone 00 Street 00 Building 00",null,{"$error":"#N/A"},null,"ARKAN GULF TRADING & CONTRACTING","2024-09-11T11:06:02.850",null,"Payroll Service (Worker)","Y","Work Visa"]
[null,null,null,null," ",null,{"$f":"VLOOKUP(F322,'Validation sheet'!E:F,2,FALSE)","v":{"$error":"#N/A"}},null,null,null,"--",{"$error":"#N/A"},null,null,null,null,null,"--",null,null,"","Zone 00 Street 00 Building 00",null,{"$error":"#N/A"},null,"ARKAN GULF TRADING & CONTRACTING","2024-09-11T11:06:02.850",null,"Payroll Service (Worker)","Y","Work Visa"]
[null,null,null,null," ",null,{"$f":"VLOOKUP(F323,'Validation sheet'!E:F,2,FALSE)","v":{"$error":"#N/A"}},null,null,null,"--",{"$error":"#N/A"},null,null,null,null,null,"--",null,null,"","Zone 00 Street 00 Building 00",null,{"$error":"#N/A"},null,"ARKAN GULF TRADING & CONTRACTING","2024-09-11T11:06:02.850",null,"Payroll Service (Worker)","Y","Work Visa"]
[null,null,null,null," ",null,{"$f":"VLOOKUP(F324,'Validation sheet'!E:F,2,FALSE)","v":{"$error":"#N/A"}},null,null,null,"--",{"$error":"#N/A"},null,null,null,null,null,"--",null,null,"","Zone 00 Street 00 Building 00",null,{"$error":"#N/A"},null,"ARKAN GULF TRADING & CONTRACTING","2024-09-11T11:06:02.850",null,"Payroll Service (Worker)","Y","Work Visa"]
[null,null,null,null," ",null,{"$f":"VLOOKUP(F325,'Validation sheet'!E:F,2,FALSE)","v":{"$error":"#N/A"}},null,null,null,"--",{"$error":"#N/A"},null,null,null,null,null,"--",null,null,"","Zone 00 Street 00 Building 00",null,{"$error":"#N/A"},null,"ARKAN GULF TRADING & CONTRACTING","2024-09-11T11:06:02.850",null,"Payroll Service (Worker)","Y","Work Visa"]
[null,null,null,null," ",null,{"$f":"VLOOKUP(F326,'Validation sheet'!E:F,2,FALSE)","v":{"$error":"#N/A"}},null,null,null,"--",{"$error":"#N/A"},null,null,null,null,null,"--",null,null,"","Zone 00 Street 00 Building 00",null,{"$error":"#N/A"},null,"ARKAN GULF TRADING & CONTRACTING","2024-09-11T11:06:02.850",null,"Payroll Service (Worker)","Y","Work Visa"]
[null,null,null,null," ",null,{"$f":"VLOOKUP(F327,'Validation sheet'!E:F,2,FALSE)","v":{"$error":"#N/A"}},null,null,null,"--",{"$error":"#N/A"},null,null,null,null,null,"--",null,null,{"$f":"S327&T327","v":""},"Zone 00 Street 00 Building 00",null,{"$f":"L327","v":{"$error":"#N/A"}},null,"ARKAN GULF TRADING & CONTRACTING","2024-09-11T11:06:02.850",null,"Payroll Service (Worker)","Y","Work Visa"]
[null,null,null,null,{"$f":"B328&\" \"&D328","v":" "},null,{"$f":"VLOOKUP(F328,'Validation sheet'!E:F,2,FALSE)","v":{"$error":"#N/A"}},null,null,null,{"$f":"H328&\"-\"&I328&\"-\"&J328","v":"--"},{"$f":"G328","v":{"$error":"#N/A"}},null,null,null,null,null,{"$f":"O328&\"-\"&P328&\"-\"&Q328","v":"--"},null,null,"","Zone 00 Street 00 Building 00",null,{"$error":"#N/A"},null,{"$f":"$B$1","v":"ARKAN GULF TRADING & CONTRACTING"},{"$f":"NOW()","v":"2024-09-11T11:06:02.850"},null,"Payroll Service (Worker)","Y","Work Visa"]
[null,null,null,null," ",null,{"$f":"VLOOKUP(F329,'Validation sheet'!E:F,2,FALSE)","v":{"$error":"#N/A"}},null,null,null,"--",{"$error":"#N/A"},null,null,null,null,null,"--",null,null,"","Zone 00 Street 00 Building 00",null,{"$error":"#N/A"},null,"ARKAN GULF TRADING & CONTRACTING","2024-09-11T11:06:02.850",null,"Payroll Service (Worker)","Y","Work Visa"]
[null,null,null,null," ",null,{"$f":"VLOOKUP(F330,'Validation sheet'!E:F,2,FALSE)","v":{"$error":"#N/A"}},null,null,null,"--",{"$error":"#N/A"},null,null,null,null,null,"--",null,null,"","Zone 00 Street 00 Building 00",null,{"$error":"#N/A"},null,"ARKAN GULF TRADING & CONTRACTING","2024-09-11T11:06:02.850",null,"Payroll Service (Worker)","Y","Work Visa"]
[null,null,null,null," ",null,{"$f":"VLOOKUP(F331,'Validation sheet'!E:F,2,FALSE)","v":{"$error":"#N/A"}},null,null,null,"--",{"$error":"#N/A"},null,null,null,null,null,"--",null,null,"","Zone 00 Street 00 Building 00",null,{"$error":"#N/A"},null,"ARKAN GULF TRADING & CONTRACTING","2024-09-11T11:06:02.850",null,"Payroll Service (Worker)","Y","Work Visa"]
[null,null,null,null," ",null,{"$f":"VLOOKUP(F332,'Validation sheet'!E:F,2,FALSE)","v":{"$error":"#N/A"}},null,null,null,"--",{"$error":"#N/A"},null,null,null,null,null,"--",null,null,"","Zone 00 Street 00 Building 00",null,{"$error":"#N/A"},null,"ARKAN GULF TRADING & CONTRACTING","2024-09-11T11:06:02.850",null,"Payroll Service (Worker)","Y","Work Visa"]
[null,null,null,null," ",null,{"$f":"VLOOKUP(F333,'Validation sheet'!E:F,2,FALSE)","v":{"$error":"#N/A"}},null,null,null,"--",{"$error":"#N/A"},null,null,null,null,null,"--",null,null,"","Zone 00 Street 00 Building 00",null,{"$error":"#N/A"},null,"ARKAN GULF TRADING & CONTRACTING","2024-09-11T11:06:02.850",null,"Payroll Service (Worker)","Y","Work Visa"]
[null,null,null,null," ",null,{"$f":"VLOOKUP(F334,'Validation sheet'!E:F,2,FALSE)","v":{"$error":"#N/A"}},null,null,null,"--",{"$error":"#N/A"},null,null,null,null,null,"--",null,null,"","Zone 00 Street 00 Building 00",null,{"$error":"#N/A"},null,"ARKAN GULF TRADING & CONTRACTING","2024-09-11T11:06:02.850",null,"Payroll Service (Worker)","Y","Work Visa"]
[null,null,null,null," ",null,{"$f":"VLOOKUP(F335,'Validation sheet'!E:F,2,FALSE)","v":{"$error":"#N/A"}},null,null,null,"--",{"$error":"#N/A"},null,null,null,null,null,"--",null,null,"","Zone 00 Street 00 Building 00",null,{"$error":"#N/A"},null,"ARKAN GULF TRADING & CONTRACTING","2024-09-11T11:06:02.850",null,"Payroll Service (Worker)","Y","Work Visa"]
[null,null,null,null," ",null,{"$f":"VLOOKUP(F336,'Validation sheet'!E:F,2,FALSE)","v":{"$error":"#N/A"}},null,null,null,"--",{"$error":"#N/A"},null,null,null,null,null,"--",null,null,"","Zone 00 Street 00 Building 00",null,{"$error":"#N/A"},null,"ARKAN GULF TRADING & CONTRACTING","2024-09-11T11:06:02.850",null,"Payroll Service (Worker)","Y","Work Visa"]
[null,null,null,null," ",null,{"$f":"VLOOKUP(F337,'Validation sheet'!E:F,2,FALSE)","v":{"$error":"#N/A"}},null,null,null,"--",{"$error":"#N/A"},null,null,null,null,null,"--",null,null,"","Zone 00 Street 00 Building 00",null,{"$error":"#N/A"},null,"ARKAN GULF TRADING & CONTRACTING","2024-09-11T11:06:02.850",null,"Payroll Service (Worker)","Y","Work Visa"]
[null,null,null,null," ",null,{"$f":"VLOOKUP(F338,'Validation sheet'!E:F,2,FALSE)","v":{"$error":"#N/A"}},null,null,null,"--",{"$error":"#N/A"},null,null,null,null,null,"--",null,null,"","Zone 00 Street 00 Building 00",null,{"$error":"#N/A"},null,"ARKAN GULF TRADING & CONTRACTING","2024-09-11T11:06:02.850",null,"Payroll Service (Worker)","Y","Work Visa"]
[null,null,null,null," ",null,{"$f":"VLOOKUP(F339,'Validation sheet'!E:F,2,FALSE)","v":{"$error":"#N/A"}},null,null,null,"--",{"$error":"#N/A"},null,null,null,null,null,"--",null,null,"","Zone 00 Street 00 Building 00",null,{"$error":"#N/A"},null,"ARKAN GULF TRADING & CONTRACTING","2024-09-11T11:06:02.850",null,"Payroll Service (Worker)","Y","Work Visa"]
[null,null,null,null," ",null,{"$f":"VLOOKUP(F340,'Validation sheet'!E:F,2,FALSE)","v":{"$error":"#N/A"}},null,null,null,"--",{"$error":"#N/A"},null,null,null,null,null,"--",null,null,"","Zone 00 Street 00 Building 00",null,{"$error":"#N/A"},null,"ARKAN GULF TRADING & CONTRACTING","2024-09-11T11:06:02.850",null,"Payroll Service (Worker)","Y","Work Visa"]
[null,null,null,null," ",null,{"$f":"VLOOKUP(F341,'Validation sheet'!E:F,2,FALSE)","v":{"$error":"#N/A"}},null,null,null,"--",{"$error":"#N/A"},null,null,null,null,null,"--",null,null,"","Zone 00 Street 00 Building 00",null,{"$error":"#N/A"},null,"ARKAN GULF TRADING & CONTRACTING","2024-09-11T11:06:02.850",null,"Payroll Service (Worker)","Y","Work Visa"]
[null,null,null,null," ",null,{"$f":"VLOOKUP(F342,'Validation sheet'!E:F,2,FALSE)","v":{"$error":"#N/A"}},null,null,null,"--",{"$error":"#N/A"},null,null,null,null,null,"--",null,null,"","Zone 00 Street 00 Building 00",null,{"$error":"#N/A"},null,"ARKAN GULF TRADING & CONTRACTING","2024-09-11T11:06:02.850",null,"Payroll Service (Worker)","Y","Work Visa"]
[null,null,null,null," ",null,{"$f":"VLOOKUP(F343,'Validation sheet'!E:F,2,FALSE)","v":{"$error":"#N/A"}},null,null,null,"--",{"$error":"#N/A"},null,null,null,null,null,"--",null,null,"","Zone 00 Street 00 Building 00",null,{"$error":"#N/A"},null,"ARKAN GULF TRADING & CONTRACTING","2024-09-11T11:06:02.850",null,"Payroll Service (Worker)","Y","Work Visa"]
[null,null,null,null," ",null,{"$f":"VLOOKUP(F344,'Validation sheet'!E:F,2,FALSE)","v":{"$error":"#N/A"}},null,null,null,"--",{"$error":"#N/A"},null,null,null,null,null,"--",null,null,"","Zone 00 Street 00 Building 00",null,{"$error":"#N/A"},null,"ARKAN GULF TRADING & CONTRACTING","2024-09-11T11:06:02.850",null,"Payroll Service (Worker)","Y","Work Visa"]
[null,null,null,null," ",null,{"$f":"VLOOKUP(F345,'Validation sheet'!E:F,2,FALSE)","v":{"$error":"#N/A"}},null,null,null,"--",{"$error":"#N/A"},null,null,null,null,null,"--",null,null,"","Zone 00 Street 00 Building 00",null,{"$error":"#N/A"},null,"ARKAN GULF TRADING & CONTRACTING","2024-09-11T11:06:02.850",null,"Payroll Service (Worker)","Y","Work Visa"]
[null,null,null,null," ",null,{"$f":"VLOOKUP(F346,'Validation sheet'!E:F,2,FALSE)","v":{"$error":"#N/A"}},null,null,null,"--",{"$error":"#N/A"},null,null,null,null,null,"--",null,null,"","Zone 00 Street 00 Building 00",null,{"$error":"#N/A"},null,"ARKAN GULF TRADING & CONTRACTING","2024-09-11T11:06:02.850",null,"Payroll Service (Worker)","Y","Work Visa"]
[null,null,null,null," ",null,{"$f":"VLOOKUP(F347,'Validation sheet'!E:F,2,FALSE)","v":{"$error":"#N/A"}},null,null,null,"--",{"$error":"#N/A"},null,null,null,null,null,"--",null,null,"","Zone 00 Street 00 Building 00",null,{"$error":"#N/A"},null,"ARKAN GULF TRADING & CONTRACTING","2024-09-11T11:06:02.850",null,"Payroll Service (Worker)","Y","Work Visa"]
[null,null,null,null," ",null,{"$f":"VLOOKUP(F348,'Validation sheet'!E:F,2,FALSE)","v":{"$error":"#N/A"}},null,null,null,"--",{"$error":"#N/A"},null,null,null,null,null,"--",null,null,"","Zone 00 Street 00 Building 00",null,{"$error":"#N/A"},null,"ARKAN GULF TRADING & CONTRACTING","2024-09-11T11:06:02.850",null,"Payroll Service (Worker)","Y","Work Visa"]
[null,null,null,null," ",null,{"$f":"VLOOKUP(F349,'Validation sheet'!E:F,2,FALSE)","v":{"$error":"#N/A"}},null,null,null,"--",{"$error":"#N/A"},null,null,null,null,null,"--",null,null,"","Zone 00 Street 00 Building 00",null,{"$error":"#N/A"},null,"ARKAN GULF TRADING & CONTRACTING","2024-09-11T11:06:02.850",null,"Payroll Service (Worker)","Y","Work Visa"]
[null,null,null,null," ",null,{"$f":"VLOOKUP(F350,'Validation sheet'!E:F,2,FALSE)","v":{"$error":"#N/A"}},null,null,null,"--",{"$error":"#N/A"},null,null,null,null,null,"--",null,null,"","Zone 00 Street 00 Building 00",null,{"$error":"#N/A"},null,"ARKAN GULF TRADING & CONTRACTING","2024-09-11T11:06:02.850",null,"Payroll Service (Worker)","Y","Work Visa"]
[null,null,null,null," ",null,{"$f":"VLOOKUP(F351,'Validation sheet'!E:F,2,FALSE)","v":{"$error":"#N/A"}},null,null,null,"--",{"$error":"#N/A"},null,null,null,null,null,"--",null,null,"","Zone 00 Street 00 Building 00",null,{"$error":"#N/A"},null,"ARKAN GULF TRADING & CONTRACTING","2024-09-11T11:06:02.850",null,"Payroll Service (Worker)","Y","Work Visa"]
[null,null,null,null," ",null,{"$f":"VLOOKUP(F352,'Validation sheet'!E:F,2,FALSE)","v":{"$error":"#N/A"}},null,null,null,"--",{"$error":"#N/A"},null,null,null,null,null,"--",null,null,"","Zone 00 Street 00 Building 00",null,{"$error":"#N/A"},null,"ARKAN GULF TRADING & CONTRACTING","2024-09-11T11:06:02.850",null,"Payroll Service (Worker)","Y","Work Visa"]
[null,null,null,null," ",null,{"$f":"VLOOKUP(F353,'Validation sheet'!E:F,2,FALSE)","v":{"$error":"#N/A"}},null,null,null,"--",{"$error":"#N/A"},null,null,null,null,null,"--",null,null,"","Zone 00 Street 00 Building 00",null,{"$error":"#N/A"},null,"ARKAN GULF TRADING & CONTRACTING","2024-09-11T11:06:02.850",null,"Payroll Service (Worker)","Y","Work Visa"]
[null,null,null,null," ",null,{"$f":"VLOOKUP(F354,'Validation sheet'!E:F,2,FALSE)","v":{"$error":"#N/A"}},null,null,null,"--",{"$error":"#N/A"},null,null,null,null,null,"--",null,null,"","Zone 00 Street 00 Building 00",null,{"$error":"#N/A"},null,"ARKAN GULF TRADING & CONTRACTING","2024-09-11T11:06:02.850",null,"Payroll Service (Worker)","Y","Work Visa"]
[null,null,null,null," ",null,{"$f":"VLOOKUP(F355,'Validation sheet'!E:F,2,FALSE)","v":{"$error":"#N/A"}},null,null,null,"--",{"$error":"#N/A"},null,null,null,null,null,"--",null,null,"","Zone 00 Street 00 Building 00",null,{"$error":"#N/A"},null,"ARKAN GULF TRADING & CONTRACTING","2024-09-11T11:06:02.850",null,"Payroll Service (Worker)","Y","Work Visa"]
[null,null,null,null," ",null,{"$f":"VLOOKUP(F356,'Validation sheet'!E:F,2,FALSE)","v":{"$error":"#N/A"}},null,null,null,"--",{"$error":"#N/A"},null,null,null,null,null,"--",null,null,"","Zone 00 Street 00 Building 00",null,{"$error":"#N/A"},null,"ARKAN GULF TRADING & CONTRACTING","2024-09-11T11:06:02.850",null,"Payroll Service (Worker)","Y","Work Visa"]
[null,null,null,null," ",null,{"$f":"VLOOKUP(F357,'Validation sheet'!E:F,2,FALSE)","v":{"$error":"#N/A"}},null,null,null,"--",{"$error":"#N/A"},null,null,null,null,null,"--",null,null,"","Zone 00 Street 00 Building 00",null,{"$error":"#N/A"},null,"ARKAN GULF TRADING & CONTRACTING","2024-09-11T11:06:02.850",null,"Payroll Service (Worker)","Y","Work Visa"]
[null,null,null,null," ",null,{"$f":"VLOOKUP(F358,'Validation sheet'!E:F,2,FALSE)","v":{"$error":"#N/A"}},null,null,null,"--",{"$error":"#N/A"},null,null,null,null,null,"--",null,null,"","Zone 00 Street 00 Building 00",null,{"$error":"#N/A"},null,"ARKAN GULF TRADING & CONTRACTING","2024-09-11T11:06:02.850",null,"Payroll Service (Worker)","Y","Work Visa"]
[null,null,null,null," ",null,{"$f":"VLOOKUP(F359,'Validation sheet'!E:F,2,FALSE)","v":{"$error":"#N/A"}},null,null,null,"--",{"$error":"#N/A"},null,null,null,null,null,"--",null,null,"","Zone 00 Street 00 Building 00",null,{"$error":"#N/A"},null,"ARKAN GULF TRADING & CONTRACTING","2024-09-11T11:06:02.850",null,"Payroll Service (Worker)","Y","Work Visa"]
[null,null,null,null," ",null,{"$f":"VLOOKUP(F360,'Validation sheet'!E:F,2,FALSE)","v":{"$error":"#N/A"}},null,null,null,"--",{"$error":"#N/A"},null,null,null,null,null,"--",null,null,"","Zone 00 Street 00 Building 00",null,{"$error":"#N/A"},null,"ARKAN GULF TRADING & CONTRACTING","2024-09-11T11:06:02.850",null,"Payroll Service (Worker)","Y","Work Visa"]
[null,null,null,null," ",null,{"$f":"VLOOKUP(F361,'Validation sheet'!E:F,2,FALSE)","v":{"$error":"#N/A"}},null,null,null,"--",{"$error":"#N/A"},null,null,null,null,null,"--",null,null,"","Zone 00 Street 00 Building 00",null,{"$error":"#N/A"},null,"ARKAN GULF TRADING & CONTRACTING","2024-09-11T11:06:02.850",null,"Payroll Service (Worker)","Y","Work Visa"]
[null,null,null,null," ",null,{"$f":"VLOOKUP(F362,'Validation sheet'!E:F,2,FALSE)","v":{"$error":"#N/A"}},null,null,null,"--",{"$error":"#N/A"},null,null,null,null,null,"--",null,null,"","Zone 00 Street 00 Building 00",null,{"$error":"#N/A"},null,"ARKAN GULF TRADING & CONTRACTING","2024-09-11T11:06:02.850",null,"Payroll Service (Worker)","Y","Work Visa"]
[null,null,null,null," ",null,{"$f":"VLOOKUP(F363,'Validation sheet'!E:F,2,FALSE)","v":{"$error":"#N/A"}},null,null,null,"--",{"$error":"#N/A"},null,null,null,null,null,"--",null,null,"","Zone 00 Street 00 Building 00",null,{"$error":"#N/A"},null,"ARKAN GULF TRADING & CONTRACTING","2024-09-11T11:06:02.850",null,"Payroll Service (Worker)","Y","Work Visa"]
[null,null,null,null," ",null,{"$f":"VLOOKUP(F364,'Validation sheet'!E:F,2,FALSE)","v":{"$error":"#N/A"}},null,null,null,"--",{"$error":"#N/A"},null,null,null,null,null,"--",null,null,"","Zone 00 Street 00 Building 00",null,{"$error":"#N/A"},null,"ARKAN GULF TRADING & CONTRACTING","2024-09-11T11:06:02.850",null,"Payroll Service (Worker)","Y","Work Visa"]
[null,null,null,null," ",null,{"$f":"VLOOKUP(F365,'Validation sheet'!E:F,2,FALSE)","v":{"$error":"#N/A"}},null,null,null,"--",{"$error":"#N/A"},null,null,null,null,null,"--",null,null,"","Zone 00 Street 00 Building 00",null,{"$error":"#N/A"},null,"ARKAN GULF TRADING & CONTRACTING","2024-09-11T11:06:02.850",null,"Payroll Service (Worker)","Y","Work Visa"]
[null,null,null,null," ",null,{"$f":"VLOOKUP(F366,'Validation sheet'!E:F,2,FALSE)","v":{"$error":"#N/A"}},null,null,null,"--",{"$error":"#N/A"},null,null,null,null,null,"--",null,null,"","Zone 00 Street 00 Building 00",null,{"$error":"#N/A"},null,"ARKAN GULF TRADING & CONTRACTING","2024-09-11T11:06:02.850",null,"Payroll Service (Worker)","Y","Work Visa"]
[null,null,null,null," ",null,{"$f":"VLOOKUP(F367,'Validation sheet'!E:F,2,FALSE)","v":{"$error":"#N/A"}},null,null,null,"--",{"$error":"#N/A"},null,null,null,null,null,"--",null,null,"","Zone 00 Street 00 Building 00",null,{"$error":"#N/A"},null,"ARKAN GULF TRADING & CONTRACTING","2024-09-11T11:06:02.850",null,"Payroll Service (Worker)","Y","Work Visa"]
[null,null,null,null," ",null,{"$f":"VLOOKUP(F368,'Validation sheet'!E:F,2,FALSE)","v":{"$error":"#N/A"}},null,null,null,"--",{"$error":"#N/A"},null,null,null,null,null,"--",null,null,"","Zone 00 Street 00 Building 00",null,{"$error":"#N/A"},null,"ARKAN GULF TRADING & CONTRACTING","2024-09-11T11:06:02.850",null,"Payroll Service (Worker)","Y","Work Visa"]
[null,null,null,null," ",null,{"$f":"VLOOKUP(F369,'Validation sheet'!E:F,2,FALSE)","v":{"$error":"#N/A"}},null,null,null,"--",{"$error":"#N/A"},null,null,null,null,null,"--",null,null,"","Zone 00 Street 00 Building 00",null,{"$error":"#N/A"},null,"ARKAN GULF TRADING & CONTRACTING","2024-09-11T11:06:02.850",null,"Payroll Service (Worker)","Y","Work Visa"]
[null,null,null,null," ",null,{"$f":"VLOOKUP(F370,'Validation sheet'!E:F,2,FALSE)","v":{"$error":"#N/A"}},null,null,null,"--",{"$error":"#N/A"},null,null,null,null,null,"--",null,null,"","Zone 00 Street 00 Building 00",null,{"$error":"#N/A"},null,"ARKAN GULF TRADING & CONTRACTING","2024-09-11T11:06:02.850",null,"Payroll Service (Worker)","Y","Work Visa"]
[null,null,null,null," ",null,{"$f":"VLOOKUP(F371,'Validation sheet'!E:F,2,FALSE)","v":{"$error":"#N/A"}},null,null,null,"--",{"$error":"#N/A"},null,null,null,null,null,"--",null,null,"","Zone 00 Street 00 Building 00",null,{"$error":"#N/A"},null,"ARKAN GULF TRADING & CONTRACTING","2024-09-11T11:06:02.850",null,"Payroll Service (Worker)","Y","Work Visa"]
[null,null,null,null," ",null,{"$f":"VLOOKUP(F372,'Validation sheet'!E:F,2,FALSE)","v":{"$error":"#N/A"}},null,null,null,"--",{"$error":"#N/A"},null,null,null,null,null,"--",null,null,"","Zone 00 Street 00 Building 00",null,{"$error":"#N/A"},null,"ARKAN GULF TRADING & CONTRACTING","2024-09-11T11:06:02.850",null,"Payroll Service (Worker)","Y","Work Visa"]
[null,null,null,null," ",null,{"$f":"VLOOKUP(F373,'Validation sheet'!E:F,2,FALSE)","v":{"$error":"#N/A"}},null,null,null,"--",{"$error":"#N/A"},null,null,null,null,null,"--",null,null,"","Zone 00 Street 00 Building 00",null,{"$error":"#N/A"},null,"ARKAN GULF TRADING & CONTRACTING","2024-09-11T11:06:02.850",null,"Payroll Service (Worker)","Y","Work Visa"]
[null,null,null,null," ",null,{"$f":"VLOOKUP(F374,'Validation sheet'!E:F,2,FALSE)","v":{"$error":"#N/A"}},null,null,null,"--",{"$error":"#N/A"},null,null,null,null,null,"--",null,null,"","Zone 00 Street 00 Building 00",null,{"$error":"#N/A"},null,"ARKAN GULF TRADING & CONTRACTING","2024-09-11T11:06:02.850",null,"Payroll Service (Worker)","Y","Work Visa"]
[null,null,null,null," ",null,{"$f":"VLOOKUP(F375,'Validation sheet'!E:F,2,FALSE)","v":{"$error":"#N/A"}},null,null,null,"--",{"$error":"#N/A"},null,null,null,null,null,"--",null,null,"","Zone 00 Street 00 Building 00",null,{"$error":"#N/A"},null,"ARKAN GULF TRADING & CONTRACTING","2024-09-11T11:06:02.850",null,"Payroll Service (Worker)","Y","Work Visa"]
[null,null,null,null," ",null,{"$f":"VLOOKUP(F376,'Validation sheet'!E:F,2,FALSE)","v":{"$error":"#N/A"}},null,null,null,"--",{"$error":"#N/A"},null,null,null,null,null,"--",null,null,"","Zone 00 Street 00 Building 00",null,{"$error":"#N/A"},null,"ARKAN GULF TRADING & CONTRACTING","2024-09-11T11:06:02.850",null,"Payroll Service (Worker)","Y","Work Visa"]
[null,null,null,null," ",null,{"$f":"VLOOKUP(F377,'Validation sheet'!E:F,2,FALSE)","v":{"$error":"#N/A"}},null,null,null,"--",{"$error":"#N/A"},null,null,null,null,null,"--",null,null,"","Zone 00 Street 00 Building 00",null,{"$error":"#N/A"},null,"ARKAN GULF TRADING & CONTRACTING","2024-09-11T11:06:02.850",null,"Payroll Service (Worker)","Y","Work Visa"]
[null,null,null,null," ",null,{"$f":"VLOOKUP(F378,'Validation sheet'!E:F,2,FALSE)","v":{"$error":"#N/A"}},null,null,null,"--",{"$error":"#N/A"},null,null,null,null,null,"--",null,null,"","Zone 00 Street 00 Building 00",null,{"$error":"#N/A"},null,"ARKAN GULF TRADING & CONTRACTING","2024-09-11T11:06:02.850",null,"Payroll Service (Worker)","Y","Work Visa"]
[null,null,null,null," ",null,{"$f":"VLOOKUP(F379,'Validation sheet'!E:F,2,FALSE)","v":{"$error":"#N/A"}},null,null,null,"--",{"$error":"#N/A"},null,null,null,null,null,"--",null,null,"","Zone 00 Street 00 Building 00",null,{"$error":"#N/A"},null,"ARKAN GULF TRADING & CONTRACTING","2024-09-11T11:06:02.850",null,"Payroll Service (Worker)","Y","Work Visa"]
[null,null,null,null," ",null,{"$f":"VLOOKUP(F380,'Validation sheet'!E:F,2,FALSE)","v":{"$error":"#N/A"}},null,null,null,"--",{"$error":"#N/A"},null,null,null,null,null,"--",null,null,"","Zone 00 Street 00 Building 00",null,{"$error":"#N/A"},null,"ARKAN GULF TRADING & CONTRACTING","2024-09-11T11:06:02.850",null,"Payroll Service (Worker)","Y","Work Visa"]
[null,null,null,null," ",null,{"$f":"VLOOKUP(F381,'Validation sheet'!E:F,2,FALSE)","v":{"$error":"#N/A"}},null,null,null,"--",{"$error":"#N/A"},null,null,null,null,null,"--",null,null,"","Zone 00 Street 00 Building 00",null,{"$error":"#N/A"},null,"ARKAN GULF TRADING & CONTRACTING","2024-09-11T11:06:02.850",null,"Payroll Service (Worker)","Y","Work Visa"]
[null,null,null,null," ",null,{"$f":"VLOOKUP(F382,'Validation sheet'!E:F,2,FALSE)","v":{"$error":"#N/A"}},null,null,null,"--",{"$error":"#N/A"},null,null,null,null,null,"--",null,null,"","Zone 00 Street 00 Building 00",null,{"$error":"#N/A"},null,"ARKAN GULF TRADING & CONTRACTING","2024-09-11T11:06:02.850",null,"Payroll Service (Worker)","Y","Work Visa"]
[null,null,null,null," ",null,{"$f":"VLOOKUP(F383,'Validation sheet'!E:F,2,FALSE)","v":{"$error":"#N/A"}},null,null,null,"--",{"$error":"#N/A"},null,null,null,null,null,"--",null,null,"","Zone 00 Street 00 Building 00",null,{"$error":"#N/A"},null,"ARKAN GULF TRADING & CONTRACTING","2024-09-11T11:06:02.850",null,"Payroll Service (Worker)","Y","Work Visa"]
[null,null,null,null," ",null,{"$f":"VLOOKUP(F384,'Validation sheet'!E:F,2,FALSE)","v":{"$error":"#N/A"}},null,null,null,"--",{"$error":"#N/A"},null,null,null,null,null,"--",null,null,"","Zone 00 Street 00 Building 00",null,{"$error":"#N/A"},null,"ARKAN GULF TRADING & CONTRACTING","2024-09-11T11:06:02.850",null,"Payroll Service (Worker)","Y","Work Visa"]
[null,null,null,null," ",null,{"$f":"VLOOKUP(F385,'Validation sheet'!E:F,2,FALSE)","v":{"$error":"#N/A"}},null,null,null,"--",{"$error":"#N/A"},null,null,null,null,null,"--",null,null,"","Zone 00 Street 00 Building 00",null,{"$error":"#N/A"},null,"ARKAN GULF TRADING & CONTRACTING","2024-09-11T11:06:02.850",null,"Payroll Service (Worker)","Y","Work Visa"]
[null,null,null,null," ",null,{"$f":"VLOOKUP(F386,'Validation sheet'!E:F,2,FALSE)","v":{"$error":"#N/A"}},null,null,null,"--",{"$error":"#N/A"},null,null,null,null,null,"--",null,null,"","Zone 00 Street 00 Building 00",null,{"$error":"#N/A"},null,"ARKAN GULF TRADING & CONTRACTING","2024-09-11T11:06:02.850",null,"Payroll Service (Worker)","Y","Work Visa"]
[null,null,null,null," ",null,{"$f":"VLOOKUP(F387,'Validation sheet'!E:F,2,FALSE)","v":{"$error":"#N/A"}},null,null,null,"--",{"$error":"#N/A"},null,null,null,null,null,"--",null,null,"","Zone 00 Street 00 Building 00",null,{"$error":"#N/A"},null,"ARKAN GULF TRADING & CONTRACTING","2024-09-11T11:06:02.850",null,"Payroll Service (Worker)","Y","Work Visa"]
[null,null,null,null," ",null,{"$f":"VLOOKUP(F388,'Validation sheet'!E:F,2,FALSE)","v":{"$error":"#N/A"}},null,null,null,"--",{"$error":"#N/A"},null,null,null,null,null,"--",null,null,"","Zone 00 Street 00 Building 00",null,{"$error":"#N/A"},null,"ARKAN GULF TRADING & CONTRACTING","2024-09-11T11:06:02.850",null,"Payroll Service (Worker)","Y","Work Visa"]
[null,null,null,null," ",null,{"$f":"VLOOKUP(F389,'Validation sheet'!E:F,2,FALSE)","v":{"$error":"#N/A"}},null,null,null,"--",{"$error":"#N/A"},null,null,null,null,null,"--",null,null,"","Zone 00 Street 00 Building 00",null,{"$error":"#N/A"},null,"ARKAN GULF TRADING & CONTRACTING","2024-09-11T11:06:02.850",null,"Payroll Service (Worker)","Y","Work Visa"]
[null,null,null,null," ",null,{"$f":"VLOOKUP(F390,'Validation sheet'!E:F,2,FALSE)","v":{"$error":"#N/A"}},null,null,null,"--",{"$error":"#N/A"},null,null,null,null,null,"--",null,null,"","Zone 00 Street 00 Building 00",null,{"$error":"#N/A"},null,"ARKAN GULF TRADING & CONTRACTING","2024-09-11T11:06:02.850",null,"Payroll Service (Worker)","Y","Work Visa"]
[null,null,null,null," ",null,{"$f":"VLOOKUP(F391,'Validation sheet'!E:F,2,FALSE)","v":{"$error":"#N/A"}},null,null,null,"--",{"$error":"#N/A"},null,null,null,null,null,"--",null,null,{"$f":"S391&T391","v":""},"Zone 00 Street 00 Building 00",null,{"$f":"L391","v":{"$error":"#N/A"}},null,"ARKAN GULF TRADING & CONTRACTING","2024-09-11T11:06:02.850",null,"Payroll Service (Worker)","Y","Work Visa"]
[null,null,null,null,{"$f":"B392&\" \"&D392","v":" "},null,{"$f":"VLOOKUP(F392,'Validation sheet'!E:F,2,FALSE)","v":{"$error":"#N/A"}},null,null,null,{"$f":"H392&\"-\"&I392&\"-\"&J392","v":"--"},{"$f":"G392","v":{"$error":"#N/A"}},null,null,null,null,null,{"$f":"O392&\"-\"&P392&\"-\"&Q392","v":"--"},null,null,"","Zone 00 Street 00 Building 00",null,{"$error":"#N/A"},null,{"$f":"$B$1","v":"ARKAN GULF TRADING & CONTRACTING"},{"$f":"NOW()","v":"2024-09-11T11:06:02.850"},null,"Payroll Service (Worker)","Y","Work Visa"]
[null,null,null,null," ",null,{"$f":"VLOOKUP(F393,'Validation sheet'!E:F,2,FALSE)","v":{"$error":"#N/A"}},null,null,null,"--",{"$error":"#N/A"},null,null,null,null,null,"--",null,null,"","Zone 00 Street 00 Building 00",null,{"$error":"#N/A"},null,"ARKAN GULF TRADING & CONTRACTING","2024-09-11T11:06:02.850",null,"Payroll Service (Worker)","Y","Work Visa"]
[null,null,null,null," ",null,{"$f":"VLOOKUP(F394,'Validation sheet'!E:F,2,FALSE)","v":{"$error":"#N/A"}},null,null,null,"--",{"$error":"#N/A"},null,null,null,null,null,"--",null,null,"","Zone 00 Street 00 Building 00",null,{"$error":"#N/A"},null,"ARKAN GULF TRADING & CONTRACTING","2024-09-11T11:06:02.850",null,"Payroll Service (Worker)","Y","Work Visa"]
[null,null,null,null," ",null,{"$f":"VLOOKUP(F395,'Validation sheet'!E:F,2,FALSE)","v":{"$error":"#N/A"}},null,null,null,"--",{"$error":"#N/A"},null,null,null,null,null,"--",null,null,"","Zone 00 Street 00 Building 00",null,{"$error":"#N/A"},null,"ARKAN GULF TRADING & CONTRACTING","2024-09-11T11:06:02.850",null,"Payroll Service (Worker)","Y","Work Visa"]
[null,null,null,null," ",null,{"$f":"VLOOKUP(F396,'Validation sheet'!E:F,2,FALSE)","v":{"$error":"#N/A"}},null,null,null,"--",{"$error":"#N/A"},null,null,null,null,null,"--",null,null,"","Zone 00 Street 00 Building 00",null,{"$error":"#N/A"},null,"ARKAN GULF TRADING & CONTRACTING","2024-09-11T11:06:02.850",null,"Payroll Service (Worker)","Y","Work Visa"]
[null,null,null,null," ",null,{"$f":"VLOOKUP(F397,'Validation sheet'!E:F,2,FALSE)","v":{"$error":"#N/A"}},null,null,null,"--",{"$error":"#N/A"},null,null,null,null,null,"--",null,null,"","Zone 00 Street 00 Building 00",null,{"$error":"#N/A"},null,"ARKAN GULF TRADING & CONTRACTING","2024-09-11T11:06:02.850",null,"Payroll Service (Worker)","Y","Work Visa"]
[null,null,null,null," ",null,{"$f":"VLOOKUP(F398,'Validation sheet'!E:F,2,FALSE)","v":{"$error":"#N/A"}},null,null,null,"--",{"$error":"#N/A"},null,null,null,null,null,"--",null,null,"","Zone 00 Street 00 Building 00",null,{"$error":"#N/A"},null,"ARKAN GULF TRADING & CONTRACTING","2024-09-11T11:06:02.850",null,"Payroll Service (Worker)","Y","Work Visa"]
[null,null,null,null," ",null,{"$f":"VLOOKUP(F399,'Validation sheet'!E:F,2,FALSE)","v":{"$error":"#N/A"}},null,null,null,"--",{"$error":"#N/A"},null,null,null,null,null,"--",null,null,"","Zone 00 Street 00 Building 00",null,{"$error":"#N/A"},null,"ARKAN GULF TRADING & CONTRACTING","2024-09-11T11:06:02.850",null,"Payroll Service (Worker)","Y","Work Visa"]
[null,null,null,null," ",null,{"$f":"VLOOKUP(F400,'Validation sheet'!E:F,2,FALSE)","v":{"$error":"#N/A"}},null,null,null,"--",{"$error":"#N/A"},null,null,null,null,null,"--",null,null,"","Zone 00 Street 00 Building 00",null,{"$error":"#N/A"},null,"ARKAN GULF TRADING & CONTRACTING","2024-09-11T11:06:02.850",null,"Payroll Service (Worker)","Y","Work Visa"]
[null,null,null,null," ",null,{"$f":"VLOOKUP(F401,'Validation sheet'!E:F,2,FALSE)","v":{"$error":"#N/A"}},null,null,null,"--",{"$error":"#N/A"},null,null,null,null,null,"--",null,null,"","Zone 00 Street 00 Building 00",null,{"$error":"#N/A"},null,"ARKAN GULF TRADING & CONTRACTING","2024-09-11T11:06:02.850",null,"Payroll Service (Worker)","Y","Work Visa"]
[null,null,null,null," ",null,{"$f":"VLOOKUP(F402,'Validation sheet'!E:F,2,FALSE)","v":{"$error":"#N/A"}},null,null,null,"--",{"$error":"#N/A"},null,null,null,null,null,"--",null,null,"","Zone 00 Street 00 Building 00",null,{"$error":"#N/A"},null,"ARKAN GULF TRADING & CONTRACTING","2024-09-11T11:06:02.850",null,"Payroll Service (Worker)","Y","Work Visa"]
[null,null,null,null," ",null,{"$f":"VLOOKUP(F403,'Validation sheet'!E:F,2,FALSE)","v":{"$error":"#N/A"}},null,null,null,"--",{"$error":"#N/A"},null,null,null,null,null,"--",null,null,"","Zone 00 Street 00 Building 00",null,{"$error":"#N/A"},null,"ARKAN GULF TRADING & CONTRACTING","2024-09-11T11:06:02.850",null,"Payroll Service (Worker)","Y","Work Visa"]
[null,null,null,null," ",null,{"$f":"VLOOKUP(F404,'Validation sheet'!E:F,2,FALSE)","v":{"$error":"#N/A"}},null,null,null,"--",{"$error":"#N/A"},null,null,null,null,null,"--",null,null,"","Zone 00 Street 00 Building 00",null,{"$error":"#N/A"},null,"ARKAN GULF TRADING & CONTRACTING","2024-09-11T11:06:02.850",null,"Payroll Service (Worker)","Y","Work Visa"]
[null,null,null,null," ",null,{"$f":"VLOOKUP(F405,'Validation sheet'!E:F,2,FALSE)","v":{"$error":"#N/A"}},null,null,null,"--",{"$error":"#N/A"},null,null,null,null,null,"--",null,null,"","Zone 00 Street 00 Building 00",null,{"$error":"#N/A"},null,"ARKAN GULF TRADING & CONTRACTING","2024-09-11T11:06:02.850",null,"Payroll Service (Worker)","Y","Work Visa"]
[null,null,null,null," ",null,{"$f":"VLOOKUP(F406,'Validation sheet'!E:F,2,FALSE)","v":{"$error":"#N/A"}},null,null,null,"--",{"$error":"#N/A"},null,null,null,null,null,"--",null,null,"","Zone 00 Street 00 Building 00",null,{"$error":"#N/A"},null,"ARKAN GULF TRADING & CONTRACTING","2024-09-11T11:06:02.850",null,"Payroll Service (Worker)","Y","Work Visa"]
[null,null,null,null," ",null,{"$f":"VLOOKUP(F407,'Validation sheet'!E:F,2,FALSE)","v":{"$error":"#N/A"}},null,null,null,"--",{"$error":"#N/A"},null,null,null,null,null,"--",null,null,"","Zone 00 Street 00 Building 00",null,{"$error":"#N/A"},null,"ARKAN GULF TRADING & CONTRACTING","2024-09-11T11:06:02.850",null,"Payroll Service (Worker)","Y","Work Visa"]
[null,null,null,null," ",null,{"$f":"VLOOKUP(F408,'Validation sheet'!E:F,2,FALSE)","v":{"$error":"#N/A"}},null,null,null,"--",{"$error":"#N/A"},null,null,null,null,null,"--",null,null,"","Zone 00 Street 00 Building 00",null,{"$error":"#N/A"},null,"ARKAN GULF TRADING & CONTRACTING","2024-09-11T11:06:02.850",null,"Payroll Service (Worker)","Y","Work Visa"]
[null,null,null,null," ",null,{"$f":"VLOOKUP(F409,'Validation sheet'!E:F,2,FALSE)","v":{"$error":"#N/A"}},null,null,null,"--",{"$error":"#N/A"},null,null,null,null,null,"--",null,null,"","Zone 00 Street 00 Building 00",null,{"$error":"#N/A"},null,"ARKAN GULF TRADING & CONTRACTING","2024-09-11T11:06:02.850",null,"Payroll Service (Worker)","Y","Work Visa"]
[null,null,null,null," ",null,{"$f":"VLOOKUP(F410,'Validation sheet'!E:F,2,FALSE)","v":{"$error":"#N/A"}},null,null,null,"--",{"$error":"#N/A"},null,null,null,null,null,"--",null,null,"","Zone 00 Street 00 Building 00",null,{"$error":"#N/A"},null,"ARKAN GULF TRADING & CONTRACTING","2024-09-11T11:06:02.850",null,"Payroll Service (Worker)","Y","Work Visa"]
[null,null,null,null," ",null,{"$f":"VLOOKUP(F411,'Validation sheet'!E:F,2,FALSE)","v":{"$error":"#N/A"}},null,null,null,"--",{"$error":"#N/A"},null,null,null,null,null,"--",null,null,"","Zone 00 Street 00 Building 00",null,{"$error":"#N/A"},null,"ARKAN GULF TRADING & CONTRACTING","2024-09-11T11:06:02.850",null,"Payroll Service (Worker)","Y","Work Visa"]
[null,null,null,null," ",null,{"$f":"VLOOKUP(F412,'Validation sheet'!E:F,2,FALSE)","v":{"$error":"#N/A"}},null,null,null,"--",{"$error":"#N/A"},null,null,null,null,null,"--",null,null,"","Zone 00 Street 00 Building 00",null,{"$error":"#N/A"},null,"ARKAN GULF TRADING & CONTRACTING","2024-09-11T11:06:02.850",null,"Payroll Service (Worker)","Y","Work Visa"]
[null,null,null,null," ",null,{"$f":"VLOOKUP(F413,'Validation sheet'!E:F,2,FALSE)","v":{"$error":"#N/A"}},null,null,null,"--",{"$error":"#N/A"},null,null,null,null,null,"--",null,null,"","Zone 00 Street 00 Building 00",null,{"$error":"#N/A"},null,"ARKAN GULF TRADING & CONTRACTING","2024-09-11T11:06:02.850",null,"Payroll Service (Worker)","Y","Work Visa"]
[null,null,null,null," ",null,{"$f":"VLOOKUP(F414,'Validation sheet'!E:F,2,FALSE)","v":{"$error":"#N/A"}},null,null,null,"--",{"$error":"#N/A"},null,null,null,null,null,"--",null,null,"","Zone 00 Street 00 Building 00",null,{"$error":"#N/A"},null,"ARKAN GULF TRADING & CONTRACTING","2024-09-11T11:06:02.850",null,"Payroll Service (Worker)","Y","Work Visa"]
[null,null,null,null," ",null,{"$f":"VLOOKUP(F415,'Validation sheet'!E:F,2,FALSE)","v":{"$error":"#N/A"}},null,null,null,"--",{"$error":"#N/A"},null,null,null,null,null,"--",null,null,"","Zone 00 Street 00 Building 00",null,{"$error":"#N/A"},null,"ARKAN GULF TRADING & CONTRACTING","2024-09-11T11:06:02.850",null,"Payroll Service (Worker)","Y","Work Visa"]
[null,null,null,null," ",null,{"$f":"VLOOKUP(F416,'Validation sheet'!E:F,2,FALSE)","v":{"$error":"#N/A"}},null,null,null,"--",{"$error":"#N/A"},null,null,null,null,null,"--",null,null,"","Zone 00 Street 00 Building 00",null,{"$error":"#N/A"},null,"ARKAN GULF TRADING & CONTRACTING","2024-09-11T11:06:02.850",null,"Payroll Service (Worker)","Y","Work Visa"]
[null,null,null,null," ",null,{"$f":"VLOOKUP(F417,'Validation sheet'!E:F,2,FALSE)","v":{"$error":"#N/A"}},null,null,null,"--",{"$error":"#N/A"},null,null,null,null,null,"--",null,null,"","Zone 00 Street 00 Building 00",null,{"$error":"#N/A"},null,"ARKAN GULF TRADING & CONTRACTING","2024-09-11T11:06:02.850",null,"Payroll Service (Worker)","Y","Work Visa"]
[null,null,null,null," ",null,{"$f":"VLOOKUP(F418,'Validation sheet'!E:F,2,FALSE)","v":{"$error":"#N/A"}},null,null,null,"--",{"$error":"#N/A"},null,null,null,null,null,"--",null,null,"","Zone 00 Street 00 Building 00",null,{"$error":"#N/A"},null,"ARKAN GULF TRADING & CONTRACTING","2024-09-11T11:06:02.850",null,"Payroll Service (Worker)","Y","Work Visa"]
[null,null,null,null," ",null,{"$f":"VLOOKUP(F419,'Validation sheet'!E:F,2,FALSE)","v":{"$error":"#N/A"}},null,null,null,"--",{"$error":"#N/A"},null,null,null,null,null,"--",null,null,"","Zone 00 Street 00 Building 00",null,{"$error":"#N/A"},null,"ARKAN GULF TRADING & CONTRACTING","2024-09-11T11:06:02.850",null,"Payroll Service (Worker)","Y","Work Visa"]
[null,null,null,null," ",null,{"$f":"VLOOKUP(F420,'Validation sheet'!E:F,2,FALSE)","v":{"$error":"#N/A"}},null,null,null,"--",{"$error":"#N/A"},null,null,null,null,null,"--",null,null,"","Zone 00 Street 00 Building 00",null,{"$error":"#N/A"},null,"ARKAN GULF TRADING & CONTRACTING","2024-09-11T11:06:02.850",null,"Payroll Service (Worker)","Y","Work Visa"]
[null,null,null,null," ",null,{"$f":"VLOOKUP(F421,'Validation sheet'!E:F,2,FALSE)","v":{"$error":"#N/A"}},null,null,null,"--",{"$error":"#N/A"},null,null,null,null,null,"--",null,null,"","Zone 00 Street 00 Building 00",null,{"$error":"#N/A"},null,"ARKAN GULF TRADING & CONTRACTING","2024-09-11T11:06:02.850",null,"Payroll Service (Worker)","Y","Work Visa"]
[null,null,null,null," ",null,{"$f":"VLOOKUP(F422,'Validation sheet'!E:F,2,FALSE)","v":{"$error":"#N/A"}},null,null,null,"--",{"$error":"#N/A"},null,null,null,null,null,"--",null,null,"","Zone 00 Street 00 Building 00",null,{"$error":"#N/A"},null,"ARKAN GULF TRADING & CONTRACTING","2024-09-11T11:06:02.850",null,"Payroll Service (Worker)","Y","Work Visa"]
[null,null,null,null," ",null,{"$f":"VLOOKUP(F423,'Validation sheet'!E:F,2,FALSE)","v":{"$error":"#N/A"}},null,null,null,"--",{"$error":"#N/A"},null,null,null,null,null,"--",null,null,"","Zone 00 Street 00 Building 00",null,{"$error":"#N/A"},null,"ARKAN GULF TRADING & CONTRACTING","2024-09-11T11:06:02.850",null,"Payroll Service (Worker)","Y","Work Visa"]
[null,null,null,null," ",null,{"$f":"VLOOKUP(F424,'Validation sheet'!E:F,2,FALSE)","v":{"$error":"#N/A"}},null,null,null,"--",{"$error":"#N/A"},null,null,null,null,null,"--",null,null,"","Zone 00 Street 00 Building 00",null,{"$error":"#N/A"},null,"ARKAN GULF TRADING & CONTRACTING","2024-09-11T11:06:02.850",null,"Payroll Service (Worker)","Y","Work Visa"]
[null,null,null,null," ",null,{"$f":"VLOOKUP(F425,'Validation sheet'!E:F,2,FALSE)","v":{"$error":"#N/A"}},null,null,null,"--",{"$error":"#N/A"},null,null,null,null,null,"--",null,null,"","Zone 00 Street 00 Building 00",null,{"$error":"#N/A"},null,"ARKAN GULF TRADING & CONTRACTING","2024-09-11T11:06:02.850",null,"Payroll Service (Worker)","Y","Work Visa"]
[null,null,null,null," ",null,{"$f":"VLOOKUP(F426,'Validation sheet'!E:F,2,FALSE)","v":{"$error":"#N/A"}},null,null,null,"--",{"$error":"#N/A"},null,null,null,null,null,"--",null,null,"","Zone 00 Street 00 Building 00",null,{"$error":"#N/A"},null,"ARKAN GULF TRADING & CONTRACTING","2024-09-11T11:06:02.850",null,"Payroll Service (Worker)","Y","Work Visa"]
[null,null,null,null," ",null,{"$f":"VLOOKUP(F427,'Validation sheet'!E:F,2,FALSE)","v":{"$error":"#N/A"}},null,null,null,"--",{"$error":"#N/A"},null,null,null,null,null,"--",null,null,"","Zone 00 Street 00 Building 00",null,{"$error":"#N/A"},null,"ARKAN GULF TRADING & CONTRACTING","2024-09-11T11:06:02.850",null,"Payroll Service (Worker)","Y","Work Visa"]
[null,null,null,null," ",null,{"$f":"VLOOKUP(F428,'Validation sheet'!E:F,2,FALSE)","v":{"$error":"#N/A"}},null,null,null,"--",{"$error":"#N/A"},null,null,null,null,null,"--",null,null,"","Zone 00 Street 00 Building 00",null,{"$error":"#N/A"},null,"ARKAN GULF TRADING & CONTRACTING","2024-09-11T11:06:02.850",null,"Payroll Service (Worker)","Y","Work Visa"]
[null,null,null,null," ",null,{"$f":"VLOOKUP(F429,'Validation sheet'!E:F,2,FALSE)","v":{"$error":"#N/A"}},null,null,null,"--",{"$error":"#N/A"},null,null,null,null,null,"--",null,null,"","Zone 00 Street 00 Building 00",null,{"$error":"#N/A"},null,"ARKAN GULF TRADING & CONTRACTING","2024-09-11T11:06:02.850",null,"Payroll Service (Worker)","Y","Work Visa"]
[null,null,null,null," ",null,{"$f":"VLOOKUP(F430,'Validation sheet'!E:F,2,FALSE)","v":{"$error":"#N/A"}},null,null,null,"--",{"$error":"#N/A"},null,null,null,null,null,"--",null,null,"","Zone 00 Street 00 Building 00",null,{"$error":"#N/A"},null,"ARKAN GULF TRADING & CONTRACTING","2024-09-11T11:06:02.850",null,"Payroll Service (Worker)","Y","Work Visa"]
[null,null,null,null," ",null,{"$f":"VLOOKUP(F431,'Validation sheet'!E:F,2,FALSE)","v":{"$error":"#N/A"}},null,null,null,"--",{"$error":"#N/A"},null,null,null,null,null,"--",null,null,"","Zone 00 Street 00 Building 00",null,{"$error":"#N/A"},null,"ARKAN GULF TRADING & CONTRACTING","2024-09-11T11:06:02.850",null,"Payroll Service (Worker)","Y","Work Visa"]
[null,null,null,null," ",null,{"$f":"VLOOKUP(F432,'Validation sheet'!E:F,2,FALSE)","v":{"$error":"#N/A"}},null,null,null,"--",{"$error":"#N/A"},null,null,null,null,null,"--",null,null,"","Zone 00 Street 00 Building 00",null,{"$error":"#N/A"},null,"ARKAN GULF TRADING & CONTRACTING","2024-09-11T11:06:02.850",null,"Payroll Service (Worker)","Y","Work Visa"]
[null,null,null,null," ",null,{"$f":"VLOOKUP(F433,'Validation sheet'!E:F,2,FALSE)","v":{"$error":"#N/A"}},null,null,null,"--",{"$error":"#N/A"},null,null,null,null,null,"--",null,null,"","Zone 00 Street 00 Building 00",null,{"$error":"#N/A"},null,"ARKAN GULF TRADING & CONTRACTING","2024-09-11T11:06:02.850",null,"Payroll Service (Worker)","Y","Work Visa"]
[null,null,null,null," ",null,{"$f":"VLOOKUP(F434,'Validation sheet'!E:F,2,FALSE)","v":{"$error":"#N/A"}},null,null,null,"--",{"$error":"#N/A"},null,null,null,null,null,"--",null,null,"","Zone 00 Street 00 Building 00",null,{"$error":"#N/A"},null,"ARKAN GULF TRADING & CONTRACTING","2024-09-11T11:06:02.850",null,"Payroll Service (Worker)","Y","Work Visa"]
[null,null,null,null," ",null,{"$f":"VLOOKUP(F435,'Validation sheet'!E:F,2,FALSE)","v":{"$error":"#N/A"}},null,null,null,"--",{"$error":"#N/A"},null,null,null,null,null,"--",null,null,"","Zone 00 Street 00 Building 00",null,{"$error":"#N/A"},null,"ARKAN GULF TRADING & CONTRACTING","2024-09-11T11:06:02.850",null,"Payroll Service (Worker)","Y","Work Visa"]
[null,null,null,null," ",null,{"$f":"VLOOKUP(F436,'Validation sheet'!E:F,2,FALSE)","v":{"$error":"#N/A"}},null,null,null,"--",{"$error":"#N/A"},null,null,null,null,null,"--",null,null,"","Zone 00 Street 00 Building 00",null,{"$error":"#N/A"},null,"ARKAN GULF TRADING & CONTRACTING","2024-09-11T11:06:02.850",null,"Payroll Service (Worker)","Y","Work Visa"]
[null,null,null,null," ",null,{"$f":"VLOOKUP(F437,'Validation sheet'!E:F,2,FALSE)","v":{"$error":"#N/A"}},null,null,null,"--",{"$error":"#N/A"},null,null,null,null,null,"--",null,null,"","Zone 00 Street 00 Building 00",null,{"$error":"#N/A"},null,"ARKAN GULF TRADING & CONTRACTING","2024-09-11T11:06:02.850",null,"Payroll Service (Worker)","Y","Work Visa"]
[null,null,null,null," ",null,{"$f":"VLOOKUP(F438,'Validation sheet'!E:F,2,FALSE)","v":{"$error":"#N/A"}},null,null,null,"--",{"$error":"#N/A"},null,null,null,null,null,"--",null,null,"","Zone 00 Street 00 Building 00",null,{"$error":"#N/A"},null,"ARKAN GULF TRADING & CONTRACTING","2024-09-11T11:06:02.850",null,"Payroll Service (Worker)","Y","Work Visa"]
[null,null,null,null," ",null,{"$f":"VLOOKUP(F439,'Validation sheet'!E:F,2,FALSE)","v":{"$error":"#N/A"}},null,null,null,"--",{"$error":"#N/A"},null,null,null,null,null,"--",null,null,"","Zone 00 Street 00 Building 00",null,{"$error":"#N/A"},null,"ARKAN GULF TRADING & CONTRACTING","2024-09-11T11:06:02.850",null,"Payroll Service (Worker)","Y","Work Visa"]
[null,null,null,null," ",null,{"$f":"VLOOKUP(F440,'Validation sheet'!E:F,2,FALSE)","v":{"$error":"#N/A"}},null,null,null,"--",{"$error":"#N/A"},null,null,null,null,null,"--",null,null,"","Zone 00 Street 00 Building 00",null,{"$error":"#N/A"},null,"ARKAN GULF TRADING & CONTRACTING","2024-09-11T11:06:02.850",null,"Payroll Service (Worker)","Y","Work Visa"]
[null,null,null,null," ",null,{"$f":"VLOOKUP(F441,'Validation sheet'!E:F,2,FALSE)","v":{"$error":"#N/A"}},null,null,null,"--",{"$error":"#N/A"},null,null,null,null,null,"--",null,null,"","Zone 00 Street 00 Building 00",null,{"$error":"#N/A"},null,"ARKAN GULF TRADING & CONTRACTING","2024-09-11T11:06:02.850",null,"Payroll Service (Worker)","Y","Work Visa"]
[null,null,null,null," ",null,{"$f":"VLOOKUP(F442,'Validation sheet'!E:F,2,FALSE)","v":{"$error":"#N/A"}},null,null,null,"--",{"$error":"#N/A"},null,null,null,null,null,"--",null,null,"","Zone 00 Street 00 Building 00",null,{"$error":"#N/A"},null,"ARKAN GULF TRADING & CONTRACTING","2024-09-11T11:06:02.850",null,"Payroll Service (Worker)","Y","Work Visa"]
[null,null,null,null," ",null,{"$f":"VLOOKUP(F443,'Validation sheet'!E:F,2,FALSE)","v":{"$error":"#N/A"}},null,null,null,"--",{"$error":"#N/A"},null,null,null,null,null,"--",null,null,"","Zone 00 Street 00 Building 00",null,{"$error":"#N/A"},null,"ARKAN GULF TRADING & CONTRACTING","2024-09-11T11:06:02.850",null,"Payroll Service (Worker)","Y","Work Visa"]
[null,null,null,null," ",null,{"$f":"VLOOKUP(F444,'Validation sheet'!E:F,2,FALSE)","v":{"$error":"#N/A"}},null,null,null,"--",{"$error":"#N/A"},null,null,null,null,null,"--",null,null,"","Zone 00 Street 00 Building 00",null,{"$error":"#N/A"},null,"ARKAN GULF TRADING & CONTRACTING","2024-09-11T11:06:02.850",null,"Payroll Service (Worker)","Y","Work Visa"]
[null,null,null,null," ",null,{"$f":"VLOOKUP(F445,'Validation sheet'!E:F,2,FALSE)","v":{"$error":"#N/A"}},null,null,null,"--",{"$error":"#N/A"},null,null,null,null,null,"--",null,null,"","Zone 00 Street 00 Building 00",null,{"$error":"#N/A"},null,"ARKAN GULF TRADING & CONTRACTING","2024-09-11T11:06:02.850",null,"Payroll Service (Worker)","Y","Work Visa"]
[null,null,null,null," ",null,{"$f":"VLOOKUP(F446,'Validation sheet'!E:F,2,FALSE)","v":{"$error":"#N/A"}},null,null,null,"--",{"$error":"#N/A"},null,null,null,null,null,"--",null,null,"","Zone 00 Street 00 Building 00",null,{"$error":"#N/A"},null,"ARKAN GULF TRADING & CONTRACTING","2024-09-11T11:06:02.850",null,"Payroll Service (Worker)","Y","Work Visa"]
[null,null,null,null," ",null,{"$f":"VLOOKUP(F447,'Validation sheet'!E:F,2,FALSE)","v":{"$error":"#N/A"}},null,null,null,"--",{"$error":"#N/A"},null,null,null,null,null,"--",null,null,"","Zone 00 Street 00 Building 00",null,{"$error":"#N/A"},null,"ARKAN GULF TRADING & CONTRACTING","2024-09-11T11:06:02.850",null,"Payroll Service (Worker)","Y","Work Visa"]
[null,null,null,null," ",null,{"$f":"VLOOKUP(F448,'Validation sheet'!E:F,2,FALSE)","v":{"$error":"#N/A"}},null,null,null,"--",{"$error":"#N/A"},null,null,null,null,null,"--",null,null,"","Zone 00 Street 00 Building 00",null,{"$error":"#N/A"},null,"ARKAN GULF TRADING & CONTRACTING","2024-09-11T11:06:02.850",null,"Payroll Service (Worker)","Y","Work Visa"]
[null,null,null,null," ",null,{"$f":"VLOOKUP(F449,'Validation sheet'!E:F,2,FALSE)","v":{"$error":"#N/A"}},null,null,null,"--",{"$error":"#N/A"},null,null,null,null,null,"--",null,null,"","Zone 00 Street 00 Building 00",null,{"$error":"#N/A"},null,"ARKAN GULF TRADING & CONTRACTING","2024-09-11T11:06:02.850",null,"Payroll Service (Worker)","Y","Work Visa"]
[null,null,null,null," ",null,{"$f":"VLOOKUP(F450,'Validation sheet'!E:F,2,FALSE)","v":{"$error":"#N/A"}},null,null,null,"--",{"$error":"#N/A"},null,null,null,null,null,"--",null,null,"","Zone 00 Street 00 Building 00",null,{"$error":"#N/A"},null,"ARKAN GULF TRADING & CONTRACTING","2024-09-11T11:06:02.850",null,"Payroll Service (Worker)","Y","Work Visa"]
[null,null,null,null," ",null,{"$f":"VLOOKUP(F451,'Validation sheet'!E:F,2,FALSE)","v":{"$error":"#N/A"}},null,null,null,"--",{"$error":"#N/A"},null,null,null,null,null,"--",null,null,"","Zone 00 Street 00 Building 00",null,{"$error":"#N/A"},null,"ARKAN GULF TRADING & CONTRACTING","2024-09-11T11:06:02.850",null,"Payroll Service (Worker)","Y","Work Visa"]
[null,null,null,null," ",null,{"$f":"VLOOKUP(F452,'Validation sheet'!E:F,2,FALSE)","v":{"$error":"#N/A"}},null,null,null,"--",{"$error":"#N/A"},null,null,null,null,null,"--",null,null,"","Zone 00 Street 00 Building 00",null,{"$error":"#N/A"},null,"ARKAN GULF TRADING & CONTRACTING","2024-09-11T11:06:02.850",null,"Payroll Service (Worker)","Y","Work Visa"]
[null,null,null,null," ",null,{"$f":"VLOOKUP(F453,'Validation sheet'!E:F,2,FALSE)","v":{"$error":"#N/A"}},null,null,null,"--",{"$error":"#N/A"},null,null,null,null,null,"--",null,null,"","Zone 00 Street 00 Building 00",null,{"$error":"#N/A"},null,"ARKAN GULF TRADING & CONTRACTING","2024-09-11T11:06:02.850",null,"Payroll Service (Worker)","Y","Work Visa"]
[null,null,null,null," ",null,{"$f":"VLOOKUP(F454,'Validation sheet'!E:F,2,FALSE)","v":{"$error":"#N/A"}},null,null,null,"--",{"$error":"#N/A"},null,null,null,null,null,"--",null,null,"","Zone 00 Street 00 Building 00",null,{"$error":"#N/A"},null,"ARKAN GULF TRADING & CONTRACTING","2024-09-11T11:06:02.850",null,"Payroll Service (Worker)","Y","Work Visa"]
[null,null,null,null," ",null,{"$f":"VLOOKUP(F455,'Validation sheet'!E:F,2,FALSE)","v":{"$error":"#N/A"}},null,null,null,"--",{"$error":"#N/A"},null,null,null,null,null,"--",null,null,{"$f":"S455&T455","v":""},"Zone 00 Street 00 Building 00",null,{"$f":"L455","v":{"$error":"#N/A"}},null,"ARKAN GULF TRADING & CONTRACTING","2024-09-11T11:06:02.850",null,"Payroll Service (Worker)","Y","Work Visa"]
[null,null,null,null,{"$f":"B456&\" \"&D456","v":" "},null,{"$f":"VLOOKUP(F456,'Validation sheet'!E:F,2,FALSE)","v":{"$error":"#N/A"}},null,null,null,{"$f":"H456&\"-\"&I456&\"-\"&J456","v":"--"},{"$f":"G456","v":{"$error":"#N/A"}},null,null,null,null,null,{"$f":"O456&\"-\"&P456&\"-\"&Q456","v":"--"},null,null,"","Zone 00 Street 00 Building 00",null,{"$error":"#N/A"},null,{"$f":"$B$1","v":"ARKAN GULF TRADING & CONTRACTING"},{"$f":"NOW()","v":"2024-09-11T11:06:02.850"},null,"Payroll Service (Worker)","Y","Work Visa"]
[null,null,null,null," ",null,{"$f":"VLOOKUP(F457,'Validation sheet'!E:F,2,FALSE)","v":{"$error":"#N/A"}},null,null,null,"--",{"$error":"#N/A"},null,null,null,null,null,"--",null,null,"","Zone 00 Street 00 Building 00",null,{"$error":"#N/A"},null,"ARKAN GULF TRADING & CONTRACTING","2024-09-11T11:06:02.850",null,"Payroll Service (Worker)","Y","Work Visa"]
[null,null,null,null," ",null,{"$f":"VLOOKUP(F458,'Validation sheet'!E:F,2,FALSE)","v":{"$error":"#N/A"}},null,null,null,"--",{"$error":"#N/A"},null,null,null,null,null,"--",null,null,"","Zone 00 Street 00 Building 00",null,{"$error":"#N/A"},null,"ARKAN GULF TRADING & CONTRACTING","2024-09-11T11:06:02.850",null,"Payroll Service (Worker)","Y","Work Visa"]
[null,null,null,null," ",null,{"$f":"VLOOKUP(F459,'Validation sheet'!E:F,2,FALSE)","v":{"$error":"#N/A"}},null,null,null,"--",{"$error":"#N/A"},null,null,null,null,null,"--",null,null,"","Zone 00 Street 00 Building 00",null,{"$error":"#N/A"},null,"ARKAN GULF TRADING & CONTRACTING","2024-09-11T11:06:02.850",null,"Payroll Service (Worker)","Y","Work Visa"]
[null,null,null,null," ",null,{"$f":"VLOOKUP(F460,'Validation sheet'!E:F,2,FALSE)","v":{"$error":"#N/A"}},null,null,null,"--",{"$error":"#N/A"},null,null,null,null,null,"--",null,null,"","Zone 00 Street 00 Building 00",null,{"$error":"#N/A"},null,"ARKAN GULF TRADING & CONTRACTING","2024-09-11T11:06:02.850",null,"Payroll Service (Worker)","Y","Work Visa"]
[null,null,null,null," ",null,{"$f":"VLOOKUP(F461,'Validation sheet'!E:F,2,FALSE)","v":{"$error":"#N/A"}},null,null,null,"--",{"$error":"#N/A"},null,null,null,null,null,"--",null,null,"","Zone 00 Street 00 Building 00",null,{"$error":"#N/A"},null,"ARKAN GULF TRADING & CONTRACTING","2024-09-11T11:06:02.850",null,"Payroll Service (Worker)","Y","Work Visa"]
[null,null,null,null," ",null,{"$f":"VLOOKUP(F462,'Validation sheet'!E:F,2,FALSE)","v":{"$error":"#N/A"}},null,null,null,"--",{"$error":"#N/A"},null,null,null,null,null,"--",null,null,"","Zone 00 Street 00 Building 00",null,{"$error":"#N/A"},null,"ARKAN GULF TRADING & CONTRACTING","2024-09-11T11:06:02.850",null,"Payroll Service (Worker)","Y","Work Visa"]
[null,null,null,null," ",null,{"$f":"VLOOKUP(F463,'Validation sheet'!E:F,2,FALSE)","v":{"$error":"#N/A"}},null,null,null,"--",{"$error":"#N/A"},null,null,null,null,null,"--",null,null,"","Zone 00 Street 00 Building 00",null,{"$error":"#N/A"},null,"ARKAN GULF TRADING & CONTRACTING","2024-09-11T11:06:02.850",null,"Payroll Service (Worker)","Y","Work Visa"]
[null,null,null,null," ",null,{"$f":"VLOOKUP(F464,'Validation sheet'!E:F,2,FALSE)","v":{"$error":"#N/A"}},null,null,null,"--",{"$error":"#N/A"},null,null,null,null,null,"--",null,null,"","Zone 00 Street 00 Building 00",null,{"$error":"#N/A"},null,"ARKAN GULF TRADING & CONTRACTING","2024-09-11T11:06:02.850",null,"Payroll Service (Worker)","Y","Work Visa"]
[null,null,null,null," ",null,{"$f":"VLOOKUP(F465,'Validation sheet'!E:F,2,FALSE)","v":{"$error":"#N/A"}},null,null,null,"--",{"$error":"#N/A"},null,null,null,null,null,"--",null,null,"","Zone 00 Street 00 Building 00",null,{"$error":"#N/A"},null,"ARKAN GULF TRADING & CONTRACTING","2024-09-11T11:06:02.850",null,"Payroll Service (Worker)","Y","Work Visa"]
[null,null,null,null," ",null,{"$f":"VLOOKUP(F466,'Validation sheet'!E:F,2,FALSE)","v":{"$error":"#N/A"}},null,null,null,"--",{"$error":"#N/A"},null,null,null,null,null,"--",null,null,"","Zone 00 Street 00 Building 00",null,{"$error":"#N/A"},null,"ARKAN GULF TRADING & CONTRACTING","2024-09-11T11:06:02.850",null,"Payroll Service (Worker)","Y","Work Visa"]
[null,null,null,null," ",null,{"$f":"VLOOKUP(F467,'Validation sheet'!E:F,2,FALSE)","v":{"$error":"#N/A"}},null,null,null,"--",{"$error":"#N/A"},null,null,null,null,null,"--",null,null,"","Zone 00 Street 00 Building 00",null,{"$error":"#N/A"},null,"ARKAN GULF TRADING & CONTRACTING","2024-09-11T11:06:02.850",null,"Payroll Service (Worker)","Y","Work Visa"]
[null,null,null,null," ",null,{"$f":"VLOOKUP(F468,'Validation sheet'!E:F,2,FALSE)","v":{"$error":"#N/A"}},null,null,null,"--",{"$error":"#N/A"},null,null,null,null,null,"--",null,null,"","Zone 00 Street 00 Building 00",null,{"$error":"#N/A"},null,"ARKAN GULF TRADING & CONTRACTING","2024-09-11T11:06:02.850",null,"Payroll Service (Worker)","Y","Work Visa"]
[null,null,null,null," ",null,{"$f":"VLOOKUP(F469,'Validation sheet'!E:F,2,FALSE)","v":{"$error":"#N/A"}},null,null,null,"--",{"$error":"#N/A"},null,null,null,null,null,"--",null,null,"","Zone 00 Street 00 Building 00",null,{"$error":"#N/A"},null,"ARKAN GULF TRADING & CONTRACTING","2024-09-11T11:06:02.850",null,"Payroll Service (Worker)","Y","Work Visa"]
[null,null,null,null," ",null,{"$f":"VLOOKUP(F470,'Validation sheet'!E:F,2,FALSE)","v":{"$error":"#N/A"}},null,null,null,"--",{"$error":"#N/A"},null,null,null,null,null,"--",null,null,"","Zone 00 Street 00 Building 00",null,{"$error":"#N/A"},null,"ARKAN GULF TRADING & CONTRACTING","2024-09-11T11:06:02.850",null,"Payroll Service (Worker)","Y","Work Visa"]
[null,null,null,null," ",null,{"$f":"VLOOKUP(F471,'Validation sheet'!E:F,2,FALSE)","v":{"$error":"#N/A"}},null,null,null,"--",{"$error":"#N/A"},null,null,null,null,null,"--",null,null,"","Zone 00 Street 00 Building 00",null,{"$error":"#N/A"},null,"ARKAN GULF TRADING & CONTRACTING","2024-09-11T11:06:02.850",null,"Payroll Service (Worker)","Y","Work Visa"]
[null,null,null,null," ",null,{"$f":"VLOOKUP(F472,'Validation sheet'!E:F,2,FALSE)","v":{"$error":"#N/A"}},null,null,null,"--",{"$error":"#N/A"},null,null,null,null,null,"--",null,null,"","Zone 00 Street 00 Building 00",null,{"$error":"#N/A"},null,"ARKAN GULF TRADING & CONTRACTING","2024-09-11T11:06:02.850",null,"Payroll Service (Worker)","Y","Work Visa"]
[null,null,null,null," ",null,{"$f":"VLOOKUP(F473,'Validation sheet'!E:F,2,FALSE)","v":{"$error":"#N/A"}},null,null,null,"--",{"$error":"#N/A"},null,null,null,null,null,"--",null,null,"","Zone 00 Street 00 Building 00",null,{"$error":"#N/A"},null,"ARKAN GULF TRADING & CONTRACTING","2024-09-11T11:06:02.850",null,"Payroll Service (Worker)","Y","Work Visa"]
[null,null,null,null," ",null,{"$f":"VLOOKUP(F474,'Validation sheet'!E:F,2,FALSE)","v":{"$error":"#N/A"}},null,null,null,"--",{"$error":"#N/A"},null,null,null,null,null,"--",null,null,"","Zone 00 Street 00 Building 00",null,{"$error":"#N/A"},null,"ARKAN GULF TRADING & CONTRACTING","2024-09-11T11:06:02.850",null,"Payroll Service (Worker)","Y","Work Visa"]
[null,null,null,null," ",null,{"$f":"VLOOKUP(F475,'Validation sheet'!E:F,2,FALSE)","v":{"$error":"#N/A"}},null,null,null,"--",{"$error":"#N/A"},null,null,null,null,null,"--",null,null,"","Zone 00 Street 00 Building 00",null,{"$error":"#N/A"},null,"ARKAN GULF TRADING & CONTRACTING","2024-09-11T11:06:02.850",null,"Payroll Service (Worker)","Y","Work Visa"]
[null,null,null,null," ",null,{"$f":"VLOOKUP(F476,'Validation sheet'!E:F,2,FALSE)","v":{"$error":"#N/A"}},null,null,null,"--",{"$error":"#N/A"},null,null,null,null,null,"--",null,null,"","Zone 00 Street 00 Building 00",null,{"$error":"#N/A"},null,"ARKAN GULF TRADING & CONTRACTING","2024-09-11T11:06:02.850",null,"Payroll Service (Worker)","Y","Work Visa"]
[null,null,null,null," ",null,{"$f":"VLOOKUP(F477,'Validation sheet'!E:F,2,FALSE)","v":{"$error":"#N/A"}},null,null,null,"--",{"$error":"#N/A"},null,null,null,null,null,"--",null,null,"","Zone 00 Street 00 Building 00",null,{"$error":"#N/A"},null,"ARKAN GULF TRADING & CONTRACTING","2024-09-11T11:06:02.850",null,"Payroll Service (Worker)","Y","Work Visa"]
[null,null,null,null," ",null,{"$f":"VLOOKUP(F478,'Validation sheet'!E:F,2,FALSE)","v":{"$error":"#N/A"}},null,null,null,"--",{"$error":"#N/A"},null,null,null,null,null,"--",null,null,"","Zone 00 Street 00 Building 00",null,{"$error":"#N/A"},null,"ARKAN GULF TRADING & CONTRACTING","2024-09-11T11:06:02.850",null,"Payroll Service (Worker)","Y","Work Visa"]
[null,null,null,null," ",null,{"$f":"VLOOKUP(F479,'Validation sheet'!E:F,2,FALSE)","v":{"$error":"#N/A"}},null,null,null,"--",{"$error":"#N/A"},null,null,null,null,null,"--",null,null,"","Zone 00 Street 00 Building 00",null,{"$error":"#N/A"},null,"ARKAN GULF TRADING & CONTRACTING","2024-09-11T11:06:02.850",null,"Payroll Service (Worker)","Y","Work Visa"]
[null,null,null,null," ",null,{"$f":"VLOOKUP(F480,'Validation sheet'!E:F,2,FALSE)","v":{"$error":"#N/A"}},null,null,null,"--",{"$error":"#N/A"},null,null,null,null,null,"--",null,null,"","Zone 00 Street 00 Building 00",null,{"$error":"#N/A"},null,"ARKAN GULF TRADING & CONTRACTING","2024-09-11T11:06:02.850",null,"Payroll Service (Worker)","Y","Work Visa"]
[null,null,null,null," ",null,{"$f":"VLOOKUP(F481,'Validation sheet'!E:F,2,FALSE)","v":{"$error":"#N/A"}},null,null,null,"--",{"$error":"#N/A"},null,null,null,null,null,"--",null,null,"","Zone 00 Street 00 Building 00",null,{"$error":"#N/A"},null,"ARKAN GULF TRADING & CONTRACTING","2024-09-11T11:06:02.850",null,"Payroll Service (Worker)","Y","Work Visa"]
[null,null,null,null," ",null,{"$f":"VLOOKUP(F482,'Validation sheet'!E:F,2,FALSE)","v":{"$error":"#N/A"}},null,null,null,"--",{"$error":"#N/A"},null,null,null,null,null,"--",null,null,"","Zone 00 Street 00 Building 00",null,{"$error":"#N/A"},null,"ARKAN GULF TRADING & CONTRACTING","2024-09-11T11:06:02.850",null,"Payroll Service (Worker)","Y","Work Visa"]
[null,null,null,null," ",null,{"$f":"VLOOKUP(F483,'Validation sheet'!E:F,2,FALSE)","v":{"$error":"#N/A"}},null,null,null,"--",{"$error":"#N/A"},null,null,null,null,null,"--",null,null,"","Zone 00 Street 00 Building 00",null,{"$error":"#N/A"},null,"ARKAN GULF TRADING & CONTRACTING","2024-09-11T11:06:02.850",null,"Payroll Service (Worker)","Y","Work Visa"]
[null,null,null,null," ",null,{"$f":"VLOOKUP(F484,'Validation sheet'!E:F,2,FALSE)","v":{"$error":"#N/A"}},null,null,null,"--",{"$error":"#N/A"},null,null,null,null,null,"--",null,null,"","Zone 00 Street 00 Building 00",null,{"$error":"#N/A"},null,"ARKAN GULF TRADING & CONTRACTING","2024-09-11T11:06:02.850",null,"Payroll Service (Worker)","Y","Work Visa"]
[null,null,null,null," ",null,{"$f":"VLOOKUP(F485,'Validation sheet'!E:F,2,FALSE)","v":{"$error":"#N/A"}},null,null,null,"--",{"$error":"#N/A"},null,null,null,null,null,"--",null,null,"","Zone 00 Street 00 Building 00",null,{"$error":"#N/A"},null,"ARKAN GULF TRADING & CONTRACTING","2024-09-11T11:06:02.850",null,"Payroll Service (Worker)","Y","Work Visa"]
[null,null,null,null," ",null,{"$f":"VLOOKUP(F486,'Validation sheet'!E:F,2,FALSE)","v":{"$error":"#N/A"}},null,null,null,"--",{"$error":"#N/A"},null,null,null,null,null,"--",null,null,"","Zone 00 Street 00 Building 00",null,{"$error":"#N/A"},null,"ARKAN GULF TRADING & CONTRACTING","2024-09-11T11:06:02.850",null,"Payroll Service (Worker)","Y","Work Visa"]
[null,null,null,null," ",null,{"$f":"VLOOKUP(F487,'Validation sheet'!E:F,2,FALSE)","v":{"$error":"#N/A"}},null,null,null,"--",{"$error":"#N/A"},null,null,null,null,null,"--",null,null,"","Zone 00 Street 00 Building 00",null,{"$error":"#N/A"},null,"ARKAN GULF TRADING & CONTRACTING","2024-09-11T11:06:02.850",null,"Payroll Service (Worker)","Y","Work Visa"]
[null,null,null,null," ",null,{"$f":"VLOOKUP(F488,'Validation sheet'!E:F,2,FALSE)","v":{"$error":"#N/A"}},null,null,null,"--",{"$error":"#N/A"},null,null,null,null,null,"--",null,null,"","Zone 00 Street 00 Building 00",null,{"$error":"#N/A"},null,"ARKAN GULF TRADING & CONTRACTING","2024-09-11T11:06:02.850",null,"Payroll Service (Worker)","Y","Work Visa"]
[null,null,null,null," ",null,{"$f":"VLOOKUP(F489,'Validation sheet'!E:F,2,FALSE)","v":{"$error":"#N/A"}},null,null,null,"--",{"$error":"#N/A"},null,null,null,null,null,"--",null,null,"","Zone 00 Street 00 Building 00",null,{"$error":"#N/A"},null,"ARKAN GULF TRADING & CONTRACTING","2024-09-11T11:06:02.850",null,"Payroll Service (Worker)","Y","Work Visa"]
[null,null,null,null," ",null,{"$f":"VLOOKUP(F490,'Validation sheet'!E:F,2,FALSE)","v":{"$error":"#N/A"}},null,null,null,"--",{"$error":"#N/A"},null,null,null,null,null,"--",null,null,"","Zone 00 Street 00 Building 00",null,{"$error":"#N/A"},null,"ARKAN GULF TRADING & CONTRACTING","2024-09-11T11:06:02.850",null,"Payroll Service (Worker)","Y","Work Visa"]
[null,null,null,null," ",null,{"$f":"VLOOKUP(F491,'Validation sheet'!E:F,2,FALSE)","v":{"$error":"#N/A"}},null,null,null,"--",{"$error":"#N/A"},null,null,null,null,null,"--",null,null,"","Zone 00 Street 00 Building 00",null,{"$error":"#N/A"},null,"ARKAN GULF TRADING & CONTRACTING","2024-09-11T11:06:02.850",null,"Payroll Service (Worker)","Y","Work Visa"]
[null,null,null,null," ",null,{"$f":"VLOOKUP(F492,'Validation sheet'!E:F,2,FALSE)","v":{"$error":"#N/A"}},null,null,null,"--",{"$error":"#N/A"},null,null,null,null,null,"--",null,null,"","Zone 00 Street 00 Building 00",null,{"$error":"#N/A"},null,"ARKAN GULF TRADING & CONTRACTING","2024-09-11T11:06:02.850",null,"Payroll Service (Worker)","Y","Work Visa"]
[null,null,null,null," ",null,{"$f":"VLOOKUP(F493,'Validation sheet'!E:F,2,FALSE)","v":{"$error":"#N/A"}},null,null,null,"--",{"$error":"#N/A"},null,null,null,null,null,"--",null,null,"","Zone 00 Street 00 Building 00",null,{"$error":"#N/A"},null,"ARKAN GULF TRADING & CONTRACTING","2024-09-11T11:06:02.850",null,"Payroll Service (Worker)","Y","Work Visa"]
[null,null,null,null," ",null,{"$f":"VLOOKUP(F494,'Validation sheet'!E:F,2,FALSE)","v":{"$error":"#N/A"}},null,null,null,"--",{"$error":"#N/A"},null,null,null,null,null,"--",null,null,"","Zone 00 Street 00 Building 00",null,{"$error":"#N/A"},null,"ARKAN GULF TRADING & CONTRACTING","2024-09-11T11:06:02.850",null,"Payroll Service (Worker)","Y","Work Visa"]
[null,null,null,null," ",null,{"$f":"VLOOKUP(F495,'Validation sheet'!E:F,2,FALSE)","v":{"$error":"#N/A"}},null,null,null,"--",{"$error":"#N/A"},null,null,null,null,null,"--",null,null,"","Zone 00 Street 00 Building 00",null,{"$error":"#N/A"},null,"ARKAN GULF TRADING & CONTRACTING","2024-09-11T11:06:02.850",null,"Payroll Service (Worker)","Y","Work Visa"]
[null,null,null,null," ",null,{"$f":"VLOOKUP(F496,'Validation sheet'!E:F,2,FALSE)","v":{"$error":"#N/A"}},null,null,null,"--",{"$error":"#N/A"},null,null,null,null,null,"--",null,null,"","Zone 00 Street 00 Building 00",null,{"$error":"#N/A"},null,"ARKAN GULF TRADING & CONTRACTING","2024-09-11T11:06:02.850",null,"Payroll Service (Worker)","Y","Work Visa"]
[null,null,null,null," ",null,{"$f":"VLOOKUP(F497,'Validation sheet'!E:F,2,FALSE)","v":{"$error":"#N/A"}},null,null,null,"--",{"$error":"#N/A"},null,null,null,null,null,"--",null,null,"","Zone 00 Street 00 Building 00",null,{"$error":"#N/A"},null,"ARKAN GULF TRADING & CONTRACTING","2024-09-11T11:06:02.850",null,"Payroll Service (Worker)","Y","Work Visa"]
[null,null,null,null," ",null,{"$f":"VLOOKUP(F498,'Validation sheet'!E:F,2,FALSE)","v":{"$error":"#N/A"}},null,null,null,"--",{"$error":"#N/A"},null,null,null,null,null,"--",null,null,"","Zone 00 Street 00 Building 00",null,{"$error":"#N/A"},null,"ARKAN GULF TRADING & CONTRACTING","2024-09-11T11:06:02.850",null,"Payroll Service (Worker)","Y","Work Visa"]
[null,null,null,null," ",null,{"$f":"VLOOKUP(F499,'Validation sheet'!E:F,2,FALSE)","v":{"$error":"#N/A"}},null,null,null,"--",{"$error":"#N/A"},null,null,null,null,null,"--",null,null,"","Zone 00 Street 00 Building 00",null,{"$error":"#N/A"},null,"ARKAN GULF TRADING & CONTRACTING","2024-09-11T11:06:02.850",null,"Payroll Service (Worker)","Y","Work Visa"]
[null,null,null,null," ",null,{"$f":"VLOOKUP(F500,'Validation sheet'!E:F,2,FALSE)","v":{"$error":"#N/A"}},null,null,null,"--",{"$error":"#N/A"},null,null,null,null,null,"--",null,null,"","Zone 00 Street 00 Building 00",null,{"$error":"#N/A"},null,"ARKAN GULF TRADING & CONTRACTING","2024-09-11T11:06:02.850",null,"Payroll Service (Worker)","Y","Work Visa"]
[null,null,null,null," ",null,{"$f":"VLOOKUP(F501,'Validation sheet'!E:F,2,FALSE)","v":{"$error":"#N/A"}},null,null,null,"--",{"$error":"#N/A"},null,null,null,null,null,"--",null,null,"","Zone 00 Street 00 Building 00",null,{"$error":"#N/A"},null,"ARKAN GULF TRADING & CONTRACTING","2024-09-11T11:06:02.850",null,"Payroll Service (Worker)","Y","Work Visa"]
[null,null,null,null," ",null,{"$f":"VLOOKUP(F502,'Validation sheet'!E:F,2,FALSE)","v":{"$error":"#N/A"}},null,null,null,"--",{"$error":"#N/A"},null,null,null,null,null,"--",null,null,"","Zone 00 Street 00 Building 00",null,{"$error":"#N/A"},null,"ARKAN GULF TRADING & CONTRACTING","2024-09-11T11:06:02.850",null,"Payroll Service (Worker)","Y","Work Visa"]
[null,null,null,null," ",null,{"$f":"VLOOKUP(F503,'Validation sheet'!E:F,2,FALSE)","v":{"$error":"#N/A"}},null,null,null,"--",{"$error":"#N/A"},null,null,null,null,null,"--",null,null,"","Zone 00 Street 00 Building 00",null,{"$error":"#N/A"},null,"ARKAN GULF TRADING & CONTRACTING","2024-09-11T11:06:02.850",null,"Payroll Service (Worker)","Y","Work Visa"]
[null,null,null,null," ",null,{"$f":"VLOOKUP(F504,'Validation sheet'!E:F,2,FALSE)","v":{"$error":"#N/A"}},null,null,null,"--",{"$error":"#N/A"},null,null,null,null,null,"--",null,null,"","Zone 00 Street 00 Building 00",null,{"$error":"#N/A"},null,"ARKAN GULF TRADING & CONTRACTING","2024-09-11T11:06:02.850",null,"Payroll Service (Worker)","Y","Work Visa"]
[null,null,null,null," ",null,{"$f":"VLOOKUP(F505,'Validation sheet'!E:F,2,FALSE)","v":{"$error":"#N/A"}},null,null,null,"--",{"$error":"#N/A"},null,null,null,null,null,"--",null,null,"","Zone 00 Street 00 Building 00",null,{"$error":"#N/A"},null,"ARKAN GULF TRADING & CONTRACTING","2024-09-11T11:06:02.850",null,"Payroll Service (Worker)","Y","Work Visa"]
[null,null,null,null," ",null,{"$f":"VLOOKUP(F506,'Validation sheet'!E:F,2,FALSE)","v":{"$error":"#N/A"}},null,null,null,"--",{"$error":"#N/A"},null,null,null,null,null,"--",null,null,"","Zone 00 Street 00 Building 00",null,{"$error":"#N/A"},null,"ARKAN GULF TRADING & CONTRACTING","2024-09-11T11:06:02.850",null,"Payroll Service (Worker)","Y","Work Visa"]
[null,null,null,null," ",null,{"$f":"VLOOKUP(F507,'Validation sheet'!E:F,2,FALSE)","v":{"$error":"#N/A"}},null,null,null,"--",{"$error":"#N/A"},null,null,null,null,null,"--",null,null,"","Zone 00 Street 00 Building 00",null,{"$error":"#N/A"},null,"ARKAN GULF TRADING & CONTRACTING","2024-09-11T11:06:02.850",null,"Payroll Service (Worker)","Y","Work Visa"]
[null,null,null,null," ",null,{"$f":"VLOOKUP(F508,'Validation sheet'!E:F,2,FALSE)","v":{"$error":"#N/A"}},null,null,null,"--",{"$error":"#N/A"},null,null,null,null,null,"--",null,null,"","Zone 00 Street 00 Building 00",null,{"$error":"#N/A"},null,"ARKAN GULF TRADING & CONTRACTING","2024-09-11T11:06:02.850",null,"Payroll Service (Worker)","Y","Work Visa"]
[null,null,null,null," ",null,{"$f":"VLOOKUP(F509,'Validation sheet'!E:F,2,FALSE)","v":{"$error":"#N/A"}},null,null,null,"--",{"$error":"#N/A"},null,null,null,null,null,"--",null,null,"","Zone 00 Street 00 Building 00",null,{"$error":"#N/A"},null,"ARKAN GULF TRADING & CONTRACTING","2024-09-11T11:06:02.850",null,"Payroll Service (Worker)","Y","Work Visa"]
[null,null,null,null," ",null,{"$f":"VLOOKUP(F510,'Validation sheet'!E:F,2,FALSE)","v":{"$error":"#N/A"}},null,null,null,"--",{"$error":"#N/A"},null,null,null,null,null,"--",null,null,"","Zone 00 Street 00 Building 00",null,{"$error":"#N/A"},null,"ARKAN GULF TRADING & CONTRACTING","2024-09-11T11:06:02.850",null,"Payroll Service (Worker)","Y","Work Visa"]
[null,null,null,null," ",null,{"$f":"VLOOKUP(F511,'Validation sheet'!E:F,2,FALSE)","v":{"$error":"#N/A"}},null,null,null,"--",{"$error":"#N/A"},null,null,null,null,null,"--",null,null,"","Zone 00 Street 00 Building 00",null,{"$error":"#N/A"},null,"ARKAN GULF TRADING & CONTRACTING","2024-09-11T11:06:02.850",null,"Payroll Service (Worker)","Y","Work Visa"]
[null,null,null,null," ",null,{"$f":"VLOOKUP(F512,'Validation sheet'!E:F,2,FALSE)","v":{"$error":"#N/A"}},null,null,null,"--",{"$error":"#N/A"},null,null,null,null,null,"--",null,null,"","Zone 00 Street 00 Building 00",null,{"$error":"#N/A"},null,"ARKAN GULF TRADING & CONTRACTING","2024-09-11T11:06:02.850",null,"Payroll Service (Worker)","Y","Work Visa"]
[null,null,null,null," ",null,{"$f":"VLOOKUP(F513,'Validation sheet'!E:F,2,FALSE)","v":{"$error":"#N/A"}},null,null,null,"--",{"$error":"#N/A"},null,null,null,null,null,"--",null,null,"","Zone 00 Street 00 Building 00",null,{"$error":"#N/A"},null,"ARKAN GULF TRADING & CONTRACTING","2024-09-11T11:06:02.850",null,"Payroll Service (Worker)","Y","Work Visa"]
[null,null,null,null," ",null,{"$f":"VLOOKUP(F514,'Validation sheet'!E:F,2,FALSE)","v":{"$error":"#N/A"}},null,null,null,"--",{"$error":"#N/A"},null,null,null,null,null,"--",null,null,"","Zone 00 Street 00 Building 00",null,{"$error":"#N/A"},null,"ARKAN GULF TRADING & CONTRACTING","2024-09-11T11:06:02.850",null,"Payroll Service (Worker)","Y","Work Visa"]
[null,null,null,null," ",null,{"$f":"VLOOKUP(F515,'Validation sheet'!E:F,2,FALSE)","v":{"$error":"#N/A"}},null,null,null,"--",{"$error":"#N/A"},null,null,null,null,null,"--",null,null,"","Zone 00 Street 00 Building 00",null,{"$error":"#N/A"},null,"ARKAN GULF TRADING & CONTRACTING","2024-09-11T11:06:02.850",null,"Payroll Service (Worker)","Y","Work Visa"]
[null,null,null,null," ",null,{"$f":"VLOOKUP(F516,'Validation sheet'!E:F,2,FALSE)","v":{"$error":"#N/A"}},null,null,null,"--",{"$error":"#N/A"},null,null,null,null,null,"--",null,null,"","Zone 00 Street 00 Building 00",null,{"$error":"#N/A"},null,"ARKAN GULF TRADING & CONTRACTING","2024-09-11T11:06:02.850",null,"Payroll Service (Worker)","Y","Work Visa"]
[null,null,null,null," ",null,{"$f":"VLOOKUP(F517,'Validation sheet'!E:F,2,FALSE)","v":{"$error":"#N/A"}},null,null,null,"--",{"$error":"#N/A"},null,null,null,null,null,"--",null,null,"","Zone 00 Street 00 Building 00",null,{"$error":"#N/A"},null,"ARKAN GULF TRADING & CONTRACTING","2024-09-11T11:06:02.850",null,"Payroll Service (Worker)","Y","Work Visa"]
[null,null,null,null," ",null,{"$f":"VLOOKUP(F518,'Validation sheet'!E:F,2,FALSE)","v":{"$error":"#N/A"}},null,null,null,"--",{"$error":"#N/A"},null,null,null,null,null,"--",null,null,"","Zone 00 Street 00 Building 00",null,{"$error":"#N/A"},null,"ARKAN GULF TRADING & CONTRACTING","2024-09-11T11:06:02.850",null,"Payroll Service (Worker)","Y","Work Visa"]
[null,null,null,null," ",null,{"$f":"VLOOKUP(F519,'Validation sheet'!E:F,2,FALSE)","v":{"$error":"#N/A"}},null,null,null,"--",{"$error":"#N/A"},null,null,null,null,null,"--",null,null,{"$f":"S519&T519","v":""},"Zone 00 Street 00 Building 00",null,{"$f":"L519","v":{"$error":"#N/A"}},null,"ARKAN GULF TRADING & CONTRACTING","2024-09-11T11:06:02.850",null,"Payroll Service (Worker)","Y","Work Visa"]
[null,null,null,null,{"$f":"B520&\" \"&D520","v":" "},null,{"$f":"VLOOKUP(F520,'Validation sheet'!E:F,2,FALSE)","v":{"$error":"#N/A"}},null,null,null,{"$f":"H520&\"-\"&I520&\"-\"&J520","v":"--"},{"$f":"G520","v":{"$error":"#N/A"}},null,null,null,null,null,{"$f":"O520&\"-\"&P520&\"-\"&Q520","v":"--"},null,null,"","Zone 00 Street 00 Building 00",null,{"$error":"#N/A"},null,{"$f":"$B$1","v":"ARKAN GULF TRADING & CONTRACTING"},{"$f":"NOW()","v":"2024-09-11T11:06:02.850"},null,"Payroll Service (Worker)","Y","Work Visa"]
[null,null,null,null," ",null,{"$f":"VLOOKUP(F521,'Validation sheet'!E:F,2,FALSE)","v":{"$error":"#N/A"}},null,null,null,"--",{"$error":"#N/A"},null,null,null,null,null,"--",null,null,"","Zone 00 Street 00 Building 00",null,{"$error":"#N/A"},null,"ARKAN GULF TRADING & CONTRACTING","2024-09-11T11:06:02.850",null,"Payroll Service (Worker)","Y","Work Visa"]
[null,null,null,null," ",null,{"$f":"VLOOKUP(F522,'Validation sheet'!E:F,2,FALSE)","v":{"$error":"#N/A"}},null,null,null,"--",{"$error":"#N/A"},null,null,null,null,null,"--",null,null,"","Zone 00 Street 00 Building 00",null,{"$error":"#N/A"},null,"ARKAN GULF TRADING & CONTRACTING","2024-09-11T11:06:02.850",null,"Payroll Service (Worker)","Y","Work Visa"]
[null,null,null,null," ",null,{"$f":"VLOOKUP(F523,'Validation sheet'!E:F,2,FALSE)","v":{"$error":"#N/A"}},null,null,null,"--",{"$error":"#N/A"},null,null,null,null,null,"--",null,null,"","Zone 00 Street 00 Building 00",null,{"$error":"#N/A"},null,"ARKAN GULF TRADING & CONTRACTING","2024-09-11T11:06:02.850",null,"Payroll Service (Worker)","Y","Work Visa"]
[null,null,null,null," ",null,{"$f":"VLOOKUP(F524,'Validation sheet'!E:F,2,FALSE)","v":{"$error":"#N/A"}},null,null,null,"--",{"$error":"#N/A"},null,null,null,null,null,"--",null,null,"","Zone 00 Street 00 Building 00",null,{"$error":"#N/A"},null,"ARKAN GULF TRADING & CONTRACTING","2024-09-11T11:06:02.850",null,"Payroll Service (Worker)","Y","Work Visa"]
[null,null,null,null," ",null,{"$f":"VLOOKUP(F525,'Validation sheet'!E:F,2,FALSE)","v":{"$error":"#N/A"}},null,null,null,"--",{"$error":"#N/A"},null,null,null,null,null,"--",null,null,"","Zone 00 Street 00 Building 00",null,{"$error":"#N/A"},null,"ARKAN GULF TRADING & CONTRACTING","2024-09-11T11:06:02.850",null,"Payroll Service (Worker)","Y","Work Visa"]
[null,null,null,null," ",null,{"$f":"VLOOKUP(F526,'Validation sheet'!E:F,2,FALSE)","v":{"$error":"#N/A"}},null,null,null,"--",{"$error":"#N/A"},null,null,null,null,null,"--",null,null,"","Zone 00 Street 00 Building 00",null,{"$error":"#N/A"},null,"ARKAN GULF TRADING & CONTRACTING","2024-09-11T11:06:02.850",null,"Payroll Service (Worker)","Y","Work Visa"]
[null,null,null,null," ",null,{"$f":"VLOOKUP(F527,'Validation sheet'!E:F,2,FALSE)","v":{"$error":"#N/A"}},null,null,null,"--",{"$error":"#N/A"},null,null,null,null,null,"--",null,null,"","Zone 00 Street 00 Building 00",null,{"$error":"#N/A"},null,"ARKAN GULF TRADING & CONTRACTING","2024-09-11T11:06:02.850",null,"Payroll Service (Worker)","Y","Work Visa"]
[null,null,null,null," ",null,{"$f":"VLOOKUP(F528,'Validation sheet'!E:F,2,FALSE)","v":{"$error":"#N/A"}},null,null,null,"--",{"$error":"#N/A"},null,null,null,null,null,"--",null,null,"","Zone 00 Street 00 Building 00",null,{"$error":"#N/A"},null,"ARKAN GULF TRADING & CONTRACTING","2024-09-11T11:06:02.850",null,"Payroll Service (Worker)","Y","Work Visa"]
[null,null,null,null," ",null,{"$f":"VLOOKUP(F529,'Validation sheet'!E:F,2,FALSE)","v":{"$error":"#N/A"}},null,null,null,"--",{"$error":"#N/A"},null,null,null,null,null,"--",null,null,"","Zone 00 Street 00 Building 00",null,{"$error":"#N/A"},null,"ARKAN GULF TRADING & CONTRACTING","2024-09-11T11:06:02.850",null,"Payroll Service (Worker)","Y","Work Visa"]
[null,null,null,null," ",null,{"$f":"VLOOKUP(F530,'Validation sheet'!E:F,2,FALSE)","v":{"$error":"#N/A"}},null,null,null,"--",{"$error":"#N/A"},null,null,null,null,null,"--",null,null,"","Zone 00 Street 00 Building 00",null,{"$error":"#N/A"},null,"ARKAN GULF TRADING & CONTRACTING","2024-09-11T11:06:02.850",null,"Payroll Service (Worker)","Y","Work Visa"]
[null,null,null,null," ",null,{"$f":"VLOOKUP(F531,'Validation sheet'!E:F,2,FALSE)","v":{"$error":"#N/A"}},null,null,null,"--",{"$error":"#N/A"},null,null,null,null,null,"--",null,null,"","Zone 00 Street 00 Building 00",null,{"$error":"#N/A"},null,"ARKAN GULF TRADING & CONTRACTING","2024-09-11T11:06:02.850",null,"Payroll Service (Worker)","Y","Work Visa"]
[null,null,null,null," ",null,{"$f":"VLOOKUP(F532,'Validation sheet'!E:F,2,FALSE)","v":{"$error":"#N/A"}},null,null,null,"--",{"$error":"#N/A"},null,null,null,null,null,"--",null,null,"","Zone 00 Street 00 Building 00",null,{"$error":"#N/A"},null,"ARKAN GULF TRADING & CONTRACTING","2024-09-11T11:06:02.850",null,"Payroll Service (Worker)","Y","Work Visa"]
[null,null,null,null," ",null,{"$f":"VLOOKUP(F533,'Validation sheet'!E:F,2,FALSE)","v":{"$error":"#N/A"}},null,null,null,"--",{"$error":"#N/A"},null,null,null,null,null,"--",null,null,"","Zone 00 Street 00 Building 00",null,{"$error":"#N/A"},null,"ARKAN GULF TRADING & CONTRACTING","2024-09-11T11:06:02.850",null,"Payroll Service (Worker)","Y","Work Visa"]
[null,null,null,null," ",null,{"$f":"VLOOKUP(F534,'Validation sheet'!E:F,2,FALSE)","v":{"$error":"#N/A"}},null,null,null,"--",{"$error":"#N/A"},null,null,null,null,null,"--",null,null,"","Zone 00 Street 00 Building 00",null,{"$error":"#N/A"},null,"ARKAN GULF TRADING & CONTRACTING","2024-09-11T11:06:02.850",null,"Payroll Service (Worker)","Y","Work Visa"]
[null,null,null,null," ",null,{"$f":"VLOOKUP(F535,'Validation sheet'!E:F,2,FALSE)","v":{"$error":"#N/A"}},null,null,null,"--",{"$error":"#N/A"},null,null,null,null,null,"--",null,null,"","Zone 00 Street 00 Building 00",null,{"$error":"#N/A"},null,"ARKAN GULF TRADING & CONTRACTING","2024-09-11T11:06:02.850",null,"Payroll Service (Worker)","Y","Work Visa"]
[null,null,null,null," ",null,{"$f":"VLOOKUP(F536,'Validation sheet'!E:F,2,FALSE)","v":{"$error":"#N/A"}},null,null,null,"--",{"$error":"#N/A"},null,null,null,null,null,"--",null,null,"","Zone 00 Street 00 Building 00",null,{"$error":"#N/A"},null,"ARKAN GULF TRADING & CONTRACTING","2024-09-11T11:06:02.850",null,"Payroll Service (Worker)","Y","Work Visa"]
[null,null,null,null," ",null,{"$f":"VLOOKUP(F537,'Validation sheet'!E:F,2,FALSE)","v":{"$error":"#N/A"}},null,null,null,"--",{"$error":"#N/A"},null,null,null,null,null,"--",null,null,"","Zone 00 Street 00 Building 00",null,{"$error":"#N/A"},null,"ARKAN GULF TRADING & CONTRACTING","2024-09-11T11:06:02.850",null,"Payroll Service (Worker)","Y","Work Visa"]
[null,null,null,null," ",null,{"$f":"VLOOKUP(F538,'Validation sheet'!E:F,2,FALSE)","v":{"$error":"#N/A"}},null,null,null,"--",{"$error":"#N/A"},null,null,null,null,null,"--",null,null,"","Zone 00 Street 00 Building 00",null,{"$error":"#N/A"},null,"ARKAN GULF TRADING & CONTRACTING","2024-09-11T11:06:02.850",null,"Payroll Service (Worker)","Y","Work Visa"]
[null,null,null,null," ",null,{"$f":"VLOOKUP(F539,'Validation sheet'!E:F,2,FALSE)","v":{"$error":"#N/A"}},null,null,null,"--",{"$error":"#N/A"},null,null,null,null,null,"--",null,null,"","Zone 00 Street 00 Building 00",null,{"$error":"#N/A"},null,"ARKAN GULF TRADING & CONTRACTING","2024-09-11T11:06:02.850",null,"Payroll Service (Worker)","Y","Work Visa"]
[null,null,null,null," ",null,{"$f":"VLOOKUP(F540,'Validation sheet'!E:F,2,FALSE)","v":{"$error":"#N/A"}},null,null,null,"--",{"$error":"#N/A"},null,null,null,null,null,"--",null,null,"","Zone 00 Street 00 Building 00",null,{"$error":"#N/A"},null,"ARKAN GULF TRADING & CONTRACTING","2024-09-11T11:06:02.850",null,"Payroll Service (Worker)","Y","Work Visa"]
[null,null,null,null," ",null,{"$f":"VLOOKUP(F541,'Validation sheet'!E:F,2,FALSE)","v":{"$error":"#N/A"}},null,null,null,"--",{"$error":"#N/A"},null,null,null,null,null,"--",null,null,"","Zone 00 Street 00 Building 00",null,{"$error":"#N/A"},null,"ARKAN GULF TRADING & CONTRACTING","2024-09-11T11:06:02.850",null,"Payroll Service (Worker)","Y","Work Visa"]
[null,null,null,null," ",null,{"$f":"VLOOKUP(F542,'Validation sheet'!E:F,2,FALSE)","v":{"$error":"#N/A"}},null,null,null,"--",{"$error":"#N/A"},null,null,null,null,null,"--",null,null,"","Zone 00 Street 00 Building 00",null,{"$error":"#N/A"},null,"ARKAN GULF TRADING & CONTRACTING","2024-09-11T11:06:02.850",null,"Payroll Service (Worker)","Y","Work Visa"]
[null,null,null,null," ",null,{"$f":"VLOOKUP(F543,'Validation sheet'!E:F,2,FALSE)","v":{"$error":"#N/A"}},null,null,null,"--",{"$error":"#N/A"},null,null,null,null,null,"--",null,null,"","Zone 00 Street 00 Building 00",null,{"$error":"#N/A"},null,"ARKAN GULF TRADING & CONTRACTING","2024-09-11T11:06:02.850",null,"Payroll Service (Worker)","Y","Work Visa"]
[null,null,null,null," ",null,{"$f":"VLOOKUP(F544,'Validation sheet'!E:F,2,FALSE)","v":{"$error":"#N/A"}},null,null,null,"--",{"$error":"#N/A"},null,null,null,null,null,"--",null,null,"","Zone 00 Street 00 Building 00",null,{"$error":"#N/A"},null,"ARKAN GULF TRADING & CONTRACTING","2024-09-11T11:06:02.850",null,"Payroll Service (Worker)","Y","Work Visa"]
[null,null,null,null," ",null,{"$f":"VLOOKUP(F545,'Validation sheet'!E:F,2,FALSE)","v":{"$error":"#N/A"}},null,null,null,"--",{"$error":"#N/A"},null,null,null,null,null,"--",null,null,"","Zone 00 Street 00 Building 00",null,{"$error":"#N/A"},null,"ARKAN GULF TRADING & CONTRACTING","2024-09-11T11:06:02.850",null,"Payroll Service (Worker)","Y","Work Visa"]
[null,null,null,null," ",null,{"$f":"VLOOKUP(F546,'Validation sheet'!E:F,2,FALSE)","v":{"$error":"#N/A"}},null,null,null,"--",{"$error":"#N/A"},null,null,null,null,null,"--",null,null,"","Zone 00 Street 00 Building 00",null,{"$error":"#N/A"},null,"ARKAN GULF TRADING & CONTRACTING","2024-09-11T11:06:02.850",null,"Payroll Service (Worker)","Y","Work Visa"]
[null,null,null,null," ",null,{"$f":"VLOOKUP(F547,'Validation sheet'!E:F,2,FALSE)","v":{"$error":"#N/A"}},null,null,null,"--",{"$error":"#N/A"},null,null,null,null,null,"--",null,null,"","Zone 00 Street 00 Building 00",null,{"$error":"#N/A"},null,"ARKAN GULF TRADING & CONTRACTING","2024-09-11T11:06:02.850",null,"Payroll Service (Worker)","Y","Work Visa"]
[null,null,null,null," ",null,{"$f":"VLOOKUP(F548,'Validation sheet'!E:F,2,FALSE)","v":{"$error":"#N/A"}},null,null,null,"--",{"$error":"#N/A"},null,null,null,null,null,"--",null,null,"","Zone 00 Street 00 Building 00",null,{"$error":"#N/A"},null,"ARKAN GULF TRADING & CONTRACTING","2024-09-11T11:06:02.850",null,"Payroll Service (Worker)","Y","Work Visa"]
[null,null,null,null," ",null,{"$f":"VLOOKUP(F549,'Validation sheet'!E:F,2,FALSE)","v":{"$error":"#N/A"}},null,null,null,"--",{"$error":"#N/A"},null,null,null,null,null,"--",null,null,"","Zone 00 Street 00 Building 00",null,{"$error":"#N/A"},null,"ARKAN GULF TRADING & CONTRACTING","2024-09-11T11:06:02.850",null,"Payroll Service (Worker)","Y","Work Visa"]
[null,null,null,null," ",null,{"$f":"VLOOKUP(F550,'Validation sheet'!E:F,2,FALSE)","v":{"$error":"#N/A"}},null,null,null,"--",{"$error":"#N/A"},null,null,null,null,null,"--",null,null,"","Zone 00 Street 00 Building 00",null,{"$error":"#N/A"},null,"ARKAN GULF TRADING & CONTRACTING","2024-09-11T11:06:02.850",null,"Payroll Service (Worker)","Y","Work Visa"]
[null,null,null,null," ",null,{"$f":"VLOOKUP(F551,'Validation sheet'!E:F,2,FALSE)","v":{"$error":"#N/A"}},null,null,null,"--",{"$error":"#N/A"},null,null,null,null,null,"--",null,null,"","Zone 00 Street 00 Building 00",null,{"$error":"#N/A"},null,"ARKAN GULF TRADING & CONTRACTING","2024-09-11T11:06:02.850",null,"Payroll Service (Worker)","Y","Work Visa"]
[null,null,null,null," ",null,{"$f":"VLOOKUP(F552,'Validation sheet'!E:F,2,FALSE)","v":{"$error":"#N/A"}},null,null,null,"--",{"$error":"#N/A"},null,null,null,null,null,"--",null,null,"","Zone 00 Street 00 Building 00",null,{"$error":"#N/A"},null,"ARKAN GULF TRADING & CONTRACTING","2024-09-11T11:06:02.850",null,"Payroll Service (Worker)","Y","Work Visa"]
[null,null,null,null," ",null,{"$f":"VLOOKUP(F553,'Validation sheet'!E:F,2,FALSE)","v":{"$error":"#N/A"}},null,null,null,"--",{"$error":"#N/A"},null,null,null,null,null,"--",null,null,"","Zone 00 Street 00 Building 00",null,{"$error":"#N/A"},null,"ARKAN GULF TRADING & CONTRACTING","2024-09-11T11:06:02.850",null,"Payroll Service (Worker)","Y","Work Visa"]
[null,null,null,null," ",null,{"$f":"VLOOKUP(F554,'Validation sheet'!E:F,2,FALSE)","v":{"$error":"#N/A"}},null,null,null,"--",{"$error":"#N/A"},null,null,null,null,null,"--",null,null,"","Zone 00 Street 00 Building 00",null,{"$error":"#N/A"},null,"ARKAN GULF TRADING & CONTRACTING","2024-09-11T11:06:02.850",null,"Payroll Service (Worker)","Y","Work Visa"]
[null,null,null,null," ",null,{"$f":"VLOOKUP(F555,'Validation sheet'!E:F,2,FALSE)","v":{"$error":"#N/A"}},null,null,null,"--",{"$error":"#N/A"},null,null,null,null,null,"--",null,null,"","Zone 00 Street 00 Building 00",null,{"$error":"#N/A"},null,"ARKAN GULF TRADING & CONTRACTING","2024-09-11T11:06:02.850",null,"Payroll Service (Worker)","Y","Work Visa"]
[null,null,null,null," ",null,{"$f":"VLOOKUP(F556,'Validation sheet'!E:F,2,FALSE)","v":{"$error":"#N/A"}},null,null,null,"--",{"$error":"#N/A"},null,null,null,null,null,"--",null,null,"","Zone 00 Street 00 Building 00",null,{"$error":"#N/A"},null,"ARKAN GULF TRADING & CONTRACTING","2024-09-11T11:06:02.850",null,"Payroll Service (Worker)","Y","Work Visa"]
[null,null,null,null," ",null,{"$f":"VLOOKUP(F557,'Validation sheet'!E:F,2,FALSE)","v":{"$error":"#N/A"}},null,null,null,"--",{"$error":"#N/A"},null,null,null,null,null,"--",null,null,"","Zone 00 Street 00 Building 00",null,{"$error":"#N/A"},null,"ARKAN GULF TRADING & CONTRACTING","2024-09-11T11:06:02.850",null,"Payroll Service (Worker)","Y","Work Visa"]
[null,null,null,null," ",null,{"$f":"VLOOKUP(F558,'Validation sheet'!E:F,2,FALSE)","v":{"$error":"#N/A"}},null,null,null,"--",{"$error":"#N/A"},null,null,null,null,null,"--",null,null,"","Zone 00 Street 00 Building 00",null,{"$error":"#N/A"},null,"ARKAN GULF TRADING & CONTRACTING","2024-09-11T11:06:02.850",null,"Payroll Service (Worker)","Y","Work Visa"]
[null,null,null,null," ",null,{"$f":"VLOOKUP(F559,'Validation sheet'!E:F,2,FALSE)","v":{"$error":"#N/A"}},null,null,null,"--",{"$error":"#N/A"},null,null,null,null,null,"--",null,null,"","Zone 00 Street 00 Building 00",null,{"$error":"#N/A"},null,"ARKAN GULF TRADING & CONTRACTING","2024-09-11T11:06:02.850",null,"Payroll Service (Worker)","Y","Work Visa"]
[null,null,null,null," ",null,{"$f":"VLOOKUP(F560,'Validation sheet'!E:F,2,FALSE)","v":{"$error":"#N/A"}},null,null,null,"--",{"$error":"#N/A"},null,null,null,null,null,"--",null,null,"","Zone 00 Street 00 Building 00",null,{"$error":"#N/A"},null,"ARKAN GULF TRADING & CONTRACTING","2024-09-11T11:06:02.850",null,"Payroll Service (Worker)","Y","Work Visa"]
[null,null,null,null," ",null,{"$f":"VLOOKUP(F561,'Validation sheet'!E:F,2,FALSE)","v":{"$error":"#N/A"}},null,null,null,"--",{"$error":"#N/A"},null,null,null,null,null,"--",null,null,"","Zone 00 Street 00 Building 00",null,{"$error":"#N/A"},null,"ARKAN GULF TRADING & CONTRACTING","2024-09-11T11:06:02.850",null,"Payroll Service (Worker)","Y","Work Visa"]
[null,null,null,null," ",null,{"$f":"VLOOKUP(F562,'Validation sheet'!E:F,2,FALSE)","v":{"$error":"#N/A"}},null,null,null,"--",{"$error":"#N/A"},null,null,null,null,null,"--",null,null,"","Zone 00 Street 00 Building 00",null,{"$error":"#N/A"},null,"ARKAN GULF TRADING & CONTRACTING","2024-09-11T11:06:02.850",null,"Payroll Service (Worker)","Y","Work Visa"]
[null,null,null,null," ",null,{"$f":"VLOOKUP(F563,'Validation sheet'!E:F,2,FALSE)","v":{"$error":"#N/A"}},null,null,null,"--",{"$error":"#N/A"},null,null,null,null,null,"--",null,null,"","Zone 00 Street 00 Building 00",null,{"$error":"#N/A"},null,"ARKAN GULF TRADING & CONTRACTING","2024-09-11T11:06:02.850",null,"Payroll Service (Worker)","Y","Work Visa"]
[null,null,null,null," ",null,{"$f":"VLOOKUP(F564,'Validation sheet'!E:F,2,FALSE)","v":{"$error":"#N/A"}},null,null,null,"--",{"$error":"#N/A"},null,null,null,null,null,"--",null,null,"","Zone 00 Street 00 Building 00",null,{"$error":"#N/A"},null,"ARKAN GULF TRADING & CONTRACTING","2024-09-11T11:06:02.850",null,"Payroll Service (Worker)","Y","Work Visa"]
[null,null,null,null," ",null,{"$f":"VLOOKUP(F565,'Validation sheet'!E:F,2,FALSE)","v":{"$error":"#N/A"}},null,null,null,"--",{"$error":"#N/A"},null,null,null,null,null,"--",null,null,"","Zone 00 Street 00 Building 00",null,{"$error":"#N/A"},null,"ARKAN GULF TRADING & CONTRACTING","2024-09-11T11:06:02.850",null,"Payroll Service (Worker)","Y","Work Visa"]
[null,null,null,null," ",null,{"$f":"VLOOKUP(F566,'Validation sheet'!E:F,2,FALSE)","v":{"$error":"#N/A"}},null,null,null,"--",{"$error":"#N/A"},null,null,null,null,null,"--",null,null,"","Zone 00 Street 00 Building 00",null,{"$error":"#N/A"},null,"ARKAN GULF TRADING & CONTRACTING","2024-09-11T11:06:02.850",null,"Payroll Service (Worker)","Y","Work Visa"]
[null,null,null,null," ",null,{"$f":"VLOOKUP(F567,'Validation sheet'!E:F,2,FALSE)","v":{"$error":"#N/A"}},null,null,null,"--",{"$error":"#N/A"},null,null,null,null,null,"--",null,null,"","Zone 00 Street 00 Building 00",null,{"$error":"#N/A"},null,"ARKAN GULF TRADING & CONTRACTING","2024-09-11T11:06:02.850",null,"Payroll Service (Worker)","Y","Work Visa"]
[null,null,null,null," ",null,{"$f":"VLOOKUP(F568,'Validation sheet'!E:F,2,FALSE)","v":{"$error":"#N/A"}},null,null,null,"--",{"$error":"#N/A"},null,null,null,null,null,"--",null,null,"","Zone 00 Street 00 Building 00",null,{"$error":"#N/A"},null,"ARKAN GULF TRADING & CONTRACTING","2024-09-11T11:06:02.850",null,"Payroll Service (Worker)","Y","Work Visa"]
[null,null,null,null," ",null,{"$f":"VLOOKUP(F569,'Validation sheet'!E:F,2,FALSE)","v":{"$error":"#N/A"}},null,null,null,"--",{"$error":"#N/A"},null,null,null,null,null,"--",null,null,"","Zone 00 Street 00 Building 00",null,{"$error":"#N/A"},null,"ARKAN GULF TRADING & CONTRACTING","2024-09-11T11:06:02.850",null,"Payroll Service (Worker)","Y","Work Visa"]
[null,null,null,null," ",null,{"$f":"VLOOKUP(F570,'Validation sheet'!E:F,2,FALSE)","v":{"$error":"#N/A"}},null,null,null,"--",{"$error":"#N/A"},null,null,null,null,null,"--",null,null,"","Zone 00 Street 00 Building 00",null,{"$error":"#N/A"},null,"ARKAN GULF TRADING & CONTRACTING","2024-09-11T11:06:02.850",null,"Payroll Service (Worker)","Y","Work Visa"]
[null,null,null,null," ",null,{"$f":"VLOOKUP(F571,'Validation sheet'!E:F,2,FALSE)","v":{"$error":"#N/A"}},null,null,null,"--",{"$error":"#N/A"},null,null,null,null,null,"--",null,null,"","Zone 00 Street 00 Building 00",null,{"$error":"#N/A"},null,"ARKAN GULF TRADING & CONTRACTING","2024-09-11T11:06:02.850",null,"Payroll Service (Worker)","Y","Work Visa"]
[null,null,null,null," ",null,{"$f":"VLOOKUP(F572,'Validation sheet'!E:F,2,FALSE)","v":{"$error":"#N/A"}},null,null,null,"--",{"$error":"#N/A"},null,null,null,null,null,"--",null,null,"","Zone 00 Street 00 Building 00",null,{"$error":"#N/A"},null,"ARKAN GULF TRADING & CONTRACTING","2024-09-11T11:06:02.850",null,"Payroll Service (Worker)","Y","Work Visa"]
[null,null,null,null," ",null,{"$f":"VLOOKUP(F573,'Validation sheet'!E:F,2,FALSE)","v":{"$error":"#N/A"}},null,null,null,"--",{"$error":"#N/A"},null,null,null,null,null,"--",null,null,"","Zone 00 Street 00 Building 00",null,{"$error":"#N/A"},null,"ARKAN GULF TRADING & CONTRACTING","2024-09-11T11:06:02.850",null,"Payroll Service (Worker)","Y","Work Visa"]
[null,null,null,null," ",null,{"$f":"VLOOKUP(F574,'Validation sheet'!E:F,2,FALSE)","v":{"$error":"#N/A"}},null,null,null,"--",{"$error":"#N/A"},null,null,null,null,null,"--",null,null,"","Zone 00 Street 00 Building 00",null,{"$error":"#N/A"},null,"ARKAN GULF TRADING & CONTRACTING","2024-09-11T11:06:02.850",null,"Payroll Service (Worker)","Y","Work Visa"]
[null,null,null,null," ",null,{"$f":"VLOOKUP(F575,'Validation sheet'!E:F,2,FALSE)","v":{"$error":"#N/A"}},null,null,null,"--",{"$error":"#N/A"},null,null,null,null,null,"--",null,null,"","Zone 00 Street 00 Building 00",null,{"$error":"#N/A"},null,"ARKAN GULF TRADING & CONTRACTING","2024-09-11T11:06:02.850",null,"Payroll Service (Worker)","Y","Work Visa"]
[null,null,null,null," ",null,{"$f":"VLOOKUP(F576,'Validation sheet'!E:F,2,FALSE)","v":{"$error":"#N/A"}},null,null,null,"--",{"$error":"#N/A"},null,null,null,null,null,"--",null,null,"","Zone 00 Street 00 Building 00",null,{"$error":"#N/A"},null,"ARKAN GULF TRADING & CONTRACTING","2024-09-11T11:06:02.850",null,"Payroll Service (Worker)","Y","Work Visa"]
[null,null,null,null," ",null,{"$f":"VLOOKUP(F577,'Validation sheet'!E:F,2,FALSE)","v":{"$error":"#N/A"}},null,null,null,"--",{"$error":"#N/A"},null,null,null,null,null,"--",null,null,"","Zone 00 Street 00 Building 00",null,{"$error":"#N/A"},null,"ARKAN GULF TRADING & CONTRACTING","2024-09-11T11:06:02.850",null,"Payroll Service (Worker)","Y","Work Visa"]
[null,null,null,null," ",null,{"$f":"VLOOKUP(F578,'Validation sheet'!E:F,2,FALSE)","v":{"$error":"#N/A"}},null,null,null,"--",{"$error":"#N/A"},null,null,null,null,null,"--",null,null,"","Zone 00 Street 00 Building 00",null,{"$error":"#N/A"},null,"ARKAN GULF TRADING & CONTRACTING","2024-09-11T11:06:02.850",null,"Payroll Service (Worker)","Y","Work Visa"]
[null,null,null,null," ",null,{"$f":"VLOOKUP(F579,'Validation sheet'!E:F,2,FALSE)","v":{"$error":"#N/A"}},null,null,null,"--",{"$error":"#N/A"},null,null,null,null,null,"--",null,null,"","Zone 00 Street 00 Building 00",null,{"$error":"#N/A"},null,"ARKAN GULF TRADING & CONTRACTING","2024-09-11T11:06:02.850",null,"Payroll Service (Worker)","Y","Work Visa"]
[null,null,null,null," ",null,{"$f":"VLOOKUP(F580,'Validation sheet'!E:F,2,FALSE)","v":{"$error":"#N/A"}},null,null,null,"--",{"$error":"#N/A"},null,null,null,null,null,"--",null,null,"","Zone 00 Street 00 Building 00",null,{"$error":"#N/A"},null,"ARKAN GULF TRADING & CONTRACTING","2024-09-11T11:06:02.850",null,"Payroll Service (Worker)","Y","Work Visa"]
[null,null,null,null," ",null,{"$f":"VLOOKUP(F581,'Validation sheet'!E:F,2,FALSE)","v":{"$error":"#N/A"}},null,null,null,"--",{"$error":"#N/A"},null,null,null,null,null,"--",null,null,"","Zone 00 Street 00 Building 00",null,{"$error":"#N/A"},null,"ARKAN GULF TRADING & CONTRACTING","2024-09-11T11:06:02.850",null,"Payroll Service (Worker)","Y","Work Visa"]
[null,null,null,null," ",null,{"$f":"VLOOKUP(F582,'Validation sheet'!E:F,2,FALSE)","v":{"$error":"#N/A"}},null,null,null,"--",{"$error":"#N/A"},null,null,null,null,null,"--",null,null,"","Zone 00 Street 00 Building 00",null,{"$error":"#N/A"},null,"ARKAN GULF TRADING & CONTRACTING","2024-09-11T11:06:02.850",null,"Payroll Service (Worker)","Y","Work Visa"]
[null,null,null,null," ",null,{"$f":"VLOOKUP(F583,'Validation sheet'!E:F,2,FALSE)","v":{"$error":"#N/A"}},null,null,null,"--",{"$error":"#N/A"},null,null,null,null,null,"--",null,null,{"$f":"S583&T583","v":""},"Zone 00 Street 00 Building 00",null,{"$f":"L583","v":{"$error":"#N/A"}},null,"ARKAN GULF TRADING & CONTRACTING","2024-09-11T11:06:02.850",null,"Payroll Service (Worker)","Y","Work Visa"]
[null,null,null,null,{"$f":"B584&\" \"&D584","v":" "},null,{"$f":"VLOOKUP(F584,'Validation sheet'!E:F,2,FALSE)","v":{"$error":"#N/A"}},null,null,null,{"$f":"H584&\"-\"&I584&\"-\"&J584","v":"--"},{"$f":"G584","v":{"$error":"#N/A"}},null,null,null,null,null,{"$f":"O584&\"-\"&P584&\"-\"&Q584","v":"--"},null,null,"","Zone 00 Street 00 Building 00",null,{"$error":"#N/A"},null,{"$f":"$B$1","v":"ARKAN GULF TRADING & CONTRACTING"},{"$f":"NOW()","v":"2024-09-11T11:06:02.850"},null,"Payroll Service (Worker)","Y","Work Visa"]
[null,null,null,null," ",null,{"$f":"VLOOKUP(F585,'Validation sheet'!E:F,2,FALSE)","v":{"$error":"#N/A"}},null,null,null,"--",{"$error":"#N/A"},null,null,null,null,null,"--",null,null,"","Zone 00 Street 00 Building 00",null,{"$error":"#N/A"},null,"ARKAN GULF TRADING & CONTRACTING","2024-09-11T11:06:02.850",null,"Payroll Service (Worker)","Y","Work Visa"]
[null,null,null,null," ",null,{"$f":"VLOOKUP(F586,'Validation sheet'!E:F,2,FALSE)","v":{"$error":"#N/A"}},null,null,null,"--",{"$error":"#N/A"},null,null,null,null,null,"--",null,null,"","Zone 00 Street 00 Building 00",null,{"$error":"#N/A"},null,"ARKAN GULF TRADING & CONTRACTING","2024-09-11T11:06:02.850",null,"Payroll Service (Worker)","Y","Work Visa"]
[null,null,null,null," ",null,{"$f":"VLOOKUP(F587,'Validation sheet'!E:F,2,FALSE)","v":{"$error":"#N/A"}},null,null,null,"--",{"$error":"#N/A"},null,null,null,null,null,"--",null,null,"","Zone 00 Street 00 Building 00",null,{"$error":"#N/A"},null,"ARKAN GULF TRADING & CONTRACTING","2024-09-11T11:06:02.850",null,"Payroll Service (Worker)","Y","Work Visa"]
[null,null,null,null," ",null,{"$f":"VLOOKUP(F588,'Validation sheet'!E:F,2,FALSE)","v":{"$error":"#N/A"}},null,null,null,"--",{"$error":"#N/A"},null,null,null,null,null,"--",null,null,"","Zone 00 Street 00 Building 00",null,{"$error":"#N/A"},null,"ARKAN GULF TRADING & CONTRACTING","2024-09-11T11:06:02.850",null,"Payroll Service (Worker)","Y","Work Visa"]
[null,null,null,null," ",null,{"$f":"VLOOKUP(F589,'Validation sheet'!E:F,2,FALSE)","v":{"$error":"#N/A"}},null,null,null,"--",{"$error":"#N/A"},null,null,null,null,null,"--",null,null,"","Zone 00 Street 00 Building 00",null,{"$error":"#N/A"},null,"ARKAN GULF TRADING & CONTRACTING","2024-09-11T11:06:02.850",null,"Payroll Service (Worker)","Y","Work Visa"]
[null,null,null,null," ",null,{"$f":"VLOOKUP(F590,'Validation sheet'!E:F,2,FALSE)","v":{"$error":"#N/A"}},null,null,null,"--",{"$error":"#N/A"},null,null,null,null,null,"--",null,null,"","Zone 00 Street 00 Building 00",null,{"$error":"#N/A"},null,"ARKAN GULF TRADING & CONTRACTING","2024-09-11T11:06:02.850",null,"Payroll Service (Worker)","Y","Work Visa"]
[null,null,null,null," ",null,{"$f":"VLOOKUP(F591,'Validation sheet'!E:F,2,FALSE)","v":{"$error":"#N/A"}},null,null,null,"--",{"$error":"#N/A"},null,null,null,null,null,"--",null,null,"","Zone 00 Street 00 Building 00",null,{"$error":"#N/A"},null,"ARKAN GULF TRADING & CONTRACTING","2024-09-11T11:06:02.850",null,"Payroll Service (Worker)","Y","Work Visa"]
[null,null,null,null," ",null,{"$f":"VLOOKUP(F592,'Validation sheet'!E:F,2,FALSE)","v":{"$error":"#N/A"}},null,null,null,"--",{"$error":"#N/A"},null,null,null,null,null,"--",null,null,"","Zone 00 Street 00 Building 00",null,{"$error":"#N/A"},null,"ARKAN GULF TRADING & CONTRACTING","2024-09-11T11:06:02.850",null,"Payroll Service (Worker)","Y","Work Visa"]
[null,null,null,null," ",null,{"$f":"VLOOKUP(F593,'Validation sheet'!E:F,2,FALSE)","v":{"$error":"#N/A"}},null,null,null,"--",{"$error":"#N/A"},null,null,null,null,null,"--",null,null,"","Zone 00 Street 00 Building 00",null,{"$error":"#N/A"},null,"ARKAN GULF TRADING & CONTRACTING","2024-09-11T11:06:02.850",null,"Payroll Service (Worker)","Y","Work Visa"]
[null,null,null,null," ",null,{"$f":"VLOOKUP(F594,'Validation sheet'!E:F,2,FALSE)","v":{"$error":"#N/A"}},null,null,null,"--",{"$error":"#N/A"},null,null,null,null,null,"--",null,null,"","Zone 00 Street 00 Building 00",null,{"$error":"#N/A"},null,"ARKAN GULF TRADING & CONTRACTING","2024-09-11T11:06:02.850",null,"Payroll Service (Worker)","Y","Work Visa"]
[null,null,null,null," ",null,{"$f":"VLOOKUP(F595,'Validation sheet'!E:F,2,FALSE)","v":{"$error":"#N/A"}},null,null,null,"--",{"$error":"#N/A"},null,null,null,null,null,"--",null,null,"","Zone 00 Street 00 Building 00",null,{"$error":"#N/A"},null,"ARKAN GULF TRADING & CONTRACTING","2024-09-11T11:06:02.850",null,"Payroll Service (Worker)","Y","Work Visa"]
[null,null,null,null," ",null,{"$f":"VLOOKUP(F596,'Validation sheet'!E:F,2,FALSE)","v":{"$error":"#N/A"}},null,null,null,"--",{"$error":"#N/A"},null,null,null,null,null,"--",null,null,"","Zone 00 Street 00 Building 00",null,{"$error":"#N/A"},null,"ARKAN GULF TRADING & CONTRACTING","2024-09-11T11:06:02.850",null,"Payroll Service (Worker)","Y","Work Visa"]
[null,null,null,null," ",null,{"$f":"VLOOKUP(F597,'Validation sheet'!E:F,2,FALSE)","v":{"$error":"#N/A"}},null,null,null,"--",{"$error":"#N/A"},null,null,null,null,null,"--",null,null,"","Zone 00 Street 00 Building 00",null,{"$error":"#N/A"},null,"ARKAN GULF TRADING & CONTRACTING","2024-09-11T11:06:02.850",null,"Payroll Service (Worker)","Y","Work Visa"]
[null,null,null,null," ",null,{"$f":"VLOOKUP(F598,'Validation sheet'!E:F,2,FALSE)","v":{"$error":"#N/A"}},null,null,null,"--",{"$error":"#N/A"},null,null,null,null,null,"--",null,null,"","Zone 00 Street 00 Building 00",null,{"$error":"#N/A"},null,"ARKAN GULF TRADING & CONTRACTING","2024-09-11T11:06:02.850",null,"Payroll Service (Worker)","Y","Work Visa"]
[null,null,null,null," ",null,{"$f":"VLOOKUP(F599,'Validation sheet'!E:F,2,FALSE)","v":{"$error":"#N/A"}},null,null,null,"--",{"$error":"#N/A"},null,null,null,null,null,"--",null,null,"","Zone 00 Street 00 Building 00",null,{"$error":"#N/A"},null,"ARKAN GULF TRADING & CONTRACTING","2024-09-11T11:06:02.850",null,"Payroll Service (Worker)","Y","Work Visa"]
[null,null,null,null," ",null,{"$f":"VLOOKUP(F600,'Validation sheet'!E:F,2,FALSE)","v":{"$error":"#N/A"}},null,null,null,"--",{"$error":"#N/A"},null,null,null,null,null,"--",null,null,"","Zone 00 Street 00 Building 00",null,{"$error":"#N/A"},null,"ARKAN GULF TRADING & CONTRACTING","2024-09-11T11:06:02.850",null,"Payroll Service (Worker)","Y","Work Visa"]
[null,null,null,null," ",null,{"$f":"VLOOKUP(F601,'Validation sheet'!E:F,2,FALSE)","v":{"$error":"#N/A"}},null,null,null,"--",{"$error":"#N/A"},null,null,null,null,null,"--",null,null,"","Zone 00 Street 00 Building 00",null,{"$error":"#N/A"},null,"ARKAN GULF TRADING & CONTRACTING","2024-09-11T11:06:02.850",null,"Payroll Service (Worker)","Y","Work Visa"]
[null,null,null,null," ",null,{"$f":"VLOOKUP(F602,'Validation sheet'!E:F,2,FALSE)","v":{"$error":"#N/A"}},null,null,null,"--",{"$error":"#N/A"},null,null,null,null,null,"--",null,null,"","Zone 00 Street 00 Building 00",null,{"$error":"#N/A"},null,"ARKAN GULF TRADING & CONTRACTING","2024-09-11T11:06:02.850",null,"Payroll Service (Worker)","Y","Work Visa"]
[null,null,null,null," ",null,{"$f":"VLOOKUP(F603,'Validation sheet'!E:F,2,FALSE)","v":{"$error":"#N/A"}},null,null,null,"--",{"$error":"#N/A"},null,null,null,null,null,"--",null,null,"","Zone 00 Street 00 Building 00",null,{"$error":"#N/A"},null,"ARKAN GULF TRADING & CONTRACTING","2024-09-11T11:06:02.850",null,"Payroll Service (Worker)","Y","Work Visa"]
[null,null,null,null," ",null,{"$f":"VLOOKUP(F604,'Validation sheet'!E:F,2,FALSE)","v":{"$error":"#N/A"}},null,null,null,"--",{"$error":"#N/A"},null,null,null,null,null,"--",null,null,"","Zone 00 Street 00 Building 00",null,{"$error":"#N/A"},null,"ARKAN GULF TRADING & CONTRACTING","2024-09-11T11:06:02.850",null,"Payroll Service (Worker)","Y","Work Visa"]
[null,null,null,null," ",null,{"$f":"VLOOKUP(F605,'Validation sheet'!E:F,2,FALSE)","v":{"$error":"#N/A"}},null,null,null,"--",{"$error":"#N/A"},null,null,null,null,null,"--",null,null,"","Zone 00 Street 00 Building 00",null,{"$error":"#N/A"},null,"ARKAN GULF TRADING & CONTRACTING","2024-09-11T11:06:02.850",null,"Payroll Service (Worker)","Y","Work Visa"]
[null,null,null,null," ",null,{"$f":"VLOOKUP(F606,'Validation sheet'!E:F,2,FALSE)","v":{"$error":"#N/A"}},null,null,null,"--",{"$error":"#N/A"},null,null,null,null,null,"--",null,null,"","Zone 00 Street 00 Building 00",null,{"$error":"#N/A"},null,"ARKAN GULF TRADING & CONTRACTING","2024-09-11T11:06:02.850",null,"Payroll Service (Worker)","Y","Work Visa"]
[null,null,null,null," ",null,{"$f":"VLOOKUP(F607,'Validation sheet'!E:F,2,FALSE)","v":{"$error":"#N/A"}},null,null,null,"--",{"$error":"#N/A"},null,null,null,null,null,"--",null,null,"","Zone 00 Street 00 Building 00",null,{"$error":"#N/A"},null,"ARKAN GULF TRADING & CONTRACTING","2024-09-11T11:06:02.850",null,"Payroll Service (Worker)","Y","Work Visa"]
[null,null,null,null," ",null,{"$f":"VLOOKUP(F608,'Validation sheet'!E:F,2,FALSE)","v":{"$error":"#N/A"}},null,null,null,"--",{"$error":"#N/A"},null,null,null,null,null,"--",null,null,"","Zone 00 Street 00 Building 00",null,{"$error":"#N/A"},null,"ARKAN GULF TRADING & CONTRACTING","2024-09-11T11:06:02.850",null,"Payroll Service (Worker)","Y","Work Visa"]
[null,null,null,null," ",null,{"$f":"VLOOKUP(F609,'Validation sheet'!E:F,2,FALSE)","v":{"$error":"#N/A"}},null,null,null,"--",{"$error":"#N/A"},null,null,null,null,null,"--",null,null,"","Zone 00 Street 00 Building 00",null,{"$error":"#N/A"},null,"ARKAN GULF TRADING & CONTRACTING","2024-09-11T11:06:02.850",null,"Payroll Service (Worker)","Y","Work Visa"]
[null,null,null,null," ",null,{"$f":"VLOOKUP(F610,'Validation sheet'!E:F,2,FALSE)","v":{"$error":"#N/A"}},null,null,null,"--",{"$error":"#N/A"},null,null,null,null,null,"--",null,null,"","Zone 00 Street 00 Building 00",null,{"$error":"#N/A"},null,"ARKAN GULF TRADING & CONTRACTING","2024-09-11T11:06:02.850",null,"Payroll Service (Worker)","Y","Work Visa"]
[null,null,null,null," ",null,{"$f":"VLOOKUP(F611,'Validation sheet'!E:F,2,FALSE)","v":{"$error":"#N/A"}},null,null,null,"--",{"$error":"#N/A"},null,null,null,null,null,"--",null,null,"","Zone 00 Street 00 Building 00",null,{"$error":"#N/A"},null,"ARKAN GULF TRADING & CONTRACTING","2024-09-11T11:06:02.850",null,"Payroll Service (Worker)","Y","Work Visa"]
[null,null,null,null," ",null,{"$f":"VLOOKUP(F612,'Validation sheet'!E:F,2,FALSE)","v":{"$error":"#N/A"}},null,null,null,"--",{"$error":"#N/A"},null,null,null,null,null,"--",null,null,"","Zone 00 Street 00 Building 00",null,{"$error":"#N/A"},null,"ARKAN GULF TRADING & CONTRACTING","2024-09-11T11:06:02.850",null,"Payroll Service (Worker)","Y","Work Visa"]
[null,null,null,null," ",null,{"$f":"VLOOKUP(F613,'Validation sheet'!E:F,2,FALSE)","v":{"$error":"#N/A"}},null,null,null,"--",{"$error":"#N/A"},null,null,null,null,null,"--",null,null,"","Zone 00 Street 00 Building 00",null,{"$error":"#N/A"},null,"ARKAN GULF TRADING & CONTRACTING","2024-09-11T11:06:02.850",null,"Payroll Service (Worker)","Y","Work Visa"]
[null,null,null,null," ",null,{"$f":"VLOOKUP(F614,'Validation sheet'!E:F,2,FALSE)","v":{"$error":"#N/A"}},null,null,null,"--",{"$error":"#N/A"},null,null,null,null,null,"--",null,null,"","Zone 00 Street 00 Building 00",null,{"$error":"#N/A"},null,"ARKAN GULF TRADING & CONTRACTING","2024-09-11T11:06:02.850",null,"Payroll Service (Worker)","Y","Work Visa"]
[null,null,null,null," ",null,{"$f":"VLOOKUP(F615,'Validation sheet'!E:F,2,FALSE)","v":{"$error":"#N/A"}},null,null,null,"--",{"$error":"#N/A"},null,null,null,null,null,"--",null,null,"","Zone 00 Street 00 Building 00",null,{"$error":"#N/A"},null,"ARKAN GULF TRADING & CONTRACTING","2024-09-11T11:06:02.850",null,"Payroll Service (Worker)","Y","Work Visa"]
[null,null,null,null," ",null,{"$f":"VLOOKUP(F616,'Validation sheet'!E:F,2,FALSE)","v":{"$error":"#N/A"}},null,null,null,"--",{"$error":"#N/A"},null,null,null,null,null,"--",null,null,"","Zone 00 Street 00 Building 00",null,{"$error":"#N/A"},null,"ARKAN GULF TRADING & CONTRACTING","2024-09-11T11:06:02.850",null,"Payroll Service (Worker)","Y","Work Visa"]
[null,null,null,null," ",null,{"$f":"VLOOKUP(F617,'Validation sheet'!E:F,2,FALSE)","v":{"$error":"#N/A"}},null,null,null,"--",{"$error":"#N/A"},null,null,null,null,null,"--",null,null,"","Zone 00 Street 00 Building 00",null,{"$error":"#N/A"},null,"ARKAN GULF TRADING & CONTRACTING","2024-09-11T11:06:02.850",null,"Payroll Service (Worker)","Y","Work Visa"]
[null,null,null,null," ",null,{"$f":"VLOOKUP(F618,'Validation sheet'!E:F,2,FALSE)","v":{"$error":"#N/A"}},null,null,null,"--",{"$error":"#N/A"},null,null,null,null,null,"--",null,null,"","Zone 00 Street 00 Building 00",null,{"$error":"#N/A"},null,"ARKAN GULF TRADING & CONTRACTING","2024-09-11T11:06:02.850",null,"Payroll Service (Worker)","Y","Work Visa"]
[null,null,null,null," ",null,{"$f":"VLOOKUP(F619,'Validation sheet'!E:F,2,FALSE)","v":{"$error":"#N/A"}},null,null,null,"--",{"$error":"#N/A"},null,null,null,null,null,"--",null,null,"","Zone 00 Street 00 Building 00",null,{"$error":"#N/A"},null,"ARKAN GULF TRADING & CONTRACTING","2024-09-11T11:06:02.850",null,"Payroll Service (Worker)","Y","Work Visa"]
[null,null,null,null," ",null,{"$f":"VLOOKUP(F620,'Validation sheet'!E:F,2,FALSE)","v":{"$error":"#N/A"}},null,null,null,"--",{"$error":"#N/A"},null,null,null,null,null,"--",null,null,"","Zone 00 Street 00 Building 00",null,{"$error":"#N/A"},null,"ARKAN GULF TRADING & CONTRACTING","2024-09-11T11:06:02.850",null,"Payroll Service (Worker)","Y","Work Visa"]
[null,null,null,null," ",null,{"$f":"VLOOKUP(F621,'Validation sheet'!E:F,2,FALSE)","v":{"$error":"#N/A"}},null,null,null,"--",{"$error":"#N/A"},null,null,null,null,null,"--",null,null,"","Zone 00 Street 00 Building 00",null,{"$error":"#N/A"},null,"ARKAN GULF TRADING & CONTRACTING","2024-09-11T11:06:02.850",null,"Payroll Service (Worker)","Y","Work Visa"]
[null,null,null,null," ",null,{"$f":"VLOOKUP(F622,'Validation sheet'!E:F,2,FALSE)","v":{"$error":"#N/A"}},null,null,null,"--",{"$error":"#N/A"},null,null,null,null,null,"--",null,null,"","Zone 00 Street 00 Building 00",null,{"$error":"#N/A"},null,"ARKAN GULF TRADING & CONTRACTING","2024-09-11T11:06:02.850",null,"Payroll Service (Worker)","Y","Work Visa"]
[null,null,null,null," ",null,{"$f":"VLOOKUP(F623,'Validation sheet'!E:F,2,FALSE)","v":{"$error":"#N/A"}},null,null,null,"--",{"$error":"#N/A"},null,null,null,null,null,"--",null,null,"","Zone 00 Street 00 Building 00",null,{"$error":"#N/A"},null,"ARKAN GULF TRADING & CONTRACTING","2024-09-11T11:06:02.850",null,"Payroll Service (Worker)","Y","Work Visa"]
[null,null,null,null," ",null,{"$f":"VLOOKUP(F624,'Validation sheet'!E:F,2,FALSE)","v":{"$error":"#N/A"}},null,null,null,"--",{"$error":"#N/A"},null,null,null,null,null,"--",null,null,"","Zone 00 Street 00 Building 00",null,{"$error":"#N/A"},null,"ARKAN GULF TRADING & CONTRACTING","2024-09-11T11:06:02.850",null,"Payroll Service (Worker)","Y","Work Visa"]
[null,null,null,null," ",null,{"$f":"VLOOKUP(F625,'Validation sheet'!E:F,2,FALSE)","v":{"$error":"#N/A"}},null,null,null,"--",{"$error":"#N/A"},null,null,null,null,null,"--",null,null,"","Zone 00 Street 00 Building 00",null,{"$error":"#N/A"},null,"ARKAN GULF TRADING & CONTRACTING","2024-09-11T11:06:02.850",null,"Payroll Service (Worker)","Y","Work Visa"]
[null,null,null,null," ",null,{"$f":"VLOOKUP(F626,'Validation sheet'!E:F,2,FALSE)","v":{"$error":"#N/A"}},null,null,null,"--",{"$error":"#N/A"},null,null,null,null,null,"--",null,null,"","Zone 00 Street 00 Building 00",null,{"$error":"#N/A"},null,"ARKAN GULF TRADING & CONTRACTING","2024-09-11T11:06:02.850",null,"Payroll Service (Worker)","Y","Work Visa"]
[null,null,null,null," ",null,{"$f":"VLOOKUP(F627,'Validation sheet'!E:F,2,FALSE)","v":{"$error":"#N/A"}},null,null,null,"--",{"$error":"#N/A"},null,null,null,null,null,"--",null,null,"","Zone 00 Street 00 Building 00",null,{"$error":"#N/A"},null,"ARKAN GULF TRADING & CONTRACTING","2024-09-11T11:06:02.850",null,"Payroll Service (Worker)","Y","Work Visa"]
[null,null,null,null," ",null,{"$f":"VLOOKUP(F628,'Validation sheet'!E:F,2,FALSE)","v":{"$error":"#N/A"}},null,null,null,"--",{"$error":"#N/A"},null,null,null,null,null,"--",null,null,"","Zone 00 Street 00 Building 00",null,{"$error":"#N/A"},null,"ARKAN GULF TRADING & CONTRACTING","2024-09-11T11:06:02.850",null,"Payroll Service (Worker)","Y","Work Visa"]
[null,null,null,null," ",null,{"$f":"VLOOKUP(F629,'Validation sheet'!E:F,2,FALSE)","v":{"$error":"#N/A"}},null,null,null,"--",{"$error":"#N/A"},null,null,null,null,null,"--",null,null,"","Zone 00 Street 00 Building 00",null,{"$error":"#N/A"},null,"ARKAN GULF TRADING & CONTRACTING","2024-09-11T11:06:02.850",null,"Payroll Service (Worker)","Y","Work Visa"]
[null,null,null,null," ",null,{"$f":"VLOOKUP(F630,'Validation sheet'!E:F,2,FALSE)","v":{"$error":"#N/A"}},null,null,null,"--",{"$error":"#N/A"},null,null,null,null,null,"--",null,null,"","Zone 00 Street 00 Building 00",null,{"$error":"#N/A"},null,"ARKAN GULF TRADING & CONTRACTING","2024-09-11T11:06:02.850",null,"Payroll Service (Worker)","Y","Work Visa"]
[null,null,null,null," ",null,{"$f":"VLOOKUP(F631,'Validation sheet'!E:F,2,FALSE)","v":{"$error":"#N/A"}},null,null,null,"--",{"$error":"#N/A"},null,null,null,null,null,"--",null,null,"","Zone 00 Street 00 Building 00",null,{"$error":"#N/A"},null,"ARKAN GULF TRADING & CONTRACTING","2024-09-11T11:06:02.850",null,"Payroll Service (Worker)","Y","Work Visa"]
[null,null,null,null," ",null,{"$f":"VLOOKUP(F632,'Validation sheet'!E:F,2,FALSE)","v":{"$error":"#N/A"}},null,null,null,"--",{"$error":"#N/A"},null,null,null,null,null,"--",null,null,"","Zone 00 Street 00 Building 00",null,{"$error":"#N/A"},null,"ARKAN GULF TRADING & CONTRACTING","2024-09-11T11:06:02.850",null,"Payroll Service (Worker)","Y","Work Visa"]
[null,null,null,null," ",null,{"$f":"VLOOKUP(F633,'Validation sheet'!E:F,2,FALSE)","v":{"$error":"#N/A"}},null,null,null,"--",{"$error":"#N/A"},null,null,null,null,null,"--",null,null,"","Zone 00 Street 00 Building 00",null,{"$error":"#N/A"},null,"ARKAN GULF TRADING & CONTRACTING","2024-09-11T11:06:02.850",null,"Payroll Service (Worker)","Y","Work Visa"]
[null,null,null,null," ",null,{"$f":"VLOOKUP(F634,'Validation sheet'!E:F,2,FALSE)","v":{"$error":"#N/A"}},null,null,null,"--",{"$error":"#N/A"},null,null,null,null,null,"--",null,null,"","Zone 00 Street 00 Building 00",null,{"$error":"#N/A"},null,"ARKAN GULF TRADING & CONTRACTING","2024-09-11T11:06:02.850",null,"Payroll Service (Worker)","Y","Work Visa"]
[null,null,null,null," ",null,{"$f":"VLOOKUP(F635,'Validation sheet'!E:F,2,FALSE)","v":{"$error":"#N/A"}},null,null,null,"--",{"$error":"#N/A"},null,null,null,null,null,"--",null,null,"","Zone 00 Street 00 Building 00",null,{"$error":"#N/A"},null,"ARKAN GULF TRADING & CONTRACTING","2024-09-11T11:06:02.850",null,"Payroll Service (Worker)","Y","Work Visa"]
[null,null,null,null," ",null,{"$f":"VLOOKUP(F636,'Validation sheet'!E:F,2,FALSE)","v":{"$error":"#N/A"}},null,null,null,"--",{"$error":"#N/A"},null,null,null,null,null,"--",null,null,"","Zone 00 Street 00 Building 00",null,{"$error":"#N/A"},null,"ARKAN GULF TRADING & CONTRACTING","2024-09-11T11:06:02.850",null,"Payroll Service (Worker)","Y","Work Visa"]
[null,null,null,null," ",null,{"$f":"VLOOKUP(F637,'Validation sheet'!E:F,2,FALSE)","v":{"$error":"#N/A"}},null,null,null,"--",{"$error":"#N/A"},null,null,null,null,null,"--",null,null,"","Zone 00 Street 00 Building 00",null,{"$error":"#N/A"},null,"ARKAN GULF TRADING & CONTRACTING","2024-09-11T11:06:02.850",null,"Payroll Service (Worker)","Y","Work Visa"]
[null,null,null,null," ",null,{"$f":"VLOOKUP(F638,'Validation sheet'!E:F,2,FALSE)","v":{"$error":"#N/A"}},null,null,null,"--",{"$error":"#N/A"},null,null,null,null,null,"--",null,null,"","Zone 00 Street 00 Building 00",null,{"$error":"#N/A"},null,"ARKAN GULF TRADING & CONTRACTING","2024-09-11T11:06:02.850",null,"Payroll Service (Worker)","Y","Work Visa"]
[null,null,null,null," ",null,{"$f":"VLOOKUP(F639,'Validation sheet'!E:F,2,FALSE)","v":{"$error":"#N/A"}},null,null,null,"--",{"$error":"#N/A"},null,null,null,null,null,"--",null,null,"","Zone 00 Street 00 Building 00",null,{"$error":"#N/A"},null,"ARKAN GULF TRADING & CONTRACTING","2024-09-11T11:06:02.850",null,"Payroll Service (Worker)","Y","Work Visa"]
[null,null,null,null," ",null,{"$f":"VLOOKUP(F640,'Validation sheet'!E:F,2,FALSE)","v":{"$error":"#N/A"}},null,null,null,"--",{"$error":"#N/A"},null,null,null,null,null,"--",null,null,"","Zone 00 Street 00 Building 00",null,{"$error":"#N/A"},null,"ARKAN GULF TRADING & CONTRACTING","2024-09-11T11:06:02.850",null,"Payroll Service (Worker)","Y","Work Visa"]
[null,null,null,null," ",null,{"$f":"VLOOKUP(F641,'Validation sheet'!E:F,2,FALSE)","v":{"$error":"#N/A"}},null,null,null,"--",{"$error":"#N/A"},null,null,null,null,null,"--",null,null,"","Zone 00 Street 00 Building 00",null,{"$error":"#N/A"},null,"ARKAN GULF TRADING & CONTRACTING","2024-09-11T11:06:02.850",null,"Payroll Service (Worker)","Y","Work Visa"]
[null,null,null,null," ",null,{"$f":"VLOOKUP(F642,'Validation sheet'!E:F,2,FALSE)","v":{"$error":"#N/A"}},null,null,null,"--",{"$error":"#N/A"},null,null,null,null,null,"--",null,null,"","Zone 00 Street 00 Building 00",null,{"$error":"#N/A"},null,"ARKAN GULF TRADING & CONTRACTING","2024-09-11T11:06:02.850",null,"Payroll Service (Worker)","Y","Work Visa"]
[null,null,null,null," ",null,{"$f":"VLOOKUP(F643,'Validation sheet'!E:F,2,FALSE)","v":{"$error":"#N/A"}},null,null,null,"--",{"$error":"#N/A"},null,null,null,null,null,"--",null,null,"","Zone 00 Street 00 Building 00",null,{"$error":"#N/A"},null,"ARKAN GULF TRADING & CONTRACTING","2024-09-11T11:06:02.850",null,"Payroll Service (Worker)","Y","Work Visa"]
[null,null,null,null," ",null,{"$f":"VLOOKUP(F644,'Validation sheet'!E:F,2,FALSE)","v":{"$error":"#N/A"}},null,null,null,"--",{"$error":"#N/A"},null,null,null,null,null,"--",null,null,"","Zone 00 Street 00 Building 00",null,{"$error":"#N/A"},null,"ARKAN GULF TRADING & CONTRACTING","2024-09-11T11:06:02.850",null,"Payroll Service (Worker)","Y","Work Visa"]
[null,null,null,null," ",null,{"$f":"VLOOKUP(F645,'Validation sheet'!E:F,2,FALSE)","v":{"$error":"#N/A"}},null,null,null,"--",{"$error":"#N/A"},null,null,null,null,null,"--",null,null,"","Zone 00 Street 00 Building 00",null,{"$error":"#N/A"},null,"ARKAN GULF TRADING & CONTRACTING","2024-09-11T11:06:02.850",null,"Payroll Service (Worker)","Y","Work Visa"]
[null,null,null,null," ",null,{"$f":"VLOOKUP(F646,'Validation sheet'!E:F,2,FALSE)","v":{"$error":"#N/A"}},null,null,null,"--",{"$error":"#N/A"},null,null,null,null,null,"--",null,null,"","Zone 00 Street 00 Building 00",null,{"$error":"#N/A"},null,"ARKAN GULF TRADING & CONTRACTING","2024-09-11T11:06:02.850",null,"Payroll Service (Worker)","Y","Work Visa"]
[null,null,null,null," ",null,{"$f":"VLOOKUP(F647,'Validation sheet'!E:F,2,FALSE)","v":{"$error":"#N/A"}},null,null,null,"--",{"$error":"#N/A"},null,null,null,null,null,"--",null,null,{"$f":"S647&T647","v":""},"Zone 00 Street 00 Building 00",null,{"$f":"L647","v":{"$error":"#N/A"}},null,"ARKAN GULF TRADING & CONTRACTING","2024-09-11T11:06:02.850",null,"Payroll Service (Worker)","Y","Work Visa"]
[null,null,null,null,{"$f":"B648&\" \"&D648","v":" "},null,{"$f":"VLOOKUP(F648,'Validation sheet'!E:F,2,FALSE)","v":{"$error":"#N/A"}},null,null,null,{"$f":"H648&\"-\"&I648&\"-\"&J648","v":"--"},{"$f":"G648","v":{"$error":"#N/A"}},null,null,null,null,null,{"$f":"O648&\"-\"&P648&\"-\"&Q648","v":"--"},null,null,"","Zone 00 Street 00 Building 00",null,{"$error":"#N/A"},null,{"$f":"$B$1","v":"ARKAN GULF TRADING & CONTRACTING"},{"$f":"NOW()","v":"2024-09-11T11:06:02.850"},null,"Payroll Service (Worker)","Y","Work Visa"]
[null,null,null,null," ",null,{"$f":"VLOOKUP(F649,'Validation sheet'!E:F,2,FALSE)","v":{"$error":"#N/A"}},null,null,null,"--",{"$error":"#N/A"},null,null,null,null,null,"--",null,null,"","Zone 00 Street 00 Building 00",null,{"$error":"#N/A"},null,"ARKAN GULF TRADING & CONTRACTING","2024-09-11T11:06:02.850",null,"Payroll Service (Worker)","Y","Work Visa"]
[null,null,null,null," ",null,{"$f":"VLOOKUP(F650,'Validation sheet'!E:F,2,FALSE)","v":{"$error":"#N/A"}},null,null,null,"--",{"$error":"#N/A"},null,null,null,null,null,"--",null,null,"","Zone 00 Street 00 Building 00",null,{"$error":"#N/A"},null,"ARKAN GULF TRADING & CONTRACTING","2024-09-11T11:06:02.850",null,"Payroll Service (Worker)","Y","Work Visa"]
[null,null,null,null," ",null,{"$f":"VLOOKUP(F651,'Validation sheet'!E:F,2,FALSE)","v":{"$error":"#N/A"}},null,null,null,"--",{"$error":"#N/A"},null,null,null,null,null,"--",null,null,"","Zone 00 Street 00 Building 00",null,{"$error":"#N/A"},null,"ARKAN GULF TRADING & CONTRACTING","2024-09-11T11:06:02.850",null,"Payroll Service (Worker)","Y","Work Visa"]
[null,null,null,null," ",null,{"$f":"VLOOKUP(F652,'Validation sheet'!E:F,2,FALSE)","v":{"$error":"#N/A"}},null,null,null,"--",{"$error":"#N/A"},null,null,null,null,null,"--",null,null,"","Zone 00 Street 00 Building 00",null,{"$error":"#N/A"},null,"ARKAN GULF TRADING & CONTRACTING","2024-09-11T11:06:02.850",null,"Payroll Service (Worker)","Y","Work Visa"]
[null,null,null,null," ",null,{"$f":"VLOOKUP(F653,'Validation sheet'!E:F,2,FALSE)","v":{"$error":"#N/A"}},null,null,null,"--",{"$error":"#N/A"},null,null,null,null,null,"--",null,null,"","Zone 00 Street 00 Building 00",null,{"$error":"#N/A"},null,"ARKAN GULF TRADING & CONTRACTING","2024-09-11T11:06:02.850",null,"Payroll Service (Worker)","Y","Work Visa"]
[null,null,null,null," ",null,{"$f":"VLOOKUP(F654,'Validation sheet'!E:F,2,FALSE)","v":{"$error":"#N/A"}},null,null,null,"--",{"$error":"#N/A"},null,null,null,null,null,"--",null,null,"","Zone 00 Street 00 Building 00",null,{"$error":"#N/A"},null,"ARKAN GULF TRADING & CONTRACTING","2024-09-11T11:06:02.850",null,"Payroll Service (Worker)","Y","Work Visa"]
[null,null,null,null," ",null,{"$f":"VLOOKUP(F655,'Validation sheet'!E:F,2,FALSE)","v":{"$error":"#N/A"}},null,null,null,"--",{"$error":"#N/A"},null,null,null,null,null,"--",null,null,"","Zone 00 Street 00 Building 00",null,{"$error":"#N/A"},null,"ARKAN GULF TRADING & CONTRACTING","2024-09-11T11:06:02.850",null,"Payroll Service (Worker)","Y","Work Visa"]
[null,null,null,null," ",null,{"$f":"VLOOKUP(F656,'Validation sheet'!E:F,2,FALSE)","v":{"$error":"#N/A"}},null,null,null,"--",{"$error":"#N/A"},null,null,null,null,null,"--",null,null,"","Zone 00 Street 00 Building 00",null,{"$error":"#N/A"},null,"ARKAN GULF TRADING & CONTRACTING","2024-09-11T11:06:02.850",null,"Payroll Service (Worker)","Y","Work Visa"]
[null,null,null,null," ",null,{"$f":"VLOOKUP(F657,'Validation sheet'!E:F,2,FALSE)","v":{"$error":"#N/A"}},null,null,null,"--",{"$error":"#N/A"},null,null,null,null,null,"--",null,null,"","Zone 00 Street 00 Building 00",null,{"$error":"#N/A"},null,"ARKAN GULF TRADING & CONTRACTING","2024-09-11T11:06:02.850",null,"Payroll Service (Worker)","Y","Work Visa"]
[null,null,null,null," ",null,{"$f":"VLOOKUP(F658,'Validation sheet'!E:F,2,FALSE)","v":{"$error":"#N/A"}},null,null,null,"--",{"$error":"#N/A"},null,null,null,null,null,"--",null,null,"","Zone 00 Street 00 Building 00",null,{"$error":"#N/A"},null,"ARKAN GULF TRADING & CONTRACTING","2024-09-11T11:06:02.850",null,"Payroll Service (Worker)","Y","Work Visa"]
[null,null,null,null," ",null,{"$f":"VLOOKUP(F659,'Validation sheet'!E:F,2,FALSE)","v":{"$error":"#N/A"}},null,null,null,"--",{"$error":"#N/A"},null,null,null,null,null,"--",null,null,"","Zone 00 Street 00 Building 00",null,{"$error":"#N/A"},null,"ARKAN GULF TRADING & CONTRACTING","2024-09-11T11:06:02.850",null,"Payroll Service (Worker)","Y","Work Visa"]
[null,null,null,null," ",null,{"$f":"VLOOKUP(F660,'Validation sheet'!E:F,2,FALSE)","v":{"$error":"#N/A"}},null,null,null,"--",{"$error":"#N/A"},null,null,null,null,null,"--",null,null,"","Zone 00 Street 00 Building 00",null,{"$error":"#N/A"},null,"ARKAN GULF TRADING & CONTRACTING","2024-09-11T11:06:02.850",null,"Payroll Service (Worker)","Y","Work Visa"]
[null,null,null,null," ",null,{"$f":"VLOOKUP(F661,'Validation sheet'!E:F,2,FALSE)","v":{"$error":"#N/A"}},null,null,null,"--",{"$error":"#N/A"},null,null,null,null,null,"--",null,null,"","Zone 00 Street 00 Building 00",null,{"$error":"#N/A"},null,"ARKAN GULF TRADING & CONTRACTING","2024-09-11T11:06:02.850",null,"Payroll Service (Worker)","Y","Work Visa"]
[null,null,null,null," ",null,{"$f":"VLOOKUP(F662,'Validation sheet'!E:F,2,FALSE)","v":{"$error":"#N/A"}},null,null,null,"--",{"$error":"#N/A"},null,null,null,null,null,"--",null,null,"","Zone 00 Street 00 Building 00",null,{"$error":"#N/A"},null,"ARKAN GULF TRADING & CONTRACTING","2024-09-11T11:06:02.850",null,"Payroll Service (Worker)","Y","Work Visa"]
[null,null,null,null," ",null,{"$f":"VLOOKUP(F663,'Validation sheet'!E:F,2,FALSE)","v":{"$error":"#N/A"}},null,null,null,"--",{"$error":"#N/A"},null,null,null,null,null,"--",null,null,"","Zone 00 Street 00 Building 00",null,{"$error":"#N/A"},null,"ARKAN GULF TRADING & CONTRACTING","2024-09-11T11:06:02.850",null,"Payroll Service (Worker)","Y","Work Visa"]
[null,null,null,null," ",null,{"$f":"VLOOKUP(F664,'Validation sheet'!E:F,2,FALSE)","v":{"$error":"#N/A"}},null,null,null,"--",{"$error":"#N/A"},null,null,null,null,null,"--",null,null,"","Zone 00 Street 00 Building 00",null,{"$error":"#N/A"},null,"ARKAN GULF TRADING & CONTRACTING","2024-09-11T11:06:02.850",null,"Payroll Service (Worker)","Y","Work Visa"]
[null,null,null,null," ",null,{"$f":"VLOOKUP(F665,'Validation sheet'!E:F,2,FALSE)","v":{"$error":"#N/A"}},null,null,null,"--",{"$error":"#N/A"},null,null,null,null,null,"--",null,null,"","Zone 00 Street 00 Building 00",null,{"$error":"#N/A"},null,"ARKAN GULF TRADING & CONTRACTING","2024-09-11T11:06:02.850",null,"Payroll Service (Worker)","Y","Work Visa"]
[null,null,null,null," ",null,{"$f":"VLOOKUP(F666,'Validation sheet'!E:F,2,FALSE)","v":{"$error":"#N/A"}},null,null,null,"--",{"$error":"#N/A"},null,null,null,null,null,"--",null,null,"","Zone 00 Street 00 Building 00",null,{"$error":"#N/A"},null,"ARKAN GULF TRADING & CONTRACTING","2024-09-11T11:06:02.850",null,"Payroll Service (Worker)","Y","Work Visa"]
[null,null,null,null," ",null,{"$f":"VLOOKUP(F667,'Validation sheet'!E:F,2,FALSE)","v":{"$error":"#N/A"}},null,null,null,"--",{"$error":"#N/A"},null,null,null,null,null,"--",null,null,"","Zone 00 Street 00 Building 00",null,{"$error":"#N/A"},null,"ARKAN GULF TRADING & CONTRACTING","2024-09-11T11:06:02.850",null,"Payroll Service (Worker)","Y","Work Visa"]
[null,null,null,null," ",null,{"$f":"VLOOKUP(F668,'Validation sheet'!E:F,2,FALSE)","v":{"$error":"#N/A"}},null,null,null,"--",{"$error":"#N/A"},null,null,null,null,null,"--",null,null,"","Zone 00 Street 00 Building 00",null,{"$error":"#N/A"},null,"ARKAN GULF TRADING & CONTRACTING","2024-09-11T11:06:02.850",null,"Payroll Service (Worker)","Y","Work Visa"]
[null,null,null,null," ",null,{"$f":"VLOOKUP(F669,'Validation sheet'!E:F,2,FALSE)","v":{"$error":"#N/A"}},null,null,null,"--",{"$error":"#N/A"},null,null,null,null,null,"--",null,null,"","Zone 00 Street 00 Building 00",null,{"$error":"#N/A"},null,"ARKAN GULF TRADING & CONTRACTING","2024-09-11T11:06:02.850",null,"Payroll Service (Worker)","Y","Work Visa"]
[null,null,null,null," ",null,{"$f":"VLOOKUP(F670,'Validation sheet'!E:F,2,FALSE)","v":{"$error":"#N/A"}},null,null,null,"--",{"$error":"#N/A"},null,null,null,null,null,"--",null,null,"","Zone 00 Street 00 Building 00",null,{"$error":"#N/A"},null,"ARKAN GULF TRADING & CONTRACTING","2024-09-11T11:06:02.850",null,"Payroll Service (Worker)","Y","Work Visa"]
[null,null,null,null," ",null,{"$f":"VLOOKUP(F671,'Validation sheet'!E:F,2,FALSE)","v":{"$error":"#N/A"}},null,null,null,"--",{"$error":"#N/A"},null,null,null,null,null,"--",null,null,"","Zone 00 Street 00 Building 00",null,{"$error":"#N/A"},null,"ARKAN GULF TRADING & CONTRACTING","2024-09-11T11:06:02.850",null,"Payroll Service (Worker)","Y","Work Visa"]
[null,null,null,null," ",null,{"$f":"VLOOKUP(F672,'Validation sheet'!E:F,2,FALSE)","v":{"$error":"#N/A"}},null,null,null,"--",{"$error":"#N/A"},null,null,null,null,null,"--",null,null,"","Zone 00 Street 00 Building 00",null,{"$error":"#N/A"},null,"ARKAN GULF TRADING & CONTRACTING","2024-09-11T11:06:02.850",null,"Payroll Service (Worker)","Y","Work Visa"]
[null,null,null,null," ",null,{"$f":"VLOOKUP(F673,'Validation sheet'!E:F,2,FALSE)","v":{"$error":"#N/A"}},null,null,null,"--",{"$error":"#N/A"},null,null,null,null,null,"--",null,null,"","Zone 00 Street 00 Building 00",null,{"$error":"#N/A"},null,"ARKAN GULF TRADING & CONTRACTING","2024-09-11T11:06:02.850",null,"Payroll Service (Worker)","Y","Work Visa"]
[null,null,null,null," ",null,{"$f":"VLOOKUP(F674,'Validation sheet'!E:F,2,FALSE)","v":{"$error":"#N/A"}},null,null,null,"--",{"$error":"#N/A"},null,null,null,null,null,"--",null,null,"","Zone 00 Street 00 Building 00",null,{"$error":"#N/A"},null,"ARKAN GULF TRADING & CONTRACTING","2024-09-11T11:06:02.850",null,"Payroll Service (Worker)","Y","Work Visa"]
[null,null,null,null," ",null,{"$f":"VLOOKUP(F675,'Validation sheet'!E:F,2,FALSE)","v":{"$error":"#N/A"}},null,null,null,"--",{"$error":"#N/A"},null,null,null,null,null,"--",null,null,"","Zone 00 Street 00 Building 00",null,{"$error":"#N/A"},null,"ARKAN GULF TRADING & CONTRACTING","2024-09-11T11:06:02.850",null,"Payroll Service (Worker)","Y","Work Visa"]
[null,null,null,null," ",null,{"$f":"VLOOKUP(F676,'Validation sheet'!E:F,2,FALSE)","v":{"$error":"#N/A"}},null,null,null,"--",{"$error":"#N/A"},null,null,null,null,null,"--",null,null,"","Zone 00 Street 00 Building 00",null,{"$error":"#N/A"},null,"ARKAN GULF TRADING & CONTRACTING","2024-09-11T11:06:02.850",null,"Payroll Service (Worker)","Y","Work Visa"]
[null,null,null,null," ",null,{"$f":"VLOOKUP(F677,'Validation sheet'!E:F,2,FALSE)","v":{"$error":"#N/A"}},null,null,null,"--",{"$error":"#N/A"},null,null,null,null,null,"--",null,null,"","Zone 00 Street 00 Building 00",null,{"$error":"#N/A"},null,"ARKAN GULF TRADING & CONTRACTING","2024-09-11T11:06:02.850",null,"Payroll Service (Worker)","Y","Work Visa"]
[null,null,null,null," ",null,{"$f":"VLOOKUP(F678,'Validation sheet'!E:F,2,FALSE)","v":{"$error":"#N/A"}},null,null,null,"--",{"$error":"#N/A"},null,null,null,null,null,"--",null,null,"","Zone 00 Street 00 Building 00",null,{"$error":"#N/A"},null,"ARKAN GULF TRADING & CONTRACTING","2024-09-11T11:06:02.850",null,"Payroll Service (Worker)","Y","Work Visa"]
[null,null,null,null," ",null,{"$f":"VLOOKUP(F679,'Validation sheet'!E:F,2,FALSE)","v":{"$error":"#N/A"}},null,null,null,"--",{"$error":"#N/A"},null,null,null,null,null,"--",null,null,"","Zone 00 Street 00 Building 00",null,{"$error":"#N/A"},null,"ARKAN GULF TRADING & CONTRACTING","2024-09-11T11:06:02.850",null,"Payroll Service (Worker)","Y","Work Visa"]
[null,null,null,null," ",null,{"$f":"VLOOKUP(F680,'Validation sheet'!E:F,2,FALSE)","v":{"$error":"#N/A"}},null,null,null,"--",{"$error":"#N/A"},null,null,null,null,null,"--",null,null,"","Zone 00 Street 00 Building 00",null,{"$error":"#N/A"},null,"ARKAN GULF TRADING & CONTRACTING","2024-09-11T11:06:02.850",null,"Payroll Service (Worker)","Y","Work Visa"]
[null,null,null,null," ",null,{"$f":"VLOOKUP(F681,'Validation sheet'!E:F,2,FALSE)","v":{"$error":"#N/A"}},null,null,null,"--",{"$error":"#N/A"},null,null,null,null,null,"--",null,null,"","Zone 00 Street 00 Building 00",null,{"$error":"#N/A"},null,"ARKAN GULF TRADING & CONTRACTING","2024-09-11T11:06:02.850",null,"Payroll Service (Worker)","Y","Work Visa"]
[null,null,null,null," ",null,{"$f":"VLOOKUP(F682,'Validation sheet'!E:F,2,FALSE)","v":{"$error":"#N/A"}},null,null,null,"--",{"$error":"#N/A"},null,null,null,null,null,"--",null,null,"","Zone 00 Street 00 Building 00",null,{"$error":"#N/A"},null,"ARKAN GULF TRADING & CONTRACTING","2024-09-11T11:06:02.850",null,"Payroll Service (Worker)","Y","Work Visa"]
[null,null,null,null," ",null,{"$f":"VLOOKUP(F683,'Validation sheet'!E:F,2,FALSE)","v":{"$error":"#N/A"}},null,null,null,"--",{"$error":"#N/A"},null,null,null,null,null,"--",null,null,"","Zone 00 Street 00 Building 00",null,{"$error":"#N/A"},null,"ARKAN GULF TRADING & CONTRACTING","2024-09-11T11:06:02.850",null,"Payroll Service (Worker)","Y","Work Visa"]
[null,null,null,null," ",null,{"$f":"VLOOKUP(F684,'Validation sheet'!E:F,2,FALSE)","v":{"$error":"#N/A"}},null,null,null,"--",{"$error":"#N/A"},null,null,null,null,null,"--",null,null,"","Zone 00 Street 00 Building 00",null,{"$error":"#N/A"},null,"ARKAN GULF TRADING & CONTRACTING","2024-09-11T11:06:02.850",null,"Payroll Service (Worker)","Y","Work Visa"]
[null,null,null,null," ",null,{"$f":"VLOOKUP(F685,'Validation sheet'!E:F,2,FALSE)","v":{"$error":"#N/A"}},null,null,null,"--",{"$error":"#N/A"},null,null,null,null,null,"--",null,null,"","Zone 00 Street 00 Building 00",null,{"$error":"#N/A"},null,"ARKAN GULF TRADING & CONTRACTING","2024-09-11T11:06:02.850",null,"Payroll Service (Worker)","Y","Work Visa"]
[null,null,null,null," ",null,{"$f":"VLOOKUP(F686,'Validation sheet'!E:F,2,FALSE)","v":{"$error":"#N/A"}},null,null,null,"--",{"$error":"#N/A"},null,null,null,null,null,"--",null,null,"","Zone 00 Street 00 Building 00",null,{"$error":"#N/A"},null,"ARKAN GULF TRADING & CONTRACTING","2024-09-11T11:06:02.850",null,"Payroll Service (Worker)","Y","Work Visa"]
[null,null,null,null," ",null,{"$f":"VLOOKUP(F687,'Validation sheet'!E:F,2,FALSE)","v":{"$error":"#N/A"}},null,null,null,"--",{"$error":"#N/A"},null,null,null,null,null,"--",null,null,"","Zone 00 Street 00 Building 00",null,{"$error":"#N/A"},null,"ARKAN GULF TRADING & CONTRACTING","2024-09-11T11:06:02.850",null,"Payroll Service (Worker)","Y","Work Visa"]
[null,null,null,null," ",null,{"$f":"VLOOKUP(F688,'Validation sheet'!E:F,2,FALSE)","v":{"$error":"#N/A"}},null,null,null,"--",{"$error":"#N/A"},null,null,null,null,null,"--",null,null,"","Zone 00 Street 00 Building 00",null,{"$error":"#N/A"},null,"ARKAN GULF TRADING & CONTRACTING","2024-09-11T11:06:02.850",null,"Payroll Service (Worker)","Y","Work Visa"]
[null,null,null,null," ",null,{"$f":"VLOOKUP(F689,'Validation sheet'!E:F,2,FALSE)","v":{"$error":"#N/A"}},null,null,null,"--",{"$error":"#N/A"},null,null,null,null,null,"--",null,null,"","Zone 00 Street 00 Building 00",null,{"$error":"#N/A"},null,"ARKAN GULF TRADING & CONTRACTING","2024-09-11T11:06:02.850",null,"Payroll Service (Worker)","Y","Work Visa"]
[null,null,null,null," ",null,{"$f":"VLOOKUP(F690,'Validation sheet'!E:F,2,FALSE)","v":{"$error":"#N/A"}},null,null,null,"--",{"$error":"#N/A"},null,null,null,null,null,"--",null,null,"","Zone 00 Street 00 Building 00",null,{"$error":"#N/A"},null,"ARKAN GULF TRADING & CONTRACTING","2024-09-11T11:06:02.850",null,"Payroll Service (Worker)","Y","Work Visa"]
[null,null,null,null," ",null,{"$f":"VLOOKUP(F691,'Validation sheet'!E:F,2,FALSE)","v":{"$error":"#N/A"}},null,null,null,"--",{"$error":"#N/A"},null,null,null,null,null,"--",null,null,"","Zone 00 Street 00 Building 00",null,{"$error":"#N/A"},null,"ARKAN GULF TRADING & CONTRACTING","2024-09-11T11:06:02.850",null,"Payroll Service (Worker)","Y","Work Visa"]
[null,null,null,null," ",null,{"$f":"VLOOKUP(F692,'Validation sheet'!E:F,2,FALSE)","v":{"$error":"#N/A"}},null,null,null,"--",{"$error":"#N/A"},null,null,null,null,null,"--",null,null,"","Zone 00 Street 00 Building 00",null,{"$error":"#N/A"},null,"ARKAN GULF TRADING & CONTRACTING","2024-09-11T11:06:02.850",null,"Payroll Service (Worker)","Y","Work Visa"]
[null,null,null,null," ",null,{"$f":"VLOOKUP(F693,'Validation sheet'!E:F,2,FALSE)","v":{"$error":"#N/A"}},null,null,null,"--",{"$error":"#N/A"},null,null,null,null,null,"--",null,null,"","Zone 00 Street 00 Building 00",null,{"$error":"#N/A"},null,"ARKAN GULF TRADING & CONTRACTING","2024-09-11T11:06:02.850",null,"Payroll Service (Worker)","Y","Work Visa"]
[null,null,null,null," ",null,{"$f":"VLOOKUP(F694,'Validation sheet'!E:F,2,FALSE)","v":{"$error":"#N/A"}},null,null,null,"--",{"$error":"#N/A"},null,null,null,null,null,"--",null,null,"","Zone 00 Street 00 Building 00",null,{"$error":"#N/A"},null,"ARKAN GULF TRADING & CONTRACTING","2024-09-11T11:06:02.850",null,"Payroll Service (Worker)","Y","Work Visa"]
[null,null,null,null," ",null,{"$f":"VLOOKUP(F695,'Validation sheet'!E:F,2,FALSE)","v":{"$error":"#N/A"}},null,null,null,"--",{"$error":"#N/A"},null,null,null,null,null,"--",null,null,"","Zone 00 Street 00 Building 00",null,{"$error":"#N/A"},null,"ARKAN GULF TRADING & CONTRACTING","2024-09-11T11:06:02.850",null,"Payroll Service (Worker)","Y","Work Visa"]
[null,null,null,null," ",null,{"$f":"VLOOKUP(F696,'Validation sheet'!E:F,2,FALSE)","v":{"$error":"#N/A"}},null,null,null,"--",{"$error":"#N/A"},null,null,null,null,null,"--",null,null,"","Zone 00 Street 00 Building 00",null,{"$error":"#N/A"},null,"ARKAN GULF TRADING & CONTRACTING","2024-09-11T11:06:02.850",null,"Payroll Service (Worker)","Y","Work Visa"]
[null,null,null,null," ",null,{"$f":"VLOOKUP(F697,'Validation sheet'!E:F,2,FALSE)","v":{"$error":"#N/A"}},null,null,null,"--",{"$error":"#N/A"},null,null,null,null,null,"--",null,null,"","Zone 00 Street 00 Building 00",null,{"$error":"#N/A"},null,"ARKAN GULF TRADING & CONTRACTING","2024-09-11T11:06:02.850",null,"Payroll Service (Worker)","Y","Work Visa"]
[null,null,null,null," ",null,{"$f":"VLOOKUP(F698,'Validation sheet'!E:F,2,FALSE)","v":{"$error":"#N/A"}},null,null,null,"--",{"$error":"#N/A"},null,null,null,null,null,"--",null,null,"","Zone 00 Street 00 Building 00",null,{"$error":"#N/A"},null,"ARKAN GULF TRADING & CONTRACTING","2024-09-11T11:06:02.850",null,"Payroll Service (Worker)","Y","Work Visa"]
[null,null,null,null," ",null,{"$f":"VLOOKUP(F699,'Validation sheet'!E:F,2,FALSE)","v":{"$error":"#N/A"}},null,null,null,"--",{"$error":"#N/A"},null,null,null,null,null,"--",null,null,"","Zone 00 Street 00 Building 00",null,{"$error":"#N/A"},null,"ARKAN GULF TRADING & CONTRACTING","2024-09-11T11:06:02.850",null,"Payroll Service (Worker)","Y","Work Visa"]
[null,null,null,null," ",null,{"$f":"VLOOKUP(F700,'Validation sheet'!E:F,2,FALSE)","v":{"$error":"#N/A"}},null,null,null,"--",{"$error":"#N/A"},null,null,null,null,null,"--",null,null,"","Zone 00 Street 00 Building 00",null,{"$error":"#N/A"},null,"ARKAN GULF TRADING & CONTRACTING","2024-09-11T11:06:02.850",null,"Payroll Service (Worker)","Y","Work Visa"]
[null,null,null,null," ",null,{"$f":"VLOOKUP(F701,'Validation sheet'!E:F,2,FALSE)","v":{"$error":"#N/A"}},null,null,null,"--",{"$error":"#N/A"},null,null,null,null,null,"--",null,null,"","Zone 00 Street 00 Building 00",null,{"$error":"#N/A"},null,"ARKAN GULF TRADING & CONTRACTING","2024-09-11T11:06:02.850",null,"Payroll Service (Worker)","Y","Work Visa"]
[null,null,null,null," ",null,{"$f":"VLOOKUP(F702,'Validation sheet'!E:F,2,FALSE)","v":{"$error":"#N/A"}},null,null,null,"--",{"$error":"#N/A"},null,null,null,null,null,"--",null,null,"","Zone 00 Street 00 Building 00",null,{"$error":"#N/A"},null,"ARKAN GULF TRADING & CONTRACTING","2024-09-11T11:06:02.850",null,"Payroll Service (Worker)","Y","Work Visa"]
[null,null,null,null," ",null,{"$f":"VLOOKUP(F703,'Validation sheet'!E:F,2,FALSE)","v":{"$error":"#N/A"}},null,null,null,"--",{"$error":"#N/A"},null,null,null,null,null,"--",null,null,"","Zone 00 Street 00 Building 00",null,{"$error":"#N/A"},null,"ARKAN GULF TRADING & CONTRACTING","2024-09-11T11:06:02.850",null,"Payroll Service (Worker)","Y","Work Visa"]
[null,null,null,null," ",null,{"$f":"VLOOKUP(F704,'Validation sheet'!E:F,2,FALSE)","v":{"$error":"#N/A"}},null,null,null,"--",{"$error":"#N/A"},null,null,null,null,null,"--",null,null,"","Zone 00 Street 00 Building 00",null,{"$error":"#N/A"},null,"ARKAN GULF TRADING & CONTRACTING","2024-09-11T11:06:02.850",null,"Payroll Service (Worker)","Y","Work Visa"]
[null,null,null,null," ",null,{"$f":"VLOOKUP(F705,'Validation sheet'!E:F,2,FALSE)","v":{"$error":"#N/A"}},null,null,null,"--",{"$error":"#N/A"},null,null,null,null,null,"--",null,null,"","Zone 00 Street 00 Building 00",null,{"$error":"#N/A"},null,"ARKAN GULF TRADING & CONTRACTING","2024-09-11T11:06:02.850",null,"Payroll Service (Worker)","Y","Work Visa"]
[null,null,null,null," ",null,{"$f":"VLOOKUP(F706,'Validation sheet'!E:F,2,FALSE)","v":{"$error":"#N/A"}},null,null,null,"--",{"$error":"#N/A"},null,null,null,null,null,"--",null,null,"","Zone 00 Street 00 Building 00",null,{"$error":"#N/A"},null,"ARKAN GULF TRADING & CONTRACTING","2024-09-11T11:06:02.850",null,"Payroll Service (Worker)","Y","Work Visa"]
[null,null,null,null," ",null,{"$f":"VLOOKUP(F707,'Validation sheet'!E:F,2,FALSE)","v":{"$error":"#N/A"}},null,null,null,"--",{"$error":"#N/A"},null,null,null,null,null,"--",null,null,"","Zone 00 Street 00 Building 00",null,{"$error":"#N/A"},null,"ARKAN GULF TRADING & CONTRACTING","2024-09-11T11:06:02.850",null,"Payroll Service (Worker)","Y","Work Visa"]
[null,null,null,null," ",null,{"$f":"VLOOKUP(F708,'Validation sheet'!E:F,2,FALSE)","v":{"$error":"#N/A"}},null,null,null,"--",{"$error":"#N/A"},null,null,null,null,null,"--",null,null,"","Zone 00 Street 00 Building 00",null,{"$error":"#N/A"},null,"ARKAN GULF TRADING & CONTRACTING","2024-09-11T11:06:02.850",null,"Payroll Service (Worker)","Y","Work Visa"]
[null,null,null,null," ",null,{"$f":"VLOOKUP(F709,'Validation sheet'!E:F,2,FALSE)","v":{"$error":"#N/A"}},null,null,null,"--",{"$error":"#N/A"},null,null,null,null,null,"--",null,null,"","Zone 00 Street 00 Building 00",null,{"$error":"#N/A"},null,"ARKAN GULF TRADING & CONTRACTING","2024-09-11T11:06:02.850",null,"Payroll Service (Worker)","Y","Work Visa"]
[null,null,null,null," ",null,{"$f":"VLOOKUP(F710,'Validation sheet'!E:F,2,FALSE)","v":{"$error":"#N/A"}},null,null,null,"--",{"$error":"#N/A"},null,null,null,null,null,"--",null,null,"","Zone 00 Street 00 Building 00",null,{"$error":"#N/A"},null,"ARKAN GULF TRADING & CONTRACTING","2024-09-11T11:06:02.850",null,"Payroll Service (Worker)","Y","Work Visa"]
[null,null,null,null," ",null,{"$f":"VLOOKUP(F711,'Validation sheet'!E:F,2,FALSE)","v":{"$error":"#N/A"}},null,null,null,"--",{"$error":"#N/A"},null,null,null,null,null,"--",null,null,{"$f":"S711&T711","v":""},"Zone 00 Street 00 Building 00",null,{"$f":"L711","v":{"$error":"#N/A"}},null,"ARKAN GULF TRADING & CONTRACTING","2024-09-11T11:06:02.850",null,"Payroll Service (Worker)","Y","Work Visa"]
[null,null,null,null,{"$f":"B712&\" \"&D712","v":" "},null,{"$f":"VLOOKUP(F712,'Validation sheet'!E:F,2,FALSE)","v":{"$error":"#N/A"}},null,null,null,{"$f":"H712&\"-\"&I712&\"-\"&J712","v":"--"},{"$f":"G712","v":{"$error":"#N/A"}},null,null,null,null,null,{"$f":"O712&\"-\"&P712&\"-\"&Q712","v":"--"},null,null,"","Zone 00 Street 00 Building 00",null,{"$error":"#N/A"},null,{"$f":"$B$1","v":"ARKAN GULF TRADING & CONTRACTING"},{"$f":"NOW()","v":"2024-09-11T11:06:02.850"},null,"Payroll Service (Worker)","Y","Work Visa"]
[null,null,null,null," ",null,{"$f":"VLOOKUP(F713,'Validation sheet'!E:F,2,FALSE)","v":{"$error":"#N/A"}},null,null,null,"--",{"$error":"#N/A"},null,null,null,null,null,"--",null,null,"","Zone 00 Street 00 Building 00",null,{"$error":"#N/A"},null,"ARKAN GULF TRADING & CONTRACTING","2024-09-11T11:06:02.850",null,"Payroll Service (Worker)","Y","Work Visa"]
[null,null,null,null," ",null,{"$f":"VLOOKUP(F714,'Validation sheet'!E:F,2,FALSE)","v":{"$error":"#N/A"}},null,null,null,"--",{"$error":"#N/A"},null,null,null,null,null,"--",null,null,"","Zone 00 Street 00 Building 00",null,{"$error":"#N/A"},null,"ARKAN GULF TRADING & CONTRACTING","2024-09-11T11:06:02.850",null,"Payroll Service (Worker)","Y","Work Visa"]
[null,null,null,null," ",null,{"$f":"VLOOKUP(F715,'Validation sheet'!E:F,2,FALSE)","v":{"$error":"#N/A"}},null,null,null,"--",{"$error":"#N/A"},null,null,null,null,null,"--",null,null,"","Zone 00 Street 00 Building 00",null,{"$error":"#N/A"},null,"ARKAN GULF TRADING & CONTRACTING","2024-09-11T11:06:02.850",null,"Payroll Service (Worker)","Y","Work Visa"]
[null,null,null,null," ",null,{"$f":"VLOOKUP(F716,'Validation sheet'!E:F,2,FALSE)","v":{"$error":"#N/A"}},null,null,null,"--",{"$error":"#N/A"},null,null,null,null,null,"--",null,null,"","Zone 00 Street 00 Building 00",null,{"$error":"#N/A"},null,"ARKAN GULF TRADING & CONTRACTING","2024-09-11T11:06:02.850",null,"Payroll Service (Worker)","Y","Work Visa"]
[null,null,null,null," ",null,{"$f":"VLOOKUP(F717,'Validation sheet'!E:F,2,FALSE)","v":{"$error":"#N/A"}},null,null,null,"--",{"$error":"#N/A"},null,null,null,null,null,"--",null,null,"","Zone 00 Street 00 Building 00",null,{"$error":"#N/A"},null,"ARKAN GULF TRADING & CONTRACTING","2024-09-11T11:06:02.850",null,"Payroll Service (Worker)","Y","Work Visa"]
[null,null,null,null," ",null,{"$f":"VLOOKUP(F718,'Validation sheet'!E:F,2,FALSE)","v":{"$error":"#N/A"}},null,null,null,"--",{"$error":"#N/A"},null,null,null,null,null,"--",null,null,"","Zone 00 Street 00 Building 00",null,{"$error":"#N/A"},null,"ARKAN GULF TRADING & CONTRACTING","2024-09-11T11:06:02.850",null,"Payroll Service (Worker)","Y","Work Visa"]
[null,null,null,null," ",null,{"$f":"VLOOKUP(F719,'Validation sheet'!E:F,2,FALSE)","v":{"$error":"#N/A"}},null,null,null,"--",{"$error":"#N/A"},null,null,null,null,null,"--",null,null,"","Zone 00 Street 00 Building 00",null,{"$error":"#N/A"},null,"ARKAN GULF TRADING & CONTRACTING","2024-09-11T11:06:02.850",null,"Payroll Service (Worker)","Y","Work Visa"]
[null,null,null,null," ",null,{"$f":"VLOOKUP(F720,'Validation sheet'!E:F,2,FALSE)","v":{"$error":"#N/A"}},null,null,null,"--",{"$error":"#N/A"},null,null,null,null,null,"--",null,null,"","Zone 00 Street 00 Building 00",null,{"$error":"#N/A"},null,"ARKAN GULF TRADING & CONTRACTING","2024-09-11T11:06:02.850",null,"Payroll Service (Worker)","Y","Work Visa"]
[null,null,null,null," ",null,{"$f":"VLOOKUP(F721,'Validation sheet'!E:F,2,FALSE)","v":{"$error":"#N/A"}},null,null,null,"--",{"$error":"#N/A"},null,null,null,null,null,"--",null,null,"","Zone 00 Street 00 Building 00",null,{"$error":"#N/A"},null,"ARKAN GULF TRADING & CONTRACTING","2024-09-11T11:06:02.850",null,"Payroll Service (Worker)","Y","Work Visa"]
[null,null,null,null," ",null,{"$f":"VLOOKUP(F722,'Validation sheet'!E:F,2,FALSE)","v":{"$error":"#N/A"}},null,null,null,"--",{"$error":"#N/A"},null,null,null,null,null,"--",null,null,"","Zone 00 Street 00 Building 00",null,{"$error":"#N/A"},null,"ARKAN GULF TRADING & CONTRACTING","2024-09-11T11:06:02.850",null,"Payroll Service (Worker)","Y","Work Visa"]
[null,null,null,null," ",null,{"$f":"VLOOKUP(F723,'Validation sheet'!E:F,2,FALSE)","v":{"$error":"#N/A"}},null,null,null,"--",{"$error":"#N/A"},null,null,null,null,null,"--",null,null,"","Zone 00 Street 00 Building 00",null,{"$error":"#N/A"},null,"ARKAN GULF TRADING & CONTRACTING","2024-09-11T11:06:02.850",null,"Payroll Service (Worker)","Y","Work Visa"]
[null,null,null,null," ",null,{"$f":"VLOOKUP(F724,'Validation sheet'!E:F,2,FALSE)","v":{"$error":"#N/A"}},null,null,null,"--",{"$error":"#N/A"},null,null,null,null,null,"--",null,null,"","Zone 00 Street 00 Building 00",null,{"$error":"#N/A"},null,"ARKAN GULF TRADING & CONTRACTING","2024-09-11T11:06:02.850",null,"Payroll Service (Worker)","Y","Work Visa"]
[null,null,null,null," ",null,{"$f":"VLOOKUP(F725,'Validation sheet'!E:F,2,FALSE)","v":{"$error":"#N/A"}},null,null,null,"--",{"$error":"#N/A"},null,null,null,null,null,"--",null,null,"","Zone 00 Street 00 Building 00",null,{"$error":"#N/A"},null,"ARKAN GULF TRADING & CONTRACTING","2024-09-11T11:06:02.850",null,"Payroll Service (Worker)","Y","Work Visa"]
[null,null,null,null," ",null,{"$f":"VLOOKUP(F726,'Validation sheet'!E:F,2,FALSE)","v":{"$error":"#N/A"}},null,null,null,"--",{"$error":"#N/A"},null,null,null,null,null,"--",null,null,"","Zone 00 Street 00 Building 00",null,{"$error":"#N/A"},null,"ARKAN GULF TRADING & CONTRACTING","2024-09-11T11:06:02.850",null,"Payroll Service (Worker)","Y","Work Visa"]
[null,null,null,null," ",null,{"$f":"VLOOKUP(F727,'Validation sheet'!E:F,2,FALSE)","v":{"$error":"#N/A"}},null,null,null,"--",{"$error":"#N/A"},null,null,null,null,null,"--",null,null,"","Zone 00 Street 00 Building 00",null,{"$error":"#N/A"},null,"ARKAN GULF TRADING & CONTRACTING","2024-09-11T11:06:02.850",null,"Payroll Service (Worker)","Y","Work Visa"]
[null,null,null,null," ",null,{"$f":"VLOOKUP(F728,'Validation sheet'!E:F,2,FALSE)","v":{"$error":"#N/A"}},null,null,null,"--",{"$error":"#N/A"},null,null,null,null,null,"--",null,null,"","Zone 00 Street 00 Building 00",null,{"$error":"#N/A"},null,"ARKAN GULF TRADING & CONTRACTING","2024-09-11T11:06:02.850",null,"Payroll Service (Worker)","Y","Work Visa"]
[null,null,null,null," ",null,{"$f":"VLOOKUP(F729,'Validation sheet'!E:F,2,FALSE)","v":{"$error":"#N/A"}},null,null,null,"--",{"$error":"#N/A"},null,null,null,null,null,"--",null,null,"","Zone 00 Street 00 Building 00",null,{"$error":"#N/A"},null,"ARKAN GULF TRADING & CONTRACTING","2024-09-11T11:06:02.850",null,"Payroll Service (Worker)","Y","Work Visa"]
[null,null,null,null," ",null,{"$f":"VLOOKUP(F730,'Validation sheet'!E:F,2,FALSE)","v":{"$error":"#N/A"}},null,null,null,"--",{"$error":"#N/A"},null,null,null,null,null,"--",null,null,"","Zone 00 Street 00 Building 00",null,{"$error":"#N/A"},null,"ARKAN GULF TRADING & CONTRACTING","2024-09-11T11:06:02.850",null,"Payroll Service (Worker)","Y","Work Visa"]
[null,null,null,null," ",null,{"$f":"VLOOKUP(F731,'Validation sheet'!E:F,2,FALSE)","v":{"$error":"#N/A"}},null,null,null,"--",{"$error":"#N/A"},null,null,null,null,null,"--",null,null,"","Zone 00 Street 00 Building 00",null,{"$error":"#N/A"},null,"ARKAN GULF TRADING & CONTRACTING","2024-09-11T11:06:02.850",null,"Payroll Service (Worker)","Y","Work Visa"]
[null,null,null,null," ",null,{"$f":"VLOOKUP(F732,'Validation sheet'!E:F,2,FALSE)","v":{"$error":"#N/A"}},null,null,null,"--",{"$error":"#N/A"},null,null,null,null,null,"--",null,null,"","Zone 00 Street 00 Building 00",null,{"$error":"#N/A"},null,"ARKAN GULF TRADING & CONTRACTING","2024-09-11T11:06:02.850",null,"Payroll Service (Worker)","Y","Work Visa"]
[null,null,null,null," ",null,{"$f":"VLOOKUP(F733,'Validation sheet'!E:F,2,FALSE)","v":{"$error":"#N/A"}},null,null,null,"--",{"$error":"#N/A"},null,null,null,null,null,"--",null,null,"","Zone 00 Street 00 Building 00",null,{"$error":"#N/A"},null,"ARKAN GULF TRADING & CONTRACTING","2024-09-11T11:06:02.850",null,"Payroll Service (Worker)","Y","Work Visa"]
[null,null,null,null," ",null,{"$f":"VLOOKUP(F734,'Validation sheet'!E:F,2,FALSE)","v":{"$error":"#N/A"}},null,null,null,"--",{"$error":"#N/A"},null,null,null,null,null,"--",null,null,"","Zone 00 Street 00 Building 00",null,{"$error":"#N/A"},null,"ARKAN GULF TRADING & CONTRACTING","2024-09-11T11:06:02.850",null,"Payroll Service (Worker)","Y","Work Visa"]
[null,null,null,null," ",null,{"$f":"VLOOKUP(F735,'Validation sheet'!E:F,2,FALSE)","v":{"$error":"#N/A"}},null,null,null,"--",{"$error":"#N/A"},null,null,null,null,null,"--",null,null,"","Zone 00 Street 00 Building 00",null,{"$error":"#N/A"},null,"ARKAN GULF TRADING & CONTRACTING","2024-09-11T11:06:02.850",null,"Payroll Service (Worker)","Y","Work Visa"]
[null,null,null,null," ",null,{"$f":"VLOOKUP(F736,'Validation sheet'!E:F,2,FALSE)","v":{"$error":"#N/A"}},null,null,null,"--",{"$error":"#N/A"},null,null,null,null,null,"--",null,null,"","Zone 00 Street 00 Building 00",null,{"$error":"#N/A"},null,"ARKAN GULF TRADING & CONTRACTING","2024-09-11T11:06:02.850",null,"Payroll Service (Worker)","Y","Work Visa"]
[null,null,null,null," ",null,{"$f":"VLOOKUP(F737,'Validation sheet'!E:F,2,FALSE)","v":{"$error":"#N/A"}},null,null,null,"--",{"$error":"#N/A"},null,null,null,null,null,"--",null,null,"","Zone 00 Street 00 Building 00",null,{"$error":"#N/A"},null,"ARKAN GULF TRADING & CONTRACTING","2024-09-11T11:06:02.850",null,"Payroll Service (Worker)","Y","Work Visa"]
[null,null,null,null," ",null,{"$f":"VLOOKUP(F738,'Validation sheet'!E:F,2,FALSE)","v":{"$error":"#N/A"}},null,null,null,"--",{"$error":"#N/A"},null,null,null,null,null,"--",null,null,"","Zone 00 Street 00 Building 00",null,{"$error":"#N/A"},null,"ARKAN GULF TRADING & CONTRACTING","2024-09-11T11:06:02.850",null,"Payroll Service (Worker)","Y","Work Visa"]
[null,null,null,null," ",null,{"$f":"VLOOKUP(F739,'Validation sheet'!E:F,2,FALSE)","v":{"$error":"#N/A"}},null,null,null,"--",{"$error":"#N/A"},null,null,null,null,null,"--",null,null,"","Zone 00 Street 00 Building 00",null,{"$error":"#N/A"},null,"ARKAN GULF TRADING & CONTRACTING","2024-09-11T11:06:02.850",null,"Payroll Service (Worker)","Y","Work Visa"]
[null,null,null,null," ",null,{"$f":"VLOOKUP(F740,'Validation sheet'!E:F,2,FALSE)","v":{"$error":"#N/A"}},null,null,null,"--",{"$error":"#N/A"},null,null,null,null,null,"--",null,null,"","Zone 00 Street 00 Building 00",null,{"$error":"#N/A"},null,"ARKAN GULF TRADING & CONTRACTING","2024-09-11T11:06:02.850",null,"Payroll Service (Worker)","Y","Work Visa"]
[null,null,null,null," ",null,{"$f":"VLOOKUP(F741,'Validation sheet'!E:F,2,FALSE)","v":{"$error":"#N/A"}},null,null,null,"--",{"$error":"#N/A"},null,null,null,null,null,"--",null,null,"","Zone 00 Street 00 Building 00",null,{"$error":"#N/A"},null,"ARKAN GULF TRADING & CONTRACTING","2024-09-11T11:06:02.850",null,"Payroll Service (Worker)","Y","Work Visa"]
[null,null,null,null," ",null,{"$f":"VLOOKUP(F742,'Validation sheet'!E:F,2,FALSE)","v":{"$error":"#N/A"}},null,null,null,"--",{"$error":"#N/A"},null,null,null,null,null,"--",null,null,"","Zone 00 Street 00 Building 00",null,{"$error":"#N/A"},null,"ARKAN GULF TRADING & CONTRACTING","2024-09-11T11:06:02.850",null,"Payroll Service (Worker)","Y","Work Visa"]
[null,null,null,null," ",null,{"$f":"VLOOKUP(F743,'Validation sheet'!E:F,2,FALSE)","v":{"$error":"#N/A"}},null,null,null,"--",{"$error":"#N/A"},null,null,null,null,null,"--",null,null,"","Zone 00 Street 00 Building 00",null,{"$error":"#N/A"},null,"ARKAN GULF TRADING & CONTRACTING","2024-09-11T11:06:02.850",null,"Payroll Service (Worker)","Y","Work Visa"]
[null,null,null,null," ",null,{"$f":"VLOOKUP(F744,'Validation sheet'!E:F,2,FALSE)","v":{"$error":"#N/A"}},null,null,null,"--",{"$error":"#N/A"},null,null,null,null,null,"--",null,null,"","Zone 00 Street 00 Building 00",null,{"$error":"#N/A"},null,"ARKAN GULF TRADING & CONTRACTING","2024-09-11T11:06:02.850",null,"Payroll Service (Worker)","Y","Work Visa"]
[null,null,null,null," ",null,{"$f":"VLOOKUP(F745,'Validation sheet'!E:F,2,FALSE)","v":{"$error":"#N/A"}},null,null,null,"--",{"$error":"#N/A"},null,null,null,null,null,"--",null,null,"","Zone 00 Street 00 Building 00",null,{"$error":"#N/A"},null,"ARKAN GULF TRADING & CONTRACTING","2024-09-11T11:06:02.850",null,"Payroll Service (Worker)","Y","Work Visa"]
[null,null,null,null," ",null,{"$f":"VLOOKUP(F746,'Validation sheet'!E:F,2,FALSE)","v":{"$error":"#N/A"}},null,null,null,"--",{"$error":"#N/A"},null,null,null,null,null,"--",null,null,"","Zone 00 Street 00 Building 00",null,{"$error":"#N/A"},null,"ARKAN GULF TRADING & CONTRACTING","2024-09-11T11:06:02.850",null,"Payroll Service (Worker)","Y","Work Visa"]
[null,null,null,null," ",null,{"$f":"VLOOKUP(F747,'Validation sheet'!E:F,2,FALSE)","v":{"$error":"#N/A"}},null,null,null,"--",{"$error":"#N/A"},null,null,null,null,null,"--",null,null,"","Zone 00 Street 00 Building 00",null,{"$error":"#N/A"},null,"ARKAN GULF TRADING & CONTRACTING","2024-09-11T11:06:02.850",null,"Payroll Service (Worker)","Y","Work Visa"]
[null,null,null,null," ",null,{"$f":"VLOOKUP(F748,'Validation sheet'!E:F,2,FALSE)","v":{"$error":"#N/A"}},null,null,null,"--",{"$error":"#N/A"},null,null,null,null,null,"--",null,null,"","Zone 00 Street 00 Building 00",null,{"$error":"#N/A"},null,"ARKAN GULF TRADING & CONTRACTING","2024-09-11T11:06:02.850",null,"Payroll Service (Worker)","Y","Work Visa"]
[null,null,null,null," ",null,{"$f":"VLOOKUP(F749,'Validation sheet'!E:F,2,FALSE)","v":{"$error":"#N/A"}},null,null,null,"--",{"$error":"#N/A"},null,null,null,null,null,"--",null,null,"","Zone 00 Street 00 Building 00",null,{"$error":"#N/A"},null,"ARKAN GULF TRADING & CONTRACTING","2024-09-11T11:06:02.850",null,"Payroll Service (Worker)","Y","Work Visa"]
[null,null,null,null," ",null,{"$f":"VLOOKUP(F750,'Validation sheet'!E:F,2,FALSE)","v":{"$error":"#N/A"}},null,null,null,"--",{"$error":"#N/A"},null,null,null,null,null,"--",null,null,"","Zone 00 Street 00 Building 00",null,{"$error":"#N/A"},null,"ARKAN GULF TRADING & CONTRACTING","2024-09-11T11:06:02.850",null,"Payroll Service (Worker)","Y","Work Visa"]
[null,null,null,null," ",null,{"$f":"VLOOKUP(F751,'Validation sheet'!E:F,2,FALSE)","v":{"$error":"#N/A"}},null,null,null,"--",{"$error":"#N/A"},null,null,null,null,null,"--",null,null,"","Zone 00 Street 00 Building 00",null,{"$error":"#N/A"},null,"ARKAN GULF TRADING & CONTRACTING","2024-09-11T11:06:02.850",null,"Payroll Service (Worker)","Y","Work Visa"]
[null,null,null,null," ",null,{"$f":"VLOOKUP(F752,'Validation sheet'!E:F,2,FALSE)","v":{"$error":"#N/A"}},null,null,null,"--",{"$error":"#N/A"},null,null,null,null,null,"--",null,null,"","Zone 00 Street 00 Building 00",null,{"$error":"#N/A"},null,"ARKAN GULF TRADING & CONTRACTING","2024-09-11T11:06:02.850",null,"Payroll Service (Worker)","Y","Work Visa"]
[null,null,null,null," ",null,{"$f":"VLOOKUP(F753,'Validation sheet'!E:F,2,FALSE)","v":{"$error":"#N/A"}},null,null,null,"--",{"$error":"#N/A"},null,null,null,null,null,"--",null,null,"","Zone 00 Street 00 Building 00",null,{"$error":"#N/A"},null,"ARKAN GULF TRADING & CONTRACTING","2024-09-11T11:06:02.850",null,"Payroll Service (Worker)","Y","Work Visa"]
[null,null,null,null," ",null,{"$f":"VLOOKUP(F754,'Validation sheet'!E:F,2,FALSE)","v":{"$error":"#N/A"}},null,null,null,"--",{"$error":"#N/A"},null,null,null,null,null,"--",null,null,"","Zone 00 Street 00 Building 00",null,{"$error":"#N/A"},null,"ARKAN GULF TRADING & CONTRACTING","2024-09-11T11:06:02.850",null,"Payroll Service (Worker)","Y","Work Visa"]
[null,null,null,null," ",null,{"$f":"VLOOKUP(F755,'Validation sheet'!E:F,2,FALSE)","v":{"$error":"#N/A"}},null,null,null,"--",{"$error":"#N/A"},null,null,null,null,null,"--",null,null,"","Zone 00 Street 00 Building 00",null,{"$error":"#N/A"},null,"ARKAN GULF TRADING & CONTRACTING","2024-09-11T11:06:02.850",null,"Payroll Service (Worker)","Y","Work Visa"]
[null,null,null,null," ",null,{"$f":"VLOOKUP(F756,'Validation sheet'!E:F,2,FALSE)","v":{"$error":"#N/A"}},null,null,null,"--",{"$error":"#N/A"},null,null,null,null,null,"--",null,null,"","Zone 00 Street 00 Building 00",null,{"$error":"#N/A"},null,"ARKAN GULF TRADING & CONTRACTING","2024-09-11T11:06:02.850",null,"Payroll Service (Worker)","Y","Work Visa"]
[null,null,null,null," ",null,{"$f":"VLOOKUP(F757,'Validation sheet'!E:F,2,FALSE)","v":{"$error":"#N/A"}},null,null,null,"--",{"$error":"#N/A"},null,null,null,null,null,"--",null,null,"","Zone 00 Street 00 Building 00",null,{"$error":"#N/A"},null,"ARKAN GULF TRADING & CONTRACTING","2024-09-11T11:06:02.850",null,"Payroll Service (Worker)","Y","Work Visa"]
[null,null,null,null," ",null,{"$f":"VLOOKUP(F758,'Validation sheet'!E:F,2,FALSE)","v":{"$error":"#N/A"}},null,null,null,"--",{"$error":"#N/A"},null,null,null,null,null,"--",null,null,"","Zone 00 Street 00 Building 00",null,{"$error":"#N/A"},null,"ARKAN GULF TRADING & CONTRACTING","2024-09-11T11:06:02.850",null,"Payroll Service (Worker)","Y","Work Visa"]
[null,null,null,null," ",null,{"$f":"VLOOKUP(F759,'Validation sheet'!E:F,2,FALSE)","v":{"$error":"#N/A"}},null,null,null,"--",{"$error":"#N/A"},null,null,null,null,null,"--",null,null,"","Zone 00 Street 00 Building 00",null,{"$error":"#N/A"},null,"ARKAN GULF TRADING & CONTRACTING","2024-09-11T11:06:02.850",null,"Payroll Service (Worker)","Y","Work Visa"]
[null,null,null,null," ",null,{"$f":"VLOOKUP(F760,'Validation sheet'!E:F,2,FALSE)","v":{"$error":"#N/A"}},null,null,null,"--",{"$error":"#N/A"},null,null,null,null,null,"--",null,null,"","Zone 00 Street 00 Building 00",null,{"$error":"#N/A"},null,"ARKAN GULF TRADING & CONTRACTING","2024-09-11T11:06:02.850",null,"Payroll Service (Worker)","Y","Work Visa"]
[null,null,null,null," ",null,{"$f":"VLOOKUP(F761,'Validation sheet'!E:F,2,FALSE)","v":{"$error":"#N/A"}},null,null,null,"--",{"$error":"#N/A"},null,null,null,null,null,"--",null,null,"","Zone 00 Street 00 Building 00",null,{"$error":"#N/A"},null,"ARKAN GULF TRADING & CONTRACTING","2024-09-11T11:06:02.850",null,"Payroll Service (Worker)","Y","Work Visa"]
[null,null,null,null," ",null,{"$f":"VLOOKUP(F762,'Validation sheet'!E:F,2,FALSE)","v":{"$error":"#N/A"}},null,null,null,"--",{"$error":"#N/A"},null,null,null,null,null,"--",null,null,"","Zone 00 Street 00 Building 00",null,{"$error":"#N/A"},null,"ARKAN GULF TRADING & CONTRACTING","2024-09-11T11:06:02.850",null,"Payroll Service (Worker)","Y","Work Visa"]
[null,null,null,null," ",null,{"$f":"VLOOKUP(F763,'Validation sheet'!E:F,2,FALSE)","v":{"$error":"#N/A"}},null,null,null,"--",{"$error":"#N/A"},null,null,null,null,null,"--",null,null,"","Zone 00 Street 00 Building 00",null,{"$error":"#N/A"},null,"ARKAN GULF TRADING & CONTRACTING","2024-09-11T11:06:02.850",null,"Payroll Service (Worker)","Y","Work Visa"]
[null,null,null,null," ",null,{"$f":"VLOOKUP(F764,'Validation sheet'!E:F,2,FALSE)","v":{"$error":"#N/A"}},null,null,null,"--",{"$error":"#N/A"},null,null,null,null,null,"--",null,null,"","Zone 00 Street 00 Building 00",null,{"$error":"#N/A"},null,"ARKAN GULF TRADING & CONTRACTING","2024-09-11T11:06:02.850",null,"Payroll Service (Worker)","Y","Work Visa"]
[null,null,null,null," ",null,{"$f":"VLOOKUP(F765,'Validation sheet'!E:F,2,FALSE)","v":{"$error":"#N/A"}},null,null,null,"--",{"$error":"#N/A"},null,null,null,null,null,"--",null,null,"","Zone 00 Street 00 Building 00",null,{"$error":"#N/A"},null,"ARKAN GULF TRADING & CONTRACTING","2024-09-11T11:06:02.850",null,"Payroll Service (Worker)","Y","Work Visa"]
[null,null,null,null," ",null,{"$f":"VLOOKUP(F766,'Validation sheet'!E:F,2,FALSE)","v":{"$error":"#N/A"}},null,null,null,"--",{"$error":"#N/A"},null,null,null,null,null,"--",null,null,"","Zone 00 Street 00 Building 00",null,{"$error":"#N/A"},null,"ARKAN GULF TRADING & CONTRACTING","2024-09-11T11:06:02.850",null,"Payroll Service (Worker)","Y","Work Visa"]
[null,null,null,null," ",null,{"$f":"VLOOKUP(F767,'Validation sheet'!E:F,2,FALSE)","v":{"$error":"#N/A"}},null,null,null,"--",{"$error":"#N/A"},null,null,null,null,null,"--",null,null,"","Zone 00 Street 00 Building 00",null,{"$error":"#N/A"},null,"ARKAN GULF TRADING & CONTRACTING","2024-09-11T11:06:02.850",null,"Payroll Service (Worker)","Y","Work Visa"]
[null,null,null,null," ",null,{"$f":"VLOOKUP(F768,'Validation sheet'!E:F,2,FALSE)","v":{"$error":"#N/A"}},null,null,null,"--",{"$error":"#N/A"},null,null,null,null,null,"--",null,null,"","Zone 00 Street 00 Building 00",null,{"$error":"#N/A"},null,"ARKAN GULF TRADING & CONTRACTING","2024-09-11T11:06:02.850",null,"Payroll Service (Worker)","Y","Work Visa"]
[null,null,null,null," ",null,{"$f":"VLOOKUP(F769,'Validation sheet'!E:F,2,FALSE)","v":{"$error":"#N/A"}},null,null,null,"--",{"$error":"#N/A"},null,null,null,null,null,"--",null,null,"","Zone 00 Street 00 Building 00",null,{"$error":"#N/A"},null,"ARKAN GULF TRADING & CONTRACTING","2024-09-11T11:06:02.850",null,"Payroll Service (Worker)","Y","Work Visa"]
[null,null,null,null," ",null,{"$f":"VLOOKUP(F770,'Validation sheet'!E:F,2,FALSE)","v":{"$error":"#N/A"}},null,null,null,"--",{"$error":"#N/A"},null,null,null,null,null,"--",null,null,"","Zone 00 Street 00 Building 00",null,{"$error":"#N/A"},null,"ARKAN GULF TRADING & CONTRACTING","2024-09-11T11:06:02.850",null,"Payroll Service (Worker)","Y","Work Visa"]
[null,null,null,null," ",null,{"$f":"VLOOKUP(F771,'Validation sheet'!E:F,2,FALSE)","v":{"$error":"#N/A"}},null,null,null,"--",{"$error":"#N/A"},null,null,null,null,null,"--",null,null,"","Zone 00 Street 00 Building 00",null,{"$error":"#N/A"},null,"ARKAN GULF TRADING & CONTRACTING","2024-09-11T11:06:02.850",null,"Payroll Service (Worker)","Y","Work Visa"]
[null,null,null,null," ",null,{"$f":"VLOOKUP(F772,'Validation sheet'!E:F,2,FALSE)","v":{"$error":"#N/A"}},null,null,null,"--",{"$error":"#N/A"},null,null,null,null,null,"--",null,null,"","Zone 00 Street 00 Building 00",null,{"$error":"#N/A"},null,"ARKAN GULF TRADING & CONTRACTING","2024-09-11T11:06:02.850",null,"Payroll Service (Worker)","Y","Work Visa"]
[null,null,null,null," ",null,{"$f":"VLOOKUP(F773,'Validation sheet'!E:F,2,FALSE)","v":{"$error":"#N/A"}},null,null,null,"--",{"$error":"#N/A"},null,null,null,null,null,"--",null,null,"","Zone 00 Street 00 Building 00",null,{"$error":"#N/A"},null,"ARKAN GULF TRADING & CONTRACTING","2024-09-11T11:06:02.850",null,"Payroll Service (Worker)","Y","Work Visa"]
[null,null,null,null," ",null,{"$f":"VLOOKUP(F774,'Validation sheet'!E:F,2,FALSE)","v":{"$error":"#N/A"}},null,null,null,"--",{"$error":"#N/A"},null,null,null,null,null,"--",null,null,"","Zone 00 Street 00 Building 00",null,{"$error":"#N/A"},null,"ARKAN GULF TRADING & CONTRACTING","2024-09-11T11:06:02.850",null,"Payroll Service (Worker)","Y","Work Visa"]
[null,null,null,null," ",null,{"$f":"VLOOKUP(F775,'Validation sheet'!E:F,2,FALSE)","v":{"$error":"#N/A"}},null,null,null,"--",{"$error":"#N/A"},null,null,null,null,null,"--",null,null,{"$f":"S775&T775","v":""},"Zone 00 Street 00 Building 00",null,{"$f":"L775","v":{"$error":"#N/A"}},null,"ARKAN GULF TRADING & CONTRACTING","2024-09-11T11:06:02.850",null,"Payroll Service (Worker)","Y","Work Visa"]
[null,null,null,null,{"$f":"B776&\" \"&D776","v":" "},null,{"$f":"VLOOKUP(F776,'Validation sheet'!E:F,2,FALSE)","v":{"$error":"#N/A"}},null,null,null,{"$f":"H776&\"-\"&I776&\"-\"&J776","v":"--"},{"$f":"G776","v":{"$error":"#N/A"}},null,null,null,null,null,{"$f":"O776&\"-\"&P776&\"-\"&Q776","v":"--"},null,null,"","Zone 00 Street 00 Building 00",null,{"$error":"#N/A"},null,{"$f":"$B$1","v":"ARKAN GULF TRADING & CONTRACTING"},{"$f":"NOW()","v":"2024-09-11T11:06:02.850"},null,"Payroll Service (Worker)","Y","Work Visa"]
[null,null,null,null," ",null,{"$f":"VLOOKUP(F777,'Validation sheet'!E:F,2,FALSE)","v":{"$error":"#N/A"}},null,null,null,"--",{"$error":"#N/A"},null,null,null,null,null,"--",null,null,"","Zone 00 Street 00 Building 00",null,{"$error":"#N/A"},null,"ARKAN GULF TRADING & CONTRACTING","2024-09-11T11:06:02.850",null,"Payroll Service (Worker)","Y","Work Visa"]
[null,null,null,null," ",null,{"$f":"VLOOKUP(F778,'Validation sheet'!E:F,2,FALSE)","v":{"$error":"#N/A"}},null,null,null,"--",{"$error":"#N/A"},null,null,null,null,null,"--",null,null,"","Zone 00 Street 00 Building 00",null,{"$error":"#N/A"},null,"ARKAN GULF TRADING & CONTRACTING","2024-09-11T11:06:02.850",null,"Payroll Service (Worker)","Y","Work Visa"]
[null,null,null,null," ",null,{"$f":"VLOOKUP(F779,'Validation sheet'!E:F,2,FALSE)","v":{"$error":"#N/A"}},null,null,null,"--",{"$error":"#N/A"},null,null,null,null,null,"--",null,null,"","Zone 00 Street 00 Building 00",null,{"$error":"#N/A"},null,"ARKAN GULF TRADING & CONTRACTING","2024-09-11T11:06:02.850",null,"Payroll Service (Worker)","Y","Work Visa"]
[null,null,null,null," ",null,{"$f":"VLOOKUP(F780,'Validation sheet'!E:F,2,FALSE)","v":{"$error":"#N/A"}},null,null,null,"--",{"$error":"#N/A"},null,null,null,null,null,"--",null,null,"","Zone 00 Street 00 Building 00",null,{"$error":"#N/A"},null,"ARKAN GULF TRADING & CONTRACTING","2024-09-11T11:06:02.850",null,"Payroll Service (Worker)","Y","Work Visa"]
[null,null,null,null," ",null,{"$f":"VLOOKUP(F781,'Validation sheet'!E:F,2,FALSE)","v":{"$error":"#N/A"}},null,null,null,"--",{"$error":"#N/A"},null,null,null,null,null,"--",null,null,"","Zone 00 Street 00 Building 00",null,{"$error":"#N/A"},null,"ARKAN GULF TRADING & CONTRACTING","2024-09-11T11:06:02.850",null,"Payroll Service (Worker)","Y","Work Visa"]
[null,null,null,null," ",null,{"$f":"VLOOKUP(F782,'Validation sheet'!E:F,2,FALSE)","v":{"$error":"#N/A"}},null,null,null,"--",{"$error":"#N/A"},null,null,null,null,null,"--",null,null,"","Zone 00 Street 00 Building 00",null,{"$error":"#N/A"},null,"ARKAN GULF TRADING & CONTRACTING","2024-09-11T11:06:02.850",null,"Payroll Service (Worker)","Y","Work Visa"]
[null,null,null,null," ",null,{"$f":"VLOOKUP(F783,'Validation sheet'!E:F,2,FALSE)","v":{"$error":"#N/A"}},null,null,null,"--",{"$error":"#N/A"},null,null,null,null,null,"--",null,null,"","Zone 00 Street 00 Building 00",null,{"$error":"#N/A"},null,"ARKAN GULF TRADING & CONTRACTING","2024-09-11T11:06:02.850",null,"Payroll Service (Worker)","Y","Work Visa"]
[null,null,null,null," ",null,{"$f":"VLOOKUP(F784,'Validation sheet'!E:F,2,FALSE)","v":{"$error":"#N/A"}},null,null,null,"--",{"$error":"#N/A"},null,null,null,null,null,"--",null,null,"","Zone 00 Street 00 Building 00",null,{"$error":"#N/A"},null,"ARKAN GULF TRADING & CONTRACTING","2024-09-11T11:06:02.850",null,"Payroll Service (Worker)","Y","Work Visa"]
[null,null,null,null," ",null,{"$f":"VLOOKUP(F785,'Validation sheet'!E:F,2,FALSE)","v":{"$error":"#N/A"}},null,null,null,"--",{"$error":"#N/A"},null,null,null,null,null,"--",null,null,"","Zone 00 Street 00 Building 00",null,{"$error":"#N/A"},null,"ARKAN GULF TRADING & CONTRACTING","2024-09-11T11:06:02.850",null,"Payroll Service (Worker)","Y","Work Visa"]
[null,null,null,null," ",null,{"$f":"VLOOKUP(F786,'Validation sheet'!E:F,2,FALSE)","v":{"$error":"#N/A"}},null,null,null,"--",{"$error":"#N/A"},null,null,null,null,null,"--",null,null,"","Zone 00 Street 00 Building 00",null,{"$error":"#N/A"},null,"ARKAN GULF TRADING & CONTRACTING","2024-09-11T11:06:02.850",null,"Payroll Service (Worker)","Y","Work Visa"]
[null,null,null,null," ",null,{"$f":"VLOOKUP(F787,'Validation sheet'!E:F,2,FALSE)","v":{"$error":"#N/A"}},null,null,null,"--",{"$error":"#N/A"},null,null,null,null,null,"--",null,null,"","Zone 00 Street 00 Building 00",null,{"$error":"#N/A"},null,"ARKAN GULF TRADING & CONTRACTING","2024-09-11T11:06:02.850",null,"Payroll Service (Worker)","Y","Work Visa"]
[null,null,null,null," ",null,{"$f":"VLOOKUP(F788,'Validation sheet'!E:F,2,FALSE)","v":{"$error":"#N/A"}},null,null,null,"--",{"$error":"#N/A"},null,null,null,null,null,"--",null,null,"","Zone 00 Street 00 Building 00",null,{"$error":"#N/A"},null,"ARKAN GULF TRADING & CONTRACTING","2024-09-11T11:06:02.850",null,"Payroll Service (Worker)","Y","Work Visa"]
[null,null,null,null," ",null,{"$f":"VLOOKUP(F789,'Validation sheet'!E:F,2,FALSE)","v":{"$error":"#N/A"}},null,null,null,"--",{"$error":"#N/A"},null,null,null,null,null,"--",null,null,"","Zone 00 Street 00 Building 00",null,{"$error":"#N/A"},null,"ARKAN GULF TRADING & CONTRACTING","2024-09-11T11:06:02.850",null,"Payroll Service (Worker)","Y","Work Visa"]
[null,null,null,null," ",null,{"$f":"VLOOKUP(F790,'Validation sheet'!E:F,2,FALSE)","v":{"$error":"#N/A"}},null,null,null,"--",{"$error":"#N/A"},null,null,null,null,null,"--",null,null,"","Zone 00 Street 00 Building 00",null,{"$error":"#N/A"},null,"ARKAN GULF TRADING & CONTRACTING","2024-09-11T11:06:02.850",null,"Payroll Service (Worker)","Y","Work Visa"]
[null,null,null,null," ",null,{"$f":"VLOOKUP(F791,'Validation sheet'!E:F,2,FALSE)","v":{"$error":"#N/A"}},null,null,null,"--",{"$error":"#N/A"},null,null,null,null,null,"--",null,null,"","Zone 00 Street 00 Building 00",null,{"$error":"#N/A"},null,"ARKAN GULF TRADING & CONTRACTING","2024-09-11T11:06:02.850",null,"Payroll Service (Worker)","Y","Work Visa"]
[null,null,null,null," ",null,{"$f":"VLOOKUP(F792,'Validation sheet'!E:F,2,FALSE)","v":{"$error":"#N/A"}},null,null,null,"--",{"$error":"#N/A"},null,null,null,null,null,"--",null,null,"","Zone 00 Street 00 Building 00",null,{"$error":"#N/A"},null,"ARKAN GULF TRADING & CONTRACTING","2024-09-11T11:06:02.850",null,"Payroll Service (Worker)","Y","Work Visa"]
[null,null,null,null," ",null,{"$f":"VLOOKUP(F793,'Validation sheet'!E:F,2,FALSE)","v":{"$error":"#N/A"}},null,null,null,"--",{"$error":"#N/A"},null,null,null,null,null,"--",null,null,"","Zone 00 Street 00 Building 00",null,{"$error":"#N/A"},null,"ARKAN GULF TRADING & CONTRACTING","2024-09-11T11:06:02.850",null,"Payroll Service (Worker)","Y","Work Visa"]
[null,null,null,null," ",null,{"$f":"VLOOKUP(F794,'Validation sheet'!E:F,2,FALSE)","v":{"$error":"#N/A"}},null,null,null,"--",{"$error":"#N/A"},null,null,null,null,null,"--",null,null,"","Zone 00 Street 00 Building 00",null,{"$error":"#N/A"},null,"ARKAN GULF TRADING & CONTRACTING","2024-09-11T11:06:02.850",null,"Payroll Service (Worker)","Y","Work Visa"]
[null,null,null,null," ",null,{"$f":"VLOOKUP(F795,'Validation sheet'!E:F,2,FALSE)","v":{"$error":"#N/A"}},null,null,null,"--",{"$error":"#N/A"},null,null,null,null,null,"--",null,null,"","Zone 00 Street 00 Building 00",null,{"$error":"#N/A"},null,"ARKAN GULF TRADING & CONTRACTING","2024-09-11T11:06:02.850",null,"Payroll Service (Worker)","Y","Work Visa"]
[null,null,null,null," ",null,{"$f":"VLOOKUP(F796,'Validation sheet'!E:F,2,FALSE)","v":{"$error":"#N/A"}},null,null,null,"--",{"$error":"#N/A"},null,null,null,null,null,"--",null,null,"","Zone 00 Street 00 Building 00",null,{"$error":"#N/A"},null,"ARKAN GULF TRADING & CONTRACTING","2024-09-11T11:06:02.850",null,"Payroll Service (Worker)","Y","Work Visa"]
[null,null,null,null," ",null,{"$f":"VLOOKUP(F797,'Validation sheet'!E:F,2,FALSE)","v":{"$error":"#N/A"}},null,null,null,"--",{"$error":"#N/A"},null,null,null,null,null,"--",null,null,"","Zone 00 Street 00 Building 00",null,{"$error":"#N/A"},null,"ARKAN GULF TRADING & CONTRACTING","2024-09-11T11:06:02.850",null,"Payroll Service (Worker)","Y","Work Visa"]
[null,null,null,null," ",null,{"$f":"VLOOKUP(F798,'Validation sheet'!E:F,2,FALSE)","v":{"$error":"#N/A"}},null,null,null,"--",{"$error":"#N/A"},null,null,null,null,null,"--",null,null,"","Zone 00 Street 00 Building 00",null,{"$error":"#N/A"},null,"ARKAN GULF TRADING & CONTRACTING","2024-09-11T11:06:02.850",null,"Payroll Service (Worker)","Y","Work Visa"]
[null,null,null,null," ",null,{"$f":"VLOOKUP(F799,'Validation sheet'!E:F,2,FALSE)","v":{"$error":"#N/A"}},null,null,null,"--",{"$error":"#N/A"},null,null,null,null,null,"--",null,null,"","Zone 00 Street 00 Building 00",null,{"$error":"#N/A"},null,"ARKAN GULF TRADING & CONTRACTING","2024-09-11T11:06:02.850",null,"Payroll Service (Worker)","Y","Work Visa"]
[null,null,null,null," ",null,{"$f":"VLOOKUP(F800,'Validation sheet'!E:F,2,FALSE)","v":{"$error":"#N/A"}},null,null,null,"--",{"$error":"#N/A"},null,null,null,null,null,"--",null,null,"","Zone 00 Street 00 Building 00",null,{"$error":"#N/A"},null,"ARKAN GULF TRADING & CONTRACTING","2024-09-11T11:06:02.850",null,"Payroll Service (Worker)","Y","Work Visa"]
[null,null,null,null," ",null,{"$f":"VLOOKUP(F801,'Validation sheet'!E:F,2,FALSE)","v":{"$error":"#N/A"}},null,null,null,"--",{"$error":"#N/A"},null,null,null,null,null,"--",null,null,"","Zone 00 Street 00 Building 00",null,{"$error":"#N/A"},null,"ARKAN GULF TRADING & CONTRACTING","2024-09-11T11:06:02.850",null,"Payroll Service (Worker)","Y","Work Visa"]
[null,null,null,null," ",null,{"$f":"VLOOKUP(F802,'Validation sheet'!E:F,2,FALSE)","v":{"$error":"#N/A"}},null,null,null,"--",{"$error":"#N/A"},null,null,null,null,null,"--",null,null,"","Zone 00 Street 00 Building 00",null,{"$error":"#N/A"},null,"ARKAN GULF TRADING & CONTRACTING","2024-09-11T11:06:02.850",null,"Payroll Service (Worker)","Y","Work Visa"]
[null,null,null,null," ",null,{"$f":"VLOOKUP(F803,'Validation sheet'!E:F,2,FALSE)","v":{"$error":"#N/A"}},null,null,null,"--",{"$error":"#N/A"},null,null,null,null,null,"--",null,null,"","Zone 00 Street 00 Building 00",null,{"$error":"#N/A"},null,"ARKAN GULF TRADING & CONTRACTING","2024-09-11T11:06:02.850",null,"Payroll Service (Worker)","Y","Work Visa"]
[null,null,null,null," ",null,{"$f":"VLOOKUP(F804,'Validation sheet'!E:F,2,FALSE)","v":{"$error":"#N/A"}},null,null,null,"--",{"$error":"#N/A"},null,null,null,null,null,"--",null,null,"","Zone 00 Street 00 Building 00",null,{"$error":"#N/A"},null,"ARKAN GULF TRADING & CONTRACTING","2024-09-11T11:06:02.850",null,"Payroll Service (Worker)","Y","Work Visa"]
[null,null,null,null," ",null,{"$f":"VLOOKUP(F805,'Validation sheet'!E:F,2,FALSE)","v":{"$error":"#N/A"}},null,null,null,"--",{"$error":"#N/A"},null,null,null,null,null,"--",null,null,"","Zone 00 Street 00 Building 00",null,{"$error":"#N/A"},null,"ARKAN GULF TRADING & CONTRACTING","2024-09-11T11:06:02.850",null,"Payroll Service (Worker)","Y","Work Visa"]
[null,null,null,null," ",null,{"$f":"VLOOKUP(F806,'Validation sheet'!E:F,2,FALSE)","v":{"$error":"#N/A"}},null,null,null,"--",{"$error":"#N/A"},null,null,null,null,null,"--",null,null,"","Zone 00 Street 00 Building 00",null,{"$error":"#N/A"},null,"ARKAN GULF TRADING & CONTRACTING","2024-09-11T11:06:02.850",null,"Payroll Service (Worker)","Y","Work Visa"]
[null,null,null,null," ",null,{"$f":"VLOOKUP(F807,'Validation sheet'!E:F,2,FALSE)","v":{"$error":"#N/A"}},null,null,null,"--",{"$error":"#N/A"},null,null,null,null,null,"--",null,null,"","Zone 00 Street 00 Building 00",null,{"$error":"#N/A"},null,"ARKAN GULF TRADING & CONTRACTING","2024-09-11T11:06:02.850",null,"Payroll Service (Worker)","Y","Work Visa"]
[null,null,null,null," ",null,{"$f":"VLOOKUP(F808,'Validation sheet'!E:F,2,FALSE)","v":{"$error":"#N/A"}},null,null,null,"--",{"$error":"#N/A"},null,null,null,null,null,"--",null,null,"","Zone 00 Street 00 Building 00",null,{"$error":"#N/A"},null,"ARKAN GULF TRADING & CONTRACTING","2024-09-11T11:06:02.850",null,"Payroll Service (Worker)","Y","Work Visa"]
[null,null,null,null," ",null,{"$f":"VLOOKUP(F809,'Validation sheet'!E:F,2,FALSE)","v":{"$error":"#N/A"}},null,null,null,"--",{"$error":"#N/A"},null,null,null,null,null,"--",null,null,"","Zone 00 Street 00 Building 00",null,{"$error":"#N/A"},null,"ARKAN GULF TRADING & CONTRACTING","2024-09-11T11:06:02.850",null,"Payroll Service (Worker)","Y","Work Visa"]
[null,null,null,null," ",null,{"$f":"VLOOKUP(F810,'Validation sheet'!E:F,2,FALSE)","v":{"$error":"#N/A"}},null,null,null,"--",{"$error":"#N/A"},null,null,null,null,null,"--",null,null,"","Zone 00 Street 00 Building 00",null,{"$error":"#N/A"},null,"ARKAN GULF TRADING & CONTRACTING","2024-09-11T11:06:02.850",null,"Payroll Service (Worker)","Y","Work Visa"]
[null,null,null,null," ",null,{"$f":"VLOOKUP(F811,'Validation sheet'!E:F,2,FALSE)","v":{"$error":"#N/A"}},null,null,null,"--",{"$error":"#N/A"},null,null,null,null,null,"--",null,null,"","Zone 00 Street 00 Building 00",null,{"$error":"#N/A"},null,"ARKAN GULF TRADING & CONTRACTING","2024-09-11T11:06:02.850",null,"Payroll Service (Worker)","Y","Work Visa"]
[null,null,null,null," ",null,{"$f":"VLOOKUP(F812,'Validation sheet'!E:F,2,FALSE)","v":{"$error":"#N/A"}},null,null,null,"--",{"$error":"#N/A"},null,null,null,null,null,"--",null,null,"","Zone 00 Street 00 Building 00",null,{"$error":"#N/A"},null,"ARKAN GULF TRADING & CONTRACTING","2024-09-11T11:06:02.850",null,"Payroll Service (Worker)","Y","Work Visa"]
[null,null,null,null," ",null,{"$f":"VLOOKUP(F813,'Validation sheet'!E:F,2,FALSE)","v":{"$error":"#N/A"}},null,null,null,"--",{"$error":"#N/A"},null,null,null,null,null,"--",null,null,"","Zone 00 Street 00 Building 00",null,{"$error":"#N/A"},null,"ARKAN GULF TRADING & CONTRACTING","2024-09-11T11:06:02.850",null,"Payroll Service (Worker)","Y","Work Visa"]
[null,null,null,null," ",null,{"$f":"VLOOKUP(F814,'Validation sheet'!E:F,2,FALSE)","v":{"$error":"#N/A"}},null,null,null,"--",{"$error":"#N/A"},null,null,null,null,null,"--",null,null,"","Zone 00 Street 00 Building 00",null,{"$error":"#N/A"},null,"ARKAN GULF TRADING & CONTRACTING","2024-09-11T11:06:02.850",null,"Payroll Service (Worker)","Y","Work Visa"]
[null,null,null,null," ",null,{"$f":"VLOOKUP(F815,'Validation sheet'!E:F,2,FALSE)","v":{"$error":"#N/A"}},null,null,null,"--",{"$error":"#N/A"},null,null,null,null,null,"--",null,null,"","Zone 00 Street 00 Building 00",null,{"$error":"#N/A"},null,"ARKAN GULF TRADING & CONTRACTING","2024-09-11T11:06:02.850",null,"Payroll Service (Worker)","Y","Work Visa"]
[null,null,null,null," ",null,{"$f":"VLOOKUP(F816,'Validation sheet'!E:F,2,FALSE)","v":{"$error":"#N/A"}},null,null,null,"--",{"$error":"#N/A"},null,null,null,null,null,"--",null,null,"","Zone 00 Street 00 Building 00",null,{"$error":"#N/A"},null,"ARKAN GULF TRADING & CONTRACTING","2024-09-11T11:06:02.850",null,"Payroll Service (Worker)","Y","Work Visa"]
[null,null,null,null," ",null,{"$f":"VLOOKUP(F817,'Validation sheet'!E:F,2,FALSE)","v":{"$error":"#N/A"}},null,null,null,"--",{"$error":"#N/A"},null,null,null,null,null,"--",null,null,"","Zone 00 Street 00 Building 00",null,{"$error":"#N/A"},null,"ARKAN GULF TRADING & CONTRACTING","2024-09-11T11:06:02.850",null,"Payroll Service (Worker)","Y","Work Visa"]
[null,null,null,null," ",null,{"$f":"VLOOKUP(F818,'Validation sheet'!E:F,2,FALSE)","v":{"$error":"#N/A"}},null,null,null,"--",{"$error":"#N/A"},null,null,null,null,null,"--",null,null,"","Zone 00 Street 00 Building 00",null,{"$error":"#N/A"},null,"ARKAN GULF TRADING & CONTRACTING","2024-09-11T11:06:02.850",null,"Payroll Service (Worker)","Y","Work Visa"]
[null,null,null,null," ",null,{"$f":"VLOOKUP(F819,'Validation sheet'!E:F,2,FALSE)","v":{"$error":"#N/A"}},null,null,null,"--",{"$error":"#N/A"},null,null,null,null,null,"--",null,null,"","Zone 00 Street 00 Building 00",null,{"$error":"#N/A"},null,"ARKAN GULF TRADING & CONTRACTING","2024-09-11T11:06:02.850",null,"Payroll Service (Worker)","Y","Work Visa"]
[null,null,null,null," ",null,{"$f":"VLOOKUP(F820,'Validation sheet'!E:F,2,FALSE)","v":{"$error":"#N/A"}},null,null,null,"--",{"$error":"#N/A"},null,null,null,null,null,"--",null,null,"","Zone 00 Street 00 Building 00",null,{"$error":"#N/A"},null,"ARKAN GULF TRADING & CONTRACTING","2024-09-11T11:06:02.850",null,"Payroll Service (Worker)","Y","Work Visa"]
[null,null,null,null," ",null,{"$f":"VLOOKUP(F821,'Validation sheet'!E:F,2,FALSE)","v":{"$error":"#N/A"}},null,null,null,"--",{"$error":"#N/A"},null,null,null,null,null,"--",null,null,"","Zone 00 Street 00 Building 00",null,{"$error":"#N/A"},null,"ARKAN GULF TRADING & CONTRACTING","2024-09-11T11:06:02.850",null,"Payroll Service (Worker)","Y","Work Visa"]
[null,null,null,null," ",null,{"$f":"VLOOKUP(F822,'Validation sheet'!E:F,2,FALSE)","v":{"$error":"#N/A"}},null,null,null,"--",{"$error":"#N/A"},null,null,null,null,null,"--",null,null,"","Zone 00 Street 00 Building 00",null,{"$error":"#N/A"},null,"ARKAN GULF TRADING & CONTRACTING","2024-09-11T11:06:02.850",null,"Payroll Service (Worker)","Y","Work Visa"]
[null,null,null,null," ",null,{"$f":"VLOOKUP(F823,'Validation sheet'!E:F,2,FALSE)","v":{"$error":"#N/A"}},null,null,null,"--",{"$error":"#N/A"},null,null,null,null,null,"--",null,null,"","Zone 00 Street 00 Building 00",null,{"$error":"#N/A"},null,"ARKAN GULF TRADING & CONTRACTING","2024-09-11T11:06:02.850",null,"Payroll Service (Worker)","Y","Work Visa"]
[null,null,null,null," ",null,{"$f":"VLOOKUP(F824,'Validation sheet'!E:F,2,FALSE)","v":{"$error":"#N/A"}},null,null,null,"--",{"$error":"#N/A"},null,null,null,null,null,"--",null,null,"","Zone 00 Street 00 Building 00",null,{"$error":"#N/A"},null,"ARKAN GULF TRADING & CONTRACTING","2024-09-11T11:06:02.850",null,"Payroll Service (Worker)","Y","Work Visa"]
[null,null,null,null," ",null,{"$f":"VLOOKUP(F825,'Validation sheet'!E:F,2,FALSE)","v":{"$error":"#N/A"}},null,null,null,"--",{"$error":"#N/A"},null,null,null,null,null,"--",null,null,"","Zone 00 Street 00 Building 00",null,{"$error":"#N/A"},null,"ARKAN GULF TRADING & CONTRACTING","2024-09-11T11:06:02.850",null,"Payroll Service (Worker)","Y","Work Visa"]
[null,null,null,null," ",null,{"$f":"VLOOKUP(F826,'Validation sheet'!E:F,2,FALSE)","v":{"$error":"#N/A"}},null,null,null,"--",{"$error":"#N/A"},null,null,null,null,null,"--",null,null,"","Zone 00 Street 00 Building 00",null,{"$error":"#N/A"},null,"ARKAN GULF TRADING & CONTRACTING","2024-09-11T11:06:02.850",null,"Payroll Service (Worker)","Y","Work Visa"]
[null,null,null,null," ",null,{"$f":"VLOOKUP(F827,'Validation sheet'!E:F,2,FALSE)","v":{"$error":"#N/A"}},null,null,null,"--",{"$error":"#N/A"},null,null,null,null,null,"--",null,null,"","Zone 00 Street 00 Building 00",null,{"$error":"#N/A"},null,"ARKAN GULF TRADING & CONTRACTING","2024-09-11T11:06:02.850",null,"Payroll Service (Worker)","Y","Work Visa"]
[null,null,null,null," ",null,{"$f":"VLOOKUP(F828,'Validation sheet'!E:F,2,FALSE)","v":{"$error":"#N/A"}},null,null,null,"--",{"$error":"#N/A"},null,null,null,null,null,"--",null,null,"","Zone 00 Street 00 Building 00",null,{"$error":"#N/A"},null,"ARKAN GULF TRADING & CONTRACTING","2024-09-11T11:06:02.850",null,"Payroll Service (Worker)","Y","Work Visa"]
[null,null,null,null," ",null,{"$f":"VLOOKUP(F829,'Validation sheet'!E:F,2,FALSE)","v":{"$error":"#N/A"}},null,null,null,"--",{"$error":"#N/A"},null,null,null,null,null,"--",null,null,"","Zone 00 Street 00 Building 00",null,{"$error":"#N/A"},null,"ARKAN GULF TRADING & CONTRACTING","2024-09-11T11:06:02.850",null,"Payroll Service (Worker)","Y","Work Visa"]
[null,null,null,null," ",null,{"$f":"VLOOKUP(F830,'Validation sheet'!E:F,2,FALSE)","v":{"$error":"#N/A"}},null,null,null,"--",{"$error":"#N/A"},null,null,null,null,null,"--",null,null,"","Zone 00 Street 00 Building 00",null,{"$error":"#N/A"},null,"ARKAN GULF TRADING & CONTRACTING","2024-09-11T11:06:02.850",null,"Payroll Service (Worker)","Y","Work Visa"]
[null,null,null,null," ",null,{"$f":"VLOOKUP(F831,'Validation sheet'!E:F,2,FALSE)","v":{"$error":"#N/A"}},null,null,null,"--",{"$error":"#N/A"},null,null,null,null,null,"--",null,null,"","Zone 00 Street 00 Building 00",null,{"$error":"#N/A"},null,"ARKAN GULF TRADING & CONTRACTING","2024-09-11T11:06:02.850",null,"Payroll Service (Worker)","Y","Work Visa"]
[null,null,null,null," ",null,{"$f":"VLOOKUP(F832,'Validation sheet'!E:F,2,FALSE)","v":{"$error":"#N/A"}},null,null,null,"--",{"$error":"#N/A"},null,null,null,null,null,"--",null,null,"","Zone 00 Street 00 Building 00",null,{"$error":"#N/A"},null,"ARKAN GULF TRADING & CONTRACTING","2024-09-11T11:06:02.850",null,"Payroll Service (Worker)","Y","Work Visa"]
[null,null,null,null," ",null,{"$f":"VLOOKUP(F833,'Validation sheet'!E:F,2,FALSE)","v":{"$error":"#N/A"}},null,null,null,"--",{"$error":"#N/A"},null,null,null,null,null,"--",null,null,"","Zone 00 Street 00 Building 00",null,{"$error":"#N/A"},null,"ARKAN GULF TRADING & CONTRACTING","2024-09-11T11:06:02.850",null,"Payroll Service (Worker)","Y","Work Visa"]
[null,null,null,null," ",null,{"$f":"VLOOKUP(F834,'Validation sheet'!E:F,2,FALSE)","v":{"$error":"#N/A"}},null,null,null,"--",{"$error":"#N/A"},null,null,null,null,null,"--",null,null,"","Zone 00 Street 00 Building 00",null,{"$error":"#N/A"},null,"ARKAN GULF TRADING & CONTRACTING","2024-09-11T11:06:02.850",null,"Payroll Service (Worker)","Y","Work Visa"]
[null,null,null,null," ",null,{"$f":"VLOOKUP(F835,'Validation sheet'!E:F,2,FALSE)","v":{"$error":"#N/A"}},null,null,null,"--",{"$error":"#N/A"},null,null,null,null,null,"--",null,null,"","Zone 00 Street 00 Building 00",null,{"$error":"#N/A"},null,"ARKAN GULF TRADING & CONTRACTING","2024-09-11T11:06:02.850",null,"Payroll Service (Worker)","Y","Work Visa"]
[null,null,null,null," ",null,{"$f":"VLOOKUP(F836,'Validation sheet'!E:F,2,FALSE)","v":{"$error":"#N/A"}},null,null,null,"--",{"$error":"#N/A"},null,null,null,null,null,"--",null,null,"","Zone 00 Street 00 Building 00",null,{"$error":"#N/A"},null,"ARKAN GULF TRADING & CONTRACTING","2024-09-11T11:06:02.850",null,"Payroll Service (Worker)","Y","Work Visa"]
[null,null,null,null," ",null,{"$f":"VLOOKUP(F837,'Validation sheet'!E:F,2,FALSE)","v":{"$error":"#N/A"}},null,null,null,"--",{"$error":"#N/A"},null,null,null,null,null,"--",null,null,"","Zone 00 Street 00 Building 00",null,{"$error":"#N/A"},null,"ARKAN GULF TRADING & CONTRACTING","2024-09-11T11:06:02.850",null,"Payroll Service (Worker)","Y","Work Visa"]
[null,null,null,null," ",null,{"$f":"VLOOKUP(F838,'Validation sheet'!E:F,2,FALSE)","v":{"$error":"#N/A"}},null,null,null,"--",{"$error":"#N/A"},null,null,null,null,null,"--",null,null,"","Zone 00 Street 00 Building 00",null,{"$error":"#N/A"},null,"ARKAN GULF TRADING & CONTRACTING","2024-09-11T11:06:02.850",null,"Payroll Service (Worker)","Y","Work Visa"]
[null,null,null,null," ",null,{"$f":"VLOOKUP(F839,'Validation sheet'!E:F,2,FALSE)","v":{"$error":"#N/A"}},null,null,null,"--",{"$error":"#N/A"},null,null,null,null,null,"--",null,null,{"$f":"S839&T839","v":""},"Zone 00 Street 00 Building 00",null,{"$f":"L839","v":{"$error":"#N/A"}},null,"ARKAN GULF TRADING & CONTRACTING","2024-09-11T11:06:02.850",null,"Payroll Service (Worker)","Y","Work Visa"]
[null,null,null,null,{"$f":"B840&\" \"&D840","v":" "},null,{"$f":"VLOOKUP(F840,'Validation sheet'!E:F,2,FALSE)","v":{"$error":"#N/A"}},null,null,null,{"$f":"H840&\"-\"&I840&\"-\"&J840","v":"--"},{"$f":"G840","v":{"$error":"#N/A"}},null,null,null,null,null,{"$f":"O840&\"-\"&P840&\"-\"&Q840","v":"--"},null,null,"","Zone 00 Street 00 Building 00",null,{"$error":"#N/A"},null,{"$f":"$B$1","v":"ARKAN GULF TRADING & CONTRACTING"},{"$f":"NOW()","v":"2024-09-11T11:06:02.850"},null,"Payroll Service (Worker)","Y","Work Visa"]
[null,null,null,null," ",null,{"$f":"VLOOKUP(F841,'Validation sheet'!E:F,2,FALSE)","v":{"$error":"#N/A"}},null,null,null,"--",{"$error":"#N/A"},null,null,null,null,null,"--",null,null,"","Zone 00 Street 00 Building 00",null,{"$error":"#N/A"},null,"ARKAN GULF TRADING & CONTRACTING","2024-09-11T11:06:02.850",null,"Payroll Service (Worker)","Y","Work Visa"]
[null,null,null,null," ",null,{"$f":"VLOOKUP(F842,'Validation sheet'!E:F,2,FALSE)","v":{"$error":"#N/A"}},null,null,null,"--",{"$error":"#N/A"},null,null,null,null,null,"--",null,null,"","Zone 00 Street 00 Building 00",null,{"$error":"#N/A"},null,"ARKAN GULF TRADING & CONTRACTING","2024-09-11T11:06:02.850",null,"Payroll Service (Worker)","Y","Work Visa"]
[null,null,null,null," ",null,{"$f":"VLOOKUP(F843,'Validation sheet'!E:F,2,FALSE)","v":{"$error":"#N/A"}},null,null,null,"--",{"$error":"#N/A"},null,null,null,null,null,"--",null,null,"","Zone 00 Street 00 Building 00",null,{"$error":"#N/A"},null,"ARKAN GULF TRADING & CONTRACTING","2024-09-11T11:06:02.850",null,"Payroll Service (Worker)","Y","Work Visa"]
[null,null,null,null," ",null,{"$f":"VLOOKUP(F844,'Validation sheet'!E:F,2,FALSE)","v":{"$error":"#N/A"}},null,null,null,"--",{"$error":"#N/A"},null,null,null,null,null,"--",null,null,"","Zone 00 Street 00 Building 00",null,{"$error":"#N/A"},null,"ARKAN GULF TRADING & CONTRACTING","2024-09-11T11:06:02.850",null,"Payroll Service (Worker)","Y","Work Visa"]
[null,null,null,null," ",null,{"$f":"VLOOKUP(F845,'Validation sheet'!E:F,2,FALSE)","v":{"$error":"#N/A"}},null,null,null,"--",{"$error":"#N/A"},null,null,null,null,null,"--",null,null,"","Zone 00 Street 00 Building 00",null,{"$error":"#N/A"},null,"ARKAN GULF TRADING & CONTRACTING","2024-09-11T11:06:02.850",null,"Payroll Service (Worker)","Y","Work Visa"]
[null,null,null,null," ",null,{"$f":"VLOOKUP(F846,'Validation sheet'!E:F,2,FALSE)","v":{"$error":"#N/A"}},null,null,null,"--",{"$error":"#N/A"},null,null,null,null,null,"--",null,null,"","Zone 00 Street 00 Building 00",null,{"$error":"#N/A"},null,"ARKAN GULF TRADING & CONTRACTING","2024-09-11T11:06:02.850",null,"Payroll Service (Worker)","Y","Work Visa"]
[null,null,null,null," ",null,{"$f":"VLOOKUP(F847,'Validation sheet'!E:F,2,FALSE)","v":{"$error":"#N/A"}},null,null,null,"--",{"$error":"#N/A"},null,null,null,null,null,"--",null,null,"","Zone 00 Street 00 Building 00",null,{"$error":"#N/A"},null,"ARKAN GULF TRADING & CONTRACTING","2024-09-11T11:06:02.850",null,"Payroll Service (Worker)","Y","Work Visa"]
[null,null,null,null," ",null,{"$f":"VLOOKUP(F848,'Validation sheet'!E:F,2,FALSE)","v":{"$error":"#N/A"}},null,null,null,"--",{"$error":"#N/A"},null,null,null,null,null,"--",null,null,"","Zone 00 Street 00 Building 00",null,{"$error":"#N/A"},null,"ARKAN GULF TRADING & CONTRACTING","2024-09-11T11:06:02.850",null,"Payroll Service (Worker)","Y","Work Visa"]
[null,null,null,null," ",null,{"$f":"VLOOKUP(F849,'Validation sheet'!E:F,2,FALSE)","v":{"$error":"#N/A"}},null,null,null,"--",{"$error":"#N/A"},null,null,null,null,null,"--",null,null,"","Zone 00 Street 00 Building 00",null,{"$error":"#N/A"},null,"ARKAN GULF TRADING & CONTRACTING","2024-09-11T11:06:02.850",null,"Payroll Service (Worker)","Y","Work Visa"]
[null,null,null,null," ",null,{"$f":"VLOOKUP(F850,'Validation sheet'!E:F,2,FALSE)","v":{"$error":"#N/A"}},null,null,null,"--",{"$error":"#N/A"},null,null,null,null,null,"--",null,null,"","Zone 00 Street 00 Building 00",null,{"$error":"#N/A"},null,"ARKAN GULF TRADING & CONTRACTING","2024-09-11T11:06:02.850",null,"Payroll Service (Worker)","Y","Work Visa"]
[null,null,null,null," ",null,{"$f":"VLOOKUP(F851,'Validation sheet'!E:F,2,FALSE)","v":{"$error":"#N/A"}},null,null,null,"--",{"$error":"#N/A"},null,null,null,null,null,"--",null,null,"","Zone 00 Street 00 Building 00",null,{"$error":"#N/A"},null,"ARKAN GULF TRADING & CONTRACTING","2024-09-11T11:06:02.850",null,"Payroll Service (Worker)","Y","Work Visa"]
[null,null,null,null," ",null,{"$f":"VLOOKUP(F852,'Validation sheet'!E:F,2,FALSE)","v":{"$error":"#N/A"}},null,null,null,"--",{"$error":"#N/A"},null,null,null,null,null,"--",null,null,"","Zone 00 Street 00 Building 00",null,{"$error":"#N/A"},null,"ARKAN GULF TRADING & CONTRACTING","2024-09-11T11:06:02.850",null,"Payroll Service (Worker)","Y","Work Visa"]
[null,null,null,null," ",null,{"$f":"VLOOKUP(F853,'Validation sheet'!E:F,2,FALSE)","v":{"$error":"#N/A"}},null,null,null,"--",{"$error":"#N/A"},null,null,null,null,null,"--",null,null,"","Zone 00 Street 00 Building 00",null,{"$error":"#N/A"},null,"ARKAN GULF TRADING & CONTRACTING","2024-09-11T11:06:02.850",null,"Payroll Service (Worker)","Y","Work Visa"]
[null,null,null,null," ",null,{"$f":"VLOOKUP(F854,'Validation sheet'!E:F,2,FALSE)","v":{"$error":"#N/A"}},null,null,null,"--",{"$error":"#N/A"},null,null,null,null,null,"--",null,null,"","Zone 00 Street 00 Building 00",null,{"$error":"#N/A"},null,"ARKAN GULF TRADING & CONTRACTING","2024-09-11T11:06:02.850",null,"Payroll Service (Worker)","Y","Work Visa"]
[null,null,null,null," ",null,{"$f":"VLOOKUP(F855,'Validation sheet'!E:F,2,FALSE)","v":{"$error":"#N/A"}},null,null,null,"--",{"$error":"#N/A"},null,null,null,null,null,"--",null,null,"","Zone 00 Street 00 Building 00",null,{"$error":"#N/A"},null,"ARKAN GULF TRADING & CONTRACTING","2024-09-11T11:06:02.850",null,"Payroll Service (Worker)","Y","Work Visa"]
[null,null,null,null," ",null,{"$f":"VLOOKUP(F856,'Validation sheet'!E:F,2,FALSE)","v":{"$error":"#N/A"}},null,null,null,"--",{"$error":"#N/A"},null,null,null,null,null,"--",null,null,"","Zone 00 Street 00 Building 00",null,{"$error":"#N/A"},null,"ARKAN GULF TRADING & CONTRACTING","2024-09-11T11:06:02.850",null,"Payroll Service (Worker)","Y","Work Visa"]
[null,null,null,null," ",null,{"$f":"VLOOKUP(F857,'Validation sheet'!E:F,2,FALSE)","v":{"$error":"#N/A"}},null,null,null,"--",{"$error":"#N/A"},null,null,null,null,null,"--",null,null,"","Zone 00 Street 00 Building 00",null,{"$error":"#N/A"},null,"ARKAN GULF TRADING & CONTRACTING","2024-09-11T11:06:02.850",null,"Payroll Service (Worker)","Y","Work Visa"]
[null,null,null,null," ",null,{"$f":"VLOOKUP(F858,'Validation sheet'!E:F,2,FALSE)","v":{"$error":"#N/A"}},null,null,null,"--",{"$error":"#N/A"},null,null,null,null,null,"--",null,null,"","Zone 00 Street 00 Building 00",null,{"$error":"#N/A"},null,"ARKAN GULF TRADING & CONTRACTING","2024-09-11T11:06:02.850",null,"Payroll Service (Worker)","Y","Work Visa"]
[null,null,null,null," ",null,{"$f":"VLOOKUP(F859,'Validation sheet'!E:F,2,FALSE)","v":{"$error":"#N/A"}},null,null,null,"--",{"$error":"#N/A"},null,null,null,null,null,"--",null,null,"","Zone 00 Street 00 Building 00",null,{"$error":"#N/A"},null,"ARKAN GULF TRADING & CONTRACTING","2024-09-11T11:06:02.850",null,"Payroll Service (Worker)","Y","Work Visa"]
[null,null,null,null," ",null,{"$f":"VLOOKUP(F860,'Validation sheet'!E:F,2,FALSE)","v":{"$error":"#N/A"}},null,null,null,"--",{"$error":"#N/A"},null,null,null,null,null,"--",null,null,"","Zone 00 Street 00 Building 00",null,{"$error":"#N/A"},null,"ARKAN GULF TRADING & CONTRACTING","2024-09-11T11:06:02.850",null,"Payroll Service (Worker)","Y","Work Visa"]
[null,null,null,null," ",null,{"$f":"VLOOKUP(F861,'Validation sheet'!E:F,2,FALSE)","v":{"$error":"#N/A"}},null,null,null,"--",{"$error":"#N/A"},null,null,null,null,null,"--",null,null,"","Zone 00 Street 00 Building 00",null,{"$error":"#N/A"},null,"ARKAN GULF TRADING & CONTRACTING","2024-09-11T11:06:02.850",null,"Payroll Service (Worker)","Y","Work Visa"]
[null,null,null,null," ",null,{"$f":"VLOOKUP(F862,'Validation sheet'!E:F,2,FALSE)","v":{"$error":"#N/A"}},null,null,null,"--",{"$error":"#N/A"},null,null,null,null,null,"--",null,null,"","Zone 00 Street 00 Building 00",null,{"$error":"#N/A"},null,"ARKAN GULF TRADING & CONTRACTING","2024-09-11T11:06:02.850",null,"Payroll Service (Worker)","Y","Work Visa"]
[null,null,null,null," ",null,{"$f":"VLOOKUP(F863,'Validation sheet'!E:F,2,FALSE)","v":{"$error":"#N/A"}},null,null,null,"--",{"$error":"#N/A"},null,null,null,null,null,"--",null,null,"","Zone 00 Street 00 Building 00",null,{"$error":"#N/A"},null,"ARKAN GULF TRADING & CONTRACTING","2024-09-11T11:06:02.850",null,"Payroll Service (Worker)","Y","Work Visa"]
[null,null,null,null," ",null,{"$f":"VLOOKUP(F864,'Validation sheet'!E:F,2,FALSE)","v":{"$error":"#N/A"}},null,null,null,"--",{"$error":"#N/A"},null,null,null,null,null,"--",null,null,"","Zone 00 Street 00 Building 00",null,{"$error":"#N/A"},null,"ARKAN GULF TRADING & CONTRACTING","2024-09-11T11:06:02.850",null,"Payroll Service (Worker)","Y","Work Visa"]
[null,null,null,null," ",null,{"$f":"VLOOKUP(F865,'Validation sheet'!E:F,2,FALSE)","v":{"$error":"#N/A"}},null,null,null,"--",{"$error":"#N/A"},null,null,null,null,null,"--",null,null,"","Zone 00 Street 00 Building 00",null,{"$error":"#N/A"},null,"ARKAN GULF TRADING & CONTRACTING","2024-09-11T11:06:02.850",null,"Payroll Service (Worker)","Y","Work Visa"]
[null,null,null,null," ",null,{"$f":"VLOOKUP(F866,'Validation sheet'!E:F,2,FALSE)","v":{"$error":"#N/A"}},null,null,null,"--",{"$error":"#N/A"},null,null,null,null,null,"--",null,null,"","Zone 00 Street 00 Building 00",null,{"$error":"#N/A"},null,"ARKAN GULF TRADING & CONTRACTING","2024-09-11T11:06:02.850",null,"Payroll Service (Worker)","Y","Work Visa"]
[null,null,null,null," ",null,{"$f":"VLOOKUP(F867,'Validation sheet'!E:F,2,FALSE)","v":{"$error":"#N/A"}},null,null,null,"--",{"$error":"#N/A"},null,null,null,null,null,"--",null,null,"","Zone 00 Street 00 Building 00",null,{"$error":"#N/A"},null,"ARKAN GULF TRADING & CONTRACTING","2024-09-11T11:06:02.850",null,"Payroll Service (Worker)","Y","Work Visa"]
[null,null,null,null," ",null,{"$f":"VLOOKUP(F868,'Validation sheet'!E:F,2,FALSE)","v":{"$error":"#N/A"}},null,null,null,"--",{"$error":"#N/A"},null,null,null,null,null,"--",null,null,"","Zone 00 Street 00 Building 00",null,{"$error":"#N/A"},null,"ARKAN GULF TRADING & CONTRACTING","2024-09-11T11:06:02.850",null,"Payroll Service (Worker)","Y","Work Visa"]
[null,null,null,null," ",null,{"$f":"VLOOKUP(F869,'Validation sheet'!E:F,2,FALSE)","v":{"$error":"#N/A"}},null,null,null,"--",{"$error":"#N/A"},null,null,null,null,null,"--",null,null,"","Zone 00 Street 00 Building 00",null,{"$error":"#N/A"},null,"ARKAN GULF TRADING & CONTRACTING","2024-09-11T11:06:02.850",null,"Payroll Service (Worker)","Y","Work Visa"]
[null,null,null,null," ",null,{"$f":"VLOOKUP(F870,'Validation sheet'!E:F,2,FALSE)","v":{"$error":"#N/A"}},null,null,null,"--",{"$error":"#N/A"},null,null,null,null,null,"--",null,null,"","Zone 00 Street 00 Building 00",null,{"$error":"#N/A"},null,"ARKAN GULF TRADING & CONTRACTING","2024-09-11T11:06:02.850",null,"Payroll Service (Worker)","Y","Work Visa"]
[null,null,null,null," ",null,{"$f":"VLOOKUP(F871,'Validation sheet'!E:F,2,FALSE)","v":{"$error":"#N/A"}},null,null,null,"--",{"$error":"#N/A"},null,null,null,null,null,"--",null,null,"","Zone 00 Street 00 Building 00",null,{"$error":"#N/A"},null,"ARKAN GULF TRADING & CONTRACTING","2024-09-11T11:06:02.850",null,"Payroll Service (Worker)","Y","Work Visa"]
[null,null,null,null," ",null,{"$f":"VLOOKUP(F872,'Validation sheet'!E:F,2,FALSE)","v":{"$error":"#N/A"}},null,null,null,"--",{"$error":"#N/A"},null,null,null,null,null,"--",null,null,"","Zone 00 Street 00 Building 00",null,{"$error":"#N/A"},null,"ARKAN GULF TRADING & CONTRACTING","2024-09-11T11:06:02.850",null,"Payroll Service (Worker)","Y","Work Visa"]
[null,null,null,null," ",null,{"$f":"VLOOKUP(F873,'Validation sheet'!E:F,2,FALSE)","v":{"$error":"#N/A"}},null,null,null,"--",{"$error":"#N/A"},null,null,null,null,null,"--",null,null,"","Zone 00 Street 00 Building 00",null,{"$error":"#N/A"},null,"ARKAN GULF TRADING & CONTRACTING","2024-09-11T11:06:02.850",null,"Payroll Service (Worker)","Y","Work Visa"]
[null,null,null,null," ",null,{"$f":"VLOOKUP(F874,'Validation sheet'!E:F,2,FALSE)","v":{"$error":"#N/A"}},null,null,null,"--",{"$error":"#N/A"},null,null,null,null,null,"--",null,null,"","Zone 00 Street 00 Building 00",null,{"$error":"#N/A"},null,"ARKAN GULF TRADING & CONTRACTING","2024-09-11T11:06:02.850",null,"Payroll Service (Worker)","Y","Work Visa"]
[null,null,null,null," ",null,{"$f":"VLOOKUP(F875,'Validation sheet'!E:F,2,FALSE)","v":{"$error":"#N/A"}},null,null,null,"--",{"$error":"#N/A"},null,null,null,null,null,"--",null,null,"","Zone 00 Street 00 Building 00",null,{"$error":"#N/A"},null,"ARKAN GULF TRADING & CONTRACTING","2024-09-11T11:06:02.850",null,"Payroll Service (Worker)","Y","Work Visa"]
[null,null,null,null," ",null,{"$f":"VLOOKUP(F876,'Validation sheet'!E:F,2,FALSE)","v":{"$error":"#N/A"}},null,null,null,"--",{"$error":"#N/A"},null,null,null,null,null,"--",null,null,"","Zone 00 Street 00 Building 00",null,{"$error":"#N/A"},null,"ARKAN GULF TRADING & CONTRACTING","2024-09-11T11:06:02.850",null,"Payroll Service (Worker)","Y","Work Visa"]
[null,null,null,null," ",null,{"$f":"VLOOKUP(F877,'Validation sheet'!E:F,2,FALSE)","v":{"$error":"#N/A"}},null,null,null,"--",{"$error":"#N/A"},null,null,null,null,null,"--",null,null,"","Zone 00 Street 00 Building 00",null,{"$error":"#N/A"},null,"ARKAN GULF TRADING & CONTRACTING","2024-09-11T11:06:02.850",null,"Payroll Service (Worker)","Y","Work Visa"]
[null,null,null,null," ",null,{"$f":"VLOOKUP(F878,'Validation sheet'!E:F,2,FALSE)","v":{"$error":"#N/A"}},null,null,null,"--",{"$error":"#N/A"},null,null,null,null,null,"--",null,null,"","Zone 00 Street 00 Building 00",null,{"$error":"#N/A"},null,"ARKAN GULF TRADING & CONTRACTING","2024-09-11T11:06:02.850",null,"Payroll Service (Worker)","Y","Work Visa"]
[null,null,null,null," ",null,{"$f":"VLOOKUP(F879,'Validation sheet'!E:F,2,FALSE)","v":{"$error":"#N/A"}},null,null,null,"--",{"$error":"#N/A"},null,null,null,null,null,"--",null,null,"","Zone 00 Street 00 Building 00",null,{"$error":"#N/A"},null,"ARKAN GULF TRADING & CONTRACTING","2024-09-11T11:06:02.850",null,"Payroll Service (Worker)","Y","Work Visa"]
[null,null,null,null," ",null,{"$f":"VLOOKUP(F880,'Validation sheet'!E:F,2,FALSE)","v":{"$error":"#N/A"}},null,null,null,"--",{"$error":"#N/A"},null,null,null,null,null,"--",null,null,"","Zone 00 Street 00 Building 00",null,{"$error":"#N/A"},null,"ARKAN GULF TRADING & CONTRACTING","2024-09-11T11:06:02.850",null,"Payroll Service (Worker)","Y","Work Visa"]
[null,null,null,null," ",null,{"$f":"VLOOKUP(F881,'Validation sheet'!E:F,2,FALSE)","v":{"$error":"#N/A"}},null,null,null,"--",{"$error":"#N/A"},null,null,null,null,null,"--",null,null,"","Zone 00 Street 00 Building 00",null,{"$error":"#N/A"},null,"ARKAN GULF TRADING & CONTRACTING","2024-09-11T11:06:02.850",null,"Payroll Service (Worker)","Y","Work Visa"]
[null,null,null,null," ",null,{"$f":"VLOOKUP(F882,'Validation sheet'!E:F,2,FALSE)","v":{"$error":"#N/A"}},null,null,null,"--",{"$error":"#N/A"},null,null,null,null,null,"--",null,null,"","Zone 00 Street 00 Building 00",null,{"$error":"#N/A"},null,"ARKAN GULF TRADING & CONTRACTING","2024-09-11T11:06:02.850",null,"Payroll Service (Worker)","Y","Work Visa"]
[null,null,null,null," ",null,{"$f":"VLOOKUP(F883,'Validation sheet'!E:F,2,FALSE)","v":{"$error":"#N/A"}},null,null,null,"--",{"$error":"#N/A"},null,null,null,null,null,"--",null,null,"","Zone 00 Street 00 Building 00",null,{"$error":"#N/A"},null,"ARKAN GULF TRADING & CONTRACTING","2024-09-11T11:06:02.850",null,"Payroll Service (Worker)","Y","Work Visa"]
[null,null,null,null," ",null,{"$f":"VLOOKUP(F884,'Validation sheet'!E:F,2,FALSE)","v":{"$error":"#N/A"}},null,null,null,"--",{"$error":"#N/A"},null,null,null,null,null,"--",null,null,"","Zone 00 Street 00 Building 00",null,{"$error":"#N/A"},null,"ARKAN GULF TRADING & CONTRACTING","2024-09-11T11:06:02.850",null,"Payroll Service (Worker)","Y","Work Visa"]
[null,null,null,null," ",null,{"$f":"VLOOKUP(F885,'Validation sheet'!E:F,2,FALSE)","v":{"$error":"#N/A"}},null,null,null,"--",{"$error":"#N/A"},null,null,null,null,null,"--",null,null,"","Zone 00 Street 00 Building 00",null,{"$error":"#N/A"},null,"ARKAN GULF TRADING & CONTRACTING","2024-09-11T11:06:02.850",null,"Payroll Service (Worker)","Y","Work Visa"]
[null,null,null,null," ",null,{"$f":"VLOOKUP(F886,'Validation sheet'!E:F,2,FALSE)","v":{"$error":"#N/A"}},null,null,null,"--",{"$error":"#N/A"},null,null,null,null,null,"--",null,null,"","Zone 00 Street 00 Building 00",null,{"$error":"#N/A"},null,"ARKAN GULF TRADING & CONTRACTING","2024-09-11T11:06:02.850",null,"Payroll Service (Worker)","Y","Work Visa"]
[null,null,null,null," ",null,{"$f":"VLOOKUP(F887,'Validation sheet'!E:F,2,FALSE)","v":{"$error":"#N/A"}},null,null,null,"--",{"$error":"#N/A"},null,null,null,null,null,"--",null,null,"","Zone 00 Street 00 Building 00",null,{"$error":"#N/A"},null,"ARKAN GULF TRADING & CONTRACTING","2024-09-11T11:06:02.850",null,"Payroll Service (Worker)","Y","Work Visa"]
[null,null,null,null," ",null,{"$f":"VLOOKUP(F888,'Validation sheet'!E:F,2,FALSE)","v":{"$error":"#N/A"}},null,null,null,"--",{"$error":"#N/A"},null,null,null,null,null,"--",null,null,"","Zone 00 Street 00 Building 00",null,{"$error":"#N/A"},null,"ARKAN GULF TRADING & CONTRACTING","2024-09-11T11:06:02.850",null,"Payroll Service (Worker)","Y","Work Visa"]
[null,null,null,null," ",null,{"$f":"VLOOKUP(F889,'Validation sheet'!E:F,2,FALSE)","v":{"$error":"#N/A"}},null,null,null,"--",{"$error":"#N/A"},null,null,null,null,null,"--",null,null,"","Zone 00 Street 00 Building 00",null,{"$error":"#N/A"},null,"ARKAN GULF TRADING & CONTRACTING","2024-09-11T11:06:02.850",null,"Payroll Service (Worker)","Y","Work Visa"]
[null,null,null,null," ",null,{"$f":"VLOOKUP(F890,'Validation sheet'!E:F,2,FALSE)","v":{"$error":"#N/A"}},null,null,null,"--",{"$error":"#N/A"},null,null,null,null,null,"--",null,null,"","Zone 00 Street 00 Building 00",null,{"$error":"#N/A"},null,"ARKAN GULF TRADING & CONTRACTING","2024-09-11T11:06:02.850",null,"Payroll Service (Worker)","Y","Work Visa"]
[null,null,null,null," ",null,{"$f":"VLOOKUP(F891,'Validation sheet'!E:F,2,FALSE)","v":{"$error":"#N/A"}},null,null,null,"--",{"$error":"#N/A"},null,null,null,null,null,"--",null,null,"","Zone 00 Street 00 Building 00",null,{"$error":"#N/A"},null,"ARKAN GULF TRADING & CONTRACTING","2024-09-11T11:06:02.850",null,"Payroll Service (Worker)","Y","Work Visa"]
[null,null,null,null," ",null,{"$f":"VLOOKUP(F892,'Validation sheet'!E:F,2,FALSE)","v":{"$error":"#N/A"}},null,null,null,"--",{"$error":"#N/A"},null,null,null,null,null,"--",null,null,"","Zone 00 Street 00 Building 00",null,{"$error":"#N/A"},null,"ARKAN GULF TRADING & CONTRACTING","2024-09-11T11:06:02.850",null,"Payroll Service (Worker)","Y","Work Visa"]
[null,null,null,null," ",null,{"$f":"VLOOKUP(F893,'Validation sheet'!E:F,2,FALSE)","v":{"$error":"#N/A"}},null,null,null,"--",{"$error":"#N/A"},null,null,null,null,null,"--",null,null,"","Zone 00 Street 00 Building 00",null,{"$error":"#N/A"},null,"ARKAN GULF TRADING & CONTRACTING","2024-09-11T11:06:02.850",null,"Payroll Service (Worker)","Y","Work Visa"]
[null,null,null,null," ",null,{"$f":"VLOOKUP(F894,'Validation sheet'!E:F,2,FALSE)","v":{"$error":"#N/A"}},null,null,null,"--",{"$error":"#N/A"},null,null,null,null,null,"--",null,null,"","Zone 00 Street 00 Building 00",null,{"$error":"#N/A"},null,"ARKAN GULF TRADING & CONTRACTING","2024-09-11T11:06:02.850",null,"Payroll Service (Worker)","Y","Work Visa"]
[null,null,null,null," ",null,{"$f":"VLOOKUP(F895,'Validation sheet'!E:F,2,FALSE)","v":{"$error":"#N/A"}},null,null,null,"--",{"$error":"#N/A"},null,null,null,null,null,"--",null,null,"","Zone 00 Street 00 Building 00",null,{"$error":"#N/A"},null,"ARKAN GULF TRADING & CONTRACTING","2024-09-11T11:06:02.850",null,"Payroll Service (Worker)","Y","Work Visa"]
[null,null,null,null," ",null,{"$f":"VLOOKUP(F896,'Validation sheet'!E:F,2,FALSE)","v":{"$error":"#N/A"}},null,null,null,"--",{"$error":"#N/A"},null,null,null,null,null,"--",null,null,"","Zone 00 Street 00 Building 00",null,{"$error":"#N/A"},null,"ARKAN GULF TRADING & CONTRACTING","2024-09-11T11:06:02.850",null,"Payroll Service (Worker)","Y","Work Visa"]
[null,null,null,null," ",null,{"$f":"VLOOKUP(F897,'Validation sheet'!E:F,2,FALSE)","v":{"$error":"#N/A"}},null,null,null,"--",{"$error":"#N/A"},null,null,null,null,null,"--",null,null,"","Zone 00 Street 00 Building 00",null,{"$error":"#N/A"},null,"ARKAN GULF TRADING & CONTRACTING","2024-09-11T11:06:02.850",null,"Payroll Service (Worker)","Y","Work Visa"]
[null,null,null,null," ",null,{"$f":"VLOOKUP(F898,'Validation sheet'!E:F,2,FALSE)","v":{"$error":"#N/A"}},null,null,null,"--",{"$error":"#N/A"},null,null,null,null,null,"--",null,null,"","Zone 00 Street 00 Building 00",null,{"$error":"#N/A"},null,"ARKAN GULF TRADING & CONTRACTING","2024-09-11T11:06:02.850",null,"Payroll Service (Worker)","Y","Work Visa"]
[null,null,null,null," ",null,{"$f":"VLOOKUP(F899,'Validation sheet'!E:F,2,FALSE)","v":{"$error":"#N/A"}},null,null,null,"--",{"$error":"#N/A"},null,null,null,null,null,"--",null,null,"","Zone 00 Street 00 Building 00",null,{"$error":"#N/A"},null,"ARKAN GULF TRADING & CONTRACTING","2024-09-11T11:06:02.850",null,"Payroll Service (Worker)","Y","Work Visa"]
[null,null,null,null," ",null,{"$f":"VLOOKUP(F900,'Validation sheet'!E:F,2,FALSE)","v":{"$error":"#N/A"}},null,null,null,"--",{"$error":"#N/A"},null,null,null,null,null,"--",null,null,"","Zone 00 Street 00 Building 00",null,{"$error":"#N/A"},null,"ARKAN GULF TRADING & CONTRACTING","2024-09-11T11:06:02.850",null,"Payroll Service (Worker)","Y","Work Visa"]
[null,null,null,null," ",null,{"$f":"VLOOKUP(F901,'Validation sheet'!E:F,2,FALSE)","v":{"$error":"#N/A"}},null,null,null,"--",{"$error":"#N/A"},null,null,null,null,null,"--",null,null,"","Zone 00 Street 00 Building 00",null,{"$error":"#N/A"},null,"ARKAN GULF TRADING & CONTRACTING","2024-09-11T11:06:02.850",null,"Payroll Service (Worker)","Y","Work Visa"]
[null,null,null,null," ",null,{"$f":"VLOOKUP(F902,'Validation sheet'!E:F,2,FALSE)","v":{"$error":"#N/A"}},null,null,null,"--",{"$error":"#N/A"},null,null,null,null,null,"--",null,null,"","Zone 00 Street 00 Building 00",null,{"$error":"#N/A"},null,"ARKAN GULF TRADING & CONTRACTING","2024-09-11T11:06:02.850",null,"Payroll Service (Worker)","Y","Work Visa"]
[null,null,null,null," ",null,{"$f":"VLOOKUP(F903,'Validation sheet'!E:F,2,FALSE)","v":{"$error":"#N/A"}},null,null,null,"--",{"$error":"#N/A"},null,null,null,null,null,"--",null,null,{"$f":"S903&T903","v":""},"Zone 00 Street 00 Building 00",null,{"$f":"L903","v":{"$error":"#N/A"}},null,"ARKAN GULF TRADING & CONTRACTING","2024-09-11T11:06:02.850",null,"Payroll Service (Worker)","Y","Work Visa"]
[null,null,null,null,{"$f":"B904&\" \"&D904","v":" "},null,{"$f":"VLOOKUP(F904,'Validation sheet'!E:F,2,FALSE)","v":{"$error":"#N/A"}},null,null,null,{"$f":"H904&\"-\"&I904&\"-\"&J904","v":"--"},{"$f":"G904","v":{"$error":"#N/A"}},null,null,null,null,null,{"$f":"O904&\"-\"&P904&\"-\"&Q904","v":"--"},null,null,"","Zone 00 Street 00 Building 00",null,{"$error":"#N/A"},null,{"$f":"$B$1","v":"ARKAN GULF TRADING & CONTRACTING"},{"$f":"NOW()","v":"2024-09-11T11:06:02.850"},null,"Payroll Service (Worker)","Y","Work Visa"]
[null,null,null,null," ",null,{"$f":"VLOOKUP(F905,'Validation sheet'!E:F,2,FALSE)","v":{"$error":"#N/A"}},null,null,null,"--",{"$error":"#N/A"},null,null,null,null,null,"--",null,null,"","Zone 00 Street 00 Building 00",null,{"$error":"#N/A"},null,"ARKAN GULF TRADING & CONTRACTING","2024-09-11T11:06:02.850",null,"Payroll Service (Worker)","Y","Work Visa"]
[null,null,null,null," ",null,{"$f":"VLOOKUP(F906,'Validation sheet'!E:F,2,FALSE)","v":{"$error":"#N/A"}},null,null,null,"--",{"$error":"#N/A"},null,null,null,null,null,"--",null,null,"","Zone 00 Street 00 Building 00",null,{"$error":"#N/A"},null,"ARKAN GULF TRADING & CONTRACTING","2024-09-11T11:06:02.850",null,"Payroll Service (Worker)","Y","Work Visa"]
[null,null,null,null," ",null,{"$f":"VLOOKUP(F907,'Validation sheet'!E:F,2,FALSE)","v":{"$error":"#N/A"}},null,null,null,"--",{"$error":"#N/A"},null,null,null,null,null,"--",null,null,"","Zone 00 Street 00 Building 00",null,{"$error":"#N/A"},null,"ARKAN GULF TRADING & CONTRACTING","2024-09-11T11:06:02.850",null,"Payroll Service (Worker)","Y","Work Visa"]
[null,null,null,null," ",null,{"$f":"VLOOKUP(F908,'Validation sheet'!E:F,2,FALSE)","v":{"$error":"#N/A"}},null,null,null,"--",{"$error":"#N/A"},null,null,null,null,null,"--",null,null,"","Zone 00 Street 00 Building 00",null,{"$error":"#N/A"},null,"ARKAN GULF TRADING & CONTRACTING","2024-09-11T11:06:02.850",null,"Payroll Service (Worker)","Y","Work Visa"]
[null,null,null,null," ",null,{"$f":"VLOOKUP(F909,'Validation sheet'!E:F,2,FALSE)","v":{"$error":"#N/A"}},null,null,null,"--",{"$error":"#N/A"},null,null,null,null,null,"--",null,null,"","Zone 00 Street 00 Building 00",null,{"$error":"#N/A"},null,"ARKAN GULF TRADING & CONTRACTING","2024-09-11T11:06:02.850",null,"Payroll Service (Worker)","Y","Work Visa"]
[null,null,null,null," ",null,{"$f":"VLOOKUP(F910,'Validation sheet'!E:F,2,FALSE)","v":{"$error":"#N/A"}},null,null,null,"--",{"$error":"#N/A"},null,null,null,null,null,"--",null,null,"","Zone 00 Street 00 Building 00",null,{"$error":"#N/A"},null,"ARKAN GULF TRADING & CONTRACTING","2024-09-11T11:06:02.850",null,"Payroll Service (Worker)","Y","Work Visa"]
[null,null,null,null," ",null,{"$f":"VLOOKUP(F911,'Validation sheet'!E:F,2,FALSE)","v":{"$error":"#N/A"}},null,null,null,"--",{"$error":"#N/A"},null,null,null,null,null,"--",null,null,"","Zone 00 Street 00 Building 00",null,{"$error":"#N/A"},null,"ARKAN GULF TRADING & CONTRACTING","2024-09-11T11:06:02.850",null,"Payroll Service (Worker)","Y","Work Visa"]
[null,null,null,null," ",null,{"$f":"VLOOKUP(F912,'Validation sheet'!E:F,2,FALSE)","v":{"$error":"#N/A"}},null,null,null,"--",{"$error":"#N/A"},null,null,null,null,null,"--",null,null,"","Zone 00 Street 00 Building 00",null,{"$error":"#N/A"},null,"ARKAN GULF TRADING & CONTRACTING","2024-09-11T11:06:02.850",null,"Payroll Service (Worker)","Y","Work Visa"]
[null,null,null,null," ",null,{"$f":"VLOOKUP(F913,'Validation sheet'!E:F,2,FALSE)","v":{"$error":"#N/A"}},null,null,null,"--",{"$error":"#N/A"},null,null,null,null,null,"--",null,null,"","Zone 00 Street 00 Building 00",null,{"$error":"#N/A"},null,"ARKAN GULF TRADING & CONTRACTING","2024-09-11T11:06:02.850",null,"Payroll Service (Worker)","Y","Work Visa"]
[null,null,null,null," ",null,{"$f":"VLOOKUP(F914,'Validation sheet'!E:F,2,FALSE)","v":{"$error":"#N/A"}},null,null,null,"--",{"$error":"#N/A"},null,null,null,null,null,"--",null,null,"","Zone 00 Street 00 Building 00",null,{"$error":"#N/A"},null,"ARKAN GULF TRADING & CONTRACTING","2024-09-11T11:06:02.850",null,"Payroll Service (Worker)","Y","Work Visa"]
[null,null,null,null," ",null,{"$f":"VLOOKUP(F915,'Validation sheet'!E:F,2,FALSE)","v":{"$error":"#N/A"}},null,null,null,"--",{"$error":"#N/A"},null,null,null,null,null,"--",null,null,"","Zone 00 Street 00 Building 00",null,{"$error":"#N/A"},null,"ARKAN GULF TRADING & CONTRACTING","2024-09-11T11:06:02.850",null,"Payroll Service (Worker)","Y","Work Visa"]
[null,null,null,null," ",null,{"$f":"VLOOKUP(F916,'Validation sheet'!E:F,2,FALSE)","v":{"$error":"#N/A"}},null,null,null,"--",{"$error":"#N/A"},null,null,null,null,null,"--",null,null,"","Zone 00 Street 00 Building 00",null,{"$error":"#N/A"},null,"ARKAN GULF TRADING & CONTRACTING","2024-09-11T11:06:02.850",null,"Payroll Service (Worker)","Y","Work Visa"]
[null,null,null,null," ",null,{"$f":"VLOOKUP(F917,'Validation sheet'!E:F,2,FALSE)","v":{"$error":"#N/A"}},null,null,null,"--",{"$error":"#N/A"},null,null,null,null,null,"--",null,null,"","Zone 00 Street 00 Building 00",null,{"$error":"#N/A"},null,"ARKAN GULF TRADING & CONTRACTING","2024-09-11T11:06:02.850",null,"Payroll Service (Worker)","Y","Work Visa"]
[null,null,null,null," ",null,{"$f":"VLOOKUP(F918,'Validation sheet'!E:F,2,FALSE)","v":{"$error":"#N/A"}},null,null,null,"--",{"$error":"#N/A"},null,null,null,null,null,"--",null,null,"","Zone 00 Street 00 Building 00",null,{"$error":"#N/A"},null,"ARKAN GULF TRADING & CONTRACTING","2024-09-11T11:06:02.850",null,"Payroll Service (Worker)","Y","Work Visa"]
[null,null,null,null," ",null,{"$f":"VLOOKUP(F919,'Validation sheet'!E:F,2,FALSE)","v":{"$error":"#N/A"}},null,null,null,"--",{"$error":"#N/A"},null,null,null,null,null,"--",null,null,"","Zone 00 Street 00 Building 00",null,{"$error":"#N/A"},null,"ARKAN GULF TRADING & CONTRACTING","2024-09-11T11:06:02.850",null,"Payroll Service (Worker)","Y","Work Visa"]
[null,null,null,null," ",null,{"$f":"VLOOKUP(F920,'Validation sheet'!E:F,2,FALSE)","v":{"$error":"#N/A"}},null,null,null,"--",{"$error":"#N/A"},null,null,null,null,null,"--",null,null,"","Zone 00 Street 00 Building 00",null,{"$error":"#N/A"},null,"ARKAN GULF TRADING & CONTRACTING","2024-09-11T11:06:02.850",null,"Payroll Service (Worker)","Y","Work Visa"]
[null,null,null,null," ",null,{"$f":"VLOOKUP(F921,'Validation sheet'!E:F,2,FALSE)","v":{"$error":"#N/A"}},null,null,null,"--",{"$error":"#N/A"},null,null,null,null,null,"--",null,null,"","Zone 00 Street 00 Building 00",null,{"$error":"#N/A"},null,"ARKAN GULF TRADING & CONTRACTING","2024-09-11T11:06:02.850",null,"Payroll Service (Worker)","Y","Work Visa"]
[null,null,null,null," ",null,{"$f":"VLOOKUP(F922,'Validation sheet'!E:F,2,FALSE)","v":{"$error":"#N/A"}},null,null,null,"--",{"$error":"#N/A"},null,null,null,null,null,"--",null,null,"","Zone 00 Street 00 Building 00",null,{"$error":"#N/A"},null,"ARKAN GULF TRADING & CONTRACTING","2024-09-11T11:06:02.850",null,"Payroll Service (Worker)","Y","Work Visa"]
[null,null,null,null," ",null,{"$f":"VLOOKUP(F923,'Validation sheet'!E:F,2,FALSE)","v":{"$error":"#N/A"}},null,null,null,"--",{"$error":"#N/A"},null,null,null,null,null,"--",null,null,"","Zone 00 Street 00 Building 00",null,{"$error":"#N/A"},null,"ARKAN GULF TRADING & CONTRACTING","2024-09-11T11:06:02.850",null,"Payroll Service (Worker)","Y","Work Visa"]
[null,null,null,null," ",null,{"$f":"VLOOKUP(F924,'Validation sheet'!E:F,2,FALSE)","v":{"$error":"#N/A"}},null,null,null,"--",{"$error":"#N/A"},null,null,null,null,null,"--",null,null,"","Zone 00 Street 00 Building 00",null,{"$error":"#N/A"},null,"ARKAN GULF TRADING & CONTRACTING","2024-09-11T11:06:02.850",null,"Payroll Service (Worker)","Y","Work Visa"]
[null,null,null,null," ",null,{"$f":"VLOOKUP(F925,'Validation sheet'!E:F,2,FALSE)","v":{"$error":"#N/A"}},null,null,null,"--",{"$error":"#N/A"},null,null,null,null,null,"--",null,null,"","Zone 00 Street 00 Building 00",null,{"$error":"#N/A"},null,"ARKAN GULF TRADING & CONTRACTING","2024-09-11T11:06:02.850",null,"Payroll Service (Worker)","Y","Work Visa"]
[null,null,null,null," ",null,{"$f":"VLOOKUP(F926,'Validation sheet'!E:F,2,FALSE)","v":{"$error":"#N/A"}},null,null,null,"--",{"$error":"#N/A"},null,null,null,null,null,"--",null,null,"","Zone 00 Street 00 Building 00",null,{"$error":"#N/A"},null,"ARKAN GULF TRADING & CONTRACTING","2024-09-11T11:06:02.850",null,"Payroll Service (Worker)","Y","Work Visa"]
[null,null,null,null," ",null,{"$f":"VLOOKUP(F927,'Validation sheet'!E:F,2,FALSE)","v":{"$error":"#N/A"}},null,null,null,"--",{"$error":"#N/A"},null,null,null,null,null,"--",null,null,"","Zone 00 Street 00 Building 00",null,{"$error":"#N/A"},null,"ARKAN GULF TRADING & CONTRACTING","2024-09-11T11:06:02.850",null,"Payroll Service (Worker)","Y","Work Visa"]
[null,null,null,null," ",null,{"$f":"VLOOKUP(F928,'Validation sheet'!E:F,2,FALSE)","v":{"$error":"#N/A"}},null,null,null,"--",{"$error":"#N/A"},null,null,null,null,null,"--",null,null,"","Zone 00 Street 00 Building 00",null,{"$error":"#N/A"},null,"ARKAN GULF TRADING & CONTRACTING","2024-09-11T11:06:02.850",null,"Payroll Service (Worker)","Y","Work Visa"]
[null,null,null,null," ",null,{"$f":"VLOOKUP(F929,'Validation sheet'!E:F,2,FALSE)","v":{"$error":"#N/A"}},null,null,null,"--",{"$error":"#N/A"},null,null,null,null,null,"--",null,null,"","Zone 00 Street 00 Building 00",null,{"$error":"#N/A"},null,"ARKAN GULF TRADING & CONTRACTING","2024-09-11T11:06:02.850",null,"Payroll Service (Worker)","Y","Work Visa"]
[null,null,null,null," ",null,{"$f":"VLOOKUP(F930,'Validation sheet'!E:F,2,FALSE)","v":{"$error":"#N/A"}},null,null,null,"--",{"$error":"#N/A"},null,null,null,null,null,"--",null,null,"","Zone 00 Street 00 Building 00",null,{"$error":"#N/A"},null,"ARKAN GULF TRADING & CONTRACTING","2024-09-11T11:06:02.850",null,"Payroll Service (Worker)","Y","Work Visa"]
[null,null,null,null," ",null,{"$f":"VLOOKUP(F931,'Validation sheet'!E:F,2,FALSE)","v":{"$error":"#N/A"}},null,null,null,"--",{"$error":"#N/A"},null,null,null,null,null,"--",null,null,"","Zone 00 Street 00 Building 00",null,{"$error":"#N/A"},null,"ARKAN GULF TRADING & CONTRACTING","2024-09-11T11:06:02.850",null,"Payroll Service (Worker)","Y","Work Visa"]
[null,null,null,null," ",null,{"$f":"VLOOKUP(F932,'Validation sheet'!E:F,2,FALSE)","v":{"$error":"#N/A"}},null,null,null,"--",{"$error":"#N/A"},null,null,null,null,null,"--",null,null,"","Zone 00 Street 00 Building 00",null,{"$error":"#N/A"},null,"ARKAN GULF TRADING & CONTRACTING","2024-09-11T11:06:02.850",null,"Payroll Service (Worker)","Y","Work Visa"]
[null,null,null,null," ",null,{"$f":"VLOOKUP(F933,'Validation sheet'!E:F,2,FALSE)","v":{"$error":"#N/A"}},null,null,null,"--",{"$error":"#N/A"},null,null,null,null,null,"--",null,null,"","Zone 00 Street 00 Building 00",null,{"$error":"#N/A"},null,"ARKAN GULF TRADING & CONTRACTING","2024-09-11T11:06:02.850",null,"Payroll Service (Worker)","Y","Work Visa"]
[null,null,null,null," ",null,{"$f":"VLOOKUP(F934,'Validation sheet'!E:F,2,FALSE)","v":{"$error":"#N/A"}},null,null,null,"--",{"$error":"#N/A"},null,null,null,null,null,"--",null,null,"","Zone 00 Street 00 Building 00",null,{"$error":"#N/A"},null,"ARKAN GULF TRADING & CONTRACTING","2024-09-11T11:06:02.850",null,"Payroll Service (Worker)","Y","Work Visa"]
[null,null,null,null," ",null,{"$f":"VLOOKUP(F935,'Validation sheet'!E:F,2,FALSE)","v":{"$error":"#N/A"}},null,null,null,"--",{"$error":"#N/A"},null,null,null,null,null,"--",null,null,"","Zone 00 Street 00 Building 00",null,{"$error":"#N/A"},null,"ARKAN GULF TRADING & CONTRACTING","2024-09-11T11:06:02.850",null,"Payroll Service (Worker)","Y","Work Visa"]
[null,null,null,null," ",null,{"$f":"VLOOKUP(F936,'Validation sheet'!E:F,2,FALSE)","v":{"$error":"#N/A"}},null,null,null,"--",{"$error":"#N/A"},null,null,null,null,null,"--",null,null,"","Zone 00 Street 00 Building 00",null,{"$error":"#N/A"},null,"ARKAN GULF TRADING & CONTRACTING","2024-09-11T11:06:02.850",null,"Payroll Service (Worker)","Y","Work Visa"]
[null,null,null,null," ",null,{"$f":"VLOOKUP(F937,'Validation sheet'!E:F,2,FALSE)","v":{"$error":"#N/A"}},null,null,null,"--",{"$error":"#N/A"},null,null,null,null,null,"--",null,null,"","Zone 00 Street 00 Building 00",null,{"$error":"#N/A"},null,"ARKAN GULF TRADING & CONTRACTING","2024-09-11T11:06:02.850",null,"Payroll Service (Worker)","Y","Work Visa"]
[null,null,null,null," ",null,{"$f":"VLOOKUP(F938,'Validation sheet'!E:F,2,FALSE)","v":{"$error":"#N/A"}},null,null,null,"--",{"$error":"#N/A"},null,null,null,null,null,"--",null,null,"","Zone 00 Street 00 Building 00",null,{"$error":"#N/A"},null,"ARKAN GULF TRADING & CONTRACTING","2024-09-11T11:06:02.850",null,"Payroll Service (Worker)","Y","Work Visa"]
[null,null,null,null," ",null,{"$f":"VLOOKUP(F939,'Validation sheet'!E:F,2,FALSE)","v":{"$error":"#N/A"}},null,null,null,"--",{"$error":"#N/A"},null,null,null,null,null,"--",null,null,"","Zone 00 Street 00 Building 00",null,{"$error":"#N/A"},null,"ARKAN GULF TRADING & CONTRACTING","2024-09-11T11:06:02.850",null,"Payroll Service (Worker)","Y","Work Visa"]
[null,null,null,null," ",null,{"$f":"VLOOKUP(F940,'Validation sheet'!E:F,2,FALSE)","v":{"$error":"#N/A"}},null,null,null,"--",{"$error":"#N/A"},null,null,null,null,null,"--",null,null,"","Zone 00 Street 00 Building 00",null,{"$error":"#N/A"},null,"ARKAN GULF TRADING & CONTRACTING","2024-09-11T11:06:02.850",null,"Payroll Service (Worker)","Y","Work Visa"]
[null,null,null,null," ",null,{"$f":"VLOOKUP(F941,'Validation sheet'!E:F,2,FALSE)","v":{"$error":"#N/A"}},null,null,null,"--",{"$error":"#N/A"},null,null,null,null,null,"--",null,null,"","Zone 00 Street 00 Building 00",null,{"$error":"#N/A"},null,"ARKAN GULF TRADING & CONTRACTING","2024-09-11T11:06:02.850",null,"Payroll Service (Worker)","Y","Work Visa"]
[null,null,null,null," ",null,{"$f":"VLOOKUP(F942,'Validation sheet'!E:F,2,FALSE)","v":{"$error":"#N/A"}},null,null,null,"--",{"$error":"#N/A"},null,null,null,null,null,"--",null,null,"","Zone 00 Street 00 Building 00",null,{"$error":"#N/A"},null,"ARKAN GULF TRADING & CONTRACTING","2024-09-11T11:06:02.850",null,"Payroll Service (Worker)","Y","Work Visa"]
[null,null,null,null," ",null,{"$f":"VLOOKUP(F943,'Validation sheet'!E:F,2,FALSE)","v":{"$error":"#N/A"}},null,null,null,"--",{"$error":"#N/A"},null,null,null,null,null,"--",null,null,"","Zone 00 Street 00 Building 00",null,{"$error":"#N/A"},null,"ARKAN GULF TRADING & CONTRACTING","2024-09-11T11:06:02.850",null,"Payroll Service (Worker)","Y","Work Visa"]
[null,null,null,null," ",null,{"$f":"VLOOKUP(F944,'Validation sheet'!E:F,2,FALSE)","v":{"$error":"#N/A"}},null,null,null,"--",{"$error":"#N/A"},null,null,null,null,null,"--",null,null,"","Zone 00 Street 00 Building 00",null,{"$error":"#N/A"},null,"ARKAN GULF TRADING & CONTRACTING","2024-09-11T11:06:02.850",null,"Payroll Service (Worker)","Y","Work Visa"]
[null,null,null,null," ",null,{"$f":"VLOOKUP(F945,'Validation sheet'!E:F,2,FALSE)","v":{"$error":"#N/A"}},null,null,null,"--",{"$error":"#N/A"},null,null,null,null,null,"--",null,null,"","Zone 00 Street 00 Building 00",null,{"$error":"#N/A"},null,"ARKAN GULF TRADING & CONTRACTING","2024-09-11T11:06:02.850",null,"Payroll Service (Worker)","Y","Work Visa"]
[null,null,null,null," ",null,{"$f":"VLOOKUP(F946,'Validation sheet'!E:F,2,FALSE)","v":{"$error":"#N/A"}},null,null,null,"--",{"$error":"#N/A"},null,null,null,null,null,"--",null,null,"","Zone 00 Street 00 Building 00",null,{"$error":"#N/A"},null,"ARKAN GULF TRADING & CONTRACTING","2024-09-11T11:06:02.850",null,"Payroll Service (Worker)","Y","Work Visa"]
[null,null,null,null," ",null,{"$f":"VLOOKUP(F947,'Validation sheet'!E:F,2,FALSE)","v":{"$error":"#N/A"}},null,null,null,"--",{"$error":"#N/A"},null,null,null,null,null,"--",null,null,"","Zone 00 Street 00 Building 00",null,{"$error":"#N/A"},null,"ARKAN GULF TRADING & CONTRACTING","2024-09-11T11:06:02.850",null,"Payroll Service (Worker)","Y","Work Visa"]
[null,null,null,null," ",null,{"$f":"VLOOKUP(F948,'Validation sheet'!E:F,2,FALSE)","v":{"$error":"#N/A"}},null,null,null,"--",{"$error":"#N/A"},null,null,null,null,null,"--",null,null,"","Zone 00 Street 00 Building 00",null,{"$error":"#N/A"},null,"ARKAN GULF TRADING & CONTRACTING","2024-09-11T11:06:02.850",null,"Payroll Service (Worker)","Y","Work Visa"]
[null,null,null,null," ",null,{"$f":"VLOOKUP(F949,'Validation sheet'!E:F,2,FALSE)","v":{"$error":"#N/A"}},null,null,null,"--",{"$error":"#N/A"},null,null,null,null,null,"--",null,null,"","Zone 00 Street 00 Building 00",null,{"$error":"#N/A"},null,"ARKAN GULF TRADING & CONTRACTING","2024-09-11T11:06:02.850",null,"Payroll Service (Worker)","Y","Work Visa"]
[null,null,null,null," ",null,{"$f":"VLOOKUP(F950,'Validation sheet'!E:F,2,FALSE)","v":{"$error":"#N/A"}},null,null,null,"--",{"$error":"#N/A"},null,null,null,null,null,"--",null,null,"","Zone 00 Street 00 Building 00",null,{"$error":"#N/A"},null,"ARKAN GULF TRADING & CONTRACTING","2024-09-11T11:06:02.850",null,"Payroll Service (Worker)","Y","Work Visa"]
[null,null,null,null," ",null,{"$f":"VLOOKUP(F951,'Validation sheet'!E:F,2,FALSE)","v":{"$error":"#N/A"}},null,null,null,"--",{"$error":"#N/A"},null,null,null,null,null,"--",null,null,"","Zone 00 Street 00 Building 00",null,{"$error":"#N/A"},null,"ARKAN GULF TRADING & CONTRACTING","2024-09-11T11:06:02.850",null,"Payroll Service (Worker)","Y","Work Visa"]
[null,null,null,null," ",null,{"$f":"VLOOKUP(F952,'Validation sheet'!E:F,2,FALSE)","v":{"$error":"#N/A"}},null,null,null,"--",{"$error":"#N/A"},null,null,null,null,null,"--",null,null,"","Zone 00 Street 00 Building 00",null,{"$error":"#N/A"},null,"ARKAN GULF TRADING & CONTRACTING","2024-09-11T11:06:02.850",null,"Payroll Service (Worker)","Y","Work Visa"]
[null,null,null,null," ",null,{"$f":"VLOOKUP(F953,'Validation sheet'!E:F,2,FALSE)","v":{"$error":"#N/A"}},null,null,null,"--",{"$error":"#N/A"},null,null,null,null,null,"--",null,null,"","Zone 00 Street 00 Building 00",null,{"$error":"#N/A"},null,"ARKAN GULF TRADING & CONTRACTING","2024-09-11T11:06:02.850",null,"Payroll Service (Worker)","Y","Work Visa"]
[null,null,null,null," ",null,{"$f":"VLOOKUP(F954,'Validation sheet'!E:F,2,FALSE)","v":{"$error":"#N/A"}},null,null,null,"--",{"$error":"#N/A"},null,null,null,null,null,"--",null,null,"","Zone 00 Street 00 Building 00",null,{"$error":"#N/A"},null,"ARKAN GULF TRADING & CONTRACTING","2024-09-11T11:06:02.850",null,"Payroll Service (Worker)","Y","Work Visa"]
[null,null,null,null," ",null,{"$f":"VLOOKUP(F955,'Validation sheet'!E:F,2,FALSE)","v":{"$error":"#N/A"}},null,null,null,"--",{"$error":"#N/A"},null,null,null,null,null,"--",null,null,"","Zone 00 Street 00 Building 00",null,{"$error":"#N/A"},null,"ARKAN GULF TRADING & CONTRACTING","2024-09-11T11:06:02.850",null,"Payroll Service (Worker)","Y","Work Visa"]
[null,null,null,null," ",null,{"$f":"VLOOKUP(F956,'Validation sheet'!E:F,2,FALSE)","v":{"$error":"#N/A"}},null,null,null,"--",{"$error":"#N/A"},null,null,null,null,null,"--",null,null,"","Zone 00 Street 00 Building 00",null,{"$error":"#N/A"},null,"ARKAN GULF TRADING & CONTRACTING","2024-09-11T11:06:02.850",null,"Payroll Service (Worker)","Y","Work Visa"]
[null,null,null,null," ",null,{"$f":"VLOOKUP(F957,'Validation sheet'!E:F,2,FALSE)","v":{"$error":"#N/A"}},null,null,null,"--",{"$error":"#N/A"},null,null,null,null,null,"--",null,null,"","Zone 00 Street 00 Building 00",null,{"$error":"#N/A"},null,"ARKAN GULF TRADING & CONTRACTING","2024-09-11T11:06:02.850",null,"Payroll Service (Worker)","Y","Work Visa"]
[null,null,null,null," ",null,{"$f":"VLOOKUP(F958,'Validation sheet'!E:F,2,FALSE)","v":{"$error":"#N/A"}},null,null,null,"--",{"$error":"#N/A"},null,null,null,null,null,"--",null,null,"","Zone 00 Street 00 Building 00",null,{"$error":"#N/A"},null,"ARKAN GULF TRADING & CONTRACTING","2024-09-11T11:06:02.850",null,"Payroll Service (Worker)","Y","Work Visa"]
[null,null,null,null," ",null,{"$f":"VLOOKUP(F959,'Validation sheet'!E:F,2,FALSE)","v":{"$error":"#N/A"}},null,null,null,"--",{"$error":"#N/A"},null,null,null,null,null,"--",null,null,"","Zone 00 Street 00 Building 00",null,{"$error":"#N/A"},null,"ARKAN GULF TRADING & CONTRACTING","2024-09-11T11:06:02.850",null,"Payroll Service (Worker)","Y","Work Visa"]
[null,null,null,null," ",null,{"$f":"VLOOKUP(F960,'Validation sheet'!E:F,2,FALSE)","v":{"$error":"#N/A"}},null,null,null,"--",{"$error":"#N/A"},null,null,null,null,null,"--",null,null,"","Zone 00 Street 00 Building 00",null,{"$error":"#N/A"},null,"ARKAN GULF TRADING & CONTRACTING","2024-09-11T11:06:02.850",null,"Payroll Service (Worker)","Y","Work Visa"]
[null,null,null,null," ",null,{"$f":"VLOOKUP(F961,'Validation sheet'!E:F,2,FALSE)","v":{"$error":"#N/A"}},null,null,null,"--",{"$error":"#N/A"},null,null,null,null,null,"--",null,null,"","Zone 00 Street 00 Building 00",null,{"$error":"#N/A"},null,"ARKAN GULF TRADING & CONTRACTING","2024-09-11T11:06:02.850",null,"Payroll Service (Worker)","Y","Work Visa"]
[null,null,null,null," ",null,{"$f":"VLOOKUP(F962,'Validation sheet'!E:F,2,FALSE)","v":{"$error":"#N/A"}},null,null,null,"--",{"$error":"#N/A"},null,null,null,null,null,"--",null,null,"","Zone 00 Street 00 Building 00",null,{"$error":"#N/A"},null,"ARKAN GULF TRADING & CONTRACTING","2024-09-11T11:06:02.850",null,"Payroll Service (Worker)","Y","Work Visa"]
[null,null,null,null," ",null,{"$f":"VLOOKUP(F963,'Validation sheet'!E:F,2,FALSE)","v":{"$error":"#N/A"}},null,null,null,"--",{"$error":"#N/A"},null,null,null,null,null,"--",null,null,"","Zone 00 Street 00 Building 00",null,{"$error":"#N/A"},null,"ARKAN GULF TRADING & CONTRACTING","2024-09-11T11:06:02.850",null,"Payroll Service (Worker)","Y","Work Visa"]
[null,null,null,null," ",null,{"$f":"VLOOKUP(F964,'Validation sheet'!E:F,2,FALSE)","v":{"$error":"#N/A"}},null,null,null,"--",{"$error":"#N/A"},null,null,null,null,null,"--",null,null,"","Zone 00 Street 00 Building 00",null,{"$error":"#N/A"},null,"ARKAN GULF TRADING & CONTRACTING","2024-09-11T11:06:02.850",null,"Payroll Service (Worker)","Y","Work Visa"]
[null,null,null,null," ",null,{"$f":"VLOOKUP(F965,'Validation sheet'!E:F,2,FALSE)","v":{"$error":"#N/A"}},null,null,null,"--",{"$error":"#N/A"},null,null,null,null,null,"--",null,null,"","Zone 00 Street 00 Building 00",null,{"$error":"#N/A"},null,"ARKAN GULF TRADING & CONTRACTING","2024-09-11T11:06:02.850",null,"Payroll Service (Worker)","Y","Work Visa"]
[null,null,null,null," ",null,{"$f":"VLOOKUP(F966,'Validation sheet'!E:F,2,FALSE)","v":{"$error":"#N/A"}},null,null,null,"--",{"$error":"#N/A"},null,null,null,null,null,"--",null,null,"","Zone 00 Street 00 Building 00",null,{"$error":"#N/A"},null,"ARKAN GULF TRADING & CONTRACTING","2024-09-11T11:06:02.850",null,"Payroll Service (Worker)","Y","Work Visa"]
[null,null,null,null," ",null,{"$f":"VLOOKUP(F967,'Validation sheet'!E:F,2,FALSE)","v":{"$error":"#N/A"}},null,null,null,"--",{"$error":"#N/A"},null,null,null,null,null,"--",null,null,{"$f":"S967&T967","v":""},"Zone 00 Street 00 Building 00",null,{"$error":"#N/A"},null,"ARKAN GULF TRADING & CONTRACTING","2024-09-11T11:06:02.850",null,"Payroll Service (Worker)","Y","Work Visa"]
[null,null,null,null,{"$f":"B968&\" \"&D968","v":" "},null,{"$f":"VLOOKUP(F968,'Validation sheet'!E:F,2,FALSE)","v":{"$error":"#N/A"}},null,null,null,{"$f":"H968&\"-\"&I968&\"-\"&J968","v":"--"},{"$f":"G968","v":{"$error":"#N/A"}},null,null,null,null,null,{"$f":"O968&\"-\"&P968&\"-\"&Q968","v":"--"},null,null,"","Zone 00 Street 00 Building 00",null,{"$f":"L968","v":{"$error":"#N/A"}},null,{"$f":"$B$1","v":"ARKAN GULF TRADING & CONTRACTING"},{"$f":"NOW()","v":"2024-09-11T11:06:02.850"},null,"Payroll Service (Worker)","Y","Work Visa"]
[null,null,null,null," ",null,{"$f":"VLOOKUP(F969,'Validation sheet'!E:F,2,FALSE)","v":{"$error":"#N/A"}},null,null,null,"--",{"$error":"#N/A"},null,null,null,null,null,"--",null,null,"","Zone 00 Street 00 Building 00",null,{"$error":"#N/A"},null,"ARKAN GULF TRADING & CONTRACTING","2024-09-11T11:06:02.850",null,"Payroll Service (Worker)","Y","Work Visa"]
[null,null,null,null," ",null,{"$f":"VLOOKUP(F970,'Validation sheet'!E:F,2,FALSE)","v":{"$error":"#N/A"}},null,null,null,"--",{"$error":"#N/A"},null,null,null,null,null,"--",null,null,"","Zone 00 Street 00 Building 00",null,{"$error":"#N/A"},null,"ARKAN GULF TRADING & CONTRACTING","2024-09-11T11:06:02.850",null,"Payroll Service (Worker)","Y","Work Visa"]
[null,null,null,null," ",null,{"$f":"VLOOKUP(F971,'Validation sheet'!E:F,2,FALSE)","v":{"$error":"#N/A"}},null,null,null,"--",{"$error":"#N/A"},null,null,null,null,null,"--",null,null,"","Zone 00 Street 00 Building 00",null,{"$error":"#N/A"},null,"ARKAN GULF TRADING & CONTRACTING","2024-09-11T11:06:02.850",null,"Payroll Service (Worker)","Y","Work Visa"]
[null,null,null,null," ",null,{"$f":"VLOOKUP(F972,'Validation sheet'!E:F,2,FALSE)","v":{"$error":"#N/A"}},null,null,null,"--",{"$error":"#N/A"},null,null,null,null,null,"--",null,null,"","Zone 00 Street 00 Building 00",null,{"$error":"#N/A"},null,"ARKAN GULF TRADING & CONTRACTING","2024-09-11T11:06:02.850",null,"Payroll Service (Worker)","Y","Work Visa"]
[null,null,null,null," ",null,{"$f":"VLOOKUP(F973,'Validation sheet'!E:F,2,FALSE)","v":{"$error":"#N/A"}},null,null,null,"--",{"$error":"#N/A"},null,null,null,null,null,"--",null,null,"","Zone 00 Street 00 Building 00",null,{"$error":"#N/A"},null,"ARKAN GULF TRADING & CONTRACTING","2024-09-11T11:06:02.850",null,"Payroll Service (Worker)","Y","Work Visa"]
[null,null,null,null," ",null,{"$f":"VLOOKUP(F974,'Validation sheet'!E:F,2,FALSE)","v":{"$error":"#N/A"}},null,null,null,"--",{"$error":"#N/A"},null,null,null,null,null,"--",null,null,"","Zone 00 Street 00 Building 00",null,{"$error":"#N/A"},null,"ARKAN GULF TRADING & CONTRACTING","2024-09-11T11:06:02.850",null,"Payroll Service (Worker)","Y","Work Visa"]
[null,null,null,null," ",null,{"$f":"VLOOKUP(F975,'Validation sheet'!E:F,2,FALSE)","v":{"$error":"#N/A"}},null,null,null,"--",{"$error":"#N/A"},null,null,null,null,null,"--",null,null,"","Zone 00 Street 00 Building 00",null,{"$error":"#N/A"},null,"ARKAN GULF TRADING & CONTRACTING","2024-09-11T11:06:02.850",null,"Payroll Service (Worker)","Y","Work Visa"]
[null,null,null,null," ",null,{"$f":"VLOOKUP(F976,'Validation sheet'!E:F,2,FALSE)","v":{"$error":"#N/A"}},null,null,null,"--",{"$error":"#N/A"},null,null,null,null,null,"--",null,null,"","Zone 00 Street 00 Building 00",null,{"$error":"#N/A"},null,"ARKAN GULF TRADING & CONTRACTING","2024-09-11T11:06:02.850",null,"Payroll Service (Worker)","Y","Work Visa"]
[null,null,null,null," ",null,{"$f":"VLOOKUP(F977,'Validation sheet'!E:F,2,FALSE)","v":{"$error":"#N/A"}},null,null,null,"--",{"$error":"#N/A"},null,null,null,null,null,"--",null,null,"","Zone 00 Street 00 Building 00",null,{"$error":"#N/A"},null,"ARKAN GULF TRADING & CONTRACTING","2024-09-11T11:06:02.850",null,"Payroll Service (Worker)","Y","Work Visa"]
[null,null,null,null," ",null,{"$f":"VLOOKUP(F978,'Validation sheet'!E:F,2,FALSE)","v":{"$error":"#N/A"}},null,null,null,"--",{"$error":"#N/A"},null,null,null,null,null,"--",null,null,"","Zone 00 Street 00 Building 00",null,{"$error":"#N/A"},null,"ARKAN GULF TRADING & CONTRACTING","2024-09-11T11:06:02.850",null,"Payroll Service (Worker)","Y","Work Visa"]
[null,null,null,null," ",null,{"$f":"VLOOKUP(F979,'Validation sheet'!E:F,2,FALSE)","v":{"$error":"#N/A"}},null,null,null,"--",{"$error":"#N/A"},null,null,null,null,null,"--",null,null,"","Zone 00 Street 00 Building 00",null,{"$error":"#N/A"},null,"ARKAN GULF TRADING & CONTRACTING","2024-09-11T11:06:02.850",null,"Payroll Service (Worker)","Y","Work Visa"]
[null,null,null,null," ",null,{"$f":"VLOOKUP(F980,'Validation sheet'!E:F,2,FALSE)","v":{"$error":"#N/A"}},null,null,null,"--",{"$error":"#N/A"},null,null,null,null,null,"--",null,null,"","Zone 00 Street 00 Building 00",null,{"$error":"#N/A"},null,"ARKAN GULF TRADING & CONTRACTING","2024-09-11T11:06:02.850",null,"Payroll Service (Worker)","Y","Work Visa"]
[null,null,null,null," ",null,{"$f":"VLOOKUP(F981,'Validation sheet'!E:F,2,FALSE)","v":{"$error":"#N/A"}},null,null,null,"--",{"$error":"#N/A"},null,null,null,null,null,"--",null,null,"","Zone 00 Street 00 Building 00",null,{"$error":"#N/A"},null,"ARKAN GULF TRADING & CONTRACTING","2024-09-11T11:06:02.850",null,"Payroll Service (Worker)","Y","Work Visa"]
[null,null,null,null," ",null,{"$f":"VLOOKUP(F982,'Validation sheet'!E:F,2,FALSE)","v":{"$error":"#N/A"}},null,null,null,"--",{"$error":"#N/A"},null,null,null,null,null,"--",null,null,"","Zone 00 Street 00 Building 00",null,{"$error":"#N/A"},null,"ARKAN GULF TRADING & CONTRACTING","2024-09-11T11:06:02.850",null,"Payroll Service (Worker)","Y","Work Visa"]
[null,null,null,null," ",null,{"$f":"VLOOKUP(F983,'Validation sheet'!E:F,2,FALSE)","v":{"$error":"#N/A"}},null,null,null,"--",{"$error":"#N/A"},null,null,null,null,null,"--",null,null,"","Zone 00 Street 00 Building 00",null,{"$error":"#N/A"},null,"ARKAN GULF TRADING & CONTRACTING","2024-09-11T11:06:02.850",null,"Payroll Service (Worker)","Y","Work Visa"]
[null,null,null,null," ",null,{"$f":"VLOOKUP(F984,'Validation sheet'!E:F,2,FALSE)","v":{"$error":"#N/A"}},null,null,null,"--",{"$error":"#N/A"},null,null,null,null,null,"--",null,null,"","Zone 00 Street 00 Building 00",null,{"$error":"#N/A"},null,"ARKAN GULF TRADING & CONTRACTING","2024-09-11T11:06:02.850",null,"Payroll Service (Worker)","Y","Work Visa"]
[null,null,null,null," ",null,{"$f":"VLOOKUP(F985,'Validation sheet'!E:F,2,FALSE)","v":{"$error":"#N/A"}},null,null,null,"--",{"$error":"#N/A"},null,null,null,null,null,"--",null,null,"","Zone 00 Street 00 Building 00",null,{"$error":"#N/A"},null,"ARKAN GULF TRADING & CONTRACTING","2024-09-11T11:06:02.850",null,"Payroll Service (Worker)","Y","Work Visa"]
[null,null,null,null," ",null,{"$f":"VLOOKUP(F986,'Validation sheet'!E:F,2,FALSE)","v":{"$error":"#N/A"}},null,null,null,"--",{"$error":"#N/A"},null,null,null,null,null,"--",null,null,"","Zone 00 Street 00 Building 00",null,{"$error":"#N/A"},null,"ARKAN GULF TRADING & CONTRACTING","2024-09-11T11:06:02.850",null,"Payroll Service (Worker)","Y","Work Visa"]
[null,null,null,null," ",null,{"$f":"VLOOKUP(F987,'Validation sheet'!E:F,2,FALSE)","v":{"$error":"#N/A"}},null,null,null,"--",{"$error":"#N/A"},null,null,null,null,null,"--",null,null,"","Zone 00 Street 00 Building 00",null,{"$error":"#N/A"},null,"ARKAN GULF TRADING & CONTRACTING","2024-09-11T11:06:02.850",null,"Payroll Service (Worker)","Y","Work Visa"]
[null,null,null,null," ",null,{"$f":"VLOOKUP(F988,'Validation sheet'!E:F,2,FALSE)","v":{"$error":"#N/A"}},null,null,null,"--",{"$error":"#N/A"},null,null,null,null,null,"--",null,null,"","Zone 00 Street 00 Building 00",null,{"$error":"#N/A"},null,"ARKAN GULF TRADING & CONTRACTING","2024-09-11T11:06:02.850",null,"Payroll Service (Worker)","Y","Work Visa"]
[null,null,null,null," ",null,{"$f":"VLOOKUP(F989,'Validation sheet'!E:F,2,FALSE)","v":{"$error":"#N/A"}},null,null,null,"--",{"$error":"#N/A"},null,null,null,null,null,"--",null,null,"","Zone 00 Street 00 Building 00",null,{"$error":"#N/A"},null,"ARKAN GULF TRADING & CONTRACTING","2024-09-11T11:06:02.850",null,"Payroll Service (Worker)","Y","Work Visa"]
[null,null,null,null," ",null,{"$f":"VLOOKUP(F990,'Validation sheet'!E:F,2,FALSE)","v":{"$error":"#N/A"}},null,null,null,"--",{"$error":"#N/A"},null,null,null,null,null,"--",null,null,"","Zone 00 Street 00 Building 00",null,{"$error":"#N/A"},null,"ARKAN GULF TRADING & CONTRACTING","2024-09-11T11:06:02.850",null,"Payroll Service (Worker)","Y","Work Visa"]
[null,null,null,null," ",null,{"$f":"VLOOKUP(F991,'Validation sheet'!E:F,2,FALSE)","v":{"$error":"#N/A"}},null,null,null,"--",{"$error":"#N/A"},null,null,null,null,null,"--",null,null,"","Zone 00 Street 00 Building 00",null,{"$error":"#N/A"},null,"ARKAN GULF TRADING & CONTRACTING","2024-09-11T11:06:02.850",null,"Payroll Service (Worker)","Y","Work Visa"]
[null,null,null,null," ",null,{"$f":"VLOOKUP(F992,'Validation sheet'!E:F,2,FALSE)","v":{"$error":"#N/A"}},null,null,null,"--",{"$error":"#N/A"},null,null,null,null,null,"--",null,null,"","Zone 00 Street 00 Building 00",null,{"$error":"#N/A"},null,"ARKAN GULF TRADING & CONTRACTING","2024-09-11T11:06:02.850",null,"Payroll Service (Worker)","Y","Work Visa"]
[null,null,null,null," ",null,{"$f":"VLOOKUP(F993,'Validation sheet'!E:F,2,FALSE)","v":{"$error":"#N/A"}},null,null,null,"--",{"$error":"#N/A"},null,null,null,null,null,"--",null,null,"","Zone 00 Street 00 Building 00",null,{"$error":"#N/A"},null,"ARKAN GULF TRADING & CONTRACTING","2024-09-11T11:06:02.850",null,"Payroll Service (Worker)","Y","Work Visa"]
[null,null,null,null," ",null,{"$f":"VLOOKUP(F994,'Validation sheet'!E:F,2,FALSE)","v":{"$error":"#N/A"}},null,null,null,"--",{"$error":"#N/A"},null,null,null,null,null,"--",null,null,"","Zone 00 Street 00 Building 00",null,{"$error":"#N/A"},null,"ARKAN GULF TRADING & CONTRACTING","2024-09-11T11:06:02.850",null,"Payroll Service (Worker)","Y","Work Visa"]
[null,null,null,null," ",null,{"$f":"VLOOKUP(F995,'Validation sheet'!E:F,2,FALSE)","v":{"$error":"#N/A"}},null,null,null,"--",{"$error":"#N/A"},null,null,null,null,null,"--",null,null,"","Zone 00 Street 00 Building 00",null,{"$error":"#N/A"},null,"ARKAN GULF TRADING & CONTRACTING","2024-09-11T11:06:02.850",null,"Payroll Service (Worker)","Y","Work Visa"]
[null,null,null,null," ",null,{"$f":"VLOOKUP(F996,'Validation sheet'!E:F,2,FALSE)","v":{"$error":"#N/A"}},null,null,null,"--",{"$error":"#N/A"},null,null,null,null,null,"--",null,null,"","Zone 00 Street 00 Building 00",null,{"$error":"#N/A"},null,"ARKAN GULF TRADING & CONTRACTING","2024-09-11T11:06:02.850",null,"Payroll Service (Worker)","Y","Work Visa"]
[null,null,null,null," ",null,{"$f":"VLOOKUP(F997,'Validation sheet'!E:F,2,FALSE)","v":{"$error":"#N/A"}},null,null,null,"--",{"$error":"#N/A"},null,null,null,null,null,"--",null,null,"","Zone 00 Street 00 Building 00",null,{"$error":"#N/A"},null,"ARKAN GULF TRADING & CONTRACTING","2024-09-11T11:06:02.850",null,"Payroll Service (Worker)","Y","Work Visa"]
[null,null,null,null," ",null,{"$f":"VLOOKUP(F998,'Validation sheet'!E:F,2,FALSE)","v":{"$error":"#N/A"}},null,null,null,"--",{"$error":"#N/A"},null,null,null,null,null,"--",null,null,"","Zone 00 Street 00 Building 00",null,{"$error":"#N/A"},null,"ARKAN GULF TRADING & CONTRACTING","2024-09-11T11:06:02.850",null,"Payroll Service (Worker)","Y","Work Visa"]
[null,null,null,null," ",null,{"$f":"VLOOKUP(F999,'Validation sheet'!E:F,2,FALSE)","v":{"$error":"#N/A"}},null,null,null,"--",{"$error":"#N/A"},null,null,null,null,null,"--",null,null,"","Zone 00 Street 00 Building 00",null,{"$error":"#N/A"},null,"ARKAN GULF TRADING & CONTRACTING","2024-09-11T11:06:02.850",null,"Payroll Service (Worker)","Y","Work Visa"]
[null,null,null,null," ",null,{"$f":"VLOOKUP(F1000,'Validation sheet'!E:F,2,FALSE)","v":{"$error":"#N/A"}},null,null,null,"--",{"$error":"#N/A"},null,null,null,null,null,"--",null,null,"","Zone 00 Street 00 Building 00",null,{"$error":"#N/A"},null,"ARKAN GULF TRADING & CONTRACTING","2024-09-11T11:06:02.850",null,"Payroll Service (Worker)","Y","Work Visa"]

{"sheet":"Validation sheet","index":1,"n_rows":243,"n_cols":17,"rows_kept":243,"cut":false,"hidden":true,"merged":[]}
[null,null,null,null,"Country",null,null,null,null,"City",null,"Day","Month","Year","Year",null,"Madinat ash Shamal"]
[null,"QATAR ID","Business Visa",null,"AFGHANISTAN","AF",null,"Agriculture",null,"Doha",null,"01","01",1940,2024,null,"Al Khor"]
[null,"PASSPORT","Work Visa",null,"ALBANIA","AL",null,"BankingandFinance",null,"Wakra",null,"02","02",{"$f":"SUM(N2)+1","v":1941},2025,null,"Umm Salal"]
[null,null,null,null,"ALGERIA","DZ",null,"Construction",null,"Mesaieed",null,"03","03",{"$f":"SUM(N3)+1","v":1942},2026,null,"Al Daayen"]
[null,null,null,null,"AMERICAN SAMOA","AS",null,"Corporate",null,"Dukhan",null,"04","04",1943,2027,null,"Ar Rayyan"]
[null,null,null,null,"ANDORRA","AD",null,"EducationandTraining",null,"Khor",null,"05","05",1944,2028,null,"Ad Dawhah Doha"]
[null,null,null,null,"ANGOLA","AO",null,"Energy",null,"Other",null,"06","06",1945,2029,null,"Al Wakrah"]
[null,null,null,null,"ANGUILLA","AI",null,"Government",null,null,null,"07","07",1946,2030,null,"Shahaniya"]
[null,null,null,"Less than 1000","ANTARCTICA","AQ",null,"Healthcare",null,null,null,"08","08",1947,2031]
[null,null,null,"1000 to 2000","ANTIGUA AND BARBUDA","AG",null,"Hospitality",null,null,null,"09","09",1948,2032]
[null,{"$f":"260*600","v":156000},null,"2000 to 5000","ARGENTINA","AR",null,"ITandTelecommunication",null,null,null,"10","10",1949,2033]
[null,null,null,"5000 to 10000","ARMENIA","AM",null,"Legal",null,null,null,"11","11",1950,2034]
[null,null,null,"10000 to 15000","ARUBA","AW",null,"Manufacturing",null,null,null,"12","12",1951,2035]
[null,null,null,"15000 to 20000","AUSTRALIA","AU",null,"MediaandEntertainment",null,null,null,"13",null,1952,2036]
[null,null,null,"20000 to 30000","AUSTRIA","AT",null,"NGO",null,null,null,"14",null,1953,2037]
[null,null,null,"Greater than 30000","AZERBAIJAN","AZ",null,"Retail",null,null,null,"15",null,1954,2038]
[null,null,null,null,"BAHAMAS","BS",null,"Security",null,null,null,"16",null,1955,2039]
[null,null,null,null,"BAHRAIN","BH",null,"TourismandTravel",null,null,null,"17",null,1956,2040]
[null,null,null,null,"BANGLADESH","BD",null,null,null,null,null,"18",null,1957,2041]
[null,null,null,null,"BARBADOS","BB",null,null,null,null,null,"19",null,1958,2042]
[null,null,null,null,"BELARUS","BY",null,null,"Government Sector",null,null,"20",null,1959]
[null,null,null,null,"BELGIUM","BE",null,null,"Business",null,null,"21",null,1960]
[null,null,null,null,"BELIZE","BZ",null,null,"Housewife",null,null,"22",null,1961]
[null,null,null,null,"BENIN","BJ",null,null,"Payroll Service (Worker)",null,null,"23",null,1962]
[null,null,null,null,"BERMUDA","BM",null,null,"Private Sector",null,null,"24",null,1963]
[null,null,null,null,"BHUTAN","BT",null,null,"Professional",null,null,"25",null,1964]
[null,null,null,null,"BOLIVIA","BO",null,null,"Public Sector",null,null,"26",null,1965]
[null,null,null,null,"BOSNIA AND HERZEGOWINA","BA",null,null,"Retired",null,null,"27",null,1966]
[null,null,null,null,"BOTSWANA","BW",null,null,"Self Employed",null,null,"28",null,1967]
[null,null,null,null,"BOUVET ISLAND","BV",null,null,"Service Sector",null,null,"29",null,1968]
[null,null,null,null,"BRAZIL","BR",null,null,"Student",null,null,"30",null,1969]
[null,null,null,null,"BRITISH INDIAN OCEAN TERRITORY","IO",null,null,null,null,null,"31",null,1970]
[null,null,null,null,"BRUNEI DARUSSALAM","BN",null,null,null,null,null,null,null,1971]
[null,null,null,null,"BULGARIA","BG",null,null,null,null,null,null,null,1972]
[null,null,null,null,"BURKINA FASO","BF",null,null,null,null,null,null,null,1973]
[null,null,null,null,"BURUNDI","BI",null,null,null,null,null,null,null,1974]
[null,null,null,null,"CAMBODIA","KH",null,null,null,null,null,null,null,1975]
[null,null,null,null,"CAMEROON","CM",null,null,null,null,null,null,null,1976]
[null,null,null,null,"CANADA","CA",null,null,null,null,null,null,null,1977]
[null,null,null,null,"CAPE VERDE","CV",null,null,null,null,null,null,null,1978]
[null,null,null,null,"CAYMAN ISLANDS","KY",null,null,null,null,null,null,null,1979]
[null,null,null,null,"CENTRAL AFRICAN REPUBLIC","CF",null,null,null,null,null,null,null,1980]
[null,null,null,null,"CHAD","TD",null,null,null,null,null,null,null,1981]
[null,null,null,null,"CHILE","CL",null,null,null,null,null,null,null,1982]
[null,null,null,null,"CHINA","CN",null,null,null,null,null,null,null,1983]
[null,null,null,null,"CHRISTMAS ISLAND","CX",null,null,null,null,null,null,null,1984]
[null,null,null,null,"COCOS (KEELING) ISLANDS","CC",null,null,null,null,null,null,null,1985]
[null,null,null,null,"COLOMBIA","CO",null,null,null,null,null,null,null,1986]
[null,null,null,null,"COMOROS","KM",null,null,null,null,null,null,null,1987]
[null,null,null,null,"CONGO","CG",null,null,null,null,null,null,null,1988]
[null,null,null,null,"CONGO, THE DRC","CD",null,null,null,null,null,null,null,1989]
[null,null,null,null,"COOK ISLANDS","CK",null,null,null,null,null,null,null,1990]
[null,null,null,null,"COSTA RICA","CR",null,null,null,null,null,null,null,1991]
[null,null,null,null,"COTE D'IVOIRE","CI",null,null,null,null,null,null,null,1992]
[null,null,null,null,"CROATIA (local name: Hrvatska)","HR",null,null,null,null,null,null,null,1993]
[null,null,null,null,"CUBA","CU",null,null,null,null,null,null,null,1994]
[null,null,null,null,"CYPRUS","CY",null,null,null,null,null,null,null,1995]
[null,null,null,null,"CZECH REPUBLIC","CZ",null,null,null,null,null,null,null,1996]
[null,null,null,null,"DENMARK","DK",null,null,null,null,null,null,null,1997]
[null,null,null,null,"DJIBOUTI","DJ",null,null,null,null,null,null,null,1998]
[null,null,null,null,"DOMINICA","DM",null,null,null,null,null,null,null,1999]
[null,null,null,null,"DOMINICAN REPUBLIC","DO",null,null,null,null,null,null,null,2000]
[null,null,null,null,"EAST TIMOR","TP",null,null,null,null,null,null,null,2001]
[null,null,null,null,"ECUADOR","EC",null,null,null,null,null,null,null,2002]
[null,null,null,null,"EGYPT","EG",null,null,null,null,null,null,null,2003]
[null,null,null,null,"EL SALVADOR","SV",null,null,null,null,null,null,null,2004]
[null,null,null,null,"EQUATORIAL GUINEA","GQ",null,null,null,null,null,null,null,2005]
[null,null,null,null,"ERITREA","ER",null,null,null,null,null,null,null,2006]
[null,null,null,null,"ESTONIA","EE"]
[null,null,null,null,"ETHIOPIA","ET"]
[null,null,null,null,"FALKLAND ISLANDS (MALVINAS)","FK"]
[null,null,null,null,"FAROE ISLANDS","FO"]
[null,null,null,null,"FIJI","FJ"]
[null,null,null,null,"FINLAND","FI"]
[null,null,null,null,"FRANCE","FR"]
[null,null,null,null,"FRANCE, METROPOLITAN","FX"]
[null,null,null,null,"FRENCH GUIANA","GF"]
[null,null,null,null,"FRENCH POLYNESIA","PF"]
[null,null,null,null,"FRENCH SOUTHERN TERRITORIES","TF"]
[null,null,null,null,"GABON","GA"]
[null,null,null,null,"GAMBIA","GM"]
[null,null,null,null,"GEORGIA","GE"]
[null,null,null,null,"GERMANY","DE"]
[null,null,null,null,"GHANA","GH"]
[null,null,null,null,"GIBRALTAR","GI"]
[null,null,null,null,"GREECE","GR"]
[null,null,null,null,"GREENLAND","GL"]
[null,null,null,null,"GRENADA","GD"]
[null,null,null,null,"GUADELOUPE","GP"]
[null,null,null,null,"GUAM","GU"]
[null,null,null,null,"GUATEMALA","GT"]
[null,null,null,null,"GUINEA","GN"]
[null,null,null,null,"GUINEA-BISSAU","GW"]
[null,null,null,null,"GUYANA","GY"]
[null,null,null,null,"HAITI","HT"]
[null,null,null,null,"HEARD AND MC DONALD ISLANDS","HM"]
[null,null,null,null,"HOLY SEE (VATICAN CITY STATE)","VA"]
[null,null,null,null,"HONDURAS","HN"]
[null,null,null,null,"HONG KONG","HK"]
[null,null,null,null,"HUNGARY","HU"]
[null,null,null,null,"ICELAND","IS"]
[null,null,null,null,"INDIA","IN"]
[null,null,null,null,"INDONESIA","ID"]
[null,null,null,null,"IRAN (ISLAMIC REPUBLIC OF)","IR"]
[null,null,null,null,"IRAQ","IQ"]
[null,null,null,null,"IRELAND","IE"]
[null,null,null,null,"ISRAEL","IL"]
[null,null,null,null,"ITALY","IT"]
[null,null,null,null,"JAMAICA","JM"]
[null,null,null,null,"JAPAN","JP"]
[null,null,null,null,"JORDAN","JO"]
[null,null,null,null,"KAZAKHSTAN","KZ"]
[null,null,null,null,"KENYA","KE"]
[null,null,null,null,"KIRIBATI","KI"]
[null,null,null,null,"KOREA, D.P.R.O.","KP"]
[null,null,null,null,"KOREA, REPUBLIC OF","KR"]
[null,null,null,null,"KUWAIT","KW"]
[null,null,null,null,"KYRGYZSTAN","KG"]
[null,null,null,null,"LAOS","LA"]
[null,null,null,null,"LATVIA","LV"]
[null,null,null,null,"LEBANON","LB"]
[null,null,null,null,"LESOTHO","LS"]
[null,null,null,null,"LIBERIA","LR"]
[null,null,null,null,"LIBYA","LY"]
[null,null,null,null,"LIECHTENSTEIN","LI"]
[null,null,null,null,"LITHUANIA","LT"]
[null,null,null,null,"LUXEMBOURG","LU"]
[null,null,null,null,"MACAU","MO"]
[null,null,null,null,"MACEDONIA","MK"]
[null,null,null,null,"MADAGASCAR","MG"]
[null,null,null,null,"MALAWI","MW"]
[null,null,null,null,"MALAYSIA","MY"]
[null,null,null,null,"MALDIVES","MV"]
[null,null,null,null,"MALI","ML"]
[null,null,null,null,"MALTA","MT"]
[null,null,null,null,"MARSHALL ISLANDS","MH"]
[null,null,null,null,"MARTINIQUE","MQ"]
[null,null,null,null,"MAURITANIA","MR"]
[null,null,null,null,"MAURITIUS","MU"]
[null,null,null,null,"MAYOTTE","YT"]
[null,null,null,null,"MEXICO","MX"]
[null,null,null,null,"MICRONESIA, FEDERATED STATES OF","FM"]
[null,null,null,null,"MOLDOVA, REPUBLIC OF","MD"]
[null,null,null,null,"MONACO","MC"]
[null,null,null,null,"MONGOLIA","MN"]
[null,null,null,null,"MONTENEGRO","ME"]
[null,null,null,null,"MONTSERRAT","MS"]
[null,null,null,null,"MOROCCO","MA"]
[null,null,null,null,"MOZAMBIQUE","MZ"]
[null,null,null,null,"MYANMAR (Burma)","MM"]
[null,null,null,null,"NAMIBIA","NA"]
[null,null,null,null,"NAURU","NR"]
[null,null,null,null,"NEPAL","NP"]
[null,null,null,null,"NETHERLANDS","NL"]
[null,null,null,null,"NETHERLANDS ANTILLES","AN"]
[null,null,null,null,"NEW CALEDONIA","NC"]
[null,null,null,null,"NEW ZEALAND","NZ"]
[null,null,null,null,"NICARAGUA","NI"]
[null,null,null,null,"NIGER","NE"]
[null,null,null,null,"NIGERIA","NG"]
[null,null,null,null,"NIUE","NU"]
[null,null,null,null,"NORFOLK ISLAND","NF"]
[null,null,null,null,"NORTHERN MARIANA ISLANDS","MP"]
[null,null,null,null,"NORWAY","NO"]
[null,null,null,null,"OMAN","OM"]
[null,null,null,null,"PAKISTAN","PK"]
[null,null,null,null,"PALAU","PW"]
[null,null,null,null,"PALESTINE","PS"]
[null,null,null,null,"PANAMA","PA"]
[null,null,null,null,"PAPUA NEW GUINEA","PG"]
[null,null,null,null,"PARAGUAY","PY"]
[null,null,null,null,"PERU","PE"]
[null,null,null,null,"PHILIPPINES","PH"]
[null,null,null,null,"PITCAIRN","PN"]
[null,null,null,null,"POLAND","PL"]
[null,null,null,null,"PORTUGAL","PT"]
[null,null,null,null,"PUERTO RICO","PR"]
[null,null,null,null,"QATAR","QA"]
[null,null,null,null,"REUNION","RE"]
[null,null,null,null,"ROMANIA","RO"]
[null,null,null,null,"RUSSIAN FEDERATION","RU"]
[null,null,null,null,"RWANDA","RW"]
[null,null,null,null,"SAINT KITTS AND NEVIS","KN"]
[null,null,null,null,"SAINT LUCIA","LC"]
[null,null,null,null,"SAINT VINCENT AND THE GRENADINES","VC"]
[null,null,null,null,"SAMOA","WS"]
[null,null,null,null,"SAN MARINO","SM"]
[null,null,null,null,"SAO TOME AND PRINCIPE","ST"]
[null,null,null,null,"SAUDI ARABIA","SA"]
[null,null,null,null,"SENEGAL","SN"]
[null,null,null,null,"SERBIA","RS"]
[null,null,null,null,"SEYCHELLES","SC"]
[null,null,null,null,"SIERRA LEONE","SL"]
[null,null,null,null,"SINGAPORE","SG"]
[null,null,null,null,"SLOVAKIA (Slovak Republic)","SK"]
[null,null,null,null,"SLOVENIA","SI"]
[null,null,null,null,"SOLOMON ISLANDS","SB"]
[null,null,null,null,"SOMALIA","SO"]
[null,null,null,null,"SOUTH AFRICA","ZA"]
[null,null,null,null,"SOUTH SUDAN","SS"]
[null,null,null,null,"SOUTH GEORGIA AND SOUTH S.S.","GS"]
[null,null,null,null,"SPAIN","ES"]
[null,null,null,null,"SRI LANKA","LK"]
[null,null,null,null,"ST. HELENA","SH"]
[null,null,null,null,"ST. PIERRE AND MIQUELON","PM"]
[null,null,null,null,"SUDAN","SD"]
[null,null,null,null,"SURINAME","SR"]
[null,null,null,null,"SVALBARD AND JAN MAYEN ISLANDS","SJ"]
[null,null,null,null,"SWAZILAND","SZ"]
[null,null,null,null,"SWEDEN","SE"]
[null,null,null,null,"SWITZERLAND","CH"]
[null,null,null,null,"SYRIA","SY"]
[null,null,null,null,"TAIWAN, PROVINCE OF CHINA","TW"]
[null,null,null,null,"TAJIKISTAN","TJ"]
[null,null,null,null,"TANZANIA, UNITED REPUBLIC OF","TZ"]
[null,null,null,null,"THAILAND","TH"]
[null,null,null,null,"TOGO","TG"]
[null,null,null,null,"TOKELAU","TK"]
[null,null,null,null,"TONGA","TO"]
[null,null,null,null,"TRINIDAD AND TOBAGO","TT"]
[null,null,null,null,"TUNISIA","TN"]
[null,null,null,null,"TURKEY","TR"]
[null,null,null,null,"TURKMENISTAN","TM"]
[null,null,null,null,"TURKS AND CAICOS ISLANDS","TC"]
[null,null,null,null,"TUVALU","TV"]
[null,null,null,null,"UGANDA","UG"]
[null,null,null,null,"UKRAINE","UA"]
[null,null,null,null,"UNITED ARAB EMIRATES","AE"]
[null,null,null,null,"UNITED KINGDOM","GB"]
[null,null,null,null,"UNITED STATES","US"]
[null,null,null,null,"U.S. MINOR ISLANDS","UM"]
[null,null,null,null,"URUGUAY","UY"]
[null,null,null,null,"UZBEKISTAN","UZ"]
[null,null,null,null,"VANUATU","VU"]
[null,null,null,null,"VENEZUELA","VE"]
[null,null,null,null,"VIET NAM","VN"]
[null,null,null,null,"VIRGIN ISLANDS (BRITISH)","VG"]
[null,null,null,null,"VIRGIN ISLANDS (U.S.)","VI"]
[null,null,null,null,"WALLIS AND FUTUNA ISLANDS","WF"]
[null,null,null,null,"WESTERN SAHARA","EH"]
[null,null,null,null,"YEMEN","YE"]
[null,null,null,null,"ZAMBIA","ZM"]
[null,null,null,null,"ZIMBABWE","ZW"]